Workbook

Sheet Table 0 (hidden)
A1: Nazwa waluty | B1: Symbol | C1: Kupno | D1: Sprzedaż
A2: Dolar amerykański | B2: 1 USD | C2: 3.5584 | D2: 3.6302
A3: Euro | B3: 1 EUR | C3: 4.1987 | D3: 4.2835
A4: Frank szwajcarski | B4: 1 CHF | C4: 4.5589 | D4: 4.6509
A5: Funt szterling | B5: 1 GBP | C5: 4.8333 | D5: 4.9309
A6: Dolar australijski | B6: 1 AUD | C6: 2.5399 | D6: 2.5913
A7: Dolar kanadyjski | B7: 1 CAD | C7: 2.589 | D7: 2.6414
A8: Forint węgierski | B8: 100 HUF | C8: 1.1541 | D8: 1.1775
A9: Jen japoński | B9: 100 JPY | C9: 2.24 | D9: 2.2852
A10: Korona czeska | B10: 1 CZK | C10: 0.1726 | D10: 0.176
A11: Korona duńska | B11: 1 DKK | C11: 0.5618 | D11: 0.5732
A12: Korona norweska | B12: 1 NOK | C12: 0.3776 | D12: 0.3852
A13: Korona szwedzka | B13: 1 SEK | C13: 0.3881 | D13: 0.3959
A14: SDR (MFW) | B14: 1 XDR | C14: 4.9199 | D14: 5.0193

Sheet Arkusz1 (hidden)
A1: Kod | B1: Nazwa | C1: Ceny.Katalogowa.Netto
A2: 0000 040 | B2: ZŁĄCZE PRZECIWSKRĘTNE RJ12 | C2: 3.4
A3: 00-28P-SI-R2/R3 | B3: ACCESS SWITCH, L2, 24X10/100/1000BASE-T | C3: 1774
A4: 100.16440.02 | B4: COV,OUTLET,LATCH | C4: 0
A5: 100.17576 | B5: JACK,BEZEL,FLAT/ANGLED,WHITE | C5: 0
A6: 100-010 | B6: EXCEL CAT5E UNSCREENED KEYSTONE JACK 90deg-WHITE | C6: 8.06
A7: 100-011 | B7: EXCEL CAT6 UNSCREENED KEYSTONE JACK 90deg-WHITE | C7: 10.34
A8: 100-031 | B8: EXCEL 1U 19" RACK MOUNT 5RING CHROME CABLE MGT BAR | C8: 94.4
A9: 100-066 | B9: EXCEL C5E 4PR UTP VIOLET X 305M Dca | C9: 605.2
A10: 100-090 | B10: EXCEL C5E 4PR UTP EXT BLACK BOX 305M Fca | C10: 585.6
A11: 100-095 | B11: Excel 24 Port Keystone Jack Frame Black | C11: 127.86
A12: 100-110 | B12: EXL CAT6 FTP IDC JUNCTION BOX | C12: 18.38
A13: 100-134/1 | B13: EXCEL CAT6a SOLID CORE RJ-45 PLUG (1 sztuka) | C13: 16.4
A14: 100-140 | B14: Excel Cat6a FTP t'less field installable RJ45 plug | C14: 21.66
A15: 100-144-06 | B15: EXCEL CAT6a FTP ANGLED FIELD INSTALL RJ45 PLUG PK6 | C15: 454.44
A16: 100-148 | B16: EXCEL CAT6A 1M FFTP LSOH PATCH LEAD GREY | C16: 14
A17: 100-156-BK | B17: EXCEL CAT6a UNSCREENED IDC STYLE KEYSTONE JACK-BLK | C17: 13.5
A18: 100-159 | B18: EXCEL CAT6A 1M FFTP LSOH PATCH LEAD BLUE | C18: 11.5
A19: 100-182-BK | B19: EXCEL CAT6a LOW PROFILE UN-SCRD K/S JACK T/LESS-BK | C19: 16.4
A20: 100-191 | B20: EXCEL CAT6a U/FTP S/FOIL CABLE RL500M-ICE BLUE | C20: 1792.38
A21: 100-212 | B21: EXCEL CAT6 UNSCREENED TOOLLESS JACK 180deg-BLACK | C21: 6.66
A22: 100-213 | B22: EXCEL CAT6 ANGLED UNSCR TOOLLESS JACK 180deg-BLACK | C22: 15.32
A23: 100-215-BK | B23: EXCEL CAT6 LOW PROFILE UNSCREEN TOOLLESS JACK-BLK | C23: 13.36
A24: 100-230 | B24: Excel ExpressNet Panel - 4 Module - Empty | C24: 155.68
A25: 100-231 | B25: Excel ExpressNet Panel - 8 Module - Empty | C25: 0
A26: 100-237 | B26: Excel Category 6A - 6 Port Screened ExpressNet Mod | C26: 187.88
A27: 100-289 | B27: EXCEL FLAT 45x45mm SHUTTER 1-PORT | C27: 8.78
A28: 100-297 | B28: EXCEL CAT6 UNSCREENED MODULE-6C LOW PROFILE WHITE | C28: 16.8
A29: 100-302 | B29: EXCEL CAT6 24 PORT 1U R/ANGLE PATCH PANEL BLACK | C29: 287.76
A30: 100-314 | B30: EXCEL CAT6 5M UUTP LSOH PATCH LEAD GREY | C30: 21.7
A31: 100-400 | B31: EXCEL CAT6 7M UUTP LSOH PATCH LEAD BLACK | C31: 23.02
A32: 100-417 | B32: EXCEL CAT6 2M UUTP LSOH PATCH LEAD WHITE | C32: 10.3
A33: 100-435 | B33: EXCEL CAT6 1M FUTP LSOH PATCH LEAD GREY | C33: 15.04
A34: 100-438 | B34: EXCEL CAT6 1M FUTP LSOH PATCH LEAD RED | C34: 16.96
A35: 100-456 | B35: EXCEL CAT6 0.5M FUTP LSOH PATCH LEAD GREY | C35: 13.02
A36: 100-457 | B36: EXCEL CAT6 2M FUTP LSOH PATCH LEAD GREY | C36: 24.42
A37: 100-464 | B37: EXCEL VOICE 50PORT RJ45 PATCH PANEL 1U 3PR -BLACK | C37: 289.98
A38: 100-500 | B38: EXCEL CAT6A 1M UUTP LSOH PATCH LEAD GREY | C38: 13.62
A39: 100-506 | B39: EXCEL CAT6 2M UTP LSOH MINI PATCH LEAD GREY | C39: 11.34
A40: 100-507 | B40: EXCEL CAT6 3M UTP LSOH MINI PATCH LEAD GREY | C40: 16.12
A41: 100-518 | B41: EXCEL CAT6 0.5M UTP LSOH MINI PATCH LEAD BLUE | C41: 4.5
A42: 100-518-10 | B42: EXCEL CAT6 0.5M UTP LSOH MINI PATCH LEAD BLUE PK10 | C42: 64.52
A43: 100-524 | B43: EXCEL CAT6 2M UTP LSOH MINI PATCH LEAD BLUE | C43: 11.68
A44: 100-535 | B44: EXCEL CAT6 5M UTP LSOH MINI PATCH LEAD YELLOW | C44: 12.68
A45: 100-556 | B45: EXCEL CAT6 1.5M UUTP LSOH PATCH LEAD WHITE | C45: 10.02
A46: 100-583 | B46: XL 1U Cable Mgmt Bar 4Metal Hoops 100mm deep Black | C46: 36.62
A47: 1007600 | B47: Konwerter 10/100 Mbps RJ-45/SC, MM 1310nm 2km | C47: 120.1
A48: 1008 1010 | B48: LSA-HD łączówka nierozłączna na 10 par,1...0, b-z | C48: 52.81
A49: 1008 1110 | B49: LSA-HD łączówka rozłączna na 10 par,1...0, s-z | C49: 66.93
A50: 1008 5001 | B50: Magazyn łączówek LSA-HD 19''/1U na 90 par (3 x 3) | C50: 0
A51: 1008 5003 | B51: Magazyn łączówek LSA-HD 19''/3U na 270 par (3 x 9) | C51: 283.43
A52: 1008 5003/30 | B52: Magazyn łączówek LSA-HD 19''/3U na 300 par (3 x10) | C52: 0
A53: 1020 052/G | B53: LSA łączówka rozłączna 2/10 - bez kodu barwnego | C53: 35.12
A54: 1030 022/N | B54: LSA łączówka rozłączna 2/10 - bez kodu barwnego,1. | C54: 29.53
A55: 1036 015 | B55: Samoprzylepna taśma miedziana | C55: 19.64
A56: 1036 016 | B56: Taśma rzepowa dwustronna 16mm czarna | C56: 0
A57: 1036 050 | B57: Taśma rzepowa 50mm haczyk pętelka 25 mb Produkt | C57: 0
A58: 1038 004 | B58: Uchwyt na kable dla 8 przewodów | C58: 13.66
A59: 1062 310 | B59: Zaciskarka wtyków RJ45, RJ12, RJ11 | C59: 65.78
A60: 19-0066 | B60: Wentylator 120x120 + Kabel | C60: 171.7
A61: 19-0067 | B61: Wentylator 120x120 + Kabel + Termostat | C61: 246.5
A62: 1912551 | B62: Multimetr światłowodowy Optical Explorer w wersji PRO OX1-PRO-I SN: 1912551 | C62: 0
A63: 1970-05 | B63: Nakładka dekla FS1 dł. bok ALU | C63: 341.66
A64: 1970D-1E-PLA | B64: Puszka Burghart FS1 IP67 anodowana 1970D-1E-PLA | C64: 959.46
A65: 200-043 | B65: ENBEAM OM3 P/LEAD LC-LC 50/125 DX AQ 1M | C65: 33.22
A66: 200-150 | B66: EXCEL OM3 4C 50/125 LOOSE TUBE BLACK Dca | C66: 4.74
A67: 200-364 | B67: EXCEL DUPLEX LC SINGLEMODE ADAPTOR | C67: 17.94
A68: 200-398 | B68: EXCEL SPLICE PROTECTOR-CLEAR 61mm x 3mm | C68: 5.7
A69: 200-404 | B69: EXCEL 12 WAY SC DUPLEX/LC QUAD FIBRE PANEL-EMPTY | C69: 135.64
A70: 20045 | B70: SWITCH POE GETFORT | C70: 310
A71: 200-454 | B71: EXCEL OS2 2M SC PIGTAIL 9/125 TB 12 COLOUR PACK | C71: 4.16
A72: 200-470 | B72: EXCEL 24 WAY SM F/PANEL-4 LC DX 8F BU | C72: 284.92
A73: 200-555 | B73: EXL OM3 2M SC PIGTAIL 50/125 | C73: 7.8
A74: 200-559 | B74: EXCEL OM2 2M LC PIGTAIL 50/125 | C74: 9.6
A75: 200-561 | B75: EXCEL OS2 2M LC PIGTAIL MALE 9/125 | C75: 11.28
A76: 200-586 | B76: EXCEL G657A 1M SCAPC PIGTAIL YELLOW EASY STRIP | C76: 4.92
A77: 200-646 | B77: EXCEL OM4 1M SC PIGTAIL 50/125 SET OF 12 VIOLET | C77: 125.58
A78: 200-647 | B78: EXCEL OM4 1M LC PIGTAIL 50/125 SET OF 12 VIOLET | C78: 127.58
A79: 200-649 | B79: EXCEL OS2 1M SC PIGTAIL 9/125 SET OF 12 YELLOW | C79: 103.74
A80: 200-680 | B80: ENBEAM OS2 P/LEAD LC-LC 9/125 DX YW 2M | C80: 31.9
A81: 200-951 | B81: EXCEL 24 WAY SCDX/LCQD FIBRE PANEL-EMPTY | C81: 177.9
A82: 200-952 | B82: EXCEL 24 WAY SC SX/LC DX FIBRE PANEL-EMPTY | C82: 198.92
A83: 201-602 | B83: Excel 6 Port (12 Fibre) OS2 LC ExpressNet Module | C83: 0
A84: 2021 035 | B84: Minirozdzielnik na max. 3 łączówki LSA 2/10 (bez | C84: 16.1
A85: 2021 050/R | B85: Ramka do boxu zewnętrzn. KS20 | C85: 0
A86: 2021 077/R | B86: Ramka do boxu zewnętrzn. KS100 | C86: 66.61
A87: 2023/05/00325 | B87: Realizacja zamówienia - OFERTA Nr 2023/05/00325 | C87: 0
A88: 205-302 | B88: EXCEL OS2 12C 9/125 LOOSE TUBE BLACK Dca | C88: 3.24
A89: 205-304 | B89: EXCEL OS2 24C 9/125 LOOSE TUBE BLACK Dca | C89: 4.86
A90: 205-307 | B90: EXCEL OS2 12C 9/125 LOOSE TUBE CST BLUE Eca | C90: 8.4
A91: 2090000 | B91: DK MOCOWANIE 19” 1 U (M5), 1OP=24SZT. | C91: 0
A92: 2405 | B92: Jednostka Centralna MDS DIN10 | C92: 0
A93: 250212920 | B93: PUSZKA PODŁOGOWA UDH E2-510 50-110 | C93: 218.26
A94: 250E04912 | B94: Kaseta PKBN E04 LE | C94: 1252.82
A95: 250Q02912 | B95: Kaseta PKBN Q02 LE | C95: 770.12
A96: 250Q02912 SO | B96: Kaseta PKBN Q02 LE/FS | C96: 790.36
A97: 250Q08912 | B97: Kaseta PKBN Q08 LE | C97: 973.12
A98: 250Q08912 SO | B98: Kaseta PKBN Q08 LE/FS | C98: 977.32
A99: 250Q25912 | B99: Kaseta PKBN Q25 LE | C99: 900.22
A100: 250Q25912 SO | B100: Kaseta PKBN Q25 LE/FS | C100: 800.26
A101: 251214920 | B101: Puszka podłogowa UDH E4-513 50-110 | C101: 271.04
A102: 253314920 | B102: Puszka podłogowa UDH3-503 70-130 | C102: 285.4
A103: 253952610 | B103: Ramka dopasowująca UDM3 Q06 | C103: 129.48
A104: 253956610 | B104: Rama dopasowująca UDM3 Q12 | C104: 127.56
A105: 255312920 | B105: Puszka podłogowa UDH Q2-512 70-130 | C105: 241.06
A106: 255314920 | B106: Puszka podłogowa UDH Q2-512 150-180 | C106: 273.76
A107: 255412920 | B107: Puszka podłogowa UDH Q2.1 | C107: 287.66
A108: 256314920 | B108: Puszka podłogowa UDH Q3 - 514 70-130 | C108: 276.12
A109: 257212920 | B109: Puszka podłogowa UDH Q01 515 | C109: 171.84
A110: 258212920 | B110: Puszka podłogowa UDH Q02-518 | C110: 184.06
A111: 258214920 | B111: Puszka podłogowa UDH Q02-518 180 | C111: 226.6
A112: 258412920 | B112: Puszka podłogowa UDH Q02.1 165-215 | C112: 252.94
A113: 2637 | B113: NEARKEY MODUŁ BLUETOOTH | C113: 0
A114: 276312920 | B114: Puszka podłogowa UDH E6 70-130 | C114: 309.82
A115: 29098K075 | B115: Zespół śrub poz. ZE-NSK 075 | C115: 31.44
A116: 29098K120 | B116: Zespół śrub poz. ZE-NSK 120 | C116: 81.22
A117: 29298K075 | B117: Zespół srub poz. ZPK 075 | C117: 34.36
A118: 29298K120 | B118: Zespół srub poz. ZPK 120 | C118: 54.94
A119: 292Q30912 | B119: Kaseta HBKK Q292LE | C119: 1250.88
A120: 2A45-1PK | B120: Adapter 45x45 kątowy 1-port z możliwością kodów | C120: 2.78
A121: 2A45-2PK | B121: Adapter 45x45 kątowy 2-port z możliwością kodów | C121: 3.22
A122: 2G-2S.1.4.F-BOXPOE-P | B122: Przemysłowy switch dla topologii pierścienia, 2xgn | C122: 10300
A123: 2L-5205U | B123: Kabel KVM USB 5m | C123: 139.92
A124: 2MP45-6AN | B124: Moduł teleinformatyczny połączeniowy RJ45, łącznik | C124: 7.7
A125: 2MPLSA-6AE | B125: Moduł teleinformatyczny połączeniowy LSA, łącznik | C125: 15.76
A126: 2MSFP+10G-LR | B126: Moduł SFP+ 10G LR 1310 nm LC SM 10km | C126: 409
A127: 2MSFP-1G-LX | B127: Moduł SFP 1G LX 1310nm LC SM 20km | C127: 254.92
A128: 2P-30097 | B128: PowerWalker UPS Line-In 500VA 1RU 4x IEC Out, USB HID/ RS-232, Rack 19'' | C128: 0
A129: 2P-30823 | B129: Seagate Dysk SkyHawk 2TB 3,5 256MB ST2000VX017 | C129: 0
A130: 2P-31053 | B130: Moduł SFP 1GBase-SX, MM, 550m | C130: 0
A131: 2P-31054 | B131: Moduł SFP+ 10GBase-SR, MM,300m | C131: 0
A132: 2P-3221126 | B132: 16-kanałowe zabezpieczenie przeciwprzepięciowe serii PRO do systemów IP z ochroną PoE | C132: 0
A133: 2P-3221993 | B133: BCS-L-TIP14FSR3L3 | C133: 0
A134: 2P-3221994 | B134: BCS-L-AT3 | C134: 0
A135: 2P-3221995 | B135: BCS-L-NVR0801-4KE(2L) | C135: 0
A136: 2P-3221996 | B136: BCS-ZIP | C136: 0
A137: 2P-3221997 | B137: Ewimar PTF-58R-PRO/PoE 8- kanałowe zabezpieczenie przeciwprzepięciowe serii PRO do systemów IP z ochroną PoE | C137: 0
A138: 2P-3221998 | B138: BCS-B-SP16G-2SFP-M | C138: 0
A139: 2P-A00280 | B139: Punkt dostępowy U7-PRO UniFi 7 Pro WiFi 7 MIMO | C139: 0
A140: 2P-A00319 | B140: 2P-A00319 AC Wave 2 AP 4x4 MU-MIMO UAP-AC-SHD | C140: 0
A141: 2P-A00327 | B141: Przełącznik 24x1GbE PoE USW-24-POE | C141: 0
A142: 2P-A00337 | B142: Switch UniFi Dream Machine UDM-Pro | C142: 0
A143: 2P-A00359 | B143: 2P-A00359 Switch UniFi 48x1GbE USW-Pro-48 | C143: 0
A144: 2P-A90093 | B144: Moduł SFP Ubiquiti, uFiber SFP WDM, 1.25Gbps SM LC | C144: 0
A145: 2P-D20006 | B145: 2P-D20006 | C145: 0
A146: 2P-D20048 | B146: Moduł SFP 2 x LC 850 nm 550 m Multimode | C146: 0
A147: 2P-D20049 | B147: 2P-D20049 | C147: 0
A148: 2P-D20060 | B148: Przełącznik dostępowy L2 24x10/100/1000Base-T RJ45 + 4x1000Base-X SFP 230V AC | C148: 0
A149: 2P-H60064 | B149: Aruba IOn 1960 48G 2XT 2XF 600W Sw | C149: 0
A150: 2P-H61190 | B150: HPE Aruba Networking AP-MNT-MP10-A | C150: 0
A151: 2P-H75790 | B151: Aruba AP-505 (RW) Unified AP | C151: 0
A152: 2P-H80180 | B152: Aruba 6000 48G CL4 4SFP Swch Aruba 6000 48G CL4 4S | C152: 0
A153: 2P-H80186 | B153: Aruba 6000 24G CL4 4SFP Swch Aruba 6000 24G CL4 4S | C153: 0
A154: 2PK-24 | B154: 2LAN Panel krosowy teleinformatyczny 1U 24 portowy | C154: 51.1
A155: 2PK3-25 | B155: Panel krosowy telefoniczny 1U kat. 3 25-port | C155: 91.18
A156: 2PK3-50 | B156: Panel krosowy telefoniczny 1U kat. 3 50-port | C156: 171.4
A157: 2PK6-24N | B157: 2LAN Panel krosowy teleinformatyczny 1U kat.6 24-p | C157: 110.4
A158: 2P-P00005 | B158: Kabel kat.5e U/UTP PVC 200MHz CU 305m biały (0-AAB-1VK) | C158: 0
A159: 2P-S00001 | B159: SFP+ SR 10Gbs 850nm LC DDM MMF 300m (for HP Aruba) | C159: 0
A160: 2P-S00002 | B160: SFP+ LR 10Gbs 1310nm LC DDM SMF10km (for HP Aruba) | C160: 0
A161: 2P-S00031 | B161: SFP 1.25Gbps LX 1310nm LC DDM SMF 20km | C161: 0
A162: 2P-T80063 | B162: Omada 16-Port Gigabit Smart Switch with 8-Port PoE+ PORT: 8× Gigabit PoE+ Ports SPEC: 802.3af/at, 120 W PoE Power, Desktop Steel Case FEATURE: Integration with Omada SDN Controller, Static Routing, 8 | C162: 0
A163: 2P-T80075 | B163: TP-LINK SG3428MP Switch 24xGE PoE+ 4xSFP | C163: 0
A164: 2P-T80081 | B164: Omada 52-Port Gigabit L2+ Managed Switch with 48-Port PoE+ PORT: 48× Gigabit PoE+ Ports, 4× Gigabit SFP Slots, RJ45/Micro- USB Console Port SPEC: 802.3at/af, 384 W PoE Power, 1U 19- inch Rack-mountabl | C164: 0
A165: 2P-TL-SG1048 | B165: 2P-TL-SG1048 48-Port Gigabit Switch | C165: 2068
A166: 2P-TL-SG2428P | B166: JetStream™ 28-Port Gigabit Smart Switch with 24-Po | C166: 2304
A167: 2P-TL-SM311LS | B167: Gigabit Single-Mode SFP Module | C167: 0
A168: 3022 087/1,5 | B168: Sznur pomiarowy 2/4 4-polowy 1,5m, z czterema wtyk | C168: 29.92
A169: 3050 004 | B169: Profil-Rundstangenhalter-U Tiefe: 46mm | C169: 31
A170: 3050 005 | B170: Profil-Rundstangenhalter-U Tiefe: 86mm | C170: 32
A171: 3050 006 | B171: Profil-Rundstangenhalter-U Tiefe: 170mm | C171: 40.94
A172: 3110000 | B172: SK REGULATOR TEMPERATURY | C172: 0
A173: 3110200 | B173: SK ADAPTER MOCOWANIA DO TERMOST. | C173: 0
A174: 3268 | B174: Poseidon 2 3268 - może obsłużyć w sumie 12 czujnik | C174: 0
A175: 3268-1 | B175: REGENERATOR 1W DUOX PLUS | C175: 0
A176: 3269 | B176: REGENERATOR 2W DUOX PLUS | C176: 0
A177: 338.0203 | B177: Kaseta CONI krótka srebrna | C177: 759.58
A178: 338.0205 | B178: Kaseta CONI długa srebrna | C178: 827.62
A179: 338422010 | B179: Pokrywa uchyl. KD1 E4S-538 R5 7011 | C179: 206.86
A180: 338423010 | B180: Pokrywa uchyl. KD2 E4S-538 R5 7011 | C180: 173.3
A181: 338542010 | B181: Pokrywa uchyl. KD1 E4S-538 K12 7011 | C181: 205.8
A182: 339542010 | B182: Pokrywa uchylna KD1 E3S-539 K12 7011 | C182: 266.48
A183: 3444 | B183: UNIFON VEO DUOX PLUS | C183: 0
A184: 350-644 | B184: EXL 12WAY L/PROFILE CONSOLIDATION POINT U/L GRY WH | C184: 193.8
A185: 351422011 | B185: Pokrywa uchylna KD1 E2S-542 R5 7011 | C185: 102.8
A186: 351542011 | B186: Pokrywa uchyl. KD E2S-542 K12 7011 | C186: 121
A187: 352032010 | B187: Zespół mocujący pokrywę 15-35mm | C187: 3.7
A188: 354542010 | B188: Pokrywa uchyl. KD1 Q2-562 K12 7011 | C188: 201.26
A189: 356032010 | B189: Zespół mocujący pokrywę 15-35mm | C189: 6
A190: 368422010 | B190: Pokrywa uchyl. KD1 Q2S-568 R5 7011 | C190: 145.96
A191: 368422011 | B191: Pokrywa uchyl. KD1 Q2S-568d R5 7011 | C191: 135.08
A192: 368422710 | B192: Pokrywa uchyl. KD1 Q2S-568 R5E 7011 | C192: 179.5
A193: 368423011 | B193: Pokrywa uchylna KD2 Q2S-568d R5 7011 | C193: 151.08
A194: 368423091 | B194: Pokrywa uchyl KD2 Q2S-568d R5 9005 | C194: 107.94
A195: 368424011 | B195: Pokrywa uchyl. KD3 Q2S-568d R5 7011 | C195: 119.82
A196: 368542010 | B196: Pokrywa uchyl. KD1 Q2S-568 K12 7011 | C196: 174.72
A197: 368542011 | B197: Pokrywa uchyl. KD1 Q2S-568d K12 7011 | C197: 167.74
A198: 368542040 | B198: Pokrywa uchyl. KD1 Q2S-568 K12 1019 | C198: 175.08
A199: 368544011 | B199: Pokrywa uchyl. KD3 Q2S-568d K12 7011 | C199: 131.36
A200: 369422012 | B200: Pokrywa uchyl. KD1 Q2S-569t R5 7011 | C200: 177.26
... 3082 more rows

Sheet wyprzedaż-plik (hidden)
A1: Numer katalogowy | B1: Opis | C1: Grupa produktowa | D1: Stan | E1: J.m.
A2: F26-2130-2 | B2: Patchcord SC-LC, 62,5/125 µm duplex, wielomodowy | C2: Cobi FO pigtaile i patchcordy | D2: =VLOOKUP(A2,'wyprzedaż-enova'!A:C,3,FALSE) -> 1 | E2: szt.
A3: F26-2110-2 | B3: Patchcord SC-SC, 62,5/125 µm duplex, wielomodowy | C3: Cobi FO pigtaile i patchcordy | D3: =VLOOKUP(A3,'wyprzedaż-enova'!A:C,3,FALSE) -> 20 | E3: szt.
A4: F26-1110-2 | B4: Patchcord SC-SC, 62,5/125 µm simplex, wielomodowy | C4: Cobi FO pigtaile i patchcordy | D4: =VLOOKUP(A4,'wyprzedaż-enova'!A:C,3,FALSE) -> 12 | E4: szt.
A5: F21-2770-2 | B5: Patchcord ST-ST, 9/125 µm duplex, jednomodowy | C5: Cobi FO pigtaile i patchcordy | D5: =VLOOKUP(A5,'wyprzedaż-enova'!A:C,3,FALSE) -> 19 | E5: szt.
A6: F21-2150-2 | B6: Patchcord SC/PC-ST/PC SM OS2 dx LSOH 2m | C6: Cobi FO pigtaile i patchcordy | D6: =VLOOKUP(A6,'wyprzedaż-enova'!A:C,3,FALSE) -> 9 | E6: szt.
A7: F21-1440-0,5 | B7: Patchcord LC/APC-LC/APC, 9/125 µm simplex, SM 0,5 | C7: Cobi FO pigtaile i patchcordy | D7: =VLOOKUP(A7,'wyprzedaż-enova'!A:C,3,FALSE) -> 1 | E7: szt.
A8: F13-0900-2 | B8: Pigtail MTRJ (wtyk męski) 50/125 µm, 2,0m, OM3 | C8: Cobi FO pigtaile i patchcordy | D8: =VLOOKUP(A8,'wyprzedaż-enova'!A:C,3,FALSE) -> 2 | E8: szt.
A9: F12-0100-2 | B9: Pigtail CobiCabling SC/PS wielomodowy OM2 LSOH easy strip 2m | C9: Cobi FO pigtaile i patchcordy | D9: =VLOOKUP(A9,'wyprzedaż-enova'!A:C,3,FALSE) -> 105 | E9: szt.
A10: F11-0700-2 | B10: Pigtail ST/PC jednomodowy OS2 LSOH easy strip 2m | C10: Cobi FO pigtaile i patchcordy | D10: =VLOOKUP(A10,'wyprzedaż-enova'!A:C,3,FALSE) -> 144 | E10: szt.
A11: F12-0300-2 | B11: Pigtail LC/PC wielomodowy OM2 LSOH 2m | C11: Cobi FO pigtaile i patchcordy | D11: =VLOOKUP(A11,'wyprzedaż-enova'!A:C,3,FALSE) -> 4 | E11: szt.
A12: F24-2130-2 | B12: Patchcord SC-LC, 50/125 µm duplex, MM, 2,0m OM4 | C12: Cobi FO pigtaile i patchcordy | D12: =VLOOKUP(A12,'wyprzedaż-enova'!A:C,3,FALSE) -> 71 | E12: szt.
A13: F21-2130-2 | B13: Patchcord SC/PC-LC/PC dx SM OS2 LSOH 2m | C13: Cobi FO pigtaile i patchcordy | D13: =VLOOKUP(A13,'wyprzedaż-enova'!A:C,3,FALSE) -> 70 | E13: szt.
A14: F21-2110-2 | B14: Patchcord SC/PC-SC/PC SM OS2 dx LSOH 2m | C14: Cobi FO pigtaile i patchcordy | D14: =VLOOKUP(A14,'wyprzedaż-enova'!A:C,3,FALSE) -> 152 | E14: szt.
A15: F21-2330-0,5 | B15: Patchcord LC/PC-LC/PC dx SM OS2 LSOH 0,5m | C15: Cobi FO pigtaile i patchcordy | D15: =VLOOKUP(A15,'wyprzedaż-enova'!A:C,3,FALSE) -> 97 | E15: szt.
A16: F24-2110-3 | B16: Patchcord SC/PC-SC/PC MM OM4 dx LSOH 3m | C16: Cobi FO pigtaile i patchcordy | D16: =VLOOKUP(A16,'wyprzedaż-enova'!A:C,3,FALSE) -> 126 | E16: szt.
A17: F24-2110-1 | B17: Patchcord SC/PC-SC/PC MM OM4 dx LSOH 1m | C17: Cobi FO pigtaile i patchcordy | D17: =VLOOKUP(A17,'wyprzedaż-enova'!A:C,3,FALSE) -> 160 | E17: szt.
A18: F23-2110-3 | B18: Patchcord SC/PC-SC/PC MM OM3 dx LSOH 3m | C18: Cobi FO pigtaile i patchcordy | D18: =VLOOKUP(A18,'wyprzedaż-enova'!A:C,3,FALSE) -> 182 | E18: szt.
A19: F23-2110-2 | B19: Patchcord SC/PC-SC/PC MM OM3 dx LSOH 2m | C19: Cobi FO pigtaile i patchcordy | D19: =VLOOKUP(A19,'wyprzedaż-enova'!A:C,3,FALSE) -> 228 | E19: szt.
A20: F22-2770-3 | B20: Patchcord ST-ST, 50/125 µm duplex, wielomodowy | C20: Cobi FO pigtaile i patchcordy | D20: =VLOOKUP(A20,'wyprzedaż-enova'!A:C,3,FALSE) -> 10 | E20: szt.
A21: F22-2330-2 | B21: Patchcord LC-LC, 50/125 µm duplex, wielomodowy | C21: Cobi FO pigtaile i patchcordy | D21: =VLOOKUP(A21,'wyprzedaż-enova'!A:C,3,FALSE) -> 115 | E21: szt.
A22: F22-2130-2 | B22: Patchcord SC-LC, 50/125 µm duplex, wielomodowy | C22: Cobi FO pigtaile i patchcordy | D22: =VLOOKUP(A22,'wyprzedaż-enova'!A:C,3,FALSE) -> 36 | E22: szt.
A23: F22-2110-3 | B23: Patchcord SC/PC-SC/PC MM OM2 dx LSOH 3m | C23: Cobi FO pigtaile i patchcordy | D23: =VLOOKUP(A23,'wyprzedaż-enova'!A:C,3,FALSE) -> 95 | E23: szt.
A24: F22-2110-2 | B24: Patchcord SC-SC, 50/125 µm duplex, wielomodowy | C24: Cobi FO pigtaile i patchcordy | D24: =VLOOKUP(A24,'wyprzedaż-enova'!A:C,3,FALSE) -> 157 | E24: szt.
A25: F22-2110-1 | B25: Patchcord SC/PC-SC/PC MM OM2 dx LSOH 1m | C25: Cobi FO pigtaile i patchcordy | D25: =VLOOKUP(A25,'wyprzedaż-enova'!A:C,3,FALSE) -> 54 | E25: szt.
A26: F23-2110-1 | B26: Patchcord SC/PC-SC/PC MM OM3 dx LSOH 1m | C26: Cobi FO pigtaile i patchcordy | D26: =VLOOKUP(A26,'wyprzedaż-enova'!A:C,3,FALSE) -> 208 | E26: szt.
A27: F24-2110-2 | B27: Patchcord SC-SC, 50/125 µm duplex, MM, 2,0m, OM4 | C27: Cobi FO pigtaile i patchcordy | D27: =VLOOKUP(A27,'wyprzedaż-enova'!A:C,3,FALSE) -> 186 | E27: szt.
A28: F13-0100-1 | B28: Pigtail SC/PC wielomodowy OM3 LSOH 1m | C28: Cobi FO pigtaile i patchcordy | D28: =VLOOKUP(A28,'wyprzedaż-enova'!A:C,3,FALSE) -> 6810 | E28: szt.
A29: F23-2130-3 | B29: Patchcord SC/PC-LC/PC MM OM3 dx LSOH 3m | C29: Cobi FO pigtaile i patchcordy | D29: =VLOOKUP(A29,'wyprzedaż-enova'!A:C,3,FALSE) -> 124 | E29: szt.
A30: F12-0100-1 | B30: Pigtail SC/PC wielomodowy OM2 LSOH 1m | C30: Cobi FO pigtaile i patchcordy | D30: =VLOOKUP(A30,'wyprzedaż-enova'!A:C,3,FALSE) -> 6076 | E30: szt.
A31: F14-0100-1 | B31: Pigtail SC/PC wielomodowy OM4 LSOH 1m | C31: Cobi FO pigtaile i patchcordy | D31: =VLOOKUP(A31,'wyprzedaż-enova'!A:C,3,FALSE) -> 3965 | E31: szt.
A32: F24-2130-3 | B32: Patchcord SC/PC-LC/PC MM OM4 dx LSOH 3m | C32: Cobi FO pigtaile i patchcordy | D32: =VLOOKUP(A32,'wyprzedaż-enova'!A:C,3,FALSE) -> 74 | E32: szt.
A33: F12-0300-1 | B33: Pigtail LC/PC wielomodowy OM2 LSOH 1m | C33: Cobi FO pigtaile i patchcordy | D33: =VLOOKUP(A33,'wyprzedaż-enova'!A:C,3,FALSE) -> 4338 | E33: szt.
A34: F13-0300-1 | B34: Pigtail LC/PC wielomodowy OM3 LSOH 1m | C34: Cobi FO pigtaile i patchcordy | D34: =VLOOKUP(A34,'wyprzedaż-enova'!A:C,3,FALSE) -> 1766 | E34: szt.
A35: F24-2130-1 | B35: Patchcord SC/PC-LC/PC MM OM4 dx LSOH 1m | C35: Cobi FO pigtaile i patchcordy | D35: =VLOOKUP(A35,'wyprzedaż-enova'!A:C,3,FALSE) -> 81 | E35: szt.
A36: F24-2330-2 | B36: Patchcord LC/PC-LC/PC dx MM OM4 LSOH 2m | C36: Cobi FO pigtaile i patchcordy | D36: =VLOOKUP(A36,'wyprzedaż-enova'!A:C,3,FALSE) -> 0 | E36: szt.
A37: F22-2330-1 | B37: Patchcord LC/PC-LC/PC dx MM OM2 LSOH 1m | C37: Cobi FO pigtaile i patchcordy | D37: =VLOOKUP(A37,'wyprzedaż-enova'!A:C,3,FALSE) -> 74 | E37: szt.
A38: F21-2340-1 | B38: Patchcord LC/PC-LC/APC dx SM OS2 LSOH 1m | C38: Cobi FO pigtaile i patchcordy | D38: =VLOOKUP(A38,'wyprzedaż-enova'!A:C,3,FALSE) -> 69 | E38: szt.
A39: F21-2340-2 | B39: Patchcord LC/PC-LC/APC dx SM OS2 LSOH 2m | C39: Cobi FO pigtaile i patchcordy | D39: =VLOOKUP(A39,'wyprzedaż-enova'!A:C,3,FALSE) -> 56 | E39: szt.
A40: F21-2340-3 | B40: Patchcord LC/PC-LC/APC dx SM OS2 LSOH 3m | C40: Cobi FO pigtaile i patchcordy | D40: =VLOOKUP(A40,'wyprzedaż-enova'!A:C,3,FALSE) -> 50 | E40: szt.
A41: F12-0100-2 | B41: Pigtail CobiCabling SC/PS wielomodowy OM2 LSOH easy strip 2m | C41: Cobi FO pigtaile i patchcordy | D41: =VLOOKUP(A41,'wyprzedaż-enova'!A:C,3,FALSE) -> 105 | E41: szt.
A42: F21-2120-2 | B42: Patchcord SC/PC-SC/APC SM OS2 dx LSOH 2m | C42: Cobi FO pigtaile i patchcordy | D42: =VLOOKUP(A42,'wyprzedaż-enova'!A:C,3,FALSE) -> 48 | E42: szt.
A43: F21-2230-2 | B43: Patchcord SC/APC-LC/PC SM OS2 dx LSOH 2m | C43: Cobi FO pigtaile i patchcordy | D43: =VLOOKUP(A43,'wyprzedaż-enova'!A:C,3,FALSE) -> 58 | E43: szt.
A44: F23-2330-2 | B44: Patchcord LC/PC-LC/PC dx MM OM3 LSOH 2m | C44: Cobi FO pigtaile i patchcordy | D44: =VLOOKUP(A44,'wyprzedaż-enova'!A:C,3,FALSE) -> 48 | E44: szt.
A45: F24-2330-5 | B45: Patchcord LC/PC-LC/PC dx MM OM4 LSOH 5m | C45: Cobi FO pigtaile i patchcordy | D45: =VLOOKUP(A45,'wyprzedaż-enova'!A:C,3,FALSE) -> 15 | E45: szt.
A46: F21-2220-2 | B46: Patchcord SC/APC -SC/APC SM OS2 dx LSOH 2m | C46: Cobi FO pigtaile i patchcordy | D46: =VLOOKUP(A46,'wyprzedaż-enova'!A:C,3,FALSE) -> 159 | E46: szt.
A47: 5065 210/FL | B47: Adapter - coupler SC simplex, jednomodowy, bezkołn | C47: Cobi FO osprzęt | D47: =VLOOKUP(A47,'wyprzedaż-enova'!A:C,3,FALSE) -> 13 | E47: szt.
A48: F61-0022 | B48: Adapter keystone złącze światłowodowe ST czarny | C48: Cobi FO osprzęt | D48: =VLOOKUP(A48,'wyprzedaż-enova'!A:C,3,FALSE) -> 481 | E48: szt.
A49: F32-2300 | B49: Adapter LC/PC duplex wielomodowy OM2 | C49: Cobi FO osprzęt | D49: =VLOOKUP(A49,'wyprzedaż-enova'!A:C,3,FALSE) -> 1344 | E49: szt.
A50: F32-2100 | B50: Adapter SC/PC duplex wielomodowy OM2 | C50: Cobi FO osprzęt | D50: =VLOOKUP(A50,'wyprzedaż-enova'!A:C,3,FALSE) -> 2394 | E50: szt.
A51: F34-2100 | B51: Adapter SC/PC duplex wielomodowy OM4 | C51: Cobi FO osprzęt | D51: =VLOOKUP(A51,'wyprzedaż-enova'!A:C,3,FALSE) -> 1499 | E51: szt.
A52: F32-1100 | B52: Adapter SC/PC simplex wielomodowy OM2 | C52: Cobi FO osprzęt | D52: =VLOOKUP(A52,'wyprzedaż-enova'!A:C,3,FALSE) -> 1957 | E52: szt.
A53: F33-1100 | B53: Adapter SC/PC simplex wielomodowy OM3 | C53: Cobi FO osprzęt | D53: =VLOOKUP(A53,'wyprzedaż-enova'!A:C,3,FALSE) -> 1771 | E53: szt.
A54: F34-1100 | B54: Adapter SC/PC simplex wielomodowy OM4 | C54: Cobi FO osprzęt | D54: =VLOOKUP(A54,'wyprzedaż-enova'!A:C,3,FALSE) -> 2458 | E54: szt.
A55: 5065 211/BF | B55: Adapter SC/PC sx wielomodowy, bezflangowy | C55: Cobi FO osprzęt | D55: =VLOOKUP(A55,'wyprzedaż-enova'!A:C,3,FALSE) -> 107 | E55: szt.
A56: 5065 210/APC/BF | B56: FO Adapter SM SC/APC simplex bezflangowy | C56: Cobi FO osprzęt | D56: =VLOOKUP(A56,'wyprzedaż-enova'!A:C,3,FALSE) -> 2 | E56: szt.
A57: F61-0003 | B57: 12/24 Core Fiber Splice Tray | C57: Cobi FO osprzęt | D57: =VLOOKUP(A57,'wyprzedaż-enova'!A:C,3,FALSE) -> 11 | E57: szt.
A58: 5061 022/24/C | B58: PŁYTA CZOŁOWA 1U 24XSC SIMPLEX | C58: Cobi FO osprzęt | D58: =VLOOKUP(A58,'wyprzedaż-enova'!A:C,3,FALSE) -> 1 | E58: szt.
A59: 5061 031/12/P | B59: Płyta czołowa PREMIUM 12xST/FC 1U | C59: Cobi FO osprzęt | D59: =VLOOKUP(A59,'wyprzedaż-enova'!A:C,3,FALSE) -> 37 | E59: szt.
A60: F62-0015 | B60: Pole krosowe 8xSC duplex/LC/quad | C60: Cobi FO osprzęt | D60: =VLOOKUP(A60,'wyprzedaż-enova'!A:C,3,FALSE) -> 1 | E60: szt.
A61: F62-0032 | B61: Pole krosowe do boxu światłowodowego D 48xSC sx | C61: Cobi FO osprzęt | D61: =VLOOKUP(A61,'wyprzedaż-enova'!A:C,3,FALSE) -> 1 | E61: szt.
A62: F62-0042 | B62: Pole krosowe do OKS4 na 4xST/FC/DIN | C62: Cobi FO osprzęt | D62: =VLOOKUP(A62,'wyprzedaż-enova'!A:C,3,FALSE) -> 1 | E62: szt.
A63: F62-0048 | B63: Przełącznica światłowodowa OKS48 (24xSC dx) | C63: Cobi FO osprzęt | D63: =VLOOKUP(A63,'wyprzedaż-enova'!A:C,3,FALSE) -> 4 | E63: szt.
A64: F62-0047 | B64: Przełącznica światłowodowa OKS48 24xSC dx/LC quad | C64: Cobi FO osprzęt | D64: =VLOOKUP(A64,'wyprzedaż-enova'!A:C,3,FALSE) -> 1 | E64: szt.
A65: F62-0004 | B65: Puszka abonencka FTTH 4C bez adapterów (4xSC sx) | C65: Cobi FO osprzęt | D65: =VLOOKUP(A65,'wyprzedaż-enova'!A:C,3,FALSE) -> 381 | E65: szt.
A66: F61-0012 | B66: Zaślepka otworu ST | C66: Cobi FO osprzęt | D66: =VLOOKUP(A66,'wyprzedaż-enova'!A:C,3,FALSE) -> 4773 | E66: szt.
A67: F54-5500 | B67: Kabel światłowodowy MM OM4 12G uniwersalny B2ca | C67: Cobi FO kable | D67: =VLOOKUP(A67,'wyprzedaż-enova'!A:C,3,FALSE) -> 3889 | E67: szt.
A68: F54-2500 | B68: Kabel światłowodowy MM OM4 12G uniwersalny Dca | C68: Cobi FO kable | D68: =VLOOKUP(A68,'wyprzedaż-enova'!A:C,3,FALSE) -> 4429 | E68: szt.
A69: F53-5200 | B69: Kabel światłowodowy MM OM3 4G uniwersalny B2ca | C69: Cobi FO kable | D69: =VLOOKUP(A69,'wyprzedaż-enova'!A:C,3,FALSE) -> 7273 | E69: szt.
A70: F51-1600 | B70: Kabel światłowodowy SM OS2 24J uniwersalny Fca | C70: Cobi FO kable | D70: =VLOOKUP(A70,'wyprzedaż-enova'!A:C,3,FALSE) -> 205 | E70: szt.
A71: F8751 | B71: Zestaw do mocowania szafek IP na słupie | C71: TECNOSTEEL | D71: =VLOOKUP(A71,'wyprzedaż-enova'!A:C,3,FALSE) -> 3 | E71: szt.
A72: F9100 | B72: Półka stała 2U 19" gł. 470 mm, moc. 4 belki szara | C72: TECNOSTEEL | D72: =VLOOKUP(A72,'wyprzedaż-enova'!A:C,3,FALSE) -> 1 | E72: szt.
A73: P6642N | B73: Szafa 19" 42U 600x600mm, drzwi szkło czarna | C73: TECNOSTEEL | D73: =VLOOKUP(A73,'wyprzedaż-enova'!A:C,3,FALSE) -> 0 | E73: szt.
A74: P8833 | B74: Szafa 19" 33U 800x800mm, drzwi szkło, szara | C74: TECNOSTEEL | D74: =VLOOKUP(A74,'wyprzedaż-enova'!A:C,3,FALSE) -> 0 | E74: szt.
A75: P8842 | B75: Szafa 19" 42U 800x800mm, drzwi szkło, szara | C75: TECNOSTEEL | D75: =VLOOKUP(A75,'wyprzedaż-enova'!A:C,3,FALSE) -> 0 | E75: szt.
A76: P8842N | B76: Szafa 19" 42U 800x800mm, drzwi szkło czarna | C76: TECNOSTEEL | D76: =VLOOKUP(A76,'wyprzedaż-enova'!A:C,3,FALSE) -> 0 | E76: szt.
A77: 2A45-1PK | B77: Adapter 45x45 kątowy 1-port z możliwością kodów | C77: 2LAN | D77: =VLOOKUP(A77,'wyprzedaż-enova'!A:C,3,FALSE) -> 373 | E77: szt.
A78: 2A45-2PK | B78: Adapter 45x45 kątowy 2-port z możliwością kodów | C78: 2LAN | D78: =VLOOKUP(A78,'wyprzedaż-enova'!A:C,3,FALSE) -> 6152 | E78: szt.
A79: 2MP45-6AN | B79: Moduł teleinformatyczny połączeniowy RJ45, łącznik | C79: 2LAN | D79: =VLOOKUP(A79,'wyprzedaż-enova'!A:C,3,FALSE) -> 10 | E79: szt.
A80: 2MPLSA-6AE | B80: Moduł teleinformatyczny połączeniowy LSA, łącznik | C80: 2LAN | D80: =VLOOKUP(A80,'wyprzedaż-enova'!A:C,3,FALSE) -> 26 | E80: szt.
A81: 2PK-24 | B81: 2LAN Panel krosowy teleinformatyczny 1U 24 portowy | C81: 2LAN | D81: =VLOOKUP(A81,'wyprzedaż-enova'!A:C,3,FALSE) -> 1 | E81: szt.
A82: 2PK3-25 | B82: Panel krosowy telefoniczny 1U kat. 3 25-port | C82: 2LAN | D82: =VLOOKUP(A82,'wyprzedaż-enova'!A:C,3,FALSE) -> 34 | E82: szt.
A83: 2PK6-24N | B83: 2LAN Panel krosowy teleinformatyczny 1U kat.6 24-p | C83: 2LAN | D83: =VLOOKUP(A83,'wyprzedaż-enova'!A:C,3,FALSE) -> 41 | E83: szt.
A84: 100-010 | B84: EXCEL CAT5E UNSCREENED KEYSTONE JACK 90deg-WHITE | C84: EXCEL | D84: =VLOOKUP(A84,'wyprzedaż-enova'!A:C,3,FALSE) -> 250 | E84: szt.
A85: 100-011 | B85: EXCEL CAT6 UNSCREENED KEYSTONE JACK 90deg-WHITE | C85: EXCEL | D85: =VLOOKUP(A85,'wyprzedaż-enova'!A:C,3,FALSE) -> 14 | E85: szt.
A86: 100-031 | B86: EXCEL 1U 19" RACK MOUNT 5RING CHROME CABLE MGT BAR | C86: EXCEL | D86: =VLOOKUP(A86,'wyprzedaż-enova'!A:C,3,FALSE) -> 19 | E86: szt.
A87: 100-090 | B87: EXCEL C5E 4PR UTP EXT BLACK BOX 305M Fca | C87: EXCEL | D87: =VLOOKUP(A87,'wyprzedaż-enova'!A:C,3,FALSE) -> 1 | E87: szt.
A88: 100-110 | B88: EXL CAT6 FTP IDC JUNCTION BOX | C88: EXCEL | D88: =VLOOKUP(A88,'wyprzedaż-enova'!A:C,3,FALSE) -> 2 | E88: szt.
A89: 100-134/1 | B89: EXCEL CAT6a SOLID CORE RJ-45 PLUG (1 sztuka) | C89: EXCEL | D89: =VLOOKUP(A89,'wyprzedaż-enova'!A:C,3,FALSE) -> 35 | E89: szt.
A90: 100-140 | B90: Excel Cat6a FTP t'less field installable RJ45 plug | C90: EXCEL | D90: =VLOOKUP(A90,'wyprzedaż-enova'!A:C,3,FALSE) -> 10 | E90: szt.
A91: 100-148 | B91: EXCEL CAT6A 1M FFTP LSOH PATCH LEAD GREY | C91: EXCEL | D91: =VLOOKUP(A91,'wyprzedaż-enova'!A:C,3,FALSE) -> 50 | E91: szt.
A92: 100-156-BK | B92: EXCEL CAT6a UNSCREENED IDC STYLE KEYSTONE JACK-BLK | C92: EXCEL | D92: =VLOOKUP(A92,'wyprzedaż-enova'!A:C,3,FALSE) -> 30 | E92: szt.
A93: 100-159 | B93: EXCEL CAT6A 1M FFTP LSOH PATCH LEAD BLUE | C93: EXCEL | D93: =VLOOKUP(A93,'wyprzedaż-enova'!A:C,3,FALSE) -> 1 | E93: szt.
A94: 100-182-BK | B94: EXCEL CAT6a LOW PROFILE UN-SCRD K/S JACK T/LESS-BK | C94: EXCEL | D94: =VLOOKUP(A94,'wyprzedaż-enova'!A:C,3,FALSE) -> 10 | E94: szt.
A95: 100-212 | B95: EXCEL CAT6 UNSCREENED TOOLLESS JACK 180deg-BLACK | C95: EXCEL | D95: =VLOOKUP(A95,'wyprzedaż-enova'!A:C,3,FALSE) -> 1 | E95: szt.
A96: 100-213 | B96: EXCEL CAT6 ANGLED UNSCR TOOLLESS JACK 180deg-BLACK | C96: EXCEL | D96: =VLOOKUP(A96,'wyprzedaż-enova'!A:C,3,FALSE) -> 238 | E96: szt.
A97: 100-215-BK | B97: EXCEL CAT6 LOW PROFILE UNSCREEN TOOLLESS JACK-BLK | C97: EXCEL | D97: =VLOOKUP(A97,'wyprzedaż-enova'!A:C,3,FALSE) -> 1 | E97: szt.
A98: 100-230 | B98: Excel ExpressNet Panel - 4 Module - Empty | C98: EXCEL | D98: =VLOOKUP(A98,'wyprzedaż-enova'!A:C,3,FALSE) -> 2 | E98: szt.
A99: 100-289 | B99: EXCEL FLAT 45x45mm SHUTTER 1-PORT | C99: EXCEL | D99: =VLOOKUP(A99,'wyprzedaż-enova'!A:C,3,FALSE) -> 34 | E99: szt.
A100: 100-297 | B100: EXCEL CAT6 UNSCREENED MODULE-6C LOW PROFILE WHITE | C100: EXCEL | D100: =VLOOKUP(A100,'wyprzedaż-enova'!A:C,3,FALSE) -> 178 | E100: szt.
A101: 100-302 | B101: EXCEL CAT6 24 PORT 1U R/ANGLE PATCH PANEL BLACK | C101: EXCEL | D101: =VLOOKUP(A101,'wyprzedaż-enova'!A:C,3,FALSE) -> 2 | E101: szt.
A102: 100-314 | B102: EXCEL CAT6 5M UUTP LSOH PATCH LEAD GREY | C102: EXCEL | D102: =VLOOKUP(A102,'wyprzedaż-enova'!A:C,3,FALSE) -> 50 | E102: szt.
A103: 100-400 | B103: EXCEL CAT6 7M UUTP LSOH PATCH LEAD BLACK | C103: EXCEL | D103: =VLOOKUP(A103,'wyprzedaż-enova'!A:C,3,FALSE) -> 6 | E103: szt.
A104: 100-417 | B104: EXCEL CAT6 2M UUTP LSOH PATCH LEAD WHITE | C104: EXCEL | D104: =VLOOKUP(A104,'wyprzedaż-enova'!A:C,3,FALSE) -> 1 | E104: szt.
A105: 100-435 | B105: EXCEL CAT6 1M FUTP LSOH PATCH LEAD GREY | C105: EXCEL | D105: =VLOOKUP(A105,'wyprzedaż-enova'!A:C,3,FALSE) -> 162 | E105: szt.
A106: 100-438 | B106: EXCEL CAT6 1M FUTP LSOH PATCH LEAD RED | C106: EXCEL | D106: =VLOOKUP(A106,'wyprzedaż-enova'!A:C,3,FALSE) -> 30 | E106: szt.
A107: 100-456 | B107: EXCEL CAT6 0.5M FUTP LSOH PATCH LEAD GREY | C107: EXCEL | D107: =VLOOKUP(A107,'wyprzedaż-enova'!A:C,3,FALSE) -> 165 | E107: szt.
A108: 100-457 | B108: EXCEL CAT6 2M FUTP LSOH PATCH LEAD GREY | C108: EXCEL | D108: =VLOOKUP(A108,'wyprzedaż-enova'!A:C,3,FALSE) -> 18 | E108: szt.
A109: 100-464 | B109: EXCEL VOICE 50PORT RJ45 PATCH PANEL 1U 3PR -BLACK | C109: EXCEL | D109: =VLOOKUP(A109,'wyprzedaż-enova'!A:C,3,FALSE) -> 1 | E109: szt.
A110: 100-518-10 | B110: EXCEL CAT6 0.5M UTP LSOH MINI PATCH LEAD BLUE PK10 | C110: EXCEL | D110: =VLOOKUP(A110,'wyprzedaż-enova'!A:C,3,FALSE) -> 8 | E110: szt.
A111: 100-583 | B111: XL 1U Cable Mgmt Bar 4Metal Hoops 100mm deep Black | C111: EXCEL | D111: =VLOOKUP(A111,'wyprzedaż-enova'!A:C,3,FALSE) -> 1 | E111: szt.
A112: 200-043 | B112: ENBEAM OM3 P/LEAD LC-LC 50/125 DX AQ 1M | C112: EXCEL | D112: =VLOOKUP(A112,'wyprzedaż-enova'!A:C,3,FALSE) -> 1 | E112: szt.
A113: 200-364 | B113: EXCEL DUPLEX LC SINGLEMODE ADAPTOR | C113: EXCEL | D113: =VLOOKUP(A113,'wyprzedaż-enova'!A:C,3,FALSE) -> 72 | E113: szt.
A114: 200-398 | B114: EXCEL SPLICE PROTECTOR-CLEAR 61mm x 3mm | C114: EXCEL | D114: =VLOOKUP(A114,'wyprzedaż-enova'!A:C,3,FALSE) -> 24 | E114: szt.
A115: 200-404 | B115: EXCEL 12 WAY SC DUPLEX/LC QUAD FIBRE PANEL-EMPTY | C115: EXCEL | D115: =VLOOKUP(A115,'wyprzedaż-enova'!A:C,3,FALSE) -> 12 | E115: szt.
A116: 200-454 | B116: EXCEL OS2 2M SC PIGTAIL 9/125 TB 12 COLOUR PACK | C116: EXCEL | D116: =VLOOKUP(A116,'wyprzedaż-enova'!A:C,3,FALSE) -> 93 | E116: szt.
A117: 200-470 | B117: EXCEL 24 WAY SM F/PANEL-4 LC DX 8F BU | C117: EXCEL | D117: =VLOOKUP(A117,'wyprzedaż-enova'!A:C,3,FALSE) -> 5 | E117: szt.
A118: 200-555 | B118: EXL OM3 2M SC PIGTAIL 50/125 | C118: EXCEL | D118: =VLOOKUP(A118,'wyprzedaż-enova'!A:C,3,FALSE) -> 8 | E118: szt.
A119: 200-559 | B119: EXCEL OM2 2M LC PIGTAIL 50/125 | C119: EXCEL | D119: =VLOOKUP(A119,'wyprzedaż-enova'!A:C,3,FALSE) -> 16 | E119: szt.
A120: 200-561 | B120: EXCEL OS2 2M LC PIGTAIL MALE 9/125 | C120: EXCEL | D120: =VLOOKUP(A120,'wyprzedaż-enova'!A:C,3,FALSE) -> 21 | E120: szt.
A121: 200-586 | B121: EXCEL G657A 1M SCAPC PIGTAIL YELLOW EASY STRIP | C121: EXCEL | D121: =VLOOKUP(A121,'wyprzedaż-enova'!A:C,3,FALSE) -> 125 | E121: szt.
A122: 200-646 | B122: EXCEL OM4 1M SC PIGTAIL 50/125 SET OF 12 VIOLET | C122: EXCEL | D122: =VLOOKUP(A122,'wyprzedaż-enova'!A:C,3,FALSE) -> 2 | E122: szt.
A123: 200-647 | B123: EXCEL OM4 1M LC PIGTAIL 50/125 SET OF 12 VIOLET | C123: EXCEL | D123: =VLOOKUP(A123,'wyprzedaż-enova'!A:C,3,FALSE) -> 1 | E123: szt.
A124: 200-649 | B124: EXCEL OS2 1M SC PIGTAIL 9/125 SET OF 12 YELLOW | C124: EXCEL | D124: =VLOOKUP(A124,'wyprzedaż-enova'!A:C,3,FALSE) -> 4 | E124: szt.
A125: 200-680 | B125: ENBEAM OS2 P/LEAD LC-LC 9/125 DX YW 2M | C125: EXCEL | D125: =VLOOKUP(A125,'wyprzedaż-enova'!A:C,3,FALSE) -> 58 | E125: szt.
A126: 200-951 | B126: EXCEL 24 WAY SC DX/LCQD FIBRE PANEL-EMPTY | C126: EXCEL | D126: =VLOOKUP(A126,'wyprzedaż-enova'!A:C,3,FALSE) -> 20 | E126: szt.
A127: 200-952 | B127: EXCEL 24 WAY SC SX/LC DX FIBRE PANEL-EMPTY | C127: EXCEL | D127: =VLOOKUP(A127,'wyprzedaż-enova'!A:C,3,FALSE) -> 2 | E127: szt.
A128: 205-302 | B128: EXCEL OS2 12C 9/125 LOOSE TUBE BLACK Dca | C128: EXCEL | D128: =VLOOKUP(A128,'wyprzedaż-enova'!A:C,3,FALSE) -> 270 | E128: szt.
A129: 205-304 | B129: EXCEL OS2 24C 9/125 LOOSE TUBE BLACK Dca | C129: EXCEL | D129: =VLOOKUP(A129,'wyprzedaż-enova'!A:C,3,FALSE) -> 200 | E129: szt.
A130: 205-307 | B130: EXCEL OS2 12C 9/125 LOOSE TUBE CST BLUE Eca | C130: EXCEL | D130: =VLOOKUP(A130,'wyprzedaż-enova'!A:C,3,FALSE) -> 100 | E130: szt.
A131: 350-644 | B131: EXL 12WAY L/PROFILE CONSOLIDATION POINT U/L GRY WH | C131: EXCEL | D131: =VLOOKUP(A131,'wyprzedaż-enova'!A:C,3,FALSE) -> 22 | E131: szt.
A132: 450-665/1 | B132: EXCEL 2 GANG DRY LINING BOX | C132: EXCEL | D132: =VLOOKUP(A132,'wyprzedaż-enova'!A:C,3,FALSE) -> 8 | E132: szt.
A133: 540-302 | B133: EXCEL 2-WAY ROOF MOUNT FAN TRAY | C133: EXCEL | D133: =VLOOKUP(A133,'wyprzedaż-enova'!A:C,3,FALSE) -> 2 | E133: szt.
A134: 540-304-BK-SCHUKO | B134: EXCEL 4-WAY ROOF MOUNT FAN TRAY-BLACK | C134: EXCEL | D134: =VLOOKUP(A134,'wyprzedaż-enova'!A:C,3,FALSE) -> 6 | E134: szt.
A135: 540-823 | B135: 19" 1U UNI HORIZONTAL CABLE MANAGER CPI 30139-719 | C135: EXCEL | D135: =VLOOKUP(A135,'wyprzedaż-enova'!A:C,3,FALSE) -> 10 | E135: szt.
A136: 542-3388-GSBN-BK | B136: Excel CR 33U 8x8 Glass Steel B-Sides 0-VCM BK | C136: EXCEL | D136: =VLOOKUP(A136,'wyprzedaż-enova'!A:C,3,FALSE) -> 1 | E136: szt.
A137: 542-988-GE | B137: Excel Environ CR/ER Plinth 800W x 800D-Grey White | C137: EXCEL | D137: =VLOOKUP(A137,'wyprzedaż-enova'!A:C,3,FALSE) -> 2 | E137: szt.
A138: 555-083 | B138: EXCEL PDU 8 SCHUKO SOCKET UNSWITCHED 16AMP LED IND | C138: EXCEL | D138: =VLOOKUP(A138,'wyprzedaż-enova'!A:C,3,FALSE) -> 1 | E138: szt.
A139: 555-085 | B139: Listwa zasilająca 10 x 230V, montaż pionowy | C139: EXCEL | D139: =VLOOKUP(A139,'wyprzedaż-enova'!A:C,3,FALSE) -> 1 | E139: szt.
A140: BBS002MPLGE | B140: EXCEL C5E F/UTP BBS PATCH LEAD LSOH 2M GREY | C140: EXCEL | D140: =VLOOKUP(A140,'wyprzedaż-enova'!A:C,3,FALSE) -> 10 | E140: szt.
A141: D13-6H-EXL | B141: EXCEL 6-WAY POWER STRIP HORIZONTAL | C141: EXCEL | D141: =VLOOKUP(A141,'wyprzedaż-enova'!A:C,3,FALSE) -> 3 | E141: szt.
A142: WBFP18.5SG | B142: Excel Environ WR 18U 500mm Deep - Grey-Flat Pack | C142: EXCEL | D142: =VLOOKUP(A142,'wyprzedaż-enova'!A:C,3,FALSE) -> 4 | E142: szt.
A143: WBFP21.390SG | B143: Excel Environ WR 21U 390mm Deep - Grey-Flat Pack | C143: EXCEL | D143: =VLOOKUP(A143,'wyprzedaż-enova'!A:C,3,FALSE) -> 1 | E143: szt.
A144: WBFP21.5SG | B144: Excel Environ WR 21U 500mm Deep - Grey-Flat Pack | C144: EXCEL | D144: =VLOOKUP(A144,'wyprzedaż-enova'!A:C,3,FALSE) -> 2 | E144: szt.
A145: WBSFD15 | B145: STEEL FRONT DOOR FOR 15U W/BOX GREY | C145: EXCEL | D145: =VLOOKUP(A145,'wyprzedaż-enova'!A:C,3,FALSE) -> 5 | E145: szt.
A146: WBSFD9 | B146: STEEL FRONT DOOR FOR 9U W/BOX GREY. | C146: EXCEL | D146: =VLOOKUP(A146,'wyprzedaż-enova'!A:C,3,FALSE) -> 1 | E146: szt.
A147: Z-OM4-DX-LC-SC-30M-A | B147: OM4 DUPLEX PATCH LEAD LC/SC 30M AQUA | C147: EXCEL | D147: =VLOOKUP(A147,'wyprzedaż-enova'!A:C,3,FALSE) -> 6 | E147: szt.
A148: 100-066 | B148: EXCEL C5E 4PR UTP VIOLET X 305M Dca | C148: Cobi Cu kable | D148: =VLOOKUP(A148,'wyprzedaż-enova'!A:C,3,FALSE) -> 1 | E148: szt.
A149: 100-191 | B149: EXCEL CAT6a U/FTP S/FOIL CABLE RL500M-ICE BLUE | C149: Cobi Cu kable | D149: =VLOOKUP(A149,'wyprzedaż-enova'!A:C,3,FALSE) -> 4 | E149: szt.
A150: 200-150 | B150: EXCEL OM3 4C 50/125 LOOSE TUBE BLACK Dca | C150: Cobi FO kable | D150: =VLOOKUP(A150,'wyprzedaż-enova'!A:C,3,FALSE) -> 4000 | E150: szt.
A151: CD11-6636 | B151: Szafa CobiCabling UNI 19` 36U 600 x 600, drzwi prz | C151: Cobi szafy | D151: =VLOOKUP(A151,'wyprzedaż-enova'!A:C,3,FALSE) -> 0 | E151: szt.
A152: R00-0515 | B152: 15U 500mm gł. wisząca szara | C152: Cobi szafy | D152: =VLOOKUP(A152,'wyprzedaż-enova'!A:C,3,FALSE) -> 6 | E152: szt.
A153: RC01-0412 | B153: Szafa wisząca 19" 12U 450mm, drzwi szkło, czarna | C153: Cobi szafy | D153: =VLOOKUP(A153,'wyprzedaż-enova'!A:C,3,FALSE) -> 3 | E153: szt.
A154: RC01-0415 | B154: Szafa wisząca 19" 15U 450mm, drzwi szkło, czarna | C154: Cobi szafy | D154: =VLOOKUP(A154,'wyprzedaż-enova'!A:C,3,FALSE) -> 14 | E154: szt.
A155: RC01-0418 | B155: Szafa wisząca 19" 18U 450mm, drzwi szkło, czarna | C155: Cobi szafy | D155: =VLOOKUP(A155,'wyprzedaż-enova'!A:C,3,FALSE) -> 9 | E155: szt.
A156: RCD11-6142 | B156: Szafa CobiCabling UNI 19" 42U 600 x 1000, drzwi pr | C156: Cobi szafy | D156: =VLOOKUP(A156,'wyprzedaż-enova'!A:C,3,FALSE) -> 3 | E156: szt.
A157: RCP02-0612 | B157: Szafa wisząca CobiCabling 19" 12U 600x600mm szara | C157: Cobi szafy | D157: =VLOOKUP(A157,'wyprzedaż-enova'!A:C,3,FALSE) -> 1 | E157: szt.
A158: A50-1100 | B158: Organizer poziomy kabli CobiNet 1U 19" RAL 7035 szary | C158: Cobi szafy | D158: =VLOOKUP(A158,'wyprzedaż-enova'!A:C,3,FALSE) -> 1030 | E158: szt.
A159: AC01-0229 | B159: Wentylator dla szafek wiszących, wtyczka EU | C159: Cobi szafy | D159: =VLOOKUP(A159,'wyprzedaż-enova'!A:C,3,FALSE) -> 41 | E159: szt.
A160: A51-1101 | B160: Organizer poziomy kabli 19" 1U czarny | C160: Cobi szafy | D160: =VLOOKUP(A160,'wyprzedaż-enova'!A:C,3,FALSE) -> 100 | E160: szt.
A161: RC11-8842-SP | B161: Szafa 19" 42U 800x800mm, drzwi szkło, tył perf. cz | C161: Cobi szafy | D161: =VLOOKUP(A161,'wyprzedaż-enova'!A:C,3,FALSE) -> 7 | E161: szt.
A162: RC11-8142-P1 | B162: CobiCabling Szafa Vertical 19" 42U 800x1000mm, drzwi przednie perforowane, drzwi tylne perforowane, panel 4-went., czarna | C162: Cobi szafy | D162: =VLOOKUP(A162,'wyprzedaż-enova'!A:C,3,FALSE) -> 3 | E162: szt.
A163: 5030 513/3,0 | B163: Patchcord kat. 5e F/UTP LSOH 3m czerwony | C163: Cobi Cu kable krosowe | D163: =VLOOKUP(A163,'wyprzedaż-enova'!A:C,3,FALSE) -> 323 | E163: szt.
A164: 5030 663/1,5 | B164: Patchcord kat. 6 S/FTP LSOH 1,5m niebieski | C164: Cobi Cu kable krosowe | D164: =VLOOKUP(A164,'wyprzedaż-enova'!A:C,3,FALSE) -> 128 | E164: szt.
A165: 5030 001/20,0 | B165: Patchcord kat. 5e U/UTP LSOH 20m szary | C165: Cobi Cu kable krosowe | D165: =VLOOKUP(A165,'wyprzedaż-enova'!A:C,3,FALSE) -> 43 | E165: szt.
A166: 5030 664/2,0 | B166: Patchcord kat. 6 S/FTP LSOH 2m czarny | C166: Cobi Cu kable krosowe | D166: =VLOOKUP(A166,'wyprzedaż-enova'!A:C,3,FALSE) -> 106 | E166: szt.
A167: 5030 664/30,0 | B167: Patchcord kat. 6 S/FTP LSOH 30m czarny | C167: Cobi Cu kable krosowe | D167: =VLOOKUP(A167,'wyprzedaż-enova'!A:C,3,FALSE) -> 10 | E167: szt.
A168: 5030 551/10,0 | B168: Patchcord kat. 5e U/UTP LSOH 10m czerwony | C168: Cobi Cu kable krosowe | D168: =VLOOKUP(A168,'wyprzedaż-enova'!A:C,3,FALSE) -> 69 | E168: szt.
A169: 5030 604/1,0 | B169: Patchcord kat. 6 U/UTP LSOH 1m czarny | C169: Cobi Cu kable krosowe | D169: =VLOOKUP(A169,'wyprzedaż-enova'!A:C,3,FALSE) -> 185 | E169: szt.
A170: 5030 600/30,0 | B170: Patchcord kat. 6 U/UTP LSOH 30m szary | C170: Cobi Cu kable krosowe | D170: =VLOOKUP(A170,'wyprzedaż-enova'!A:C,3,FALSE) -> 3 | E170: szt.
A171: 5030 001/30,0 | B171: Patchcord kat. 5e U/UTP LSOH 30m szary | C171: Cobi Cu kable krosowe | D171: =VLOOKUP(A171,'wyprzedaż-enova'!A:C,3,FALSE) -> 18 | E171: szt.
A172: 5030 662/25,0 | B172: Patchcord kat. 6 S/FTP LSOH 25m zielony | C172: Cobi Cu kable krosowe | D172: =VLOOKUP(A172,'wyprzedaż-enova'!A:C,3,FALSE) -> 1 | E172: szt.
A173: 5030 665/1,0 | B173: Patchcord kat. 6 S/FTP LSOH 1m czerwony | C173: Cobi Cu kable krosowe | D173: =VLOOKUP(A173,'wyprzedaż-enova'!A:C,3,FALSE) -> 95 | E173: szt.
A174: 5030 661/2,0 | B174: Patchcord kat. 6 S/FTP LSOH 2m żółty | C174: Cobi Cu kable krosowe | D174: =VLOOKUP(A174,'wyprzedaż-enova'!A:C,3,FALSE) -> 50 | E174: szt.
A175: 5030 660/30,0 | B175: Patchcord kat. 6 S/FTP LSOH 30m szary | C175: Cobi Cu kable krosowe | D175: =VLOOKUP(A175,'wyprzedaż-enova'!A:C,3,FALSE) -> 3 | E175: szt.
A176: 5030 331/20,0 | B176: Patchcord kat. 5e U/UTP LSOH 20m niebieski | C176: Cobi Cu kable krosowe | D176: =VLOOKUP(A176,'wyprzedaż-enova'!A:C,3,FALSE) -> 20 | E176: szt.
A177: 5030 664/1,5 | B177: Patchcord kat. 6 S/FTP LSOH 1,5m czarny | C177: Cobi Cu kable krosowe | D177: =VLOOKUP(A177,'wyprzedaż-enova'!A:C,3,FALSE) -> 56 | E177: szt.
A178: 5030 221/10,0 | B178: Patchcord kat. 5e U/UTP LSOH 10m zielony | C178: Cobi Cu kable krosowe | D178: =VLOOKUP(A178,'wyprzedaż-enova'!A:C,3,FALSE) -> 41 | E178: szt.
A179: 5030 603/5,0 | B179: Patchcord kat. 6 U/UTP LSOH 5m niebieski | C179: Cobi Cu kable krosowe | D179: =VLOOKUP(A179,'wyprzedaż-enova'!A:C,3,FALSE) -> 46 | E179: szt.
A180: 5030 684/7,5 | B180: Patchcord kat. 6A S/FTP LSOH 7,5m czarny | C180: Cobi Cu kable krosowe | D180: =VLOOKUP(A180,'wyprzedaż-enova'!A:C,3,FALSE) -> 10 | E180: szt.
A181: 5030 663/5,0 | B181: Patchcord kat. 6 S/FTP LSOH 5m niebieski | C181: Cobi Cu kable krosowe | D181: =VLOOKUP(A181,'wyprzedaż-enova'!A:C,3,FALSE) -> 24 | E181: szt.
A182: 5030 663/0,5 | B182: Patchcord kat. 6 S/FTP LSOH 0,5m niebieski | C182: Cobi Cu kable krosowe | D182: =VLOOKUP(A182,'wyprzedaż-enova'!A:C,3,FALSE) -> 95 | E182: szt.
A183: 5030 662/30,0 | B183: Patchcord kat. 6 S/FTP LSOH 30m zielony | C183: Cobi Cu kable krosowe | D183: =VLOOKUP(A183,'wyprzedaż-enova'!A:C,3,FALSE) -> 5 | E183: szt.
A184: 5030 221/20,0 | B184: Patchcord kat. 5e U/UTP LSOH 20m zielony | C184: Cobi Cu kable krosowe | D184: =VLOOKUP(A184,'wyprzedaż-enova'!A:C,3,FALSE) -> 18 | E184: szt.
A185: 5030 991/5,0 | B185: Patchcord kat. 5e U/UTP LSOH 5m biały | C185: Cobi Cu kable krosowe | D185: =VLOOKUP(A185,'wyprzedaż-enova'!A:C,3,FALSE) -> 47 | E185: szt.
A186: 5030 661/3,0 | B186: Patchcord kat. 6 S/FTP LSOH 3m żółty | C186: Cobi Cu kable krosowe | D186: =VLOOKUP(A186,'wyprzedaż-enova'!A:C,3,FALSE) -> 23 | E186: szt.
A187: 5030 601/10,0 | B187: Patchcord kat. 6 U/UTP LSOH 10m żółty | C187: Cobi Cu kable krosowe | D187: =VLOOKUP(A187,'wyprzedaż-enova'!A:C,3,FALSE) -> 18 | E187: szt.
A188: 5030 665/0,5 | B188: Patchcord kat. 6 S/FTP LSOH 0,5m czerwony | C188: Cobi Cu kable krosowe | D188: =VLOOKUP(A188,'wyprzedaż-enova'!A:C,3,FALSE) -> 56 | E188: szt.
A189: 5030 684/20,0 | B189: Patchcord kat. 6A S/FTP LSOH 20m czarny | C189: Cobi Cu kable krosowe | D189: =VLOOKUP(A189,'wyprzedaż-enova'!A:C,3,FALSE) ->  | E189: szt.
A190: 5030 991/2,0 | B190: Patchcord kat. 5e U/UTP LSOH 2m biały | C190: Cobi Cu kable krosowe | D190: =VLOOKUP(A190,'wyprzedaż-enova'!A:C,3,FALSE) -> 73 | E190: szt.
A191: 5030 663/0,25 | B191: Patchcord kat. 6 S/FTP LSOH 0,25m niebieski | C191: Cobi Cu kable krosowe | D191: =VLOOKUP(A191,'wyprzedaż-enova'!A:C,3,FALSE) -> 56 | E191: szt.
A192: 5030 601/15,0 | B192: Patchcord kat. 6 U/UTP LSOH 15m żółty | C192: Cobi Cu kable krosowe | D192: =VLOOKUP(A192,'wyprzedaż-enova'!A:C,3,FALSE) -> 11 | E192: szt.
A193: 5030 331/7,5 | B193: Patchcord kat. 5e U/UTP LSOH 7,5m niebieski | C193: Cobi Cu kable krosowe | D193: =VLOOKUP(A193,'wyprzedaż-enova'!A:C,3,FALSE) -> 30 | E193: szt.
A194: 5030 664/5,0 | B194: Patchcord kat. 6 S/FTP LSOH 5m czarny | C194: Cobi Cu kable krosowe | D194: =VLOOKUP(A194,'wyprzedaż-enova'!A:C,3,FALSE) -> 14 | E194: szt.
A195: 5030 661/5,0 | B195: Patchcord kat. 6 S/FTP LSOH 5m żółty | C195: Cobi Cu kable krosowe | D195: =VLOOKUP(A195,'wyprzedaż-enova'!A:C,3,FALSE) -> 14 | E195: szt.
A196: 5030 660/20,0 | B196: Patchcord kat. 6 S/FTP LSOH 20m szary | C196: Cobi Cu kable krosowe | D196: =VLOOKUP(A196,'wyprzedaż-enova'!A:C,3,FALSE) ->  | E196: szt.
A197: 5030 605/1,5 | B197: Patchcord kat. 6 U/UTP LSOH 1,5m czerwony | C197: Cobi Cu kable krosowe | D197: =VLOOKUP(A197,'wyprzedaż-enova'!A:C,3,FALSE) -> 43 | E197: szt.
A198: 5030 551/7,5 | B198: Patchcord kat. 5e U/UTP LSOH 7,5m czerwony | C198: Cobi Cu kable krosowe | D198: =VLOOKUP(A198,'wyprzedaż-enova'!A:C,3,FALSE) -> 25 | E198: szt.
A199: 5030 013/10,0 | B199: Patchcord kat. 5e F/UTP LSOH 10m szary | C199: Cobi Cu kable krosowe | D199: =VLOOKUP(A199,'wyprzedaż-enova'!A:C,3,FALSE) -> 15 | E199: szt.
A200: 5030 662/0,5 | B200: Patchcord kat. 6 S/FTP LSOH 0,5m zielony | C200: Cobi Cu kable krosowe | D200: =VLOOKUP(A200,'wyprzedaż-enova'!A:C,3,FALSE) -> 48 | E200: szt.
... 97 more rows

Sheet Arkusz (hidden)
A1: Kod | B1: Nazwa | C1: Opis | D1: J.M. | E1: Ceny.Katalogowa.Netto | F1: Features.GrupaTowarowa
A2: F1410 | B2: 10Ux600x400 SZAFKA WISZĄCA IP55 - drzwi przednie s | C2: 10Ux600x400 SZAFKA WISZĄCA IP55 - drzwi przednie szklane | E2: =VLOOKUP(A2,Arkusz1!A:C,3,FALSE) -> 0 | F2: TECNOSTEEL
A3: F1410M | B3: 10Ux600x400 SZAFKA WISZĄCA IP65 - drzwi przednie p | C3: 10Ux600x400 SZAFKA WISZĄCA IP65 - drzwi przednie pełne | E3: =VLOOKUP(A3,Arkusz1!A:C,3,FALSE) -> 0 | F3: TECNOSTEEL
A4: F1410MEST | B4: 10Ux600x400 SZAFKA WISZĄCA ZEWNĘTRZNA IP65 - dodat | C4: 10Ux600x400 SZAFKA WISZĄCA ZEWNĘTRZNA IP65 - dodatkowy dach | E4: =VLOOKUP(A4,Arkusz1!A:C,3,FALSE) -> 0 | F4: TECNOSTEEL
A5: F1510MEST | B5: 10Ux600x400 SZAFKA WISZĄCA ZEWNĘTRZNA IP65 - dodat | C5: 10Ux600x400 SZAFKA WISZĄCA ZEWNĘTRZNA IP65 - dodatkowy dach | E5: =VLOOKUP(A5,Arkusz1!A:C,3,FALSE) -> 0 | F5: TECNOSTEEL
A6: F1510 | B6: 10Ux600x500 SZAFKA WISZĄCA IP55 - drzwi przednie s | C6: 10Ux600x500 SZAFKA WISZĄCA IP55 - drzwi przednie szklane | E6: =VLOOKUP(A6,Arkusz1!A:C,3,FALSE) -> 0 | F6: TECNOSTEEL
A7: F1510M | B7: 10Ux600x500 SZAFKA WISZĄCA IP65 - drzwi przednie p | C7: 10Ux600x500 SZAFKA WISZĄCA IP65 - drzwi przednie pełne | E7: =VLOOKUP(A7,Arkusz1!A:C,3,FALSE) -> 1723.36 | F7: TECNOSTEEL
A8: F61-0003 | B8: 12/24 Core Fiber Splice Tray | C8: CobiCabling Kaseta spawów 12 -24 włókien czarna | D8: szt | E8: =VLOOKUP(A8,Arkusz1!A:C,3,FALSE) -> 24.12 | F8: Cobi FO osprzęt
A9: F1413 | B9: 13Ux600x400 SZAFKA WISZĄCA IP55 - drzwi przednie s | C9: 13Ux600x400 SZAFKA WISZĄCA IP55 - drzwi przednie szklane | E9: =VLOOKUP(A9,Arkusz1!A:C,3,FALSE) -> 0 | F9: TECNOSTEEL
A10: F1413M | B10: 13Ux600x400 SZAFKA WISZĄCA IP65 - drzwi przednie p | C10: 13Ux600x400 SZAFKA WISZĄCA IP65 - drzwi przednie pełne | E10: =VLOOKUP(A10,Arkusz1!A:C,3,FALSE) -> 0 | F10: TECNOSTEEL
A11: F1413MEST | B11: 13Ux600x400 SZAFKA WISZĄCA ZEWNĘTRZNA IP65 - dodat | C11: 13Ux600x400 SZAFKA WISZĄCA ZEWNĘTRZNA IP65 - dodatkowy dach | E11: =VLOOKUP(A11,Arkusz1!A:C,3,FALSE) -> 0 | F11: TECNOSTEEL
A12: F1513 | B12: 13Ux600x500 SZAFKA WISZĄCA IP55 - drzwi przednie s | C12: 13Ux600x500 SZAFKA WISZĄCA IP55 - drzwi przednie szklane | E12: =VLOOKUP(A12,Arkusz1!A:C,3,FALSE) -> 0 | F12: TECNOSTEEL
A13: F1513M | B13: 13Ux600x500 SZAFKA WISZĄCA IP65 - drzwi przednie p | C13: 13Ux600x500 SZAFKA WISZĄCA IP65 - drzwi przednie pełne | E13: =VLOOKUP(A13,Arkusz1!A:C,3,FALSE) -> 0 | F13: TECNOSTEEL
A14: F1513MEST | B14: 13Ux600x500 SZAFKA WISZĄCA ZEWNĘTRZNA IP65 - dodat | C14: 13Ux600x500 SZAFKA WISZĄCA ZEWNĘTRZNA IP65 - dodatkowy dach | E14: =VLOOKUP(A14,Arkusz1!A:C,3,FALSE) -> 0 | F14: TECNOSTEEL
A15: F1813 | B15: 13Ux600x600 SZAFKA WISZĄCA IP 55 - drzwi przednie | C15: 13Ux600x600 SZAFKA WISZĄCA IP 55 - drzwi przednie szklane | E15: =VLOOKUP(A15,Arkusz1!A:C,3,FALSE) -> 0 | F15: TECNOSTEEL
A16: F1813M | B16: 13Ux600x600 SZAFKA WISZĄCA IP 65 – drzwi przednie | C16: 13Ux600x600 SZAFKA WISZĄCA IP 65 – drzwi przednie pełne | E16: =VLOOKUP(A16,Arkusz1!A:C,3,FALSE) -> 2366.96 | F16: TECNOSTEEL
A17: F1813MEST | B17: 13Ux600x600 SZAFKA WISZĄCA ZEWNĘTRZNA IP65 - dodat | C17: 13Ux600x600 SZAFKA WISZĄCA ZEWNĘTRZNA IP65 - dodatkowy dach | E17: =VLOOKUP(A17,Arkusz1!A:C,3,FALSE) -> 0 | F17: TECNOSTEEL
A18: R00-0515 | B18: 15U 500mm gł. wisząca szara | C18: 15U 500mm gł. wisząca szara - zdejmowane osłony boczne | D18: szt | E18: =VLOOKUP(A18,Arkusz1!A:C,3,FALSE) -> 478.98 | F18: Cobi szafy
A19: F9816N | B19: 16 portowy przełącznik z przewodami USB&PS/2 - bez | C19: 16 portowy przełącznik z przewodami USB&PS/2 - bez zasilacza | E19: =VLOOKUP(A19,Arkusz1!A:C,3,FALSE) -> 0 | F19: TECNOSTEEL
A20: F3925 | B20: 16A PDU 1phase - 4xC19+12xC13, individual LED | C20: 16A PDU 1phase - 4xC19+12xC13, individual LED, 3x16A circuit breakers - Switched - RADIUS - It monitors the total current and the ON/OFF of each outlet - 0U | E20: =VLOOKUP(A20,Arkusz1!A:C,3,FALSE) -> 0 | F20: TECNOSTEEL
A21: PTF-516R-ECO/POE | B21: 16-kanałowy ochronnik przeciwprzepięciowy sieci | C21: 16-kanałowy ochronnik przeciwprzepięciowy sieci | E21: =VLOOKUP(A21,Arkusz1!A:C,3,FALSE) -> 1258.6 | F21: Sprzęt aktywny
A22: F1417 | B22: 17Ux600x400 SZAFKA WISZĄCA IP55 - drzwi przednie s | C22: 17Ux600x400 SZAFKA WISZĄCA IP55 - drzwi przednie szklane | E22: =VLOOKUP(A22,Arkusz1!A:C,3,FALSE) -> 0 | F22: TECNOSTEEL
A23: F1417M | B23: 17Ux600x400 SZAFKA WISZĄCA IP65 - drzwi przednie p | C23: 17Ux600x400 SZAFKA WISZĄCA IP65 - drzwi przednie pełne | E23: =VLOOKUP(A23,Arkusz1!A:C,3,FALSE) -> 0 | F23: TECNOSTEEL
A24: F1417MEST | B24: 17Ux600x400 SZAFKA WISZĄCA ZEWNĘTRZNA IP65 - dodat | C24: 17Ux600x400 SZAFKA WISZĄCA ZEWNĘTRZNA IP65 - dodatkowy dach | E24: =VLOOKUP(A24,Arkusz1!A:C,3,FALSE) -> 0 | F24: TECNOSTEEL
A25: F1517 | B25: 17Ux600x500 SZAFKA WISZĄCA IP 55 - drzwi przednie | C25: 17Ux600x500 SZAFKA WISZĄCA IP 55 - drzwi przednie szklane | E25: =VLOOKUP(A25,Arkusz1!A:C,3,FALSE) -> 0 | F25: TECNOSTEEL
A26: F1517M | B26: 17Ux600x500 SZAFKA WISZĄCA IP 65 - drzwi przednie | C26: 17Ux600x500 SZAFKA WISZĄCA IP 65 - drzwi przednie pełne | E26: =VLOOKUP(A26,Arkusz1!A:C,3,FALSE) -> 0 | F26: TECNOSTEEL
A27: F1517MEST | B27: 17Ux600x500 SZAFKA WISZĄCA ZEWNĘTRZNA IP 65 - doda | C27: 17Ux600x500 SZAFKA WISZĄCA ZEWNĘTRZNA IP 65 - dodatkowy dach | E27: =VLOOKUP(A27,Arkusz1!A:C,3,FALSE) -> 2196.4 | F27: TECNOSTEEL
A28: F1817 | B28: 17Ux600x600 SZAFKA WISZĄCA IP55 - drzwi przednie s | C28: 17Ux600x600 SZAFKA WISZĄCA IP55 - drzwi przednie szklane | E28: =VLOOKUP(A28,Arkusz1!A:C,3,FALSE) -> 0 | F28: TECNOSTEEL
A29: F1817M | B29: 17Ux600x600 SZAFKA WISZĄCA IP65 - drzwi przednie p | C29: 17Ux600x600 SZAFKA WISZĄCA IP65 - drzwi przednie pełne | E29: =VLOOKUP(A29,Arkusz1!A:C,3,FALSE) -> 1996.6 | F29: TECNOSTEEL
A30: F1817MEST | B30: 17Ux600x600 SZAFKA WISZĄCA ZEWNĘTRZNA IP65 - dodat | C30: 17Ux600x600 SZAFKA WISZĄCA ZEWNĘTRZNA IP65 - dodatkowy dach | E30: =VLOOKUP(A30,Arkusz1!A:C,3,FALSE) -> 0 | F30: TECNOSTEEL
A31: MXL007B182 | B31: 18 x Gniazdo okrągłe z bolcem 16A/230V | C31: 18 x Gniazdo okrągłe z bolcem 16A/230V, Gniazda z bolcem obrócone o kąt 45° względem obudowy, Gniazda zabezpieczone przed wetknięciem przypadkowych przedmiotów. Listwa w kolorze jasno szarym (podobnym do RAL7035) | E31: =VLOOKUP(A31,Arkusz1!A:C,3,FALSE) -> 453.6 | F31: Cobi szafy akcesoria
A32: 46055.2 | B32: 19'' Baugruppenträger 1HE 60DA mit Montagewannen | C32: 19'' Baugruppenträger 1HE 60DA mit Montagewannen | E32: =VLOOKUP(A32,Arkusz1!A:C,3,FALSE) -> 0 | F32: Exportowe
A33: 46055.1 | B33: 19'' Baugruppenträger 2HE 120DA mit Montagewannen | C33: 19'' Baugruppenträger 2HE 120DA mit Montagewannen | E33: =VLOOKUP(A33,Arkusz1!A:C,3,FALSE) -> 0 | F33: Exportowe
A34: 46055.3 | B34: 19'' Baugruppenträger 3HE 150DA mit Montagewannen | C34: 19'' Baugruppenträger 3HE 150DA mit Montagewannen | E34: =VLOOKUP(A34,Arkusz1!A:C,3,FALSE) -> 0 | F34: Exportowe
A35: 46056.1 | B35: 19'' Baugruppenträger 4HE 210DA mit Montagewannen | C35: 19'' Baugruppenträger 4HE 210DA mit Montagewannen | E35: =VLOOKUP(A35,Arkusz1!A:C,3,FALSE) -> 0 | F35: Exportowe
A36: 540-823 | B36: 19" 1U UNI HORIZONTAL CABLE MANAGER CPI 30139-719 | C36: 19" 1U UNI HORIZONTAL CABLE MANAGER CPI 30139-719 | D36: szt | E36: =VLOOKUP(A36,Arkusz1!A:C,3,FALSE) -> 476.94 | F36: EXCEL
A37: T3101H | B37: 19" listwa PDU 250V/16A, 12 gniazd C13, 16A zabezp | C37: 19" listwa PDU 250V/16A, 12 gniazd C13, 16A zabezpieczenie przeciwprzeciążeniowe z kontrolką LED, moduł wejścia IEC320 C20, przewód należy zamawiać osobno - kolor czarny RAL9005 | E37: =VLOOKUP(A37,Arkusz1!A:C,3,FALSE) -> 0 | F37: TECNOSTEEL
A38: T3102H | B38: 19" listwa PDU 250V/16A, 6 gniazd C19, 16A zabezpi | C38: 19" listwa PDU 250V/16A, 6 gniazd C19, 16A zabezpieczenie przeciwprzeciążeniowe z kontrolką LED, moduł wejscia IEC320 C20, przewód należy zamawiać osobno - kolor czarny RAL9005 | E38: =VLOOKUP(A38,Arkusz1!A:C,3,FALSE) -> 0 | F38: TECNOSTEEL
A39: F9012 | B39: 19" PANEL MASKUJĄCY - 1U | C39: 19" PANEL MASKUJĄCY - 1U | E39: =VLOOKUP(A39,Arkusz1!A:C,3,FALSE) -> 19.4 | F39: TECNOSTEEL
A40: F9012N | B40: 19" PANEL MASKUJĄCY - 1U | C40: 19" PANEL MASKUJĄCY - 1U | E40: =VLOOKUP(A40,Arkusz1!A:C,3,FALSE) -> 19.6 | F40: TECNOSTEEL
A41: F9102 | B41: 19" PANEL MASKUJĄCY - 2U | C41: 19" PANEL MASKUJĄCY - 2U | E41: =VLOOKUP(A41,Arkusz1!A:C,3,FALSE) -> 31 | F41: TECNOSTEEL
A42: F9102N | B42: 19" PANEL MASKUJĄCY - 2U | C42: 19" PANEL MASKUJĄCY - 2U | E42: =VLOOKUP(A42,Arkusz1!A:C,3,FALSE) -> 0 | F42: TECNOSTEEL
A43: F9013 | B43: 19" PANEL MASKUJĄCY - 3U | C43: 19" PANEL MASKUJĄCY - 3U | E43: =VLOOKUP(A43,Arkusz1!A:C,3,FALSE) -> 32 | F43: TECNOSTEEL
A44: F9013N | B44: 19" PANEL MASKUJĄCY - 3U | C44: 19" PANEL MASKUJĄCY - 3U | E44: =VLOOKUP(A44,Arkusz1!A:C,3,FALSE) -> 0 | F44: TECNOSTEEL
A45: F9253 | B45: 19" PANEL MASKUJĄCY - 4U | C45: 19" PANEL MASKUJĄCY - 4U | E45: =VLOOKUP(A45,Arkusz1!A:C,3,FALSE) -> 0 | F45: TECNOSTEEL
A46: F9253N | B46: 19" PANEL MASKUJĄCY - 4U | C46: 19" PANEL MASKUJĄCY - 4U | E46: =VLOOKUP(A46,Arkusz1!A:C,3,FALSE) -> 0 | F46: TECNOSTEEL
A47: F9011 | B47: 19" PANEL MASKUJĄCY Z OTWOREM DO WPROWADZENIA KABL | C47: 19" PANEL MASKUJĄCY Z OTWOREM DO WPROWADZENIA KABLI - 1U | E47: =VLOOKUP(A47,Arkusz1!A:C,3,FALSE) -> 0 | F47: TECNOSTEEL
A48: F9011N | B48: 19" PANEL MASKUJĄCY Z OTWOREM DO WPROWADZENIA KABL | C48: 19" PANEL MASKUJĄCY Z OTWOREM DO WPROWADZENIA KABLI - 1U | E48: =VLOOKUP(A48,Arkusz1!A:C,3,FALSE) -> 0 | F48: TECNOSTEEL
A49: F9313 | B49: 19" PANEL MASKUJĄCY Z PRZEPUSTEM SZCZOTKOWYM - 1U | C49: 19" PANEL MASKUJĄCY Z PRZEPUSTEM SZCZOTKOWYM - 1U | E49: =VLOOKUP(A49,Arkusz1!A:C,3,FALSE) -> 69 | F49: TECNOSTEEL
A50: F9313N | B50: 19" PANEL MASKUJĄCY Z PRZEPUSTEM SZCZOTKOWYM – 1U | C50: 19" PANEL MASKUJĄCY Z PRZEPUSTEM SZCZOTKOWYM – 1U kolor czarny RAL 9005 | E50: =VLOOKUP(A50,Arkusz1!A:C,3,FALSE) -> 64 | F50: TECNOSTEEL
A51: F3027 | B51: 19" PANEL Z SZYNĄ DIN - 1U | C51: 19" PANEL Z SZYNĄ DIN - 1U | E51: =VLOOKUP(A51,Arkusz1!A:C,3,FALSE) -> 0 | F51: TECNOSTEEL
A52: F9030N | B52: 19" PROWADNICA KABLOWA / organizer - 1U (4 UCHWYTY | C52: 19" PROWADNICA KABLOWA / organizer - 1U (4 UCHWYTY o wys. 54 mm) | E52: =VLOOKUP(A52,Arkusz1!A:C,3,FALSE) -> 30.84 | F52: TECNOSTEEL
A53: F9030 | B53: 19" PROWADNICA KABLOWA / organizer - 1U (4 UCHWYTY | C53: 19" PROWADNICA KABLOWA / organizer - 1U (4 UCHWYTY o wys. 54 mm) | E53: =VLOOKUP(A53,Arkusz1!A:C,3,FALSE) -> 43.08 | F53: TECNOSTEEL
A54: F9031 | B54: 19" PROWADNICA KABLOWA / organizer - 1U (4 UCHWYTY | C54: 19" PROWADNICA KABLOWA / organizer - 1U (4 UCHWYTY o wys. 94 mm)) | E54: =VLOOKUP(A54,Arkusz1!A:C,3,FALSE) -> 0 | F54: TECNOSTEEL
A55: F9369 | B55: 19" PROWADNICA KABLOWA / organizer - 1U (4 UCHWYTY | C55: 19" PROWADNICA KABLOWA / organizer - 1U (4 UCHWYTY STALOWE o wys. 54 mm) | E55: =VLOOKUP(A55,Arkusz1!A:C,3,FALSE) -> 64 | F55: TECNOSTEEL
A56: F9298 | B56: 19" PROWADNICA KABLOWA / organizer - 2U (4 UCHWYTY | C56: 19" PROWADNICA KABLOWA / organizer - 2U (4 UCHWYTY STALOWE o wys. 93,5 mm) | E56: =VLOOKUP(A56,Arkusz1!A:C,3,FALSE) -> 0 | F56: TECNOSTEEL
A57: F9298N | B57: 19" PROWADNICA KABLOWA / organizer - 2U (4 UCHWYTY | C57: 19" PROWADNICA KABLOWA / organizer - 2U (4 UCHWYTY STALOWE o wys. 93,5 mm) | E57: =VLOOKUP(A57,Arkusz1!A:C,3,FALSE) -> 160.82 | F57: TECNOSTEEL
A58: 5010 236/B/C14 | B58: 19" z wyłącznikiem; 6-gn.z bolcem, kabel dł.2m, wt | C58: 19" z wyłącznikiem; 6-gn.z bolcem, kabel dł.2m, wtyk IEC320C14 MXL917C062 | D58: szt | E58: =VLOOKUP(A58,Arkusz1!A:C,3,FALSE) -> 155.44 | F58: Cobi szafy akcesoria
A59: A30-1904 | B59: 1U 19" 9-port Schuco power strip with switch | C59: 1U 19" 9-port Schuco power strip with switch | E59: =VLOOKUP(A59,Arkusz1!A:C,3,FALSE) ->  | F59: Cobi szafy akcesoria
A60: A30-1905 | B60: 1U 19" 9-port Schuco power strip without switch an | C60: 1U 19" 9-port Schuco power strip without switch and a UPS plug (C14) | E60: =VLOOKUP(A60,Arkusz1!A:C,3,FALSE) ->  | F60: Cobi szafy akcesoria
A61: F1820 | B61: 20Ux600x600 SZAFKA WISZĄCA IP55 - drzwi przednie s | C61: 20Ux600x600 SZAFKA WISZĄCA IP55 - drzwi przednie szklane | E61: =VLOOKUP(A61,Arkusz1!A:C,3,FALSE) -> 0 | F61: TECNOSTEEL
A62: F1820M | B62: 20Ux600x600 SZAFKA WISZĄCA IP65 - drzwi przednie p | C62: 20Ux600x600 SZAFKA WISZĄCA IP65 - drzwi przednie pełne | E62: =VLOOKUP(A62,Arkusz1!A:C,3,FALSE) -> 3724.64 | F62: TECNOSTEEL
A63: F1820MEST | B63: 20Ux600x600 SZAFKA WISZĄCA ZEWNĘTRZNA IP65 - dodat | C63: 20Ux600x600 SZAFKA WISZĄCA ZEWNĘTRZNA IP65 - dodatkowy dach | E63: =VLOOKUP(A63,Arkusz1!A:C,3,FALSE) -> 0 | F63: TECNOSTEEL
A64: P6824 SP | B64: 24U SZAFA Progress o szer. 600 mm - 24U 600x800 | C64: 24U SZAFA Progress o szer. 600 mm - 24U 600x800 (wys. z cokołem 1257 mm) - kolor szary RAL7035 | E64: =VLOOKUP(A64,Arkusz1!A:C,3,FALSE) -> 2340 | F64: TECNOSTEEL
A65: F8710IP2M | B65: 25Ux600x600 SZAFA IP55 drzwi przednie pełne, drzwi | C65: 25Ux600x600 SZAFA IP55 drzwi przednie pełne, drzwi tylne pełne, osłony boczne pełne | E65: =VLOOKUP(A65,Arkusz1!A:C,3,FALSE) -> 0 | F65: TECNOSTEEL
A66: F8710IPM | B66: 25Ux600x600 SZAFA IP55 drzwi przednie pełne, osłon | C66: 25Ux600x600 SZAFA IP55 drzwi przednie pełne, osłony boczne i tylna pełne | E66: =VLOOKUP(A66,Arkusz1!A:C,3,FALSE) -> 3808.42 | F66: TECNOSTEEL
A67: F8710IPVM | B67: 25Ux600x600 SZAFA IP55 drzwi przednie szklane, drz | C67: 25Ux600x600 SZAFA IP55 drzwi przednie szklane, drzwi tylne pełne, osłony boczne pełne | E67: =VLOOKUP(A67,Arkusz1!A:C,3,FALSE) -> 0 | F67: TECNOSTEEL
A68: F8710IPV | B68: 25Ux600x600 SZAFA IP55 drzwi przednie szklane, osł | C68: 25Ux600x600 SZAFA IP55 drzwi przednie szklane, osłony boczne i tylna pełne | E68: =VLOOKUP(A68,Arkusz1!A:C,3,FALSE) -> 0 | F68: TECNOSTEEL
A69: F8711IP2M | B69: 25Ux600x800 SZAFA IP55 drzwi przednie pełne, drzwi | C69: 25Ux600x800 SZAFA IP55 drzwi przednie pełne, drzwi tylne pełne, osłony boczne pełne | E69: =VLOOKUP(A69,Arkusz1!A:C,3,FALSE) -> 0 | F69: TECNOSTEEL
A70: F8711IPM | B70: 25Ux600x800 SZAFA IP55 drzwi przednie pełne, osłon | C70: 25Ux600x800 SZAFA IP55 drzwi przednie pełne, osłony boczne i tylna pełne | E70: =VLOOKUP(A70,Arkusz1!A:C,3,FALSE) -> 0 | F70: TECNOSTEEL
A71: F8711IPVM | B71: 25Ux600x800 SZAFA IP55 drzwi przednie szklane, drz | C71: 25Ux600x800 SZAFA IP55 drzwi przednie szklane, drzwi tylne pełne, osłony boczne pełne | E71: =VLOOKUP(A71,Arkusz1!A:C,3,FALSE) -> 6465.14 | F71: TECNOSTEEL
A72: F8711IPV | B72: 25Ux600x800 SZAFA IP55 drzwi przednie szklane, osł | C72: 25Ux600x800 SZAFA IP55 drzwi przednie szklane, osłony boczne i tylna pełne | E72: =VLOOKUP(A72,Arkusz1!A:C,3,FALSE) -> 0 | F72: TECNOSTEEL
A73: F8712IP2M | B73: 25Ux800x800 SZAFA IP55 drzwi przednie pełne, drzwi | C73: 25Ux800x800 SZAFA IP55 drzwi przednie pełne, drzwi tylne pełne, osłony boczne pełne | E73: =VLOOKUP(A73,Arkusz1!A:C,3,FALSE) -> 0 | F73: TECNOSTEEL
A74: F8712IPM | B74: 25Ux800x800 SZAFA IP55 drzwi przednie pełne, osłon | C74: 25Ux800x800 SZAFA IP55 drzwi przednie pełne, osłony boczne i tylna pełne | E74: =VLOOKUP(A74,Arkusz1!A:C,3,FALSE) -> 5394.46 | F74: TECNOSTEEL
A75: F8712IPVM | B75: 25Ux800x800 SZAFA IP55 drzwi przednie szklane, drz | C75: 25Ux800x800 SZAFA IP55 drzwi przednie szklane, drzwi tylne pełne, osłony boczne pełne | E75: =VLOOKUP(A75,Arkusz1!A:C,3,FALSE) -> 0 | F75: TECNOSTEEL
A76: F8712IPV | B76: 25Ux800x800 SZAFA IP55 drzwi przednie szklane, osł | C76: 25Ux800x800 SZAFA IP55 drzwi przednie szklane, osłony boczne i tylna pełne | E76: =VLOOKUP(A76,Arkusz1!A:C,3,FALSE) -> 6454.44 | F76: TECNOSTEEL
A77: 2PK-24 | B77: 2LAN Panel krosowy teleinformatyczny 1U 24 portowy | C77: 2LAN Panel krosowy teleinformatyczny 1U 24 portowy, niewyposazony, 4 uchylne, wymienne sekcje po 6 portów, pole opisowe | D77: szt | E77: =VLOOKUP(A77,Arkusz1!A:C,3,FALSE) -> 51.1 | F77: 2LAN
A78: 2PK6-24N | B78: 2LAN Panel krosowy teleinformatyczny 1U kat.6 24-p | C78: 2LAN Panel krosowy teleinformatyczny 1U kat.6 24-portowy nieekranowany | D78: szt | E78: =VLOOKUP(A78,Arkusz1!A:C,3,FALSE) -> 110.4 | F78: 2LAN
A79: 2P-A00319 | B79: 2P-A00319 AC Wave 2 AP 4x4 MU-MIMO UAP-AC-SHD | C79: 2P-A00319 AC Wave 2 AP 4x4 MU-MIMO UAP-AC-SHD | E79: =VLOOKUP(A79,Arkusz1!A:C,3,FALSE) -> 0
A80: 2P-A00359 | B80: 2P-A00359 Switch UniFi 48x1GbE USW-Pro-48 | C80: 2P-A00359 Switch UniFi 48x1GbE USW-Pro-48 | E80: =VLOOKUP(A80,Arkusz1!A:C,3,FALSE) -> 0
A81: 2P-D20006 | B81: 2P-D20006 | C81: Access Switch L2 48x10/100/1000Base-T + 4x100/1000Base-X SFP, AC Power Supply 230V AC, 440 x 44 x 220 mm, 1U | E81: =VLOOKUP(A81,Arkusz1!A:C,3,FALSE) -> 0
A82: 2P-D20049 | B82: 2P-D20049 | C82: SFP module 2 x LC DDM, 1310 nm, 20 km, Single-mode | E82: =VLOOKUP(A82,Arkusz1!A:C,3,FALSE) -> 0
A83: SAN-021 | B83: 2-PORT KEYSTONE SURFACE MOUNT BOX | C83: 2-PORT KEYSTONE SURFACE MOUNT BOX | E83: =VLOOKUP(A83,Arkusz1!A:C,3,FALSE) -> 0
A84: EAP620 HD | B84: 2P-T80022 - AX1800 Ceiling Mount Dual- Band Wi-Fi 6 Access Point PORT:1 Gigabit RJ45 Port SPEED:574Mbps at 2.4 GHz + 1201 Mbps at 5 GHz FEATURE: High Density connectivity（1000+ Clients）, 802.3at POE a | C84: 2P-T80022 - AX1800 Ceiling Mount Dual- Band Wi-Fi 6 Access Point PORT:1 Gigabit RJ45 Port SPEED:574Mbps at 2.4 GHz + 1201 Mbps at 5 GHz FEATURE: High Density connectivity（1000+ Clients）, 802.3at POE and 12V DC, | E84: =VLOOKUP(A84,Arkusz1!A:C,3,FALSE) -> 0 | F84: Sprzęt Aktywny
A85: SG2016P | B85: 2P-T80063 - Omada 16-Port Gigabit Smart Switch with 8-Port PoE+ PORT: 8× Gigabit PoE+ Ports SPEC: 802.3af/at, 120 W PoE Power, Desktop Steel Case FEATURE: Integration with Omada SDN Controller, Static | C85: 2P-T80063 - Omada 16-Port Gigabit Smart Switch with 8-Port PoE+ PORT: 8× Gigabit PoE+ Ports SPEC: 802.3af/at, 120 W PoE Power, Desktop Steel Case FEATURE: Integration with Omada SDN Controller, Static Routing, 8 | E85: =VLOOKUP(A85,Arkusz1!A:C,3,FALSE) -> 0
A86: SG2428P | B86: 2P-T80070 - Omada 28-Port PoE+ Gigabit Smart Switch with 4 SFP Slots PORT: 24× Gigabit PoE+ Ports, 4× Gigabit SFP Slots SPEC: 802.3at/af, 250 W PoE Power, 1U 19- inch Rack-mountable Steel Case FEATURE | C86: 2P-T80070 - Omada 28-Port PoE+ Gigabit Smart Switch with 4 SFP Slots PORT: 24× Gigabit PoE+ Ports, 4× Gigabit SFP Slots SPEC: 802.3at/af, 250 W PoE Power, 1U 19-inch Rack-mountable Steel Case FEATURE: Integration | E86: =VLOOKUP(A86,Arkusz1!A:C,3,FALSE) -> 0 | F86: Sprzęt Aktywny
A87: 2P-TL-SG1048 | B87: 2P-TL-SG1048 48-Port Gigabit Switch | C87: 2P-TL-SG1048 48-Port Gigabit Switch | E87: =VLOOKUP(A87,Arkusz1!A:C,3,FALSE) -> 2068 | F87: Sprzęt aktywny
A88: F3068N | B88: 32A 220V listwa zasilająca 4 gniazda C19 4 termicz | C88: 32A 220V listwa zasilająca 4 gniazda C19 4 termiczne wyłączniki, 4 kontrolki, długość przewodu 3m, wtyk IEC60309 - kolor czarny RAL9005 | E88: =VLOOKUP(A88,Arkusz1!A:C,3,FALSE) -> 0 | F88: TECNOSTEEL
A89: F3067 | B89: 32A 220V listwa zasilająca 6+6 gniazd IEC320 C13, | C89: 32A 220V listwa zasilająca 6+6 gniazd IEC320 C13, 2 termiczne wyłączniki, 2 kontrolki, wtyk IEC60309 - kolor czarny RAL9005 | E89: =VLOOKUP(A89,Arkusz1!A:C,3,FALSE) -> 0 | F89: TECNOSTEEL
A90: F3071N | B90: 32A 220V listwa zasilająca, konfiguracja gniazd 6+ | C90: 32A 220V listwa zasilająca, konfiguracja gniazd 6+18 IEC320 C19+C13, cyfrowy amperomierz, uchwyty montażowe, wtyk IEC60309, zestaw uchwytów montażowych - kolor czarny RAL9005 | E90: =VLOOKUP(A90,Arkusz1!A:C,3,FALSE) -> 0 | F90: TECNOSTEEL
A91: T3702 | B91: 32A PDU 3phases - 18xC13+6xC19, individual LED | C91: 32A PDU 3phases - 18xC13+6xC19, individual LED, 3x16A circuit breakers - Switched - RADIUS - It monitors the total current and the ON/OFF of each outlet - 0U | E91: =VLOOKUP(A91,Arkusz1!A:C,3,FALSE) -> 0 | F91: TECNOSTEEL
A92: P6633 SP | B92: 33U SZAFA Progress o szer. 600 mm - 33U 600x600 (w | C92: 33U SZAFA Progress o szer. 600 mm - 33U 600x600 (wys. z cokołem 1656 mm) - kolor szary RAL7035 | E92: =VLOOKUP(A92,Arkusz1!A:C,3,FALSE) -> 5050.26 | F92: TECNOSTEEL
A93: F9200 | B93: 35W WYMIENNIK - mocowany na osłonie bocznej - 325x | C93: 35W WYMIENNIK - mocowany na osłonie bocznej - 325x144x780h | E93: =VLOOKUP(A93,Arkusz1!A:C,3,FALSE) -> 0 | F93: TECNOSTEEL
A94: SQ-ETHL-243MS | B94: 3x16A - pomiar prądu na sekcję | C94: 3x16A - pomiar prądu na sekcję | E94: =VLOOKUP(A94,Arkusz1!A:C,3,FALSE) -> 4460 | F94: Sprzęt aktywny
A95: RC11-6842-P1-WS | B95: 42U Rack 600x800mm, Single Vented Front Door, Sing | C95: 42U Rack 600x800mm, Single Vented Front Door, Single Vented Rear Door, Steel Side Panels, 4-Way Vent. Panel, Castors, 3x Shelves 550mm, Black | E95: =VLOOKUP(A95,Arkusz1!A:C,3,FALSE) ->  | F95: Cobi szafy
A96: F6642 OF | B96: 42U SZAFA Progress o szer. 600 mm - 42U 600x600 | C96: 42U SZAFA Progress o szer. 600 mm - 42U 600x600 - bez drzwi i osłon - kolor szary RAL7035 | E96: =VLOOKUP(A96,Arkusz1!A:C,3,FALSE) -> 1617.92 | F96: TECNOSTEEL
A97: P6642 OF N | B97: 42U SZAFA Progress o szer. 600 mm - 42U 600x600 - | C97: 42U SZAFA Progress o szer. 600 mm - 42U 600x600 - bez drzwi i osłon - kolor RAL9005 | E97: =VLOOKUP(A97,Arkusz1!A:C,3,FALSE) -> 0 | F97: TECNOSTEEL
A98: P6842 SP | B98: 42U SZAFA Progress o szer. 600 mm - 42U 600x800 | C98: 42U SZAFA Progress o szer. 600 mm - 42U 600x800 (wys. z cokołem 2057 mm) - kolor szary RAL7035 | E98: =VLOOKUP(A98,Arkusz1!A:C,3,FALSE) -> 5146.32 | F98: TECNOSTEEL
A99: P6242 SP | B99: 42U SZAFA Progress Server - 42U 600x1200 (wys. z c | C99: 42U SZAFA Progress Server - 42U 600x1200 (wys. z cokołem 2057 mm) | E99: =VLOOKUP(A99,Arkusz1!A:C,3,FALSE) -> 6870.7 | F99: TECNOSTEEL
A100: P8142A2P275 | B100: 42U SZAFA Progress Server - 42U 800x1000 | C100: 42U SZAFA Progress Server - 42U 800x1000 - drzwi przednie dwuskrzydłowe perf. 75%, drzwi tylne dwuskrzydłowe perf. 75%, osłony boczne pełne - kolor szary RAL7035 | E100: =VLOOKUP(A100,Arkusz1!A:C,3,FALSE) -> 7387.12 | F100: TECNOSTEEL
A101: P8142AP75 SP | B101: 42U SZAFA Progress Server - 42U 800x1000 - drzwi p | C101: 42U SZAFA Progress Server - 42U 800x1000 - drzwi przednie i tylne perforowane 75%, osłony boczne pełne - kolor szary RAL7035 | E101: =VLOOKUP(A101,Arkusz1!A:C,3,FALSE) -> 6769.26 | F101: TECNOSTEEL
A102: P8142NC13394 | B102: 42U SZAFA Progress Server - 42U 800x1000 (wys. z c | C102: 42U SZAFA Progress Server - 42U 800x1000 (wys. z cokołem 2057 mm) - kolor czarny RAL 9005 drzwi przednie i tylne pełne/bez przeszklenia, osłony boczne pełne, cokół 100 mm | E102: =VLOOKUP(A102,Arkusz1!A:C,3,FALSE) -> 4982.12 | F102: TECNOSTEEL
A103: P8242 SP | B103: 42U SZAFA Progress Server - 42U 800x1200 (wys. z c | C103: 42U SZAFA Progress Server - 42U 800x1200 (wys. z cokołem 2057 mm) - kolor szary RAL7035 | E103: =VLOOKUP(A103,Arkusz1!A:C,3,FALSE) -> 5498 | F103: TECNOSTEEL
A104: P6142 SP | B104: 42U SZAFA serwerowa 600x1000 | C104: 42U SZAFA Progress Server - 42U 600x1000 (wys. z cokołem 2057 mm) - kolor szary RAL7035 | E104: =VLOOKUP(A104,Arkusz1!A:C,3,FALSE) -> 4538.2 | F104: TECNOSTEEL
A105: P8142 SP | B105: 42U SZAFA serwerowa 800X1000 | C105: 42U SZAFA serwerowa CobiNet - MM 800X1000x2057H z cokołem 100mm | E105: =VLOOKUP(A105,Arkusz1!A:C,3,FALSE) -> 4551.1 | F105: TECNOSTEEL
A106: P6642 SP | B106: 42U SZAFA stojąca - MM 600X600 | C106: 42U SZAFA stojąca CobiNet - MM 600X600X2057H (szer/gł/wys) z cokołem 100mm | E106: =VLOOKUP(A106,Arkusz1!A:C,3,FALSE) -> 3312.1 | F106: TECNOSTEEL
A107: P8842 SP | B107: 42U SZAFA stojąca 800x800 | C107: 42U SZAFA stojąca CobiNet - MM 800X800X2057H (szer/gł/wys) z cokołem 100mm | E107: =VLOOKUP(A107,Arkusz1!A:C,3,FALSE) -> 3951.14 | F107: TECNOSTEEL
A108: F8718IP2M | B108: 42Ux600x1000 IP55 drzwi przednie pełne, drzwi tyln | C108: 42Ux600x1000 IP55 drzwi przednie pełne, drzwi tylne pełne, osłony boczne pełne | E108: =VLOOKUP(A108,Arkusz1!A:C,3,FALSE) -> 0 | F108: TECNOSTEEL
A109: F8718IPM | B109: 42Ux600x1000 IP55 drzwi przednie pełne, osłony boc | C109: 42Ux600x1000 IP55 drzwi przednie pełne, osłony boczne i tylna pełne | E109: =VLOOKUP(A109,Arkusz1!A:C,3,FALSE) -> 0 | F109: TECNOSTEEL
A110: F8718IPVM | B110: 42Ux600x1000 IP55 drzwi przednie szklane, drzwi ty | C110: 42Ux600x1000 IP55 drzwi przednie szklane, drzwi tylne pełne, osłony boczne pełne | E110: =VLOOKUP(A110,Arkusz1!A:C,3,FALSE) -> 0 | F110: TECNOSTEEL
A111: F8718IPV | B111: 42Ux600x1000 IP55 drzwi przednie szklane, osłony b | C111: 42Ux600x1000 IP55 drzwi przednie szklane, osłony boczne i tylna pełne | E111: =VLOOKUP(A111,Arkusz1!A:C,3,FALSE) -> 0 | F111: TECNOSTEEL
A112: F8713IP2M | B112: 42Ux600x600 SZAFA IP55 drzwi przednie pełne, drzwi | C112: 42Ux600x600 SZAFA IP55 drzwi przednie pełne, drzwi tylne pełne, osłony boczne pełne | E112: =VLOOKUP(A112,Arkusz1!A:C,3,FALSE) -> 0 | F112: TECNOSTEEL
A113: F8713IPM | B113: 42Ux600x600 SZAFA IP55 drzwi przednie pełne, osłon | C113: 42Ux600x600 SZAFA IP55 drzwi przednie pełne, osłony boczne i tylna pełne | E113: =VLOOKUP(A113,Arkusz1!A:C,3,FALSE) -> 5577.96 | F113: TECNOSTEEL
A114: F8713IPVM | B114: 42Ux600x600 SZAFA IP55 drzwi przednie szklane, drz | C114: 42Ux600x600 SZAFA IP55 drzwi przednie szklane, drzwi tylne pełne, osłony boczne pełne | E114: =VLOOKUP(A114,Arkusz1!A:C,3,FALSE) -> 0 | F114: TECNOSTEEL
A115: F8713IPV | B115: 42Ux600x600 SZAFA IP55 drzwi przednie szklane, osł | C115: 42Ux600x600 SZAFA IP55 drzwi przednie szklane, osłony boczne i tylna pełne | E115: =VLOOKUP(A115,Arkusz1!A:C,3,FALSE) -> 0 | F115: TECNOSTEEL
A116: F8714IP2M | B116: 42Ux600x800 SZAFA IP55 drzwi przednie pełne, drzwi | C116: 42Ux600x800 SZAFA IP55 drzwi przednie pełne, drzwi tylne pełne, osłony boczne pełne | E116: =VLOOKUP(A116,Arkusz1!A:C,3,FALSE) -> 0 | F116: TECNOSTEEL
A117: F8714IPM | B117: 42Ux600x800 SZAFA IP55 drzwi przednie pełne, osłon | C117: 42Ux600x800 SZAFA IP55 drzwi przednie pełne, osłony boczne i tylna pełne | E117: =VLOOKUP(A117,Arkusz1!A:C,3,FALSE) -> 0 | F117: TECNOSTEEL
A118: F8714IPVM | B118: 42Ux600x800 SZAFA IP55 drzwi przednie szklane, drz | C118: 42Ux600x800 SZAFA IP55 drzwi przednie szklane, drzwi tylne pełne, osłony boczne pełne | E118: =VLOOKUP(A118,Arkusz1!A:C,3,FALSE) -> 0 | F118: TECNOSTEEL
A119: F8714IPV | B119: 42Ux600x800 SZAFA IP55 drzwi przednie szklane, osł | C119: 42Ux600x800 SZAFA IP55 drzwi przednie szklane, osłony boczne i tylna pełne | E119: =VLOOKUP(A119,Arkusz1!A:C,3,FALSE) -> 0 | F119: TECNOSTEEL
A120: F8717IP2M | B120: 42Ux800x1000 IP55 drzwi przednie pełne, drzwi tyln | C120: 42Ux800x1000 IP55 drzwi przednie pełne, drzwi tylne pełne, osłony boczne pełne | E120: =VLOOKUP(A120,Arkusz1!A:C,3,FALSE) -> 9119.22 | F120: TECNOSTEEL
A121: F8717IPM | B121: 42Ux800x1000 IP55 drzwi przednie pełne, osłony boc | C121: 42Ux800x1000 IP55 drzwi przednie pełne, osłony boczne i tylna pełne | E121: =VLOOKUP(A121,Arkusz1!A:C,3,FALSE) -> 9610.5 | F121: TECNOSTEEL
A122: F8717IPVM | B122: 42Ux800x1000 IP55 drzwi przednie szklane, drzwi ty | C122: 42Ux800x1000 IP55 drzwi przednie szklane, drzwi tylne pełne, osłony boczne pełne | E122: =VLOOKUP(A122,Arkusz1!A:C,3,FALSE) -> 0 | F122: TECNOSTEEL
A123: F8717IPV | B123: 42Ux800x1000 IP55 drzwi przednie szklane, osłony b | C123: 42Ux800x1000 IP55 drzwi przednie szklane, osłony boczne i tylna pełne | E123: =VLOOKUP(A123,Arkusz1!A:C,3,FALSE) -> 7371.2 | F123: TECNOSTEEL
A124: F8715IP2M | B124: 42Ux800x600 SZAFA IP55 drzwi przednie pełne, drzwi | C124: 42Ux800x600 SZAFA IP55 drzwi przednie pełne, drzwi tylne pełne, osłony boczne pełne | E124: =VLOOKUP(A124,Arkusz1!A:C,3,FALSE) -> 0 | F124: TECNOSTEEL
A125: F8715IPM | B125: 42Ux800x600 SZAFA IP55 drzwi przednie pełne, osłon | C125: 42Ux800x600 SZAFA IP55 drzwi przednie pełne, osłony boczne i tylna pełne | E125: =VLOOKUP(A125,Arkusz1!A:C,3,FALSE) -> 0 | F125: TECNOSTEEL
A126: F8715IPVM | B126: 42Ux800x600 SZAFA IP55 drzwi przednie szklane, drz | C126: 42Ux800x600 SZAFA IP55 drzwi przednie szklane, drzwi tylne pełne, osłony boczne pełne | E126: =VLOOKUP(A126,Arkusz1!A:C,3,FALSE) -> 0 | F126: TECNOSTEEL
A127: F8715IPV | B127: 42Ux800x600 SZAFA IP55 drzwi przednie szklane, osł | C127: 42Ux800x600 SZAFA IP55 drzwi przednie szklane, osłony boczne i tylna pełne | E127: =VLOOKUP(A127,Arkusz1!A:C,3,FALSE) -> 6058.18 | F127: TECNOSTEEL
A128: F8716IP2M | B128: 42Ux800x800 SZAFA IP55 drzwi przednie pełne, drzwi | C128: 42Ux800x800 SZAFA IP55 drzwi przednie pełne, drzwi tylne pełne, osłony boczne pełne | E128: =VLOOKUP(A128,Arkusz1!A:C,3,FALSE) -> 7559 | F128: TECNOSTEEL
A129: F8716IPM | B129: 42Ux800x800 SZAFA IP55 drzwi przednie pełne, osłon | C129: 42Ux800x800 SZAFA IP55 drzwi przednie pełne, osłony boczne i tylna pełne | E129: =VLOOKUP(A129,Arkusz1!A:C,3,FALSE) -> 7287.86 | F129: TECNOSTEEL
A130: F8716IPVM | B130: 42Ux800x800 SZAFA IP55 drzwi przednie szklane, drz | C130: 42Ux800x800 SZAFA IP55 drzwi przednie szklane, drzwi tylne pełne, osłony boczne pełne | E130: =VLOOKUP(A130,Arkusz1!A:C,3,FALSE) -> 0 | F130: TECNOSTEEL
A131: F8716IPV | B131: 42Ux800x800 SZAFA IP55 drzwi przednie szklane, osł | C131: 42Ux800x800 SZAFA IP55 drzwi przednie szklane, osłony boczne i tylna pełne | E131: =VLOOKUP(A131,Arkusz1!A:C,3,FALSE) -> 0 | F131: TECNOSTEEL
A132: P6847C5587 | B132: 47U SZAFA Progress o szer. 600 mm - 47U 600x800 | C132: 47U SZAFA Progress o szer. 600 mm - 47U 600x800 (wys. z cokołem 2279 mm) - kolor szary RAL7035 | E132: =VLOOKUP(A132,Arkusz1!A:C,3,FALSE) -> 3103.94 | F132: TECNOSTEEL
A133: P8647 SP | B133: 47U SZAFA Progress o szer. 800 mm - 47U 800x600 | C133: 47U SZAFA Progress o szer. 800 mm - 47U 800x600 (wys. z cokołem 2279 mm) - kolor szary RAL7035 | E133: =VLOOKUP(A133,Arkusz1!A:C,3,FALSE) -> 4494 | F133: TECNOSTEEL
A134: P8847 SP | B134: 47U SZAFA Progress o szer. 800 mm - 47U 800x800 | C134: 47U SZAFA Progress o szer. 800 mm - 47U 800x800 (wys. z cokołem 2279 mm) - kolor szary RAL7035 | E134: =VLOOKUP(A134,Arkusz1!A:C,3,FALSE) -> 6160 | F134: TECNOSTEEL
A135: P6247 SP | B135: 47U SZAFA Progress Server - 47U 600x1200 | C135: 47U SZAFA Progress Server - 47U 600x1200 (wys. z cokołem 2279 mm) - kolor szary RAL7035 | E135: =VLOOKUP(A135,Arkusz1!A:C,3,FALSE) -> 6540 | F135: TECNOSTEEL
A136: P6147 SP | B136: 47U SZAFA serwerowa 600x1000 | C136: 47U SZAFA serwerowa CobiNet - MM 600X1000X2279H z cokołem 100mm | E136: =VLOOKUP(A136,Arkusz1!A:C,3,FALSE) -> 5380 | F136: TECNOSTEEL
A137: P8147 SP | B137: 47U SZAFA serwerowa 800x1000 | C137: 47U SZAFA serwerowa CobiNet - MM 800X1000x2279H z cokołem 100mm | E137: =VLOOKUP(A137,Arkusz1!A:C,3,FALSE) -> 8551.16 | F137: TECNOSTEEL
A138: P8247 SP | B138: 47U SZAFA serwerowa 800x1200 | C138: 47U SZAFA Progress Server - 47U 800x1200 (wys. z cokołem 2279 mm) | E138: =VLOOKUP(A138,Arkusz1!A:C,3,FALSE) -> 6970 | F138: TECNOSTEEL
A139: F9858 | B139: 5 metrowy przewód dla przełącznika KVM | C139: 5 metrowy przewód dla przełącznika KVM | E139: =VLOOKUP(A139,Arkusz1!A:C,3,FALSE) -> 0 | F139: TECNOSTEEL
A140: F53-9300-150 | B140: 6 fibers OM3 Outdoor quality with LC connectors mo | C140: 6 fibers OM3 Outdoor quality with LC connectors mounted 150mtr cascade | E140: =VLOOKUP(A140,Arkusz1!A:C,3,FALSE) -> 1596 | F140: Cobi pre-terminated
A141: F53-9300-130 | B141: 6 fibers OM3 Outdoor quality with LC connectors mo | C141: 6 fibers OM3 Outdoor quality with LC connectors mounted 130mtr cascade | E141: =VLOOKUP(A141,Arkusz1!A:C,3,FALSE) -> 2168 | F141: Cobi pre-terminated
A142: F53-9300-170 | B142: 6 fibers OM3 Outdoor quality with LC connectors mo | C142: 6 fibers OM3 Outdoor quality with LC connectors mounted 170mtr cascade | E142: =VLOOKUP(A142,Arkusz1!A:C,3,FALSE) -> 2584 | F142: Cobi pre-terminated
A143: MXL16ST062 | B143: 6 x Gniazdo okrągłe typu schuko 16A/230V | C143: 6 x Gniazdo okrągłe typu schuko 16A/230V Gniazda schuko obrócone o kąt 45° względem obudowy, RAL7035, SxWxG: 442x44x44mm | E143: =VLOOKUP(A143,Arkusz1!A:C,3,FALSE) -> 2366 | F143: Cobi szafy akcesoria
A144: F9201 | B144: 70W WYMIENNIK - mocowany na osłonie bocznej - 450x | C144: 70W WYMIENNIK - mocowany na osłonie bocznej - 450x144x1480h | E144: =VLOOKUP(A144,Arkusz1!A:C,3,FALSE) -> 0 | F144: TECNOSTEEL
A145: F1407 | B145: 7Ux600x400 SZAFKA WISZĄCA IP55 - drzwi przednie sz | C145: 7Ux600x400 SZAFKA WISZĄCA IP55 - drzwi przednie szklane | E145: =VLOOKUP(A145,Arkusz1!A:C,3,FALSE) -> 0 | F145: TECNOSTEEL
A146: F1407M | B146: 7Ux600x400 SZAFKA WISZĄCA IP65 - drzwi przednie pe | C146: 7Ux600x400 SZAFKA WISZĄCA IP65 - drzwi przednie pełne | E146: =VLOOKUP(A146,Arkusz1!A:C,3,FALSE) -> 0 | F146: TECNOSTEEL
A147: F1407MEST | B147: 7Ux600x400 SZAFKA WISZĄCA ZEWNĘTRZNA IP65 - dodatk | C147: 7Ux600x400 SZAFKA WISZĄCA ZEWNĘTRZNA IP65 - dodatkowy dach | E147: =VLOOKUP(A147,Arkusz1!A:C,3,FALSE) -> 0 | F147: TECNOSTEEL
A148: F1507MEST | B148: 7Ux600x400 SZAFKA WISZĄCA ZEWNĘTRZNA IP65 - dodatk | C148: 7Ux600x400 SZAFKA WISZĄCA ZEWNĘTRZNA IP65 - dodatkowy dach | E148: =VLOOKUP(A148,Arkusz1!A:C,3,FALSE) -> 0 | F148: TECNOSTEEL
A149: F1507 | B149: 7Ux600x500 SZAFKA WISZĄCA IP55 - drzwi przednie sz | C149: 7Ux600x500 SZAFKA WISZĄCA IP55 - drzwi przednie szklane | E149: =VLOOKUP(A149,Arkusz1!A:C,3,FALSE) -> 0 | F149: TECNOSTEEL
A150: F1507M | B150: 7Ux600x500 SZAFKA WISZĄCA IP65 - drzwi przednie pe | C150: 7Ux600x500 SZAFKA WISZĄCA IP65 - drzwi przednie pełne | E150: =VLOOKUP(A150,Arkusz1!A:C,3,FALSE) -> 0 | F150: TECNOSTEEL
A151: F9808N | B151: 8 portowy przełącznik z przewodami USB&PS/2 - bez | C151: 8 portowy przełącznik z przewodami USB&PS/2 - bez zasilacza | E151: =VLOOKUP(A151,Arkusz1!A:C,3,FALSE) -> 0 | F151: TECNOSTEEL
A152: 5015 096 | B152: 9U Szafa wisząca PREMIUM 600x600 (szer. x gł.) | C152: 9U Szafa wisząca PREMIUM zdejmowane osłony boczne 600x600 (szer. x gł.) | E152: =VLOOKUP(A152,Arkusz1!A:C,3,FALSE) ->  | F152: Cobi szafy
A153: U6-LR | B153: Access Point Ubiqiti UBIQUITI UniFi WiFi6 AP4x4 MI | C153: Access Point Ubiqiti UBIQUITI UniFi WiFi6 AP4x4 MI | E153: =VLOOKUP(A153,Arkusz1!A:C,3,FALSE) -> 1566.24 | F153: Sprzęt aktywny
A154: 00-28P-SI-R2/R3 | B154: ACCESS SWITCH, L2, 24X10/100/1000BASE-T | C154: ACCESS SWITCH, L2, 24X10/100/1000BASE-T | E154: =VLOOKUP(A154,Arkusz1!A:C,3,FALSE) -> 1774 | F154: Sprzęt aktywny
A155: TK1612406 | B155: ActiPower - CONTROLLED - 1 faza 16A - 24xC13 + 6xC | C155: ActiPower - CONTROLLED - 1 faza 16A - 24xC13 + 6xC19 - 3 metrowy przewód, wtyczka IEC 60309 - Czarny | E155: =VLOOKUP(A155,Arkusz1!A:C,3,FALSE) -> 0 | F155: TECNOSTEEL
A156: TK3212406 | B156: ActiPower - CONTROLLED - 1 faza 32A - 24xC13 + 6xC | C156: ActiPower - CONTROLLED - 1 faza 32A - 24xC13 + 6xC19 - 3 metrowy przewód, wtyczka IEC 60309 - Czarny | E156: =VLOOKUP(A156,Arkusz1!A:C,3,FALSE) -> 0 | F156: TECNOSTEEL
A157: TK1632406 | B157: ActiPower - CONTROLLED - 3 fazy 16A - 24xC13 + 6xC | C157: ActiPower - CONTROLLED - 3 fazy 16A - 24xC13 + 6xC19 - 3 metrowy przewód, wtyczka IEC 60309 - Czarny | E157: =VLOOKUP(A157,Arkusz1!A:C,3,FALSE) -> 0 | F157: TECNOSTEEL
A158: TK3232406 | B158: ActiPower - CONTROLLED - 3 fazy 32A - 24xC13 + 6xC | C158: ActiPower - CONTROLLED - 3 fazy 32A - 24xC13 + 6xC19 - 3 metrowy przewód, wtyczka IEC 60309 - Czarny | E158: =VLOOKUP(A158,Arkusz1!A:C,3,FALSE) -> 0 | F158: TECNOSTEEL
A159: TF1612406 | B159: ActiPower - FULL - 1 faza, 16A - 24xC13 + 6xC19 - | C159: ActiPower - FULL - 1 faza, 16A - 24xC13 + 6xC19 - 3 metrowy przewód, wtyczka IEC 60309 - Czarny | E159: =VLOOKUP(A159,Arkusz1!A:C,3,FALSE) -> 0 | F159: TECNOSTEEL
A160: TF1632406 | B160: ActiPower - FULL - 1 faza, 16A - 24xC13 + 6xC19 - | C160: ActiPower - FULL - 1 faza, 16A - 24xC13 + 6xC19 - 3 metrowy przewód, wtyczka IEC 60309 - Czarny | E160: =VLOOKUP(A160,Arkusz1!A:C,3,FALSE) -> 0 | F160: TECNOSTEEL
A161: TF1610800 | B161: ActiPower - FULL - 1 faza, 16A - 8xC13 - Czarny | C161: ActiPower - FULL - 1 faza, 16A - 8xC13 - Czarny | E161: =VLOOKUP(A161,Arkusz1!A:C,3,FALSE) -> 6496.92 | F161: TECNOSTEEL
A162: TF3212406 | B162: ActiPower - FULL - 1 faza, 32A - 24xC13 + 6xC19 - | C162: ActiPower - FULL - 1 faza, 32A - 24xC13 + 6xC19 - 3 metrowy przewód, wtyczka IEC 60309 - Czarny | E162: =VLOOKUP(A162,Arkusz1!A:C,3,FALSE) -> 7596.56 | F162: TECNOSTEEL
A163: TF3232406 | B163: ActiPower - FULL - 3 fazy 32A - 24xC13 + 6xC19 - 3 | C163: ActiPower - FULL - 3 fazy 32A - 24xC13 + 6xC19 - 3 metrowy przewód, wtyczka IEC 60309 - Czarny | E163: =VLOOKUP(A163,Arkusz1!A:C,3,FALSE) -> 0 | F163: TECNOSTEEL
A164: TF3210800 | B164: ActiPower - FULL- 1 faza, 32A -8xC13 - Czarny | C164: ActiPower - FULL- 1 faza, 32A -8xC13 - Czarny | E164: =VLOOKUP(A164,Arkusz1!A:C,3,FALSE) -> 0 | F164: TECNOSTEEL
A165: TM3213606 | B165: ActiPower - METERED - 1 faza 32A - 36xC13 + 6xC19 | C165: ActiPower - METERED - 1 faza 32A - 36xC13 + 6xC19 - 3 metrowy przewód, wtyczka IEC 60309 - Czarny | E165: =VLOOKUP(A165,Arkusz1!A:C,3,FALSE) -> 4380.9 | F165: TECNOSTEEL
A166: TM1633606 | B166: ActiPower - METERED - 3 fazy 16A - 36xC13 + 6xC19 | C166: ActiPower - METERED - 3 fazy 16A - 36xC13 + 6xC19 - 3 metrowy przewód, wtyczka IEC 60309 - Czarny | E166: =VLOOKUP(A166,Arkusz1!A:C,3,FALSE) -> 0 | F166: TECNOSTEEL
A167: TM3233606 | B167: ActiPower - METERED - 3 fazy 32A - 36xC13 + 6xC19 | C167: ActiPower - METERED - 3 fazy 32A - 36xC13 + 6xC19 - 3 metrowy przewód, wtyczka IEC 60309 - Czarny | E167: =VLOOKUP(A167,Arkusz1!A:C,3,FALSE) -> 0 | F167: TECNOSTEEL
A168: TM1613606 | B168: ActiPower - METERED- 1 faza 16A - 36xC13 + 6xC19 - | C168: ActiPower - METERED- 1 faza 16A - 36xC13 + 6xC19 - 3 metrowy przewód, wtyczka IEC 60309 - Czarny | E168: =VLOOKUP(A168,Arkusz1!A:C,3,FALSE) -> 3257.88 | F168: TECNOSTEEL
A169: ADAPTER | B169: Adapter - coupler | C169: Adapter - coupler | E169: =VLOOKUP(A169,Arkusz1!A:C,3,FALSE) -> 0 | F169: Cobi FO osprzęt
A170: 5065 311 | B170: Adapter - coupler FC MM | C170: Adapter - coupler FC, wielomodowy | E170: =VLOOKUP(A170,Arkusz1!A:C,3,FALSE) ->  | F170: Cobi FO osprzęt
A171: 5065 923 | B171: Adapter - coupler LC duplex MM | C171: Adapter - coupler LC duplex, plastikowa obudowa, wielomodowy, ferrula metalowa (pod otwory SC) | E171: =VLOOKUP(A171,Arkusz1!A:C,3,FALSE) ->  | F171: Cobi FO osprzęt
A172: 5065 924 | B172: Adapter - coupler LC duplex MM | C172: Adapter - coupler LC duplex, plastikowa obudowa, wielomodowy, ferrula ceramiczna (pod otwory SC) | E172: =VLOOKUP(A172,Arkusz1!A:C,3,FALSE) ->  | F172: Cobi FO osprzęt
A173: 5065 923/BF | B173: Adapter - coupler LC duplex MM bezflangowy | C173: Adapter - coupler LC duplex, plastikowa obudowa, wielomodowy, ferrula metalowa bezflangowy (pod otwory SC) | E173: =VLOOKUP(A173,Arkusz1!A:C,3,FALSE) ->  | F173: Cobi FO osprzęt
A174: 5065 922 | B174: Adapter - coupler LC duplex SM | C174: Adapter - coupler LC duplex, plastikowa obudowa, jednomodowy, ferrula ceramiczna (pod otwory SC) | E174: =VLOOKUP(A174,Arkusz1!A:C,3,FALSE) ->  | F174: Cobi FO osprzęt
A175: 5065 922/APC | B175: Adapter - coupler LC/APC duplex SM | C175: Adapter - coupler LC/APC duplex, plastikowa obudowa, jednomodowy, ferrula ceramiczna (pod otwory SC) | E175: =VLOOKUP(A175,Arkusz1!A:C,3,FALSE) ->  | F175: Cobi FO osprzęt
A176: 5065 922/BF | B176: Adapter - coupler LC/PC duplex SM bezflangowy | C176: Adapter - coupler LC/PC duplex jednomodowy bezflangowy | E176: =VLOOKUP(A176,Arkusz1!A:C,3,FALSE) ->  | F176: Cobi FO osprzęt
A177: 5065 225 | B177: Adapter - coupler SC jednomodowy, duplex | C177: Adapter - coupler SC jednomodowy, duplex, ferrula ceramiczna, plastikowa obudowa | E177: =VLOOKUP(A177,Arkusz1!A:C,3,FALSE) ->  | F177: Cobi FO osprzęt
A178: 5065 226 | B178: Adapter - coupler SC jednomodowy, duplex | C178: Adapter - coupler SC jednomodowy, duplex, ferrula ceramiczna, metalowa obudowa | E178: =VLOOKUP(A178,Arkusz1!A:C,3,FALSE) ->  | F178: Cobi FO osprzęt
A179: 5065 210 | B179: Adapter - coupler SC jednomodowy, simplex | C179: Adapter - coupler SC jednomodowy, simplex, ferrula ceramiczna, plastikowa obudowa | E179: =VLOOKUP(A179,Arkusz1!A:C,3,FALSE) ->  | F179: Cobi FO osprzęt
A180: 5065 213 | B180: Adapter - coupler SC jednomodowy, simplex | C180: Adapter - coupler SC jednomodowy, simplex, ferrula ceramiczna, metalowa obudowa | E180: =VLOOKUP(A180,Arkusz1!A:C,3,FALSE) ->  | F180: Cobi FO osprzęt
A181: 5065 210/FL | B181: Adapter - coupler SC simplex, jednomodowy, bezkołn | C181: CobiCabling Adapter SC SM simplex bez flanszy | D181: szt | E181: =VLOOKUP(A181,Arkusz1!A:C,3,FALSE) -> 2.34 | F181: Cobi FO osprzęt
A182: 5065 225/BF | B182: Adapter - coupler SC SM, duplex bezflangowy | C182: Adapter - coupler SC jednomodowy, duplex, ferrula ceramiczna, plastikowa obudowa bezflangowy | E182: =VLOOKUP(A182,Arkusz1!A:C,3,FALSE) ->  | F182: Cobi FO osprzęt
A183: 5065 211/OM3 | B183: Adapter - coupler SC wielomodowy OM3, simplex, fer | C183: Adapter - coupler SC wielomodowy OM3, simplex, ferrula ceramiczna, plastikowa obudowa | E183: =VLOOKUP(A183,Arkusz1!A:C,3,FALSE) ->  | F183: Cobi FO osprzęt
A184: 5065 221/OM4 | B184: Adapter - coupler SC wielomodowy OM4, duplex | C184: Adapter - coupler SC wielomodowy OM4, duplex, ferrula ceramiczna, plastikowa obudowa | E184: =VLOOKUP(A184,Arkusz1!A:C,3,FALSE) ->  | F184: Cobi FO osprzęt
A185: 5065 211/OM4 | B185: Adapter - coupler SC wielomodowy OM4, simplex, fer | C185: Adapter - coupler SC wielomodowy OM4, simplex, ferrula ceramiczna, plastikowa obudowa | E185: =VLOOKUP(A185,Arkusz1!A:C,3,FALSE) ->  | F185: Cobi FO osprzęt
A186: 5065 221 | B186: Adapter - coupler SC wielomodowy, duplex | C186: Adapter - coupler SC wielomodowy, duplex, ferrula metalowa, plastikowa obudowa | E186: =VLOOKUP(A186,Arkusz1!A:C,3,FALSE) ->  | F186: Cobi FO osprzęt
A187: 5065 222 | B187: Adapter - coupler SC wielomodowy, duplex | C187: Adapter - coupler SC wielomodowy, duplex, ferrula ceramiczna, plastikowa obudowa | E187: =VLOOKUP(A187,Arkusz1!A:C,3,FALSE) ->  | F187: Cobi FO osprzęt
A188: 5065 223 | B188: Adapter - coupler SC wielomodowy, duplex | C188: Adapter - coupler SC wielomodowy, duplex, ferrula ceramiczna, metalowa obudowa | E188: =VLOOKUP(A188,Arkusz1!A:C,3,FALSE) ->  | F188: Cobi FO osprzęt
A189: 5065 211 | B189: Adapter - coupler SC wielomodowy, simplex | C189: Adapter - coupler SC wielomodowy, simplex, ferrula metalowa, plastikowa obudowa | E189: =VLOOKUP(A189,Arkusz1!A:C,3,FALSE) ->  | F189: Cobi FO osprzęt
A190: 5065 212 | B190: Adapter - coupler SC wielomodowy, simplex | C190: Adapter - coupler SC wielomodowy, simplex, ferrula ceramiczna, metalowa obudowa | E190: =VLOOKUP(A190,Arkusz1!A:C,3,FALSE) ->  | F190: Cobi FO osprzęt
A191: 5065 225/APC | B191: Adapter - coupler SC/APC jednomodowy, duplex, ferr | C191: Adapter - coupler SC/APC jednomodowy, duplex, ferrula ceramiczna, plastikowa obudowa | E191: =VLOOKUP(A191,Arkusz1!A:C,3,FALSE) ->  | F191: Cobi FO osprzęt
A192: 5065 210/APC | B192: Adapter - coupler SC/APC jednomodowy, simplex, fer | C192: Adapter - coupler SC/APC jednomodowy, simplex, ferrula ceramiczna, plastikowa obudowa | E192: =VLOOKUP(A192,Arkusz1!A:C,3,FALSE) ->  | F192: Cobi FO osprzęt
A193: 5065 112 | B193: Adapter – coupler ST wielomodowy | C193: Adapter – coupler ST wielomodowy, ferrula ceramiczna | E193: =VLOOKUP(A193,Arkusz1!A:C,3,FALSE) ->  | F193: Cobi FO osprzęt
A194: 5065 126 | B194: Adapter - coupler ST/SC jednomodowy, duplex | C194: Adapter - coupler ST/SC jednomodowy, duplex, ferrula ceramiczna, plastikowa obudowa | E194: =VLOOKUP(A194,Arkusz1!A:C,3,FALSE) ->  | F194: Cobi FO osprzęt
A195: 5065 122 | B195: Adapter - coupler ST/SC wielomodowy, duplex | C195: Adapter - coupler ST/SC wielomodowy, duplex, ferrula metalowa, plastikowa obudowa | E195: =VLOOKUP(A195,Arkusz1!A:C,3,FALSE) ->  | F195: Cobi FO osprzęt
A196: 5065 123 | B196: Adapter - coupler ST/SC wielomodowy, duplex | C196: Adapter - coupler ST/SC wielomodowy, duplex, ferrula ceramiczna, plastikowa obudowa | E196: =VLOOKUP(A196,Arkusz1!A:C,3,FALSE) ->  | F196: Cobi FO osprzęt
A197: 5065 124 | B197: Adapter - coupler ST/SC wielomodowy, duplex | C197: Adapter - coupler ST/SC wielomodowy, duplex, ferrula ceramiczna, metalowa obudowa | E197: =VLOOKUP(A197,Arkusz1!A:C,3,FALSE) ->  | F197: Cobi FO osprzęt
A198: 5065 1212 | B198: Adapter - coupler ST-SC jednomodowy, simplex | C198: Adapter - coupler ST-SC jednomodowy, simplex, ferrula ceramiczna, metalowa obudowa | E198: =VLOOKUP(A198,Arkusz1!A:C,3,FALSE) ->  | F198: Cobi FO osprzęt
A199: 5065 1211 | B199: Adapter - coupler ST-SC wielomodowy, simplex | C199: Adapter - coupler ST-SC wielomodowy, simplex, ferrula ceramiczna, metalowa obudowa | E199: =VLOOKUP(A199,Arkusz1!A:C,3,FALSE) ->  | F199: Cobi FO osprzęt
A200: 5065 101 | B200: Adapter – coupler, jednomodowy | C200: Adapter – coupler, jednomodowy | E200: =VLOOKUP(A200,Arkusz1!A:C,3,FALSE) ->  | F200: Cobi FO osprzęt
... 3757 more rows

Sheet wyprzedaż-enova (hidden)
A1: Kod | B1: Features.GrupaTowarowa | C1: Workers.StanMagazynu.StanMagazynu
A2: 0000 040 | B2: Inne - okazjonalne | C2: 0
A3: 00-28P-SI-R2/R3 | B3: Sprzęt aktywny | C3: 0
A4: 100.16440.02 | B4: SIEMON | C4: 0
A5: 100.17576 | B5: SIEMON | C5: 0
A6: 100-010 | B6: EXCEL | C6: 250
A7: 100-011 | B7: EXCEL | C7: 14
A8: 100-031 | B8: EXCEL | C8: 19
A9: 100-066 | B9: Cobi Cu kable | C9: 1
A10: 100-090 | B10: EXCEL | C10: 1
A11: 100-095 | B11: EXCEL | C11: 0
A12: 100-110 | B12: EXCEL | C12: 2
A13: 100-134/1 | B13: EXCEL | C13: 35
A14: 100-140 | B14: EXCEL | C14: 10
A15: 100-144-06 | B15: EXCEL | C15: 7
A16: 100-148 | B16: EXCEL | C16: 50
A17: 100-156-BK | B17: EXCEL | C17: 30
A18: 100-159 | B18: EXCEL | C18: 1
A19: 100-182-BK | B19: EXCEL | C19: 10
A20: 100-191 | B20: Cobi Cu kable | C20: 4
A21: 100-212 | B21: EXCEL | C21: 1
A22: 100-213 | B22: EXCEL | C22: 238
A23: 100-215-BK | B23: EXCEL | C23: 1
A24: 100-230 | B24: EXCEL | C24: 2
A25: 100-231 | C25: 0
A26: 100-237 | B26: EXCEL | C26: 0
A27: 100-289 | B27: EXCEL | C27: 34
A28: 100-297 | B28: EXCEL | C28: 178
A29: 100-302 | B29: EXCEL | C29: 2
A30: 100-314 | B30: EXCEL | C30: 50
A31: 100-400 | B31: EXCEL | C31: 6
A32: 100-417 | B32: EXCEL | C32: 1
A33: 100-435 | B33: EXCEL | C33: 162
A34: 100-438 | B34: EXCEL | C34: 30
A35: 100-456 | B35: EXCEL | C35: 165
A36: 100-457 | B36: EXCEL | C36: 18
A37: 100-464 | B37: EXCEL | C37: 1
A38: 100-500 | B38: EXCEL | C38: 0
A39: 100-506 | B39: EXCEL | C39: 0
A40: 100-507 | B40: EXCEL | C40: 0
A41: 100-518 | B41: EXCEL | C41: 0
A42: 100-518-10 | B42: EXCEL | C42: 8
A43: 100-524 | B43: EXCEL | C43: 0
A44: 100-535 | B44: EXCEL | C44: 0
A45: 100-556 | B45: EXCEL | C45: 0
A46: 100-583 | B46: EXCEL | C46: 1
A47: 1007600 | B47: UPS i urządzenia aktywne | C47: 0
A48: 1008 1010 | B48: Cobi LSA telekomunikacja | C48: 18
A49: 1008 1110 | B49: Cobi LSA telekomunikacja | C49: 14
A50: 1008 5001 | B50: Cobi LSA telekomunikacja | C50: 1
A51: 1008 5003 | B51: Cobi LSA telekomunikacja | C51: 3
A52: 1008 5003/30 | B52: Cobi LSA telekomunikacja | C52: 1
A53: 1020 052/G | B53: Cobi LSA telekomunikacja | C53: 100
A54: 1030 022/N | B54: Cobi LSA telekomunikacja | C54: 4
A55: 1036 015 | B55: Cobi Cu okablowanie | C55: 0
A56: 1036 016 | B56: Cobi Cu okablowanie | C56: 0
A57: 1036 050 | B57: Cobi Cu okablowanie | C57: 3
A58: 1038 004 | B58: Cobi LSA telekomunikacja | C58: 1
A59: 1062 310 | B59: Cobi Cu okablowanie | C59: 0
A60: 19-0066 | B60: Cobi szafy akcesoria | C60: 0
A61: 19-0067 | B61: Cobi szafy akcesoria | C61: 0
A62: 1912551 | B62: Inne - okazjonalne | C62: 0
A63: 1970-05 | B63: Puszki podłogowe i koryta | C63: 0
A64: 1970D-1E-PLA | B64: Puszki podłogowe i koryta | C64: 0
A65: 200-043 | B65: EXCEL | C65: 1
A66: 200-150 | B66: Cobi FO kable | C66: 4000
A67: 200-364 | B67: EXCEL | C67: 72
A68: 200-398 | B68: EXCEL | C68: 24
A69: 200-404 | B69: EXCEL | C69: 12
A70: 20045 | B70: Sprzęt aktywny | C70: 0
A71: 200-454 | B71: EXCEL | C71: 93
A72: 200-470 | B72: EXCEL | C72: 5
A73: 200-555 | B73: EXCEL | C73: 8
A74: 200-559 | B74: EXCEL | C74: 16
A75: 200-561 | B75: EXCEL | C75: 21
A76: 200-586 | B76: EXCEL | C76: 125
A77: 200-646 | B77: EXCEL | C77: 2
A78: 200-647 | B78: EXCEL | C78: 1
A79: 200-649 | B79: EXCEL | C79: 4
A80: 200-680 | B80: EXCEL | C80: 58
A81: 200-951 | B81: EXCEL | C81: 20
A82: 200-952 | B82: EXCEL | C82: 2
A83: 201-602 | C83: 0
A84: 2021 035 | B84: Cobi LSA telekomunikacja | C84: 1
A85: 2021 050/R | B85: Cobi LSA telekomunikacja | C85: 1
A86: 2021 077/R | B86: Cobi LSA telekomunikacja | C86: 1
A87: 2023/05/00325 | B87: Sprzęt aktywny | C87: 0
A88: 205-302 | B88: EXCEL | C88: 270
A89: 205-304 | B89: EXCEL | C89: 200
A90: 205-307 | B90: EXCEL | C90: 100
A91: 2090000 | B91: Inne - okazjonalne | C91: 0
A92: 2405 | B92: Inne - okazjonalne | C92: 0
A93: 250212920 | B93: Puszki podłogowe i koryta | C93: 0
A94: 250E04912 | B94: Puszki podłogowe i koryta | C94: 0
A95: 250Q02912 | B95: Puszki podłogowe i koryta | C95: 0
A96: 250Q02912 SO | B96: Puszki podłogowe i koryta | C96: 0
A97: 250Q08912 | B97: Puszki podłogowe i koryta | C97: 0
A98: 250Q08912 SO | B98: Puszki podłogowe i koryta | C98: 0
A99: 250Q25912 | B99: Puszki podłogowe i koryta | C99: 0
A100: 250Q25912 SO | B100: Puszki podłogowe i koryta | C100: 0
A101: 251214920 | B101: Puszki podłogowe i koryta | C101: 0
A102: 253314920 | B102: Puszki podłogowe i koryta | C102: 0
A103: 253952610 | B103: Puszki podłogowe i koryta | C103: 0
A104: 253956610 | B104: Puszki podłogowe i koryta | C104: 0
A105: 255312920 | B105: Puszki podłogowe i koryta | C105: 0
A106: 255314920 | B106: Puszki podłogowe i koryta | C106: 0
A107: 255412920 | B107: Puszki podłogowe i koryta | C107: 0
A108: 256314920 | B108: Puszki podłogowe i koryta | C108: 0
A109: 257212920 | B109: Puszki podłogowe i koryta | C109: 0
A110: 258212920 | B110: Puszki podłogowe i koryta | C110: 0
A111: 258214920 | B111: Puszki podłogowe i koryta | C111: 0
A112: 258412920 | B112: Puszki podłogowe i koryta | C112: 0
A113: 2637 | B113: Inne - okazjonalne | C113: 0
A114: 276312920 | B114: Puszki podłogowe i koryta | C114: 0
A115: 29098K075 | B115: Puszki podłogowe i koryta | C115: 0
A116: 29098K120 | B116: Puszki podłogowe i koryta | C116: 0
A117: 29298K075 | B117: Puszki podłogowe i koryta | C117: 0
A118: 29298K120 | B118: Puszki podłogowe i koryta | C118: 0
A119: 292Q30912 | B119: Puszki podłogowe i koryta | C119: 0
A120: 2A45-1PK | B120: 2LAN | C120: 373
A121: 2A45-2PK | B121: 2LAN | C121: 6152
A122: 2G-2S.1.4.F-BOXPOE-P | B122: Sprzęt aktywny | C122: 0
A123: 2L-5205U | B123: TECNOSTEEL | C123: 0
A124: 2MP45-6AN | B124: 2LAN | C124: 10
A125: 2MPLSA-6AE | B125: 2LAN | C125: 26
A126: 2MSFP+10G-LR | B126: Sprzęt aktywny | C126: 0
A127: 2MSFP-1G-LX | B127: 2Partners | C127: 0
A128: 2P-30097 | C128: 0
A129: 2P-30823 | B129: 2Partners | C129: 0
A130: 2P-31053 | B130: 2Partners | C130: 0
A131: 2P-31054 | B131: 2Partners | C131: 0
A132: 2P-3221126 | C132: 0
A133: 2P-3221993 | B133: 2Partners | C133: 0
A134: 2P-3221994 | B134: 2Partners | C134: 0
A135: 2P-3221995 | B135: 2Partners | C135: 0
A136: 2P-3221996 | B136: 2Partners | C136: 0
A137: 2P-3221997 | B137: 2Partners | C137: 0
A138: 2P-3221998 | B138: 2Partners | C138: 0
A139: 2P-A00280 | C139: 0
A140: 2P-A00319 | C140: 0
A141: 2P-A00327 | C141: 0
A142: 2P-A00337 | C142: 0
A143: 2P-A00359 | C143: 0
A144: 2P-A90093 | C144: 0
A145: 2P-D20006 | C145: 0
A146: 2P-D20048 | C146: 0
A147: 2P-D20049 | C147: 0
A148: 2P-D20060 | C148: 0
A149: 2P-H60064 | B149: 2Partners | C149: 0
A150: 2P-H61190 | C150: 0
A151: 2P-H75790 | C151: 0
A152: 2P-H80180 | C152: 0
A153: 2P-H80186 | C153: 0
A154: 2PK-24 | B154: 2LAN | C154: 1
A155: 2PK3-25 | B155: 2LAN | C155: 34
A156: 2PK3-50 | B156: 2LAN | C156: 1
A157: 2PK6-24N | B157: 2LAN | C157: 41
A158: 2P-P00005 | C158: 0
A159: 2P-S00001 | B159: 2Partners | C159: 0
A160: 2P-S00002 | C160: 0
A161: 2P-S00031 | B161: 2Partners | C161: 0
A162: 2P-T80063 | C162: 0
A163: 2P-T80075 | C163: 0
A164: 2P-T80081 | C164: 0
A165: 2P-TL-SG1048 | B165: Sprzęt aktywny | C165: 0
A166: 2P-TL-SG2428P | B166: Sprzęt aktywny | C166: 0
A167: 2P-TL-SM311LS | B167: Sprzęt aktywny | C167: 0
A168: 3022 087/1,5 | B168: Cobi LSA telekomunikacja | C168: 1
A169: 3050 004 | B169: Exportowe | C169: 4
A170: 3050 005 | B170: Exportowe | C170: 0
A171: 3050 006 | B171: Exportowe | C171: 0
A172: 3110000 | B172: Inne - okazjonalne | C172: 0
A173: 3110200 | B173: Inne - okazjonalne | C173: 0
A174: 3268 | B174: TECNOSTEEL | C174: 0
A175: 3268-1 | B175: Inne - okazjonalne | C175: 0
A176: 3269 | B176: Inne - okazjonalne | C176: 0
A177: 338.0203 | B177: Puszki podłogowe i koryta | C177: 0
A178: 338.0205 | B178: Puszki podłogowe i koryta | C178: 0
A179: 338422010 | B179: Puszki podłogowe i koryta | C179: 0
A180: 338423010 | B180: Puszki podłogowe i koryta | C180: 0
A181: 338542010 | B181: Puszki podłogowe i koryta | C181: 0
A182: 339542010 | B182: Puszki podłogowe i koryta | C182: 0
A183: 3444 | B183: Inne - okazjonalne | C183: 0
A184: 350-644 | B184: EXCEL | C184: 22
A185: 351422011 | B185: Puszki podłogowe i koryta | C185: 0
A186: 351542011 | B186: Puszki podłogowe i koryta | C186: 0
A187: 352032010 | B187: Puszki podłogowe i koryta | C187: 0
A188: 354542010 | B188: Puszki podłogowe i koryta | C188: 0
A189: 356032010 | B189: Puszki podłogowe i koryta | C189: 0
A190: 368422010 | B190: Puszki podłogowe i koryta | C190: 0
A191: 368422011 | B191: Puszki podłogowe i koryta | C191: 0
A192: 368422710 | B192: Puszki podłogowe i koryta | C192: 0
A193: 368423011 | B193: Puszki podłogowe i koryta | C193: 0
A194: 368423091 | B194: Puszki podłogowe i koryta | C194: 0
A195: 368424011 | B195: Puszki podłogowe i koryta | C195: 0
A196: 368542010 | B196: Puszki podłogowe i koryta | C196: 0
A197: 368542011 | B197: Puszki podłogowe i koryta | C197: 0
A198: 368542040 | B198: Puszki podłogowe i koryta | C198: 0
A199: 368544011 | B199: Puszki podłogowe i koryta | C199: 0
A200: 369422012 | B200: Puszki podłogowe i koryta | C200: 0
... 3082 more rows

Sheet Warunki handlowe
I3: CENNIK | P3: Data przygotowania cennika | Q3: 2026-04-16
I4: OKABLOWANIA
I5: STRUKUTRALNEGO | P5: 1 EUR | Q5: ='Table 0'!D3 -> 4.2835 | R5: PLN
I6: COBICABLING | P6: 1 USD | Q6: ='Table 0'!D2 -> 3.6302 | R6: PLN
B9: CobiCabling Sp. z o.o.| ul. Austriacka 4 | 64-100 Leszno
B10: Dział Sprzedaży: sales@cobicabling.com
B12: Cennik nie stanowi oferty w myśl kodeksu prawa, a pełni jedynie funkcję orientacyjną. Ceny mogą ulegać zmianie.
B14: Uwaga: ze względu na dużą zmienność cen miedzi jak i kursu EURO, ceny wyrażone w PLN wymagają potwierdzenia (szczególnie kable instalacyjne/moduły RJ45).
B15: Przedstawione ceny są aktualne na okres ważności cennika.
B17: Dodatkowe informacje i warunki:
B18: 1. Cennik ważny jest do dnia | E18: =Q3+30 -> 2026-05-16
B19: 2. W przypadku informacji ‘’na zapytanie’’, prosimy o kontakt.
B20: 3. W przypadku braku ceny przy produkcie (brak) oznacza, że towar jest niedostępny z magazynu na ten moment.
B21: 3. Dostępność kabli instalacyjnych miedzianych szybko się zmienia. Prosimy o potwierdzenie dostępności w Dziale Sprzedaży.
B22: 4. Ceny jeśli podane w euro (EUR), są przeliczane na złotówki wg aktualnego kursu sprzedaży NBP z dnia poprzedzającego dzień wystawienia faktury (ostatnie notowanie). Wszystkie ceny zawierają ewentualne cło i podatek graniczny, nie uwzględniają podatku VAT.

Sheet Kalkulator cen
B2: Dla: | J2: Kurs EUR: | K2: ='Warunki handlowe'!Q5 -> 4.2835
B3: Inwestycja: | J3: Kurs USD: | K3: ='Warunki handlowe'!Q6 -> 3.6302
A5: Lp. | B5: Numer katalogowy | C5: NAZWA | D5: j.m. | E5: Cena katalogowa | F5: Waluta | G5: Rabat | H5: Cena jedn. po rabacie PLN | I5: Ilość | J5: Wartość netto [PLN] | K5: Wartość netto z rabatem [PLN] | L5: Uwagi
A6: 1 | C6: =IFERROR(VLOOKUP(B6,Arkusz!A:H,3,FALSE),"") ->  | D6: =IFERROR(VLOOKUP(B6,Arkusz!A:H,4,FALSE),"") ->  | E6: =IFERROR(IF(VLOOKUP(B6,Arkusz!A:I,5,FALSE)=0,VLOOKUP(B6,Arkusz!A:I,10,FALSE),(VLOOKUP(B6,Arkusz!A:I,5,FALSE))),"") ->  | F6: =IFERROR(IF(VLOOKUP(B6,Arkusz!A:H,5,FALSE)=0,"EUR","PLN"),"") ->  | G6: 0 | H6: =IF(F6="PLN",E6*(1-G6),IF(F6="EUR",E6*$K$2*(1-G6),IF(F6="USD",E6*$K$3*(1-G6),""))) ->  | J6: =IF(F6="PLN",E6*I6,IF(F6="EUR",E6*I6*$K$2,IF(F6="USD",E6*I6*$K$3,""))) ->  | K6: =IFERROR(H6*I6,"") -> 
A7: 2 | C7: =IFERROR(VLOOKUP(B7,Arkusz!A:H,3,FALSE),"") ->  | D7: =IFERROR(VLOOKUP(B7,Arkusz!A:H,4,FALSE),"") ->  | E7: =IFERROR(IF(VLOOKUP(B7,Arkusz!A:I,5,FALSE)=0,VLOOKUP(B7,Arkusz!A:I,10,FALSE),(VLOOKUP(B7,Arkusz!A:I,5,FALSE))),"") ->  | F7: =IFERROR(IF(VLOOKUP(B7,Arkusz!A:H,5,FALSE)=0,"EUR","PLN"),"") ->  | G7: 0
A8: 3 | C8: =IFERROR(VLOOKUP(B8,Arkusz!A:H,3,FALSE),"") ->  | D8: =IFERROR(VLOOKUP(B8,Arkusz!A:H,4,FALSE),"") ->  | E8: =IFERROR(IF(VLOOKUP(B8,Arkusz!A:I,5,FALSE)=0,VLOOKUP(B8,Arkusz!A:I,10,FALSE),(VLOOKUP(B8,Arkusz!A:I,5,FALSE))),"") ->  | F8: =IFERROR(IF(VLOOKUP(B8,Arkusz!A:H,5,FALSE)=0,"EUR","PLN"),"") ->  | G8: 0
A9: 4 | C9: =IFERROR(VLOOKUP(B9,Arkusz!A:H,3,FALSE),"") ->  | D9: =IFERROR(VLOOKUP(B9,Arkusz!A:H,4,FALSE),"") ->  | E9: =IFERROR(IF(VLOOKUP(B9,Arkusz!A:I,5,FALSE)=0,VLOOKUP(B9,Arkusz!A:I,10,FALSE),(VLOOKUP(B9,Arkusz!A:I,5,FALSE))),"") ->  | F9: =IFERROR(IF(VLOOKUP(B9,Arkusz!A:H,5,FALSE)=0,"EUR","PLN"),"") ->  | G9: 0
A10: 5 | C10: =IFERROR(VLOOKUP(B10,Arkusz!A:H,3,FALSE),"") ->  | D10: =IFERROR(VLOOKUP(B10,Arkusz!A:H,4,FALSE),"") ->  | E10: =IFERROR(IF(VLOOKUP(B10,Arkusz!A:I,5,FALSE)=0,VLOOKUP(B10,Arkusz!A:I,10,FALSE),(VLOOKUP(B10,Arkusz!A:I,5,FALSE))),"") ->  | F10: =IFERROR(IF(VLOOKUP(B10,Arkusz!A:H,5,FALSE)=0,"EUR","PLN"),"") ->  | G10: 0
A11: 6 | C11: =IFERROR(VLOOKUP(B11,Arkusz!A:H,3,FALSE),"") ->  | D11: =IFERROR(VLOOKUP(B11,Arkusz!A:H,4,FALSE),"") ->  | E11: =IFERROR(IF(VLOOKUP(B11,Arkusz!A:I,5,FALSE)=0,VLOOKUP(B11,Arkusz!A:I,10,FALSE),(VLOOKUP(B11,Arkusz!A:I,5,FALSE))),"") ->  | F11: =IFERROR(IF(VLOOKUP(B11,Arkusz!A:H,5,FALSE)=0,"EUR","PLN"),"") ->  | G11: 0
A12: 7 | C12: =IFERROR(VLOOKUP(B12,Arkusz!A:H,3,FALSE),"") ->  | D12: =IFERROR(VLOOKUP(B12,Arkusz!A:H,4,FALSE),"") ->  | E12: =IFERROR(IF(VLOOKUP(B12,Arkusz!A:I,5,FALSE)=0,VLOOKUP(B12,Arkusz!A:I,10,FALSE),(VLOOKUP(B12,Arkusz!A:I,5,FALSE))),"") ->  | F12: =IFERROR(IF(VLOOKUP(B12,Arkusz!A:H,5,FALSE)=0,"EUR","PLN"),"") ->  | G12: 0
A13: 8 | C13: =IFERROR(VLOOKUP(B13,Arkusz!A:H,3,FALSE),"") ->  | D13: =IFERROR(VLOOKUP(B13,Arkusz!A:H,4,FALSE),"") ->  | E13: =IFERROR(IF(VLOOKUP(B13,Arkusz!A:I,5,FALSE)=0,VLOOKUP(B13,Arkusz!A:I,10,FALSE),(VLOOKUP(B13,Arkusz!A:I,5,FALSE))),"") ->  | F13: =IFERROR(IF(VLOOKUP(B13,Arkusz!A:H,5,FALSE)=0,"EUR","PLN"),"") ->  | G13: 0
A14: 9 | C14: =IFERROR(VLOOKUP(B14,Arkusz!A:H,3,FALSE),"") ->  | D14: =IFERROR(VLOOKUP(B14,Arkusz!A:H,4,FALSE),"") ->  | E14: =IFERROR(IF(VLOOKUP(B14,Arkusz!A:I,5,FALSE)=0,VLOOKUP(B14,Arkusz!A:I,10,FALSE),(VLOOKUP(B14,Arkusz!A:I,5,FALSE))),"") ->  | F14: =IFERROR(IF(VLOOKUP(B14,Arkusz!A:H,5,FALSE)=0,"EUR","PLN"),"") ->  | G14: 0
A15: 10 | C15: =IFERROR(VLOOKUP(B15,Arkusz!A:H,3,FALSE),"") ->  | D15: =IFERROR(VLOOKUP(B15,Arkusz!A:H,4,FALSE),"") ->  | E15: =IFERROR(IF(VLOOKUP(B15,Arkusz!A:I,5,FALSE)=0,VLOOKUP(B15,Arkusz!A:I,10,FALSE),(VLOOKUP(B15,Arkusz!A:I,5,FALSE))),"") ->  | F15: =IFERROR(IF(VLOOKUP(B15,Arkusz!A:H,5,FALSE)=0,"EUR","PLN"),"") ->  | G15: 0
A16: 11 | C16: =IFERROR(VLOOKUP(B16,Arkusz!A:H,3,FALSE),"") ->  | D16: =IFERROR(VLOOKUP(B16,Arkusz!A:H,4,FALSE),"") ->  | E16: =IFERROR(IF(VLOOKUP(B16,Arkusz!A:I,5,FALSE)=0,VLOOKUP(B16,Arkusz!A:I,10,FALSE),(VLOOKUP(B16,Arkusz!A:I,5,FALSE))),"") ->  | F16: =IFERROR(IF(VLOOKUP(B16,Arkusz!A:H,5,FALSE)=0,"EUR","PLN"),"") ->  | G16: 0
A17: 12 | C17: =IFERROR(VLOOKUP(B17,Arkusz!A:H,3,FALSE),"") ->  | D17: =IFERROR(VLOOKUP(B17,Arkusz!A:H,4,FALSE),"") ->  | E17: =IFERROR(IF(VLOOKUP(B17,Arkusz!A:I,5,FALSE)=0,VLOOKUP(B17,Arkusz!A:I,10,FALSE),(VLOOKUP(B17,Arkusz!A:I,5,FALSE))),"") ->  | F17: =IFERROR(IF(VLOOKUP(B17,Arkusz!A:H,5,FALSE)=0,"EUR","PLN"),"") ->  | G17: 0
A18: 13 | C18: =IFERROR(VLOOKUP(B18,Arkusz!A:H,3,FALSE),"") ->  | D18: =IFERROR(VLOOKUP(B18,Arkusz!A:H,4,FALSE),"") ->  | E18: =IFERROR(IF(VLOOKUP(B18,Arkusz!A:I,5,FALSE)=0,VLOOKUP(B18,Arkusz!A:I,10,FALSE),(VLOOKUP(B18,Arkusz!A:I,5,FALSE))),"") ->  | F18: =IFERROR(IF(VLOOKUP(B18,Arkusz!A:H,5,FALSE)=0,"EUR","PLN"),"") ->  | G18: 0
A19: 14 | C19: =IFERROR(VLOOKUP(B19,Arkusz!A:H,3,FALSE),"") ->  | D19: =IFERROR(VLOOKUP(B19,Arkusz!A:H,4,FALSE),"") ->  | E19: =IFERROR(IF(VLOOKUP(B19,Arkusz!A:I,5,FALSE)=0,VLOOKUP(B19,Arkusz!A:I,10,FALSE),(VLOOKUP(B19,Arkusz!A:I,5,FALSE))),"") ->  | F19: =IFERROR(IF(VLOOKUP(B19,Arkusz!A:H,5,FALSE)=0,"EUR","PLN"),"") ->  | G19: 0 | H19: =IF(F19="PLN",E19*(1-G19),IF(F19="EUR",E19*$K$2*(1-G19),IF(F19="USD",E19*$K$3*(1-G19),""))) ->  | J19: =IF(F19="PLN",E19*I19,IF(F19="EUR",E19*I19*$K$2,IF(F19="USD",E19*I19*$K$3,""))) ->  | K19: =IFERROR(H19*I19,"") -> 
A20: 15 | C20: =IFERROR(VLOOKUP(B20,Arkusz!A:H,3,FALSE),"") ->  | D20: =IFERROR(VLOOKUP(B20,Arkusz!A:H,4,FALSE),"") ->  | E20: =IFERROR(IF(VLOOKUP(B20,Arkusz!A:I,5,FALSE)=0,VLOOKUP(B20,Arkusz!A:I,10,FALSE),(VLOOKUP(B20,Arkusz!A:I,5,FALSE))),"") ->  | F20: =IFERROR(IF(VLOOKUP(B20,Arkusz!A:H,5,FALSE)=0,"EUR","PLN"),"") ->  | G20: 0
A21: 16 | C21: =IFERROR(VLOOKUP(B21,Arkusz!A:H,3,FALSE),"") ->  | D21: =IFERROR(VLOOKUP(B21,Arkusz!A:H,4,FALSE),"") ->  | E21: =IFERROR(IF(VLOOKUP(B21,Arkusz!A:I,5,FALSE)=0,VLOOKUP(B21,Arkusz!A:I,10,FALSE),(VLOOKUP(B21,Arkusz!A:I,5,FALSE))),"") ->  | F21: =IFERROR(IF(VLOOKUP(B21,Arkusz!A:H,5,FALSE)=0,"EUR","PLN"),"") ->  | G21: 0
A22: 17 | C22: =IFERROR(VLOOKUP(B22,Arkusz!A:H,3,FALSE),"") ->  | D22: =IFERROR(VLOOKUP(B22,Arkusz!A:H,4,FALSE),"") ->  | E22: =IFERROR(IF(VLOOKUP(B22,Arkusz!A:I,5,FALSE)=0,VLOOKUP(B22,Arkusz!A:I,10,FALSE),(VLOOKUP(B22,Arkusz!A:I,5,FALSE))),"") ->  | F22: =IFERROR(IF(VLOOKUP(B22,Arkusz!A:H,5,FALSE)=0,"EUR","PLN"),"") ->  | G22: 0
A23: 18 | C23: =IFERROR(VLOOKUP(B23,Arkusz!A:H,3,FALSE),"") ->  | D23: =IFERROR(VLOOKUP(B23,Arkusz!A:H,4,FALSE),"") ->  | E23: =IFERROR(IF(VLOOKUP(B23,Arkusz!A:I,5,FALSE)=0,VLOOKUP(B23,Arkusz!A:I,10,FALSE),(VLOOKUP(B23,Arkusz!A:I,5,FALSE))),"") ->  | F23: =IFERROR(IF(VLOOKUP(B23,Arkusz!A:H,5,FALSE)=0,"EUR","PLN"),"") ->  | G23: 0
A24: 19 | C24: =IFERROR(VLOOKUP(B24,Arkusz!A:H,3,FALSE),"") ->  | D24: =IFERROR(VLOOKUP(B24,Arkusz!A:H,4,FALSE),"") ->  | E24: =IFERROR(IF(VLOOKUP(B24,Arkusz!A:I,5,FALSE)=0,VLOOKUP(B24,Arkusz!A:I,10,FALSE),(VLOOKUP(B24,Arkusz!A:I,5,FALSE))),"") ->  | F24: =IFERROR(IF(VLOOKUP(B24,Arkusz!A:H,5,FALSE)=0,"EUR","PLN"),"") ->  | G24: 0
A25: 20 | C25: =IFERROR(VLOOKUP(B25,Arkusz!A:H,3,FALSE),"") ->  | D25: =IFERROR(VLOOKUP(B25,Arkusz!A:H,4,FALSE),"") ->  | E25: =IFERROR(IF(VLOOKUP(B25,Arkusz!A:I,5,FALSE)=0,VLOOKUP(B25,Arkusz!A:I,10,FALSE),(VLOOKUP(B25,Arkusz!A:I,5,FALSE))),"") ->  | F25: =IFERROR(IF(VLOOKUP(B25,Arkusz!A:H,5,FALSE)=0,"EUR","PLN"),"") ->  | G25: 0
A26: 21 | C26: =IFERROR(VLOOKUP(B26,Arkusz!A:H,3,FALSE),"") ->  | D26: =IFERROR(VLOOKUP(B26,Arkusz!A:H,4,FALSE),"") ->  | E26: =IFERROR(IF(VLOOKUP(B26,Arkusz!A:I,5,FALSE)=0,VLOOKUP(B26,Arkusz!A:I,10,FALSE),(VLOOKUP(B26,Arkusz!A:I,5,FALSE))),"") ->  | F26: =IFERROR(IF(VLOOKUP(B26,Arkusz!A:H,5,FALSE)=0,"EUR","PLN"),"") ->  | G26: 0
A27: 22 | C27: =IFERROR(VLOOKUP(B27,Arkusz!A:H,3,FALSE),"") ->  | D27: =IFERROR(VLOOKUP(B27,Arkusz!A:H,4,FALSE),"") ->  | E27: =IFERROR(IF(VLOOKUP(B27,Arkusz!A:I,5,FALSE)=0,VLOOKUP(B27,Arkusz!A:I,10,FALSE),(VLOOKUP(B27,Arkusz!A:I,5,FALSE))),"") ->  | F27: =IFERROR(IF(VLOOKUP(B27,Arkusz!A:H,5,FALSE)=0,"EUR","PLN"),"") ->  | G27: 0
A28: 23 | C28: =IFERROR(VLOOKUP(B28,Arkusz!A:H,3,FALSE),"") ->  | D28: =IFERROR(VLOOKUP(B28,Arkusz!A:H,4,FALSE),"") ->  | E28: =IFERROR(IF(VLOOKUP(B28,Arkusz!A:I,5,FALSE)=0,VLOOKUP(B28,Arkusz!A:I,10,FALSE),(VLOOKUP(B28,Arkusz!A:I,5,FALSE))),"") ->  | F28: =IFERROR(IF(VLOOKUP(B28,Arkusz!A:H,5,FALSE)=0,"EUR","PLN"),"") ->  | G28: 0 | H28: =IF(F28="PLN",E28*(1-G28),IF(F28="EUR",E28*$K$2*(1-G28),IF(F28="USD",E28*$K$3*(1-G28),""))) ->  | J28: =IF(F28="PLN",E28*I28,IF(F28="EUR",E28*I28*$K$2,IF(F28="USD",E28*I28*$K$3,""))) ->  | K28: =IFERROR(H28*I28,"") -> 
A29: 24 | C29: =IFERROR(VLOOKUP(B29,Arkusz!A:H,3,FALSE),"") ->  | D29: =IFERROR(VLOOKUP(B29,Arkusz!A:H,4,FALSE),"") ->  | E29: =IFERROR(IF(VLOOKUP(B29,Arkusz!A:I,5,FALSE)=0,VLOOKUP(B29,Arkusz!A:I,10,FALSE),(VLOOKUP(B29,Arkusz!A:I,5,FALSE))),"") ->  | F29: =IFERROR(IF(VLOOKUP(B29,Arkusz!A:H,5,FALSE)=0,"EUR","PLN"),"") ->  | G29: 0
A30: 25 | C30: =IFERROR(VLOOKUP(B30,Arkusz!A:H,3,FALSE),"") ->  | D30: =IFERROR(VLOOKUP(B30,Arkusz!A:H,4,FALSE),"") ->  | E30: =IFERROR(IF(VLOOKUP(B30,Arkusz!A:I,5,FALSE)=0,VLOOKUP(B30,Arkusz!A:I,10,FALSE),(VLOOKUP(B30,Arkusz!A:I,5,FALSE))),"") ->  | F30: =IFERROR(IF(VLOOKUP(B30,Arkusz!A:H,5,FALSE)=0,"EUR","PLN"),"") ->  | G30: 0
A31: 26 | C31: =IFERROR(VLOOKUP(B31,Arkusz!A:H,3,FALSE),"") ->  | D31: =IFERROR(VLOOKUP(B31,Arkusz!A:H,4,FALSE),"") ->  | E31: =IFERROR(IF(VLOOKUP(B31,Arkusz!A:I,5,FALSE)=0,VLOOKUP(B31,Arkusz!A:I,10,FALSE),(VLOOKUP(B31,Arkusz!A:I,5,FALSE))),"") ->  | F31: =IFERROR(IF(VLOOKUP(B31,Arkusz!A:H,5,FALSE)=0,"EUR","PLN"),"") ->  | G31: 0
A32: 27 | C32: =IFERROR(VLOOKUP(B32,Arkusz!A:H,3,FALSE),"") ->  | D32: =IFERROR(VLOOKUP(B32,Arkusz!A:H,4,FALSE),"") ->  | E32: =IFERROR(IF(VLOOKUP(B32,Arkusz!A:I,5,FALSE)=0,VLOOKUP(B32,Arkusz!A:I,10,FALSE),(VLOOKUP(B32,Arkusz!A:I,5,FALSE))),"") ->  | F32: =IFERROR(IF(VLOOKUP(B32,Arkusz!A:H,5,FALSE)=0,"EUR","PLN"),"") ->  | G32: 0
A33: 28 | C33: =IFERROR(VLOOKUP(B33,Arkusz!A:H,3,FALSE),"") ->  | D33: =IFERROR(VLOOKUP(B33,Arkusz!A:H,4,FALSE),"") ->  | E33: =IFERROR(IF(VLOOKUP(B33,Arkusz!A:I,5,FALSE)=0,VLOOKUP(B33,Arkusz!A:I,10,FALSE),(VLOOKUP(B33,Arkusz!A:I,5,FALSE))),"") ->  | F33: =IFERROR(IF(VLOOKUP(B33,Arkusz!A:H,5,FALSE)=0,"EUR","PLN"),"") ->  | G33: 0
A34: 29 | C34: =IFERROR(VLOOKUP(B34,Arkusz!A:H,3,FALSE),"") ->  | D34: =IFERROR(VLOOKUP(B34,Arkusz!A:H,4,FALSE),"") ->  | E34: =IFERROR(IF(VLOOKUP(B34,Arkusz!A:I,5,FALSE)=0,VLOOKUP(B34,Arkusz!A:I,10,FALSE),(VLOOKUP(B34,Arkusz!A:I,5,FALSE))),"") ->  | F34: =IFERROR(IF(VLOOKUP(B34,Arkusz!A:H,5,FALSE)=0,"EUR","PLN"),"") ->  | G34: 0
A35: 30 | C35: =IFERROR(VLOOKUP(B35,Arkusz!A:H,3,FALSE),"") ->  | D35: =IFERROR(VLOOKUP(B35,Arkusz!A:H,4,FALSE),"") ->  | E35: =IFERROR(IF(VLOOKUP(B35,Arkusz!A:I,5,FALSE)=0,VLOOKUP(B35,Arkusz!A:I,10,FALSE),(VLOOKUP(B35,Arkusz!A:I,5,FALSE))),"") ->  | F35: =IFERROR(IF(VLOOKUP(B35,Arkusz!A:H,5,FALSE)=0,"EUR","PLN"),"") ->  | G35: 0
A36: 31 | C36: =IFERROR(VLOOKUP(B36,Arkusz!A:H,3,FALSE),"") ->  | D36: =IFERROR(VLOOKUP(B36,Arkusz!A:H,4,FALSE),"") ->  | E36: =IFERROR(IF(VLOOKUP(B36,Arkusz!A:I,5,FALSE)=0,VLOOKUP(B36,Arkusz!A:I,10,FALSE),(VLOOKUP(B36,Arkusz!A:I,5,FALSE))),"") ->  | F36: =IFERROR(IF(VLOOKUP(B36,Arkusz!A:H,5,FALSE)=0,"EUR","PLN"),"") ->  | G36: 0
A37: 32 | C37: =IFERROR(VLOOKUP(B37,Arkusz!A:H,3,FALSE),"") ->  | D37: =IFERROR(VLOOKUP(B37,Arkusz!A:H,4,FALSE),"") ->  | E37: =IFERROR(IF(VLOOKUP(B37,Arkusz!A:I,5,FALSE)=0,VLOOKUP(B37,Arkusz!A:I,10,FALSE),(VLOOKUP(B37,Arkusz!A:I,5,FALSE))),"") ->  | F37: =IFERROR(IF(VLOOKUP(B37,Arkusz!A:H,5,FALSE)=0,"EUR","PLN"),"") ->  | G37: 0
A38: 33 | C38: =IFERROR(VLOOKUP(B38,Arkusz!A:H,3,FALSE),"") ->  | D38: =IFERROR(VLOOKUP(B38,Arkusz!A:H,4,FALSE),"") ->  | E38: =IFERROR(IF(VLOOKUP(B38,Arkusz!A:I,5,FALSE)=0,VLOOKUP(B38,Arkusz!A:I,10,FALSE),(VLOOKUP(B38,Arkusz!A:I,5,FALSE))),"") ->  | F38: =IFERROR(IF(VLOOKUP(B38,Arkusz!A:H,5,FALSE)=0,"EUR","PLN"),"") ->  | G38: 0
G39: Wartość sumaryczna [PLN]: | J39: =SUM(J6:J38) -> 0 | K39: =SUM(K6:K38) -> 0
B41: Kalkulator cen ma wyłącznie charakter orientacyjny i nie oznacza oferty w rozumieniu art. 66 §1 KC

Sheet PROMOCJA
A1: Numer katalogowy | B1: Opis | C1: Grupa produktowa | D1: Stan | E1: Jednostka | F1: Cena promocyjna | G1: Waluta
I2: Warunki promocji:
A3: RC11-8147-P2 | B3: CobiCabling Szafa Vertical 19" 47U 800x1000mm, drzwi przednie perforowane dwuskrzydłowe, drzwi tylne perforowane dwuskrzydłowe, panel 4-went., czarna | C3: Cobi szafy | D3: 25 | E3: szt | F3: 1169.613636 | G3: PLN | I3: 1. Cena promocyjna to cena ostateczna nie podlegająca dalszym rabatom
A4: F53-2600 | B4: CobiCabling Kabel FO MM OM3 24G LSOH uniwersalny Dca | C4: Cobi FO kable | D4: 5800 | E4: m | F4: 4.91018221 | G4: PLN | I4: 2. Produkty z listypromocyjnej są dostępne wyłącznie do wyczerpania stanów magazynowych.
A5: F54-2600 | B5: CobiCabling Kabel FO MM OM4 24G LSOH uniwersalny Dca | C5: Cobi FO kable | D5: 2000 | E5: m | F5: 11.46597159 | G5: PLN | I5: 3. Po wyczerpaniu zapasów zamawianie tych produktów po cenach promocyjnych nie będzie możliwe.
A6: A50-1100 | B6: Organizer poziomy kabli CobiNet 19" 1U szary | C6: Cobi szafy akcesoria | D6: 1030 | E6: szt | F6: 17.7515887 | G6: PLN | I6: 4. Część produktów po wyprzedaniu zniknie na stałe z naszej oferty, a część będzie nadal dostępna, ale w innych cenach i często nie bezpośrednio z magazynu tylko pod zamówienie.
A7: SAN-SE3ZB | B7: CobiCabling Gniazdo elektryczne DATA 45x135mm, 3x2P+Z, blokada | C7: Cobi 45x45 | D7: 669 | E7: szt | F7: 25.34090909 | G7: PLN
A8: F54-2200 | B8: CobiCabling Kabel FO MM OM4 4G LSOH uniwersalny Dca | C8: Cobi FO kable | D8: 4999 | E8: m | F8: 2.971298805 | G8: PLN
A9: RC11-6142 | B9: CobiCabling Szafa Vertical 19" 42U 600x1000mm, drzwi przednie przeszklone, drzwi tylne pełne, panel 4-went., czarna | C9: Cobi szafy | D9: 14 | E9: szt | F9: 978.3222403 | G9: PLN
A10: RCD11-6142 | B10: Szafa CobiCabling UNI 19" 42U 600 x 1000, drzwi pr | C10: Cobi szafy | D10: 3 | E10: szt | F10: 2864.272727 | G10: PLN
A11: RC11-8842-SP | B11: Szafa 19" 42U 800x800mm, drzwi szkło, tył perf. cz | C11: Cobi szafy | D11: 7 | E11: szt | F11: 1185.375 | G11: PLN
A12: C24-1140-1,5 | B12: CobiCabling Patchcord kat. 6A S/FTP LSOH 1,5m czerwony | C12: Cobi Cu kable krosowe | D12: 1544 | E12: szt | F12: 5.215909091 | G12: PLN
A13: C14-1130-5,0 | B13: CobiCabling Patchcord kat. 6A U/UTP LSOH 5m niebieski | C13: Cobi Cu kable krosowe | D13: 856 | E13: szt | F13: 9.193181818 | G13: PLN
A14: C11-5100 | B14: CobiCabling Moduł kat. 5e UTP keystone narzędziowy | C14: Cobi Cu okablowanie | D14: 2925 | E14: szt | F14: 2.318181818 | G14: PLN
A15: C14-1110-5,0 | B15: CobiCabling Patchcord kat. 6A U/UTP LSOH 5m żółty | C15: Cobi Cu kable krosowe | D15: 602 | E15: szt | F15: 9.193181818 | G15: PLN
A16: C14-5000-15,0 | B16: CobiCabling Patchcord kat. 5e U/UTP PVC 15,0m szary | C16: Cobi Cu kable krosowe | D16: 283 | E16: szt | F16: 18.53409091 | G16: PLN
A17: C14-1150-5,0 | B17: CobiCabling Patchcord kat. 6A U/UTP LSOH 5m czarny | C17: Cobi Cu kable krosowe | D17: 550 | E17: szt | F17: 9.193181818 | G17: PLN
A18: C24-1140-1,0 | B18: CobiCabling Patchcord kat. 6A S/FTP LSOH 1m czerwony | C18: Cobi Cu kable krosowe | D18: 1097 | E18: szt | F18: 4.329545455 | G18: PLN
A19: C14-5020-3,0 | B19: CobiCabling Patchcord kat. 5e U/UTP PVC 3m zielony | C19: Cobi Cu kable krosowe | D19: 959 | E19: szt | F19: 4.852272727 | G19: PLN
A20: C14-1140-5,0 | B20: CobiCabling Patchcord kat. 6A U/UTP LSOH 5m czerwony | C20: Cobi Cu kable krosowe | D20: 490 | E20: szt | F20: 9.193181818 | G20: PLN
A21: C24-1130-1,5 | B21: CobiCabling Patchcord kat. 6A S/FTP LSOH 1,5m niebieski | C21: Cobi Cu kable krosowe | D21: 863 | E21: szt | F21: 5.170454545 | G21: PLN

Sheet WYPRZEDAŻ
A1: Numer katalogowy | B1: Opis | C1: Grupa produktowa | D1: Stan | E1: Jednostka | F1: Cena wyprzedaży | G1: Waluta
A2: Komponenty światłowodowe - Pigtaile i patchcordy | I2: Warunki wyprzedaży:
A3: F26-2130-2 | B3: Patchcord SC-LC, 62,5/125 µm duplex, wielomodowy | C3: Cobi FO pigtaile i patchcordy | D3: =IFERROR(VLOOKUP(A3,'wyprzedaż-plik'!A:E,4,FALSE),"Brak towaru") -> 1 | E3: szt. | F3: 2.996666667 | G3: PLN | I3: 1. Cena wyprzedażowa to cena ostateczna nie podlegająca dalszym rabatom
A4: F26-2110-2 | B4: Patchcord SC-SC, 62,5/125 µm duplex, wielomodowy | C4: Cobi FO pigtaile i patchcordy | D4: =IFERROR(VLOOKUP(A4,'wyprzedaż-plik'!A:E,4,FALSE),"Brak towaru") -> 20 | E4: szt. | F4: 2.996166667 | G4: PLN | I4: 2. Produkty z listy wyprzedażowej są dostępne wyłącznie do wyczerpania stanów magazynowych.
A5: F26-1110-2 | B5: Patchcord SC-SC, 62,5/125 µm simplex, wielomodowy | C5: Cobi FO pigtaile i patchcordy | D5: =IFERROR(VLOOKUP(A5,'wyprzedaż-plik'!A:E,4,FALSE),"Brak towaru") -> 12 | E5: szt. | F5: 3.313333333 | G5: PLN | I5: 3. Po wyczerpaniu zapasów zamawianie tych produktów po cenach promocyjnych nie będzie możliwe.
A6: F21-2770-2 | B6: Patchcord ST-ST, 9/125 µm duplex, jednomodowy | C6: Cobi FO pigtaile i patchcordy | D6: =IFERROR(VLOOKUP(A6,'wyprzedaż-plik'!A:E,4,FALSE),"Brak towaru") -> 19 | E6: szt. | F6: 6.894035088 | G6: PLN | I6: 4. Część produktów po wyprzedaniu zniknie na stałe z naszej oferty, a część będzie nadal dostępna, ale w innych cenach i często nie bezpośrednio z magazynu tylko pod zamówienie).
A7: F21-2150-2 | B7: Patchcord SC/PC-ST/PC SM OS2 dx LSOH 2m | C7: Cobi FO pigtaile i patchcordy | D7: =IFERROR(VLOOKUP(A7,'wyprzedaż-plik'!A:E,4,FALSE),"Brak towaru") -> 9 | E7: szt. | F7: 6.755555556 | G7: PLN
A8: F21-1440-0,5 | B8: Patchcord LC/APC-LC/APC, 9/125 µm simplex, SM 0,5 | C8: Cobi FO pigtaile i patchcordy | D8: =IFERROR(VLOOKUP(A8,'wyprzedaż-plik'!A:E,4,FALSE),"Brak towaru") -> 1 | E8: szt. | F8: 5.3 | G8: PLN
A9: F13-0900-2 | B9: Pigtail MTRJ (wtyk męski) 50/125 µm, 2,0m, OM3 | C9: Cobi FO pigtaile i patchcordy | D9: =IFERROR(VLOOKUP(A9,'wyprzedaż-plik'!A:E,4,FALSE),"Brak towaru") -> 2 | E9: szt. | F9: 1.5 | G9: PLN
A10: F12-0100-2 | B10: Pigtail CobiCabling SC/PS wielomodowy OM2 LSOH easy strip 2m | C10: Cobi FO pigtaile i patchcordy | D10: =IFERROR(VLOOKUP(A10,'wyprzedaż-plik'!A:E,4,FALSE),"Brak towaru") -> 105 | E10: szt. | F10: 1.236226852 | G10: PLN
A11: F11-0700-2 | B11: Pigtail ST/PC jednomodowy OS2 LSOH easy strip 2m | C11: Cobi FO pigtaile i patchcordy | D11: =IFERROR(VLOOKUP(A11,'wyprzedaż-plik'!A:E,4,FALSE),"Brak towaru") -> 144 | E11: szt. | F11: 1.236226852 | G11: PLN
A12: F12-0300-2 | B12: Pigtail LC/PC wielomodowy OM2 LSOH 2m | C12: Cobi FO pigtaile i patchcordy | D12: =IFERROR(VLOOKUP(A12,'wyprzedaż-plik'!A:E,4,FALSE),"Brak towaru") -> 4 | E12: szt. | F12: 1.236226852 | G12: PLN
A13: F24-2130-2 | B13: Patchcord SC-LC, 50/125 µm duplex, MM, 2,0m OM4 | C13: Cobi FO pigtaile i patchcordy | D13: =IFERROR(VLOOKUP(A13,'wyprzedaż-plik'!A:E,4,FALSE),"Brak towaru") -> 71 | E13: szt. | F13: 9.823723724 | G13: PLN
A14: F21-2130-2 | B14: Patchcord SC/PC-LC/PC dx SM OS2 LSOH 2m | C14: Cobi FO pigtaile i patchcordy | D14: =IFERROR(VLOOKUP(A14,'wyprzedaż-plik'!A:E,4,FALSE),"Brak towaru") -> 70 | E14: szt. | F14: 16.17 | G14: PLN
A15: F21-2110-2 | B15: Patchcord SC/PC-SC/PC SM OS2 dx LSOH 2m | C15: Cobi FO pigtaile i patchcordy | D15: =IFERROR(VLOOKUP(A15,'wyprzedaż-plik'!A:E,4,FALSE),"Brak towaru") -> 152 | E15: szt. | F15: 15.18 | G15: PLN
A16: F21-2330-0,5 | B16: Patchcord LC/PC-LC/PC dx SM OS2 LSOH 0,5m | C16: Cobi FO pigtaile i patchcordy | D16: =IFERROR(VLOOKUP(A16,'wyprzedaż-plik'!A:E,4,FALSE),"Brak towaru") -> 97 | E16: szt. | F16: 10.73 | G16: PLN
A17: F24-2110-3 | B17: Patchcord SC/PC-SC/PC MM OM4 dx LSOH 3m | C17: Cobi FO pigtaile i patchcordy | D17: =IFERROR(VLOOKUP(A17,'wyprzedaż-plik'!A:E,4,FALSE),"Brak towaru") -> 126 | E17: szt. | F17: 10.31196581 | G17: PLN
A18: F24-2110-1 | B18: Patchcord SC/PC-SC/PC MM OM4 dx LSOH 1m | C18: Cobi FO pigtaile i patchcordy | D18: =IFERROR(VLOOKUP(A18,'wyprzedaż-plik'!A:E,4,FALSE),"Brak towaru") -> 160 | E18: szt. | F18: 8.632679739 | G18: PLN
A19: F23-2110-3 | B19: Patchcord SC/PC-SC/PC MM OM3 dx LSOH 3m | C19: Cobi FO pigtaile i patchcordy | D19: =IFERROR(VLOOKUP(A19,'wyprzedaż-plik'!A:E,4,FALSE),"Brak towaru") -> 182 | E19: szt. | F19: 8.922222222 | G19: PLN
A20: F23-2110-2 | B20: Patchcord SC/PC-SC/PC MM OM3 dx LSOH 2m | C20: Cobi FO pigtaile i patchcordy | D20: =IFERROR(VLOOKUP(A20,'wyprzedaż-plik'!A:E,4,FALSE),"Brak towaru") -> 228 | E20: szt. | F20: 8.244444444 | G20: PLN
A21: F22-2770-3 | B21: Patchcord ST-ST, 50/125 µm duplex, wielomodowy | C21: Cobi FO pigtaile i patchcordy | D21: =IFERROR(VLOOKUP(A21,'wyprzedaż-plik'!A:E,4,FALSE),"Brak towaru") -> 10 | E21: szt. | F21: 6.234666667 | G21: PLN
A22: F22-2330-2 | B22: Patchcord LC-LC, 50/125 µm duplex, wielomodowy | C22: Cobi FO pigtaile i patchcordy | D22: =IFERROR(VLOOKUP(A22,'wyprzedaż-plik'!A:E,4,FALSE),"Brak towaru") -> 115 | E22: szt. | F22: 6.718373984 | G22: PLN
A23: F22-2130-2 | B23: Patchcord SC-LC, 50/125 µm duplex, wielomodowy | C23: Cobi FO pigtaile i patchcordy | D23: =IFERROR(VLOOKUP(A23,'wyprzedaż-plik'!A:E,4,FALSE),"Brak towaru") -> 36 | E23: szt. | F23: 6.81 | G23: PLN
A24: F22-2110-3 | B24: Patchcord SC/PC-SC/PC MM OM2 dx LSOH 3m | C24: Cobi FO pigtaile i patchcordy | D24: =IFERROR(VLOOKUP(A24,'wyprzedaż-plik'!A:E,4,FALSE),"Brak towaru") -> 95 | E24: szt. | F24: 8.155263158 | G24: PLN
A25: F22-2110-2 | B25: Patchcord SC-SC, 50/125 µm duplex, wielomodowy | C25: Cobi FO pigtaile i patchcordy | D25: =IFERROR(VLOOKUP(A25,'wyprzedaż-plik'!A:E,4,FALSE),"Brak towaru") -> 157 | E25: szt. | F25: 6.651210191 | G25: PLN
A26: F22-2110-1 | B26: Patchcord SC/PC-SC/PC MM OM2 dx LSOH 1m | C26: Cobi FO pigtaile i patchcordy | D26: =IFERROR(VLOOKUP(A26,'wyprzedaż-plik'!A:E,4,FALSE),"Brak towaru") -> 54 | E26: szt. | F26: 7.67 | G26: PLN
A27: F23-2110-1 | B27: Patchcord SC/PC-SC/PC MM OM3 dx LSOH 1m | C27: Cobi FO pigtaile i patchcordy | D27: =IFERROR(VLOOKUP(A27,'wyprzedaż-plik'!A:E,4,FALSE),"Brak towaru") -> 208 | E27: szt. | F27: 7.666666667 | G27: PLN
A28: F24-2110-2 | B28: Patchcord SC-SC, 50/125 µm duplex, MM, 2,0m, OM4 | C28: Cobi FO pigtaile i patchcordy | D28: =IFERROR(VLOOKUP(A28,'wyprzedaż-plik'!A:E,4,FALSE),"Brak towaru") -> 186 | E28: szt. | F28: 9.113888889 | G28: PLN
A29: F13-0100-1 | B29: Pigtail SC/PC wielomodowy OM3 LSOH 1m | C29: Cobi FO pigtaile i patchcordy | D29: =IFERROR(VLOOKUP(A29,'wyprzedaż-plik'!A:E,4,FALSE),"Brak towaru") -> 6810 | E29: szt. | F29: 1.797469887 | G29: PLN
A30: F23-2130-3 | B30: Patchcord SC/PC-LC/PC MM OM3 dx LSOH 3m | C30: Cobi FO pigtaile i patchcordy | D30: =IFERROR(VLOOKUP(A30,'wyprzedaż-plik'!A:E,4,FALSE),"Brak towaru") -> 124 | E30: szt. | F30: 10.44444444 | G30: PLN
A31: F12-0100-1 | B31: Pigtail SC/PC wielomodowy OM2 LSOH 1m | C31: Cobi FO pigtaile i patchcordy | D31: =IFERROR(VLOOKUP(A31,'wyprzedaż-plik'!A:E,4,FALSE),"Brak towaru") -> 6076 | E31: szt. | F31: 1.427191318 | G31: PLN
A32: F14-0100-1 | B32: Pigtail SC/PC wielomodowy OM4 LSOH 1m | C32: Cobi FO pigtaile i patchcordy | D32: =IFERROR(VLOOKUP(A32,'wyprzedaż-plik'!A:E,4,FALSE),"Brak towaru") -> 3965 | E32: szt. | F32: 1.827707708 | G32: PLN
A33: F24-2130-3 | B33: Patchcord SC/PC-LC/PC MM OM4 dx LSOH 3m | C33: Cobi FO pigtaile i patchcordy | D33: =IFERROR(VLOOKUP(A33,'wyprzedaż-plik'!A:E,4,FALSE),"Brak towaru") -> 74 | E33: szt. | F33: 10.40946502 | G33: PLN
A34: F12-0300-1 | B34: Pigtail LC/PC wielomodowy OM2 LSOH 1m | C34: Cobi FO pigtaile i patchcordy | D34: =IFERROR(VLOOKUP(A34,'wyprzedaż-plik'!A:E,4,FALSE),"Brak towaru") -> 4338 | E34: szt. | F34: 1.431384615 | G34: PLN
A35: F13-0300-1 | B35: Pigtail LC/PC wielomodowy OM3 LSOH 1m | C35: Cobi FO pigtaile i patchcordy | D35: =IFERROR(VLOOKUP(A35,'wyprzedaż-plik'!A:E,4,FALSE),"Brak towaru") -> 1766 | E35: szt. | F35: 1.82217548 | G35: PLN
A36: F24-2130-1 | B36: Patchcord SC/PC-LC/PC MM OM4 dx LSOH 1m | C36: Cobi FO pigtaile i patchcordy | D36: =IFERROR(VLOOKUP(A36,'wyprzedaż-plik'!A:E,4,FALSE),"Brak towaru") -> 81 | E36: szt. | F36: 8.593894994 | G36: PLN
A37: F22-2330-1 | B37: Patchcord LC/PC-LC/PC dx MM OM2 LSOH 1m | C37: Cobi FO pigtaile i patchcordy | D37: =IFERROR(VLOOKUP(A37,'wyprzedaż-plik'!A:E,4,FALSE),"Brak towaru") -> 74 | E37: szt. | F37: 7.76902439 | G37: PLN
A38: F21-2340-1 | B38: Patchcord LC/PC-LC/APC dx SM OS2 LSOH 1m | C38: Cobi FO pigtaile i patchcordy | D38: =IFERROR(VLOOKUP(A38,'wyprzedaż-plik'!A:E,4,FALSE),"Brak towaru") -> 69 | E38: szt. | F38: 11.55 | G38: PLN
A39: F21-2340-2 | B39: Patchcord LC/PC-LC/APC dx SM OS2 LSOH 2m | C39: Cobi FO pigtaile i patchcordy | D39: =IFERROR(VLOOKUP(A39,'wyprzedaż-plik'!A:E,4,FALSE),"Brak towaru") -> 56 | E39: szt. | F39: 12.44 | G39: PLN
A40: F21-2340-3 | B40: Patchcord LC/PC-LC/APC dx SM OS2 LSOH 3m | C40: Cobi FO pigtaile i patchcordy | D40: =IFERROR(VLOOKUP(A40,'wyprzedaż-plik'!A:E,4,FALSE),"Brak towaru") -> 50 | E40: szt. | F40: 13.33 | G40: PLN
A41: F12-0100-2 | B41: Pigtail CobiCabling SC/PS wielomodowy OM2 LSOH easy strip 2m | C41: Cobi FO pigtaile i patchcordy | D41: =IFERROR(VLOOKUP(A41,'wyprzedaż-plik'!A:E,4,FALSE),"Brak towaru") -> 105 | E41: szt. | F41: 1.236226852 | G41: PLN
A42: F21-2120-2 | B42: Patchcord SC/PC-SC/APC SM OS2 dx LSOH 2m | C42: Cobi FO pigtaile i patchcordy | D42: =IFERROR(VLOOKUP(A42,'wyprzedaż-plik'!A:E,4,FALSE),"Brak towaru") -> 48 | E42: szt. | F42: 16.17 | G42: PLN
A43: F21-2230-2 | B43: Patchcord SC/APC-LC/PC SM OS2 dx LSOH 2m | C43: Cobi FO pigtaile i patchcordy | D43: =IFERROR(VLOOKUP(A43,'wyprzedaż-plik'!A:E,4,FALSE),"Brak towaru") -> 58 | E43: szt. | F43: 16.335 | G43: PLN
A44: F23-2330-2 | B44: Patchcord LC/PC-LC/PC dx MM OM3 LSOH 2m | C44: Cobi FO pigtaile i patchcordy | D44: =IFERROR(VLOOKUP(A44,'wyprzedaż-plik'!A:E,4,FALSE),"Brak towaru") -> 48 | E44: szt. | F44: 15.923 | G44: PLN
A45: F24-2330-5 | B45: Patchcord LC/PC-LC/PC dx MM OM4 LSOH 5m | C45: Cobi FO pigtaile i patchcordy | D45: =IFERROR(VLOOKUP(A45,'wyprzedaż-plik'!A:E,4,FALSE),"Brak towaru") -> 15 | E45: szt. | F45: 28.38 | G45: PLN
A46: F21-2220-2 | B46: Patchcord SC/APC -SC/APC SM OS2 dx LSOH 2m | C46: Cobi FO pigtaile i patchcordy | D46: =IFERROR(VLOOKUP(A46,'wyprzedaż-plik'!A:E,4,FALSE),"Brak towaru") -> 159 | E46: szt. | F46: 16.7 | G46: PLN
A47: Komponenty światłowodowe - osprzęt światłowodowy
A48: 5065 210/FL | B48: Adapter - coupler SC simplex, jednomodowy, bezkołn | C48: Cobi FO osprzęt | D48: =IFERROR(VLOOKUP(A48,'wyprzedaż-plik'!A:E,4,FALSE),"Brak towaru") -> 13 | E48: szt. | F48: 1.193877551 | G48: PLN
A49: F61-0022 | B49: Adapter keystone złącze światłowodowe ST czarny | C49: Cobi FO osprzęt | D49: =IFERROR(VLOOKUP(A49,'wyprzedaż-plik'!A:E,4,FALSE),"Brak towaru") -> 481 | E49: szt. | F49: 0.1224489796 | G49: PLN
A50: F32-2300 | B50: Adapter LC/PC duplex wielomodowy OM2 | C50: Cobi FO osprzęt | D50: =IFERROR(VLOOKUP(A50,'wyprzedaż-plik'!A:E,4,FALSE),"Brak towaru") -> 1344 | E50: szt. | F50: 2.598664466 | G50: PLN
A51: F32-2100 | B51: Adapter SC/PC duplex wielomodowy OM2 | C51: Cobi FO osprzęt | D51: =IFERROR(VLOOKUP(A51,'wyprzedaż-plik'!A:E,4,FALSE),"Brak towaru") -> 2394 | E51: szt. | F51: 1.206512341 | G51: PLN
A52: F34-2100 | B52: Adapter SC/PC duplex wielomodowy OM4 | C52: Cobi FO osprzęt | D52: =IFERROR(VLOOKUP(A52,'wyprzedaż-plik'!A:E,4,FALSE),"Brak towaru") -> 1499 | E52: szt. | F52: 1.273754115 | G52: PLN
A53: F32-1100 | B53: Adapter SC/PC simplex wielomodowy OM2 | C53: Cobi FO osprzęt | D53: =IFERROR(VLOOKUP(A53,'wyprzedaż-plik'!A:E,4,FALSE),"Brak towaru") -> 1957 | E53: szt. | F53: 0.4282405876 | G53: PLN
A54: F33-1100 | B54: Adapter SC/PC simplex wielomodowy OM3 | C54: Cobi FO osprzęt | D54: =IFERROR(VLOOKUP(A54,'wyprzedaż-plik'!A:E,4,FALSE),"Brak towaru") -> 1771 | E54: szt. | F54: 0.548661789 | G54: PLN
A55: F34-1100 | B55: Adapter SC/PC simplex wielomodowy OM4 | C55: Cobi FO osprzęt | D55: =IFERROR(VLOOKUP(A55,'wyprzedaż-plik'!A:E,4,FALSE),"Brak towaru") -> 2458 | E55: szt. | F55: 0.5030568744 | G55: PLN
A56: 5065 211/BF | B56: Adapter SC/PC sx wielomodowy, bezflangowy | C56: Cobi FO osprzęt | D56: =IFERROR(VLOOKUP(A56,'wyprzedaż-plik'!A:E,4,FALSE),"Brak towaru") -> 107 | E56: szt. | F56: 1.326530612 | G56: PLN
A57: 5065 210/APC/BF | B57: FO Adapter SM SC/APC simplex bezflangowy | C57: Cobi FO osprzęt | D57: =IFERROR(VLOOKUP(A57,'wyprzedaż-plik'!A:E,4,FALSE),"Brak towaru") -> 2 | E57: szt. | F57: 1.530612245 | G57: PLN
A58: F61-0003 | B58: 12/24 Core Fiber Splice Tray | C58: Cobi FO osprzęt | D58: =IFERROR(VLOOKUP(A58,'wyprzedaż-plik'!A:E,4,FALSE),"Brak towaru") -> 11 | E58: szt. | F58: 6.153061224 | G58: PLN
A59: 5061 022/24/C | B59: PŁYTA CZOŁOWA 1U 24XSC SIMPLEX | C59: Cobi FO osprzęt | D59: =IFERROR(VLOOKUP(A59,'wyprzedaż-plik'!A:E,4,FALSE),"Brak towaru") -> 1 | E59: szt. | F59: 14.28571429 | G59: PLN
A60: 5061 031/12/P | B60: Płyta czołowa PREMIUM 12xST/FC 1U | C60: Cobi FO osprzęt | D60: =IFERROR(VLOOKUP(A60,'wyprzedaż-plik'!A:E,4,FALSE),"Brak towaru") -> 37 | E60: szt. | F60: 15.20408163 | G60: PLN
A61: F62-0015 | B61: Pole krosowe 8xSC duplex/LC/quad | C61: Cobi FO osprzęt | D61: =IFERROR(VLOOKUP(A61,'wyprzedaż-plik'!A:E,4,FALSE),"Brak towaru") -> 1 | E61: szt. | F61: 20.40816327 | G61: PLN
A62: F62-0032 | B62: Pole krosowe do boxu światłowodowego D 48xSC sx | C62: Cobi FO osprzęt | D62: =IFERROR(VLOOKUP(A62,'wyprzedaż-plik'!A:E,4,FALSE),"Brak towaru") -> 1 | E62: szt. | F62: 20.40816327 | G62: PLN
A63: F62-0042 | B63: Pole krosowe do OKS4 na 4xST/FC/DIN | C63: Cobi FO osprzęt | D63: =IFERROR(VLOOKUP(A63,'wyprzedaż-plik'!A:E,4,FALSE),"Brak towaru") -> 1 | E63: szt. | F63: 12.08163265 | G63: PLN
A64: F62-0048 | B64: Przełącznica światłowodowa OKS48 (24xSC dx) | C64: Cobi FO osprzęt | D64: =IFERROR(VLOOKUP(A64,'wyprzedaż-plik'!A:E,4,FALSE),"Brak towaru") -> 4 | E64: szt. | F64: 224.7346939 | G64: PLN
A65: F62-0047 | B65: Przełącznica światłowodowa OKS48 24xSC dx/LC quad | C65: Cobi FO osprzęt | D65: =IFERROR(VLOOKUP(A65,'wyprzedaż-plik'!A:E,4,FALSE),"Brak towaru") -> 1 | E65: szt. | F65: 162.9387755 | G65: PLN
A66: F62-0004 | B66: Puszka abonencka FTTH 4C bez adapterów (4xSC sx) | C66: Cobi FO osprzęt | D66: =IFERROR(VLOOKUP(A66,'wyprzedaż-plik'!A:E,4,FALSE),"Brak towaru") -> 381 | E66: szt. | F66: 7.744897959 | G66: PLN
A67: F61-0012 | B67: Zaślepka otworu ST | C67: Cobi FO osprzęt | D67: =IFERROR(VLOOKUP(A67,'wyprzedaż-plik'!A:E,4,FALSE),"Brak towaru") -> 4773 | E67: szt. | F67: 0.05102040816 | G67: PLN
A68: Kable światłowodowe
A69: F54-5500 | B69: Kabel światłowodowy MM OM4 12G uniwersalny B2ca | C69: Cobi FO kable | D69: =IFERROR(VLOOKUP(A69,'wyprzedaż-plik'!A:E,4,FALSE),"Brak towaru") -> 3889 | E69: m | F69: 8.093226983 | G69: PLN
A70: F54-2500 | B70: Kabel światłowodowy MM OM4 12G uniwersalny Dca | C70: Cobi FO kable | D70: =IFERROR(VLOOKUP(A70,'wyprzedaż-plik'!A:E,4,FALSE),"Brak towaru") -> 4429 | E70: m | F70: 7.877385248 | G70: PLN
A71: F53-5200 | B71: Kabel światłowodowy MM OM3 4G uniwersalny B2ca | C71: Cobi FO kable | D71: =IFERROR(VLOOKUP(A71,'wyprzedaż-plik'!A:E,4,FALSE),"Brak towaru") -> 7273 | E71: m | F71: 2.197099448 | G71: PLN
A72: F51-1600 | B72: Kabel światłowodowy SM OS2 24J uniwersalny Fca | C72: Cobi FO kable | D72: =IFERROR(VLOOKUP(A72,'wyprzedaż-plik'!A:E,4,FALSE),"Brak towaru") -> 205 | E72: m | F72: 1.734693878 | G72: PLN
A73: Tecnosteel
A74: F8751 | B74: Zestaw do mocowania szafek IP na słupie | C74: TECNOSTEEL | D74: =IFERROR(VLOOKUP(A74,'wyprzedaż-plik'!A:E,4,FALSE),"Brak towaru") -> 3 | E74: szt. | F74: 174.6632653 | G74: PLN
A75: F9100 | B75: Półka stała 2U 19" gł. 470 mm, moc. 4 belki szara | C75: TECNOSTEEL | D75: =IFERROR(VLOOKUP(A75,'wyprzedaż-plik'!A:E,4,FALSE),"Brak towaru") -> 1 | E75: szt. | F75: 55.20408163 | G75: PLN
A76: 2LAN
A77: 2A45-1PK | B77: Adapter 45x45 kątowy 1-port z możliwością kodów | C77: 2LAN | D77: =IFERROR(VLOOKUP(A77,'wyprzedaż-plik'!A:E,4,FALSE),"Brak towaru") -> 373 | E77: szt. | F77: 1.418367347 | G77: PLN
A78: 2A45-2PK | B78: Adapter 45x45 kątowy 2-port z możliwością kodów | C78: 2LAN | D78: =IFERROR(VLOOKUP(A78,'wyprzedaż-plik'!A:E,4,FALSE),"Brak towaru") -> 6152 | E78: szt. | F78: 1.642857143 | G78: PLN
A79: 2MP45-6AN | B79: Moduł teleinformatyczny połączeniowy RJ45, łącznik | C79: 2LAN | D79: =IFERROR(VLOOKUP(A79,'wyprzedaż-plik'!A:E,4,FALSE),"Brak towaru") -> 10 | E79: szt. | F79: 3.92755102 | G79: PLN
A80: 2MPLSA-6AE | B80: Moduł teleinformatyczny połączeniowy LSA, łącznik | C80: 2LAN | D80: =IFERROR(VLOOKUP(A80,'wyprzedaż-plik'!A:E,4,FALSE),"Brak towaru") -> 26 | E80: szt. | F80: 8.040816327 | G80: PLN
A81: 2PK-24 | B81: 2LAN Panel krosowy teleinformatyczny 1U 24 portowy | C81: 2LAN | D81: =IFERROR(VLOOKUP(A81,'wyprzedaż-plik'!A:E,4,FALSE),"Brak towaru") -> 1 | E81: szt. | F81: 26.07142857 | G81: PLN
A82: 2PK3-25 | B82: Panel krosowy telefoniczny 1U kat. 3 25-port | C82: 2LAN | D82: =IFERROR(VLOOKUP(A82,'wyprzedaż-plik'!A:E,4,FALSE),"Brak towaru") -> 34 | E82: szt. | F82: 46.52040816 | G82: PLN
A83: 2PK6-24N | B83: 2LAN Panel krosowy teleinformatyczny 1U kat.6 24-p | C83: 2LAN | D83: =IFERROR(VLOOKUP(A83,'wyprzedaż-plik'!A:E,4,FALSE),"Brak towaru") -> 41 | E83: szt. | F83: 56.32653061 | G83: PLN
A84: EXCEL
A85: 100-010 | B85: EXCEL CAT5E UNSCREENED KEYSTONE JACK 90deg-WHITE | C85: EXCEL | D85: =IFERROR(VLOOKUP(A85,'wyprzedaż-plik'!A:E,4,FALSE),"Brak towaru") -> 250 | E85: szt. | F85: 4.112244898 | G85: PLN
A86: 100-011 | B86: EXCEL CAT6 UNSCREENED KEYSTONE JACK 90deg-WHITE | C86: EXCEL | D86: =IFERROR(VLOOKUP(A86,'wyprzedaż-plik'!A:E,4,FALSE),"Brak towaru") -> 14 | E86: szt. | F86: 5.275510204 | G86: PLN
A87: 100-031 | B87: EXCEL 1U 19" RACK MOUNT 5RING CHROME CABLE MGT BAR | C87: EXCEL | D87: =IFERROR(VLOOKUP(A87,'wyprzedaż-plik'!A:E,4,FALSE),"Brak towaru") -> 19 | E87: szt. | F87: 48.16326531 | G87: PLN
A88: 100-090 | B88: EXCEL C5E 4PR UTP EXT BLACK BOX 305M Fca | C88: EXCEL | D88: =IFERROR(VLOOKUP(A88,'wyprzedaż-plik'!A:E,4,FALSE),"Brak towaru") -> 1 | E88: szt. | F88: 298.7755102 | G88: PLN
A89: 100-110 | B89: EXL CAT6 FTP IDC JUNCTION BOX | C89: EXCEL | D89: =IFERROR(VLOOKUP(A89,'wyprzedaż-plik'!A:E,4,FALSE),"Brak towaru") -> 2 | E89: szt. | F89: 9.37755102 | G89: PLN
A90: 100-134/1 | B90: EXCEL CAT6a SOLID CORE RJ-45 PLUG (1 sztuka) | C90: EXCEL | D90: =IFERROR(VLOOKUP(A90,'wyprzedaż-plik'!A:E,4,FALSE),"Brak towaru") -> 35 | E90: szt. | F90: 8.346938776 | G90: PLN
A91: 100-140 | B91: Excel Cat6a FTP t'less field installable RJ45 plug | C91: EXCEL | D91: =IFERROR(VLOOKUP(A91,'wyprzedaż-plik'!A:E,4,FALSE),"Brak towaru") -> 10 | E91: szt. | F91: 11.05102041 | G91: PLN
A92: 100-148 | B92: EXCEL CAT6A 1M FFTP LSOH PATCH LEAD GREY | C92: EXCEL | D92: =IFERROR(VLOOKUP(A92,'wyprzedaż-plik'!A:E,4,FALSE),"Brak towaru") -> 50 | E92: szt. | F92: 7.142857143 | G92: PLN
A93: 100-156-BK | B93: EXCEL CAT6a UNSCREENED IDC STYLE KEYSTONE JACK-BLK | C93: EXCEL | D93: =IFERROR(VLOOKUP(A93,'wyprzedaż-plik'!A:E,4,FALSE),"Brak towaru") -> 30 | E93: szt. | F93: 6.887755102 | G93: PLN
A94: 100-159 | B94: EXCEL CAT6A 1M FFTP LSOH PATCH LEAD BLUE | C94: EXCEL | D94: =IFERROR(VLOOKUP(A94,'wyprzedaż-plik'!A:E,4,FALSE),"Brak towaru") -> 1 | E94: szt. | F94: 5.867346939 | G94: PLN
A95: 100-182-BK | B95: EXCEL CAT6a LOW PROFILE UN-SCRD K/S JACK T/LESS-BK | C95: EXCEL | D95: =IFERROR(VLOOKUP(A95,'wyprzedaż-plik'!A:E,4,FALSE),"Brak towaru") -> 10 | E95: szt. | F95: 8.367346939 | G95: PLN
A96: 100-212 | B96: EXCEL CAT6 UNSCREENED TOOLLESS JACK 180deg-BLACK | C96: EXCEL | D96: =IFERROR(VLOOKUP(A96,'wyprzedaż-plik'!A:E,4,FALSE),"Brak towaru") -> 1 | E96: szt. | F96: 3.397959184 | G96: PLN
A97: 100-213 | B97: EXCEL CAT6 ANGLED UNSCR TOOLLESS JACK 180deg-BLACK | C97: EXCEL | D97: =IFERROR(VLOOKUP(A97,'wyprzedaż-plik'!A:E,4,FALSE),"Brak towaru") -> 238 | E97: szt. | F97: 7.433887841 | G97: PLN
A98: 100-215-BK | B98: EXCEL CAT6 LOW PROFILE UNSCREEN TOOLLESS JACK-BLK | C98: EXCEL | D98: =IFERROR(VLOOKUP(A98,'wyprzedaż-plik'!A:E,4,FALSE),"Brak towaru") -> 1 | E98: szt. | F98: 6.816326531 | G98: PLN
A99: 100-230 | B99: Excel ExpressNet Panel - 4 Module - Empty | C99: EXCEL | D99: =IFERROR(VLOOKUP(A99,'wyprzedaż-plik'!A:E,4,FALSE),"Brak towaru") -> 2 | E99: szt. | F99: 79.42857143 | G99: PLN
A100: 100-289 | B100: EXCEL FLAT 45x45mm SHUTTER 1-PORT | C100: EXCEL | D100: =IFERROR(VLOOKUP(A100,'wyprzedaż-plik'!A:E,4,FALSE),"Brak towaru") -> 34 | E100: szt. | F100: 4.475990396 | G100: PLN
A101: 100-297 | B101: EXCEL CAT6 UNSCREENED MODULE-6C LOW PROFILE WHITE | C101: EXCEL | D101: =IFERROR(VLOOKUP(A101,'wyprzedaż-plik'!A:E,4,FALSE),"Brak towaru") -> 178 | E101: szt. | F101: 8.571428571 | G101: PLN
A102: 100-302 | B102: EXCEL CAT6 24 PORT 1U R/ANGLE PATCH PANEL BLACK | C102: EXCEL | D102: =IFERROR(VLOOKUP(A102,'wyprzedaż-plik'!A:E,4,FALSE),"Brak towaru") -> 2 | E102: szt. | F102: 146.8163265 | G102: PLN
A103: 100-314 | B103: EXCEL CAT6 5M UUTP LSOH PATCH LEAD GREY | C103: EXCEL | D103: =IFERROR(VLOOKUP(A103,'wyprzedaż-plik'!A:E,4,FALSE),"Brak towaru") -> 50 | E103: szt. | F103: 11.07142857 | G103: PLN
A104: 100-400 | B104: EXCEL CAT6 7M UUTP LSOH PATCH LEAD BLACK | C104: EXCEL | D104: =IFERROR(VLOOKUP(A104,'wyprzedaż-plik'!A:E,4,FALSE),"Brak towaru") -> 6 | E104: szt. | F104: 11.7414966 | G104: PLN
A105: 100-417 | B105: EXCEL CAT6 2M UUTP LSOH PATCH LEAD WHITE | C105: EXCEL | D105: =IFERROR(VLOOKUP(A105,'wyprzedaż-plik'!A:E,4,FALSE),"Brak towaru") -> 1 | E105: szt. | F105: 5.255102041 | G105: PLN
A106: 100-435 | B106: EXCEL CAT6 1M FUTP LSOH PATCH LEAD GREY | C106: EXCEL | D106: =IFERROR(VLOOKUP(A106,'wyprzedaż-plik'!A:E,4,FALSE),"Brak towaru") -> 162 | E106: szt. | F106: 7.670537828 | G106: PLN
A107: 100-438 | B107: EXCEL CAT6 1M FUTP LSOH PATCH LEAD RED | C107: EXCEL | D107: =IFERROR(VLOOKUP(A107,'wyprzedaż-plik'!A:E,4,FALSE),"Brak towaru") -> 30 | E107: szt. | F107: 8.656462585 | G107: PLN
A108: 100-456 | B108: EXCEL CAT6 0.5M FUTP LSOH PATCH LEAD GREY | C108: EXCEL | D108: =IFERROR(VLOOKUP(A108,'wyprzedaż-plik'!A:E,4,FALSE),"Brak towaru") -> 165 | E108: szt. | F108: 6.642857143 | G108: PLN
A109: 100-457 | B109: EXCEL CAT6 2M FUTP LSOH PATCH LEAD GREY | C109: EXCEL | D109: =IFERROR(VLOOKUP(A109,'wyprzedaż-plik'!A:E,4,FALSE),"Brak towaru") -> 18 | E109: szt. | F109: 12.44327222 | G109: PLN
A110: 100-464 | B110: EXCEL VOICE 50PORT RJ45 PATCH PANEL 1U 3PR -BLACK | C110: EXCEL | D110: =IFERROR(VLOOKUP(A110,'wyprzedaż-plik'!A:E,4,FALSE),"Brak towaru") -> 1 | E110: szt. | F110: 147.9489796 | G110: PLN
A111: 100-518-10 | B111: EXCEL CAT6 0.5M UTP LSOH MINI PATCH LEAD BLUE PK10 | C111: EXCEL | D111: =IFERROR(VLOOKUP(A111,'wyprzedaż-plik'!A:E,4,FALSE),"Brak towaru") -> 8 | E111: szt. | F111: 32.91836735 | G111: PLN
A112: 100-583 | B112: XL 1U Cable Mgmt Bar 4Metal Hoops 100mm deep Black | C112: EXCEL | D112: =IFERROR(VLOOKUP(A112,'wyprzedaż-plik'!A:E,4,FALSE),"Brak towaru") -> 1 | E112: szt. | F112: 18.68367347 | G112: PLN
A113: 200-043 | B113: ENBEAM OM3 P/LEAD LC-LC 50/125 DX AQ 1M | C113: EXCEL | D113: =IFERROR(VLOOKUP(A113,'wyprzedaż-plik'!A:E,4,FALSE),"Brak towaru") -> 1 | E113: szt. | F113: 16.94897959 | G113: PLN
A114: 200-364 | B114: EXCEL DUPLEX LC SINGLEMODE ADAPTOR | C114: EXCEL | D114: =IFERROR(VLOOKUP(A114,'wyprzedaż-plik'!A:E,4,FALSE),"Brak towaru") -> 72 | E114: szt. | F114: 9.153061224 | G114: PLN
A115: 200-398 | B115: EXCEL SPLICE PROTECTOR-CLEAR 61mm x 3mm | C115: EXCEL | D115: =IFERROR(VLOOKUP(A115,'wyprzedaż-plik'!A:E,4,FALSE),"Brak towaru") -> 24 | E115: szt. | F115: 2.908163265 | G115: PLN
A116: 200-404 | B116: EXCEL 12 WAY SC DUPLEX/LC QUAD FIBRE PANEL-EMPTY | C116: EXCEL | D116: =IFERROR(VLOOKUP(A116,'wyprzedaż-plik'!A:E,4,FALSE),"Brak towaru") -> 12 | E116: szt. | F116: 69.20408163 | G116: PLN
A117: 200-454 | B117: EXCEL OS2 2M SC PIGTAIL 9/125 TB 12 COLOUR PACK | C117: EXCEL | D117: =IFERROR(VLOOKUP(A117,'wyprzedaż-plik'!A:E,4,FALSE),"Brak towaru") -> 93 | E117: szt. | F117: 2.071428571 | G117: PLN
A118: 200-470 | B118: EXCEL 24 WAY SM F/PANEL-4 LC DX 8F BU | C118: EXCEL | D118: =IFERROR(VLOOKUP(A118,'wyprzedaż-plik'!A:E,4,FALSE),"Brak towaru") -> 5 | E118: szt. | F118: 145.3265306 | G118: PLN
A119: 200-555 | B119: EXL OM3 2M SC PIGTAIL 50/125 | C119: EXCEL | D119: =IFERROR(VLOOKUP(A119,'wyprzedaż-plik'!A:E,4,FALSE),"Brak towaru") -> 8 | E119: szt. | F119: 3.979591837 | G119: PLN
A120: 200-559 | B120: EXCEL OM2 2M LC PIGTAIL 50/125 | C120: EXCEL | D120: =IFERROR(VLOOKUP(A120,'wyprzedaż-plik'!A:E,4,FALSE),"Brak towaru") -> 16 | E120: szt. | F120: 4.897959184 | G120: PLN
A121: 200-561 | B121: EXCEL OS2 2M LC PIGTAIL MALE 9/125 | C121: EXCEL | D121: =IFERROR(VLOOKUP(A121,'wyprzedaż-plik'!A:E,4,FALSE),"Brak towaru") -> 21 | E121: szt. | F121: 5.755102041 | G121: PLN
A122: 200-586 | B122: EXCEL G657A 1M SCAPC PIGTAIL YELLOW EASY STRIP | C122: EXCEL | D122: =IFERROR(VLOOKUP(A122,'wyprzedaż-plik'!A:E,4,FALSE),"Brak towaru") -> 125 | E122: szt. | F122: 2.510204082 | G122: PLN
A123: 200-646 | B123: EXCEL OM4 1M SC PIGTAIL 50/125 SET OF 12 VIOLET | C123: EXCEL | D123: =IFERROR(VLOOKUP(A123,'wyprzedaż-plik'!A:E,4,FALSE),"Brak towaru") -> 2 | E123: szt. | F123: 64.07142857 | G123: PLN
A124: 200-647 | B124: EXCEL OM4 1M LC PIGTAIL 50/125 SET OF 12 VIOLET | C124: EXCEL | D124: =IFERROR(VLOOKUP(A124,'wyprzedaż-plik'!A:E,4,FALSE),"Brak towaru") -> 1 | E124: szt. | F124: 65.09183673 | G124: PLN
A125: 200-649 | B125: EXCEL OS2 1M SC PIGTAIL 9/125 SET OF 12 YELLOW | C125: EXCEL | D125: =IFERROR(VLOOKUP(A125,'wyprzedaż-plik'!A:E,4,FALSE),"Brak towaru") -> 4 | E125: szt. | F125: 52.92857143 | G125: PLN
A126: 200-680 | B126: ENBEAM OS2 P/LEAD LC-LC 9/125 DX YW 2M | C126: EXCEL | D126: =IFERROR(VLOOKUP(A126,'wyprzedaż-plik'!A:E,4,FALSE),"Brak towaru") -> 58 | E126: szt. | F126: 16.2755102 | G126: PLN
A127: 200-951 | B127: EXCEL 24 WAY SC DX/LCQD FIBRE PANEL-EMPTY | C127: EXCEL | D127: =IFERROR(VLOOKUP(A127,'wyprzedaż-plik'!A:E,4,FALSE),"Brak towaru") -> 20 | E127: szt. | F127: 90.76530612 | G127: PLN
A128: 200-952 | B128: EXCEL 24 WAY SC SX/LC DX FIBRE PANEL-EMPTY | C128: EXCEL | D128: =IFERROR(VLOOKUP(A128,'wyprzedaż-plik'!A:E,4,FALSE),"Brak towaru") -> 2 | E128: szt. | F128: 101.4897959 | G128: PLN
A129: 205-302 | B129: EXCEL OS2 12C 9/125 LOOSE TUBE BLACK Dca | C129: EXCEL | D129: =IFERROR(VLOOKUP(A129,'wyprzedaż-plik'!A:E,4,FALSE),"Brak towaru") -> 270 | E129: m | F129: 1.653061224 | G129: PLN
A130: 205-304 | B130: EXCEL OS2 24C 9/125 LOOSE TUBE BLACK Dca | C130: EXCEL | D130: =IFERROR(VLOOKUP(A130,'wyprzedaż-plik'!A:E,4,FALSE),"Brak towaru") -> 200 | E130: m | F130: 2.479591837 | G130: PLN
A131: 205-307 | B131: EXCEL OS2 12C 9/125 LOOSE TUBE CST BLUE Eca | C131: EXCEL | D131: =IFERROR(VLOOKUP(A131,'wyprzedaż-plik'!A:E,4,FALSE),"Brak towaru") -> 100 | E131: m | F131: 4.285714286 | G131: PLN
A132: 350-644 | B132: EXL 12WAY L/PROFILE CONSOLIDATION POINT U/L GRY WH | C132: EXCEL | D132: =IFERROR(VLOOKUP(A132,'wyprzedaż-plik'!A:E,4,FALSE),"Brak towaru") -> 22 | E132: szt. | F132: 98.87755102 | G132: PLN
A133: 450-665/1 | B133: EXCEL 2 GANG DRY LINING BOX | C133: EXCEL | D133: =IFERROR(VLOOKUP(A133,'wyprzedaż-plik'!A:E,4,FALSE),"Brak towaru") -> 8 | E133: szt. | F133: 8.423469388 | G133: PLN
A134: 540-302 | B134: EXCEL 2-WAY ROOF MOUNT FAN TRAY | C134: EXCEL | D134: =IFERROR(VLOOKUP(A134,'wyprzedaż-plik'!A:E,4,FALSE),"Brak towaru") -> 2 | E134: szt. | F134: 70.06122449 | G134: PLN
A135: 540-304-BK-SCHUKO | B135: EXCEL 4-WAY ROOF MOUNT FAN TRAY-BLACK | C135: EXCEL | D135: =IFERROR(VLOOKUP(A135,'wyprzedaż-plik'!A:E,4,FALSE),"Brak towaru") -> 6 | E135: szt. | F135: 120.8741497 | G135: PLN
A136: 540-823 | B136: 19" 1U UNI HORIZONTAL CABLE MANAGER CPI 30139-719 | C136: EXCEL | D136: =IFERROR(VLOOKUP(A136,'wyprzedaż-plik'!A:E,4,FALSE),"Brak towaru") -> 10 | E136: szt. | F136: 243.3367347 | G136: PLN
A137: 542-3388-GSBN-BK | B137: Excel CR 33U 8x8 Glass Steel B-Sides 0-VCM BK | C137: EXCEL | D137: =IFERROR(VLOOKUP(A137,'wyprzedaż-plik'!A:E,4,FALSE),"Brak towaru") -> 1 | E137: szt. | F137: 1586.969388 | G137: PLN
A138: 542-988-GE | B138: Excel Environ CR/ER Plinth 800W x 800D-Grey White | C138: EXCEL | D138: =IFERROR(VLOOKUP(A138,'wyprzedaż-plik'!A:E,4,FALSE),"Brak towaru") -> 2 | E138: szt. | F138: 270.94 | G138: PLN
A139: 555-083 | B139: EXCEL PDU 8 SCHUKO SOCKET UNSWITCHED 16AMP LED IND | C139: EXCEL | D139: =IFERROR(VLOOKUP(A139,'wyprzedaż-plik'!A:E,4,FALSE),"Brak towaru") -> 1 | E139: szt. | F139: 96.76530612 | G139: PLN
A140: 555-085 | B140: Listwa zasilająca 10 x 230V, montaż pionowy | C140: EXCEL | D140: =IFERROR(VLOOKUP(A140,'wyprzedaż-plik'!A:E,4,FALSE),"Brak towaru") -> 1 | E140: szt. | F140: 82.71428571 | G140: PLN
A141: BBS002MPLGE | B141: EXCEL C5E F/UTP BBS PATCH LEAD LSOH 2M GREY | C141: EXCEL | D141: =IFERROR(VLOOKUP(A141,'wyprzedaż-plik'!A:E,4,FALSE),"Brak towaru") -> 10 | E141: szt. | F141: 6.183673469 | G141: PLN
A142: D13-6H-EXL | B142: EXCEL 6-WAY POWER STRIP HORIZONTAL | C142: EXCEL | D142: =IFERROR(VLOOKUP(A142,'wyprzedaż-plik'!A:E,4,FALSE),"Brak towaru") -> 3 | E142: szt. | F142: 56.04761905 | G142: PLN
A143: WBFP18.5SG | B143: Excel Environ WR 18U 500mm Deep - Grey-Flat Pack | C143: EXCEL | D143: =IFERROR(VLOOKUP(A143,'wyprzedaż-plik'!A:E,4,FALSE),"Brak towaru") -> 4 | E143: szt. | F143: 401.8102041 | G143: PLN
A144: WBFP21.390SG | B144: Excel Environ WR 21U 390mm Deep - Grey-Flat Pack | C144: EXCEL | D144: =IFERROR(VLOOKUP(A144,'wyprzedaż-plik'!A:E,4,FALSE),"Brak towaru") -> 1 | E144: szt. | F144: 372.5102041 | G144: PLN
A145: WBFP21.5SG | B145: Excel Environ WR 21U 500mm Deep - Grey-Flat Pack | C145: EXCEL | D145: =IFERROR(VLOOKUP(A145,'wyprzedaż-plik'!A:E,4,FALSE),"Brak towaru") -> 2 | E145: szt. | F145: 560.7959184 | G145: PLN
A146: WBSFD15 | B146: STEEL FRONT DOOR FOR 15U W/BOX GREY | C146: EXCEL | D146: =IFERROR(VLOOKUP(A146,'wyprzedaż-plik'!A:E,4,FALSE),"Brak towaru") -> 5 | E146: szt. | F146: 57.55102041 | G146: PLN
A147: WBSFD9 | B147: STEEL FRONT DOOR FOR 9U W/BOX GREY. | C147: EXCEL | D147: =IFERROR(VLOOKUP(A147,'wyprzedaż-plik'!A:E,4,FALSE),"Brak towaru") -> 1 | E147: szt. | F147: 70.93877551 | G147: PLN
A148: Z-OM4-DX-LC-SC-30M-A | B148: OM4 DUPLEX PATCH LEAD LC/SC 30M AQUA | C148: EXCEL | D148: =IFERROR(VLOOKUP(A148,'wyprzedaż-plik'!A:E,4,FALSE),"Brak towaru") -> 6 | E148: szt. | F148: 205.5612245 | G148: PLN
A149: 100-066 | B149: EXCEL C5E 4PR UTP VIOLET X 305M Dca | C149: Cobi Cu kable | D149: =IFERROR(VLOOKUP(A149,'wyprzedaż-plik'!A:E,4,FALSE),"Brak towaru") -> 1 | E149: szt. | F149: 308.7755102 | G149: PLN
A150: 100-191 | B150: EXCEL CAT6a U/FTP S/FOIL CABLE RL500M-ICE BLUE | C150: Cobi Cu kable | D150: =IFERROR(VLOOKUP(A150,'wyprzedaż-plik'!A:E,4,FALSE),"Brak towaru") -> 4 | E150: szt. | F150: 914.4795918 | G150: PLN
A151: 200-150 | B151: EXCEL OM3 4C 50/125 LOOSE TUBE BLACK Dca | C151: Cobi FO kable | D151: =IFERROR(VLOOKUP(A151,'wyprzedaż-plik'!A:E,4,FALSE),"Brak towaru") -> 4000 | E151: m | F151: 2.418367347 | G151: PLN
A152: Szafy i szafki
A153: R00-0515 | B153: 15U 500mm gł. wisząca szara | C153: Cobi szafy | D153: =IFERROR(VLOOKUP(A153,'wyprzedaż-plik'!A:E,4,FALSE),"Brak towaru") -> 6 | E153: szt. | F153: 244.377551 | G153: PLN
A154: RC01-0412 | B154: Szafa wisząca 19" 12U 450mm, drzwi szkło, czarna | C154: Cobi szafy | D154: =IFERROR(VLOOKUP(A154,'wyprzedaż-plik'!A:E,4,FALSE),"Brak towaru") -> 3 | E154: szt. | F154: 232.4795918 | G154: PLN
A155: RC01-0415 | B155: Szafa wisząca 19" 15U 450mm, drzwi szkło, czarna | C155: Cobi szafy | D155: =IFERROR(VLOOKUP(A155,'wyprzedaż-plik'!A:E,4,FALSE),"Brak towaru") -> 14 | E155: szt. | F155: 260.3073229 | G155: PLN
A156: RC01-0418 | B156: Szafa wisząca 19" 18U 450mm, drzwi szkło, czarna | C156: Cobi szafy | D156: =IFERROR(VLOOKUP(A156,'wyprzedaż-plik'!A:E,4,FALSE),"Brak towaru") -> 9 | E156: szt. | F156: 261.9693878 | G156: PLN
A157: RCD11-6142 | B157: Szafa CobiCabling UNI 19" 42U 600 x 1000, drzwi pr | C157: Cobi szafy | D157: =IFERROR(VLOOKUP(A157,'wyprzedaż-plik'!A:E,4,FALSE),"Brak towaru") -> 3 | E157: szt. | F157: 2426.418367 | G157: PLN
A158: RCP02-0612 | B158: Szafa wisząca CobiCabling 19" 12U 600x600mm szara | C158: Cobi szafy | D158: =IFERROR(VLOOKUP(A158,'wyprzedaż-plik'!A:E,4,FALSE),"Brak towaru") -> 1 | E158: szt. | F158: 354.7653061 | G158: PLN
A159: A50-1100 | B159: Organizer poziomy kabli CobiNet 1U 19" RAL 7035 szary | C159: Cobi szafy | D159: =IFERROR(VLOOKUP(A159,'wyprzedaż-plik'!A:E,4,FALSE),"Brak towaru") -> 1030 | E159: szt. | F159: 16.21 | G159: PLN
A160: AC01-0229 | B160: Wentylator dla szafek wiszących, wtyczka EU | C160: Cobi szafy | D160: =IFERROR(VLOOKUP(A160,'wyprzedaż-plik'!A:E,4,FALSE),"Brak towaru") -> 41 | E160: szt. | F160: 30.11 | G160: PLN
A161: A51-1101 | B161: Organizer poziomy kabli 19" 1U czarny | C161: Cobi szafy | D161: =IFERROR(VLOOKUP(A161,'wyprzedaż-plik'!A:E,4,FALSE),"Brak towaru") -> 100 | E161: szt. | F161: 19.38 | G161: PLN
A162: Patchcordy miedziane
A163: 5030 513/3,0 | B163: Patchcord kat. 5e F/UTP LSOH 3m czerwony | C163: Cobi Cu kable krosowe | D163: =IFERROR(VLOOKUP(A163,'wyprzedaż-plik'!A:E,4,FALSE),"Brak towaru") -> 323 | E163: szt. | F163: 3.59 | G163: PLN
A164: 5030 663/1,5 | B164: Patchcord kat. 6 S/FTP LSOH 1,5m niebieski | C164: Cobi Cu kable krosowe | D164: =IFERROR(VLOOKUP(A164,'wyprzedaż-plik'!A:E,4,FALSE),"Brak towaru") -> 128 | E164: szt. | F164: 5.95 | G164: PLN
A165: 5030 001/20,0 | B165: Patchcord kat. 5e U/UTP LSOH 20m szary | C165: Cobi Cu kable krosowe | D165: =IFERROR(VLOOKUP(A165,'wyprzedaż-plik'!A:E,4,FALSE),"Brak towaru") -> 43 | E165: szt. | F165: 17.14 | G165: PLN
A166: 5030 664/2,0 | B166: Patchcord kat. 6 S/FTP LSOH 2m czarny | C166: Cobi Cu kable krosowe | D166: =IFERROR(VLOOKUP(A166,'wyprzedaż-plik'!A:E,4,FALSE),"Brak towaru") -> 106 | E166: szt. | F166: 6.24 | G166: PLN
A167: 5030 664/30,0 | B167: Patchcord kat. 6 S/FTP LSOH 30m czarny | C167: Cobi Cu kable krosowe | D167: =IFERROR(VLOOKUP(A167,'wyprzedaż-plik'!A:E,4,FALSE),"Brak towaru") -> 10 | E167: szt. | F167: 60.26 | G167: PLN
A168: 5030 551/10,0 | B168: Patchcord kat. 5e U/UTP LSOH 10m czerwony | C168: Cobi Cu kable krosowe | D168: =IFERROR(VLOOKUP(A168,'wyprzedaż-plik'!A:E,4,FALSE),"Brak towaru") -> 69 | E168: szt. | F168: 8.15 | G168: PLN
A169: 5030 604/1,0 | B169: Patchcord kat. 6 U/UTP LSOH 1m czarny | C169: Cobi Cu kable krosowe | D169: =IFERROR(VLOOKUP(A169,'wyprzedaż-plik'!A:E,4,FALSE),"Brak towaru") -> 185 | E169: szt. | F169: 2.5 | G169: PLN
A170: 5030 600/30,0 | B170: Patchcord kat. 6 U/UTP LSOH 30m szary | C170: Cobi Cu kable krosowe | D170: =IFERROR(VLOOKUP(A170,'wyprzedaż-plik'!A:E,4,FALSE),"Brak towaru") -> 3 | E170: szt. | F170: 32.17 | G170: PLN
A171: 5030 001/30,0 | B171: Patchcord kat. 5e U/UTP LSOH 30m szary | C171: Cobi Cu kable krosowe | D171: =IFERROR(VLOOKUP(A171,'wyprzedaż-plik'!A:E,4,FALSE),"Brak towaru") -> 18 | E171: szt. | F171: 24.98 | G171: PLN
A172: 5030 662/25,0 | B172: Patchcord kat. 6 S/FTP LSOH 25m zielony | C172: Cobi Cu kable krosowe | D172: =IFERROR(VLOOKUP(A172,'wyprzedaż-plik'!A:E,4,FALSE),"Brak towaru") -> 1 | E172: szt. | F172: 50.59 | G172: PLN
A173: 5030 665/1,0 | B173: Patchcord kat. 6 S/FTP LSOH 1m czerwony | C173: Cobi Cu kable krosowe | D173: =IFERROR(VLOOKUP(A173,'wyprzedaż-plik'!A:E,4,FALSE),"Brak towaru") -> 95 | E173: szt. | F173: 3.93 | G173: PLN
A174: 5030 661/2,0 | B174: Patchcord kat. 6 S/FTP LSOH 2m żółty | C174: Cobi Cu kable krosowe | D174: =IFERROR(VLOOKUP(A174,'wyprzedaż-plik'!A:E,4,FALSE),"Brak towaru") -> 50 | E174: szt. | F174: 7.05 | G174: PLN
A175: 5030 660/30,0 | B175: Patchcord kat. 6 S/FTP LSOH 30m szary | C175: Cobi Cu kable krosowe | D175: =IFERROR(VLOOKUP(A175,'wyprzedaż-plik'!A:E,4,FALSE),"Brak towaru") -> 3 | E175: szt. | F175: 116.08 | G175: PLN
A176: 5030 331/20,0 | B176: Patchcord kat. 5e U/UTP LSOH 20m niebieski | C176: Cobi Cu kable krosowe | D176: =IFERROR(VLOOKUP(A176,'wyprzedaż-plik'!A:E,4,FALSE),"Brak towaru") -> 20 | E176: szt. | F176: 16.86 | G176: PLN
A177: 5030 664/1,5 | B177: Patchcord kat. 6 S/FTP LSOH 1,5m czarny | C177: Cobi Cu kable krosowe | D177: =IFERROR(VLOOKUP(A177,'wyprzedaż-plik'!A:E,4,FALSE),"Brak towaru") -> 56 | E177: szt. | F177: 5.99 | G177: PLN
A178: 5030 221/10,0 | B178: Patchcord kat. 5e U/UTP LSOH 10m zielony | C178: Cobi Cu kable krosowe | D178: =IFERROR(VLOOKUP(A178,'wyprzedaż-plik'!A:E,4,FALSE),"Brak towaru") -> 41 | E178: szt. | F178: 8.22 | G178: PLN
A179: 5030 603/5,0 | B179: Patchcord kat. 6 U/UTP LSOH 5m niebieski | C179: Cobi Cu kable krosowe | D179: =IFERROR(VLOOKUP(A179,'wyprzedaż-plik'!A:E,4,FALSE),"Brak towaru") -> 46 | E179: szt. | F179: 7.21 | G179: PLN
A180: 5030 684/7,5 | B180: Patchcord kat. 6A S/FTP LSOH 7,5m czarny | C180: Cobi Cu kable krosowe | D180: =IFERROR(VLOOKUP(A180,'wyprzedaż-plik'!A:E,4,FALSE),"Brak towaru") -> 10 | E180: szt. | F180: 32.32 | G180: PLN
A181: 5030 663/5,0 | B181: Patchcord kat. 6 S/FTP LSOH 5m niebieski | C181: Cobi Cu kable krosowe | D181: =IFERROR(VLOOKUP(A181,'wyprzedaż-plik'!A:E,4,FALSE),"Brak towaru") -> 24 | E181: szt. | F181: 13.2 | G181: PLN
A182: 5030 663/0,5 | B182: Patchcord kat. 6 S/FTP LSOH 0,5m niebieski | C182: Cobi Cu kable krosowe | D182: =IFERROR(VLOOKUP(A182,'wyprzedaż-plik'!A:E,4,FALSE),"Brak towaru") -> 95 | E182: szt. | F182: 3.11 | G182: PLN
A183: 5030 662/30,0 | B183: Patchcord kat. 6 S/FTP LSOH 30m zielony | C183: Cobi Cu kable krosowe | D183: =IFERROR(VLOOKUP(A183,'wyprzedaż-plik'!A:E,4,FALSE),"Brak towaru") -> 5 | E183: szt. | F183: 54.24 | G183: PLN
A184: 5030 221/20,0 | B184: Patchcord kat. 5e U/UTP LSOH 20m zielony | C184: Cobi Cu kable krosowe | D184: =IFERROR(VLOOKUP(A184,'wyprzedaż-plik'!A:E,4,FALSE),"Brak towaru") -> 18 | E184: szt. | F184: 14.38 | G184: PLN
A185: 5030 991/5,0 | B185: Patchcord kat. 5e U/UTP LSOH 5m biały | C185: Cobi Cu kable krosowe | D185: =IFERROR(VLOOKUP(A185,'wyprzedaż-plik'!A:E,4,FALSE),"Brak towaru") -> 47 | E185: szt. | F185: 4.99 | G185: PLN
A186: 5030 661/3,0 | B186: Patchcord kat. 6 S/FTP LSOH 3m żółty | C186: Cobi Cu kable krosowe | D186: =IFERROR(VLOOKUP(A186,'wyprzedaż-plik'!A:E,4,FALSE),"Brak towaru") -> 23 | E186: szt. | F186: 9.13 | G186: PLN
A187: 5030 601/10,0 | B187: Patchcord kat. 6 U/UTP LSOH 10m żółty | C187: Cobi Cu kable krosowe | D187: =IFERROR(VLOOKUP(A187,'wyprzedaż-plik'!A:E,4,FALSE),"Brak towaru") -> 18 | E187: szt. | F187: 12.32 | G187: PLN
A188: 5030 665/0,5 | B188: Patchcord kat. 6 S/FTP LSOH 0,5m czerwony | C188: Cobi Cu kable krosowe | D188: =IFERROR(VLOOKUP(A188,'wyprzedaż-plik'!A:E,4,FALSE),"Brak towaru") -> 56 | E188: szt. | F188: 3.96 | G188: PLN
A189: 5030 991/2,0 | B189: Patchcord kat. 5e U/UTP LSOH 2m biały | C189: Cobi Cu kable krosowe | D189: =IFERROR(VLOOKUP(A189,'wyprzedaż-plik'!A:E,4,FALSE),"Brak towaru") -> 73 | E189: szt. | F189: 2.74 | G189: PLN
A190: 5030 663/0,25 | B190: Patchcord kat. 6 S/FTP LSOH 0,25m niebieski | C190: Cobi Cu kable krosowe | D190: =IFERROR(VLOOKUP(A190,'wyprzedaż-plik'!A:E,4,FALSE),"Brak towaru") -> 56 | E190: szt. | F190: 3.48 | G190: PLN
A191: 5030 601/15,0 | B191: Patchcord kat. 6 U/UTP LSOH 15m żółty | C191: Cobi Cu kable krosowe | D191: =IFERROR(VLOOKUP(A191,'wyprzedaż-plik'!A:E,4,FALSE),"Brak towaru") -> 11 | E191: szt. | F191: 17.22 | G191: PLN
A192: 5030 331/7,5 | B192: Patchcord kat. 5e U/UTP LSOH 7,5m niebieski | C192: Cobi Cu kable krosowe | D192: =IFERROR(VLOOKUP(A192,'wyprzedaż-plik'!A:E,4,FALSE),"Brak towaru") -> 30 | E192: szt. | F192: 6.25 | G192: PLN
A193: 5030 664/5,0 | B193: Patchcord kat. 6 S/FTP LSOH 5m czarny | C193: Cobi Cu kable krosowe | D193: =IFERROR(VLOOKUP(A193,'wyprzedaż-plik'!A:E,4,FALSE),"Brak towaru") -> 14 | E193: szt. | F193: 13.28 | G193: PLN
A194: 5030 661/5,0 | B194: Patchcord kat. 6 S/FTP LSOH 5m żółty | C194: Cobi Cu kable krosowe | D194: =IFERROR(VLOOKUP(A194,'wyprzedaż-plik'!A:E,4,FALSE),"Brak towaru") -> 14 | E194: szt. | F194: 13.12 | G194: PLN
A195: 5030 605/1,5 | B195: Patchcord kat. 6 U/UTP LSOH 1,5m czerwony | C195: Cobi Cu kable krosowe | D195: =IFERROR(VLOOKUP(A195,'wyprzedaż-plik'!A:E,4,FALSE),"Brak towaru") -> 43 | E195: szt. | F195: 2.99 | G195: PLN
A196: 5030 551/7,5 | B196: Patchcord kat. 5e U/UTP LSOH 7,5m czerwony | C196: Cobi Cu kable krosowe | D196: =IFERROR(VLOOKUP(A196,'wyprzedaż-plik'!A:E,4,FALSE),"Brak towaru") -> 25 | E196: szt. | F196: 6.39 | G196: PLN
A197: 5030 013/10,0 | B197: Patchcord kat. 5e F/UTP LSOH 10m szary | C197: Cobi Cu kable krosowe | D197: =IFERROR(VLOOKUP(A197,'wyprzedaż-plik'!A:E,4,FALSE),"Brak towaru") -> 15 | E197: szt. | F197: 10.55 | G197: PLN
A198: 5030 662/0,5 | B198: Patchcord kat. 6 S/FTP LSOH 0,5m zielony | C198: Cobi Cu kable krosowe | D198: =IFERROR(VLOOKUP(A198,'wyprzedaż-plik'!A:E,4,FALSE),"Brak towaru") -> 48 | E198: szt. | F198: 3.08 | G198: PLN
A199: 5030 221/7,5 | B199: Patchcord kat. 5e U/UTP LSOH 7,5m zielony | C199: Cobi Cu kable krosowe | D199: =IFERROR(VLOOKUP(A199,'wyprzedaż-plik'!A:E,4,FALSE),"Brak towaru") -> 22 | E199: szt. | F199: 5.81 | G199: PLN
A200: 5030 661/0,25 | B200: Patchcord kat. 6 S/FTP LSOH 0,25m żółty | C200: Cobi Cu kable krosowe | D200: =IFERROR(VLOOKUP(A200,'wyprzedaż-plik'!A:E,4,FALSE),"Brak towaru") -> 35 | E200: szt. | F200: 3.48 | G200: PLN
... 88 more rows

Sheet Okablowanie miedziane
A1: Kategoria produktu | D1: Numer katalogowy | E1: Opis | F1: Grupa produktowa | G1: Rabat | H1: Cena katalogowa | I1: Cena po rabacie | J1: Waluta
A2: Okablowanie miedziane
B3: CobiCabling kat. 7/7A
C4: Kable
D5: C23-2511 | E5: =IFERROR(VLOOKUP(D5,Arkusz!A:H,3,FALSE),"Brak towaru") -> CobiCabling Kabel kat. 7A S/FTP 1700MHz LSFROH B2ca 500m RL | F5: =IFERROR(VLOOKUP(D5,Arkusz!A:H,6,FALSE),"-") -> Cobi Cu kable | G5: 0 | H5: =IFERROR(IF(VLOOKUP(D5,Arkusz!A:I,5,FALSE)=0,(IF(VLOOKUP(D5,Arkusz!A:I,11,FALSE)=0,"Na zapytanie",VLOOKUP(D5,Arkusz!A:I,11,FALSE))),(VLOOKUP(D5,Arkusz!A:I,5,FALSE))),"Na zapytanie") -> 5.22 | I5: =IFERROR(IF(H5="Na zapytanie","",H5*(1-G5)),"") -> 5.22 | J5: =IFERROR(IF(VLOOKUP(D5,Arkusz!A:H,5,FALSE)=0,IF(H5="Na zapytanie","","EUR"),"PLN"),"") -> PLN
D6: C23-2510 | E6: =IFERROR(VLOOKUP(D6,Arkusz!A:H,3,FALSE),"Brak towaru") -> CobiCabling Kabel kat. 7A S/FTP 1500MHz LSFROH B2ca 500m RL | F6: =IFERROR(VLOOKUP(D6,Arkusz!A:H,6,FALSE),"-") -> Cobi Cu kable | G6: 0 | H6: =IFERROR(IF(VLOOKUP(D6,Arkusz!A:I,5,FALSE)=0,(IF(VLOOKUP(D6,Arkusz!A:I,11,FALSE)=0,"Na zapytanie",VLOOKUP(D6,Arkusz!A:I,11,FALSE))),(VLOOKUP(D6,Arkusz!A:I,5,FALSE))),"Na zapytanie") -> 4.76 | I6: =IFERROR(IF(H6="Na zapytanie","",H6*(1-G6)),"") -> 4.76 | J6: =IFERROR(IF(VLOOKUP(D6,Arkusz!A:H,5,FALSE)=0,IF(H6="Na zapytanie","","EUR"),"PLN"),"") -> PLN
D7: C23-7310 | E7: =IFERROR(VLOOKUP(D7,Arkusz!A:H,3,FALSE),"Brak towaru") -> CobiCabling Kabel kat. 7/7A S/FTP 1000MHz LSFROH Dca 500m RL | F7: =IFERROR(VLOOKUP(D7,Arkusz!A:H,6,FALSE),"-") -> Cobi Cu kable | G7: 0 | H7: =IFERROR(IF(VLOOKUP(D7,Arkusz!A:I,5,FALSE)=0,(IF(VLOOKUP(D7,Arkusz!A:I,11,FALSE)=0,"Na zapytanie",VLOOKUP(D7,Arkusz!A:I,11,FALSE))),(VLOOKUP(D7,Arkusz!A:I,5,FALSE))),"Na zapytanie") -> 3.59 | I7: 3.59 | J7: =IFERROR(IF(VLOOKUP(D7,Arkusz!A:H,5,FALSE)=0,IF(H7="Na zapytanie","","EUR"),"PLN"),"") -> PLN
D8: C23-7510 | E8: =IFERROR(VLOOKUP(D8,Arkusz!A:H,3,FALSE),"Brak towaru") -> CobiCabling Kabel kat. 7/7A S/FTP 1000MHz LSFROH B2ca 500m RL | F8: =IFERROR(VLOOKUP(D8,Arkusz!A:H,6,FALSE),"-") -> Cobi Cu kable | G8: 0 | H8: =IFERROR(IF(VLOOKUP(D8,Arkusz!A:I,5,FALSE)=0,(IF(VLOOKUP(D8,Arkusz!A:I,11,FALSE)=0,"Na zapytanie",VLOOKUP(D8,Arkusz!A:I,11,FALSE))),(VLOOKUP(D8,Arkusz!A:I,5,FALSE))),"Na zapytanie") -> 3.93 | I8: 3.93 | J8: =IFERROR(IF(VLOOKUP(D8,Arkusz!A:H,5,FALSE)=0,IF(H8="Na zapytanie","","EUR"),"PLN"),"") -> PLN
D9: C23-7512 | E9: =IFERROR(VLOOKUP(D9,Arkusz!A:H,3,FALSE),"Brak towaru") -> CobiCabling Kabel kat. 7/7A S/FTP 1000MHz LSFROH B2ca 500m RL blue | F9: =IFERROR(VLOOKUP(D9,Arkusz!A:H,6,FALSE),"-") -> Cobi Cu kable | G9: 0 | H9: =IFERROR(IF(VLOOKUP(D9,Arkusz!A:I,5,FALSE)=0,(IF(VLOOKUP(D9,Arkusz!A:I,11,FALSE)=0,"Na zapytanie",VLOOKUP(D9,Arkusz!A:I,11,FALSE))),(VLOOKUP(D9,Arkusz!A:I,5,FALSE))),"Na zapytanie") -> 3.91 | I9: =IFERROR(IF(H9="Na zapytanie","",H9*(1-G9)),"") -> 3.91 | J9: =IFERROR(IF(VLOOKUP(D9,Arkusz!A:H,5,FALSE)=0,IF(H9="Na zapytanie","","EUR"),"PLN"),"") -> PLN
B10: CobiCabling kat. 6A
C11: Kable
D12: C23-1330 | E12: =IFERROR(VLOOKUP(D12,Arkusz!A:H,3,FALSE),"Brak towaru") -> CobiCabling Kabel kat. 6A/7 U/FTP 700MHz LSFROH Dca 500m RL | F12: =IFERROR(VLOOKUP(D12,Arkusz!A:H,6,FALSE),"-") -> Cobi Cu kable | G12: 0 | H12: =IFERROR(IF(VLOOKUP(D12,Arkusz!A:I,5,FALSE)=0,(IF(VLOOKUP(D12,Arkusz!A:I,11,FALSE)=0,"Na zapytanie",VLOOKUP(D12,Arkusz!A:I,11,FALSE))),(VLOOKUP(D12,Arkusz!A:I,5,FALSE))),"Na zapytanie") -> 3.43 | I12: 3.43 | J12: =IFERROR(IF(VLOOKUP(D12,Arkusz!A:H,5,FALSE)=0,IF(H12="Na zapytanie","","EUR"),"PLN"),"") -> PLN
D13: C23-1520 | E13: =IFERROR(VLOOKUP(D13,Arkusz!A:H,3,FALSE),"Brak towaru") -> CobiCabling Kabel kat. 6A/7 F/FTP 700MHz LSFROH B2ca 500m RL | F13: =IFERROR(VLOOKUP(D13,Arkusz!A:H,6,FALSE),"-") -> Cobi Cu kable | G13: 0 | H13: =IFERROR(IF(VLOOKUP(D13,Arkusz!A:I,5,FALSE)=0,(IF(VLOOKUP(D13,Arkusz!A:I,11,FALSE)=0,"Na zapytanie",VLOOKUP(D13,Arkusz!A:I,11,FALSE))),(VLOOKUP(D13,Arkusz!A:I,5,FALSE))),"Na zapytanie") -> 3.86 | I13: 3.86 | J13: =IFERROR(IF(VLOOKUP(D13,Arkusz!A:H,5,FALSE)=0,IF(H13="Na zapytanie","","EUR"),"PLN"),"") -> PLN
D14: C23-1321 | E14: =IFERROR(VLOOKUP(D14,Arkusz!A:H,3,FALSE),"Brak towaru") -> CobiCabling Kabel kat. 6A/7 F/FTP 700MHz LSFROH Dca 500m RL | F14: =IFERROR(VLOOKUP(D14,Arkusz!A:H,6,FALSE),"-") -> Cobi Cu kable | G14: 0 | H14: =IFERROR(IF(VLOOKUP(D14,Arkusz!A:I,5,FALSE)=0,(IF(VLOOKUP(D14,Arkusz!A:I,11,FALSE)=0,"Na zapytanie",VLOOKUP(D14,Arkusz!A:I,11,FALSE))),(VLOOKUP(D14,Arkusz!A:I,5,FALSE))),"Na zapytanie") -> 3.48 | I14: =IFERROR(IF(H14="Na zapytanie","",H14*(1-G14)),"") -> 3.48 | J14: =IFERROR(IF(VLOOKUP(D14,Arkusz!A:H,5,FALSE)=0,IF(H14="Na zapytanie","","EUR"),"PLN"),"") -> PLN
D15: C23-1530 | E15: =IFERROR(VLOOKUP(D15,Arkusz!A:H,3,FALSE),"Brak towaru") -> CobiCabling Kabel kat. 6A/7 U/FTP 700MHz LSFROH B2ca 500m RL | F15: =IFERROR(VLOOKUP(D15,Arkusz!A:H,6,FALSE),"-") -> Cobi Cu kable | G15: 0 | H15: =IFERROR(IF(VLOOKUP(D15,Arkusz!A:I,5,FALSE)=0,(IF(VLOOKUP(D15,Arkusz!A:I,11,FALSE)=0,"Na zapytanie",VLOOKUP(D15,Arkusz!A:I,11,FALSE))),(VLOOKUP(D15,Arkusz!A:I,5,FALSE))),"Na zapytanie") -> 3.75 | I15: 3.75 | J15: =IFERROR(IF(VLOOKUP(D15,Arkusz!A:H,5,FALSE)=0,IF(H15="Na zapytanie","","EUR"),"PLN"),"") -> PLN
D16: C13-1300 | E16: =IFERROR(VLOOKUP(D16,Arkusz!A:H,3,FALSE),"Brak towaru") -> CobiCabling Kabel kat. 6A U/UTP 650MHz LSFROH Dca 500m RL | F16: =IFERROR(VLOOKUP(D16,Arkusz!A:H,6,FALSE),"-") -> Cobi Cu kable | G16: 0 | H16: =IFERROR(IF(VLOOKUP(D16,Arkusz!A:I,5,FALSE)=0,(IF(VLOOKUP(D16,Arkusz!A:I,11,FALSE)=0,"Na zapytanie",VLOOKUP(D16,Arkusz!A:I,11,FALSE))),(VLOOKUP(D16,Arkusz!A:I,5,FALSE))),"Na zapytanie") -> 2.93 | I16: 2.93 | J16: =IFERROR(IF(VLOOKUP(D16,Arkusz!A:H,5,FALSE)=0,IF(H16="Na zapytanie","","EUR"),"PLN"),"") -> PLN
D17: C13-1500 | E17: =IFERROR(VLOOKUP(D17,Arkusz!A:H,3,FALSE),"Brak towaru") -> CobiCabling Kabel kat. 6A U/UTP 650MHz LSFROH B2ca 500m RL | F17: =IFERROR(VLOOKUP(D17,Arkusz!A:H,6,FALSE),"-") -> Cobi Cu kable | G17: 0 | H17: =IFERROR(IF(VLOOKUP(D17,Arkusz!A:I,5,FALSE)=0,(IF(VLOOKUP(D17,Arkusz!A:I,11,FALSE)=0,"Na zapytanie",VLOOKUP(D17,Arkusz!A:I,11,FALSE))),(VLOOKUP(D17,Arkusz!A:I,5,FALSE))),"Na zapytanie") -> 3.13 | I17: 3.13 | J17: =IFERROR(IF(VLOOKUP(D17,Arkusz!A:H,5,FALSE)=0,IF(H17="Na zapytanie","","EUR"),"PLN"),"") -> PLN
C18: Moduły
D19: C21-1001 | E19: =IFERROR(VLOOKUP(D19,Arkusz!A:H,3,FALSE),"Brak towaru") -> CobiCabling Moduł kat. 6A STP keystone beznarzędziowy | F19: =IFERROR(VLOOKUP(D19,Arkusz!A:H,6,FALSE),"-") -> Cobi Cu okablowanie | G19: 0 | H19: =IFERROR(IF(VLOOKUP(D19,Arkusz!A:I,5,FALSE)=0,(IF(VLOOKUP(D19,Arkusz!A:I,11,FALSE)=0,"Na zapytanie",VLOOKUP(D19,Arkusz!A:I,11,FALSE))),(VLOOKUP(D19,Arkusz!A:I,5,FALSE))),"Na zapytanie") -> 19.04 | I19: 19.04 | J19: =IFERROR(IF(VLOOKUP(D19,Arkusz!A:H,5,FALSE)=0,IF(H19="Na zapytanie","","EUR"),"PLN"),"") -> PLN
D20: C11-1000 | E20: =IFERROR(VLOOKUP(D20,Arkusz!A:H,3,FALSE),"Brak towaru") -> CobiCabling Moduł kat. 6A UTP keystone beznarzędziowy | F20: =IFERROR(VLOOKUP(D20,Arkusz!A:H,6,FALSE),"-") -> Cobi Cu okablowanie | G20: 0 | H20: =IFERROR(IF(VLOOKUP(D20,Arkusz!A:I,5,FALSE)=0,(IF(VLOOKUP(D20,Arkusz!A:I,11,FALSE)=0,"Na zapytanie",VLOOKUP(D20,Arkusz!A:I,11,FALSE))),(VLOOKUP(D20,Arkusz!A:I,5,FALSE))),"Na zapytanie") -> 14.18 | I20: 14.18 | J20: =IFERROR(IF(VLOOKUP(D20,Arkusz!A:H,5,FALSE)=0,IF(H20="Na zapytanie","","EUR"),"PLN"),"") -> PLN
D21: C21-1002 | E21: =IFERROR(VLOOKUP(D21,Arkusz!A:H,3,FALSE),"Brak towaru") -> CobiCabling Moduł kątowy kat. 6A STP keystone beznarzędziowy | F21: =IFERROR(VLOOKUP(D21,Arkusz!A:H,6,FALSE),"-") -> Cobi Cu okablowanie | G21: 0 | H21: =IFERROR(IF(VLOOKUP(D21,Arkusz!A:I,5,FALSE)=0,(IF(VLOOKUP(D21,Arkusz!A:I,11,FALSE)=0,"Na zapytanie",VLOOKUP(D21,Arkusz!A:I,11,FALSE))),(VLOOKUP(D21,Arkusz!A:I,5,FALSE))),"Na zapytanie") -> 30 | I21: =IFERROR(IF(H21="Na zapytanie","",H21*(1-G21)),"") -> 30 | J21: =IFERROR(IF(VLOOKUP(D21,Arkusz!A:H,5,FALSE)=0,IF(H21="Na zapytanie","","EUR"),"PLN"),"") -> PLN
C22: Patch-panele LSA
D23: C22-1110 | E23: =IFERROR(VLOOKUP(D23,Arkusz!A:H,3,FALSE),"Brak towaru") -> Patch Panel 19'' 1U 24xRJ45 kat. 6A STP czarny z tylną półką | F23: =IFERROR(VLOOKUP(D23,Arkusz!A:H,6,FALSE),"-") -> Cobi Cu okablowanie | G23: 0 | H23: =IFERROR(IF(VLOOKUP(D23,Arkusz!A:I,5,FALSE)=0,(IF(VLOOKUP(D23,Arkusz!A:I,11,FALSE)=0,"Na zapytanie",VLOOKUP(D23,Arkusz!A:I,11,FALSE))),(VLOOKUP(D23,Arkusz!A:I,5,FALSE))),"Na zapytanie") -> 498.55 | I23: 498.55 | J23: =IFERROR(IF(VLOOKUP(D23,Arkusz!A:H,5,FALSE)=0,IF(H23="Na zapytanie","","EUR"),"PLN"),"") -> PLN
C24: Wtyki
D25: C27-1001 | E25: =IFERROR(VLOOKUP(D25,Arkusz!A:H,3,FALSE),"Brak towaru") -> CobiCabling Wtyk kat. 6A STP beznarzędziowy | F25: =IFERROR(VLOOKUP(D25,Arkusz!A:H,6,FALSE),"-") -> Cobi Cu okablowanie | G25: 0 | H25: =IFERROR(IF(VLOOKUP(D25,Arkusz!A:I,5,FALSE)=0,(IF(VLOOKUP(D25,Arkusz!A:I,11,FALSE)=0,"Na zapytanie",VLOOKUP(D25,Arkusz!A:I,11,FALSE))),(VLOOKUP(D25,Arkusz!A:I,5,FALSE))),"Na zapytanie") -> 20.22 | I25: =IFERROR(IF(H25="Na zapytanie","",H25*(1-G25)),"") -> 20.22 | J25: =IFERROR(IF(VLOOKUP(D25,Arkusz!A:H,5,FALSE)=0,IF(H25="Na zapytanie","","EUR"),"PLN"),"") -> PLN
D26: WE8P8C-RJ45-F8D | E26: =IFERROR(VLOOKUP(D26,Arkusz!A:H,3,FALSE),"Brak towaru") -> Wtyk modularny RJ45 kat. 8 FTP na drut | F26: =IFERROR(VLOOKUP(D26,Arkusz!A:H,6,FALSE),"-") -> Cobi Cu okablowanie | G26: 0 | H26: =IFERROR(IF(VLOOKUP(D26,Arkusz!A:I,5,FALSE)=0,(IF(VLOOKUP(D26,Arkusz!A:I,11,FALSE)=0,"Na zapytanie",VLOOKUP(D26,Arkusz!A:I,11,FALSE))),(VLOOKUP(D26,Arkusz!A:I,5,FALSE))),"Na zapytanie") -> 2.28 | I26: =IFERROR(IF(H26="Na zapytanie","",H26*(1-G26)),"") -> 2.28 | J26: =IFERROR(IF(VLOOKUP(D26,Arkusz!A:H,5,FALSE)=0,IF(H26="Na zapytanie","","EUR"),"PLN"),"") -> PLN
D27: WE8P8C-RJ45-F6A | E27: =IFERROR(VLOOKUP(D27,Arkusz!A:H,3,FALSE),"Brak towaru") -> CobiCabling Wtyk kat. 6A STP na drut | F27: =IFERROR(VLOOKUP(D27,Arkusz!A:H,6,FALSE),"-") -> Cobi Cu okablowanie | G27: 0 | H27: =IFERROR(IF(VLOOKUP(D27,Arkusz!A:I,5,FALSE)=0,(IF(VLOOKUP(D27,Arkusz!A:I,11,FALSE)=0,"Na zapytanie",VLOOKUP(D27,Arkusz!A:I,11,FALSE))),(VLOOKUP(D27,Arkusz!A:I,5,FALSE))),"Na zapytanie") -> 1.84 | I27: =IFERROR(IF(H27="Na zapytanie","",H27*(1-G27)),"") -> 1.84 | J27: =IFERROR(IF(VLOOKUP(D27,Arkusz!A:H,5,FALSE)=0,IF(H27="Na zapytanie","","EUR"),"PLN"),"") -> PLN
C28: Kable krosowe ekranowane
D29: Kolor szary RAL7004
D30: C24-1100-0,25 | E30: =IFERROR(VLOOKUP(D30,Arkusz!A:H,3,FALSE),"Brak towaru") -> CobiCabling Patchcord kat. 6A S/FTP LSOH 0,25m szary | F30: =IFERROR(VLOOKUP(D30,Arkusz!A:H,6,FALSE),"-") -> Cobi Cu kable krosowe | G30: 0 | H30: =IFERROR(IF(VLOOKUP(D30,Arkusz!A:I,5,FALSE)=0,(IF(VLOOKUP(D30,Arkusz!A:I,11,FALSE)=0,"Na zapytanie",VLOOKUP(D30,Arkusz!A:I,11,FALSE))),(VLOOKUP(D30,Arkusz!A:I,5,FALSE))),"Na zapytanie") -> 7.5 | I30: 7.5 | J30: =IFERROR(IF(VLOOKUP(D30,Arkusz!A:H,5,FALSE)=0,IF(H30="Na zapytanie","","EUR"),"PLN"),"") -> PLN
D31: C24-1100-0,5 | E31: =IFERROR(VLOOKUP(D31,Arkusz!A:H,3,FALSE),"Brak towaru") -> CobiCabling Patchcord kat. 6A S/FTP LSOH 0,5m szary | F31: =IFERROR(VLOOKUP(D31,Arkusz!A:H,6,FALSE),"-") -> Cobi Cu kable krosowe | G31: 0 | H31: =IFERROR(IF(VLOOKUP(D31,Arkusz!A:I,5,FALSE)=0,(IF(VLOOKUP(D31,Arkusz!A:I,11,FALSE)=0,"Na zapytanie",VLOOKUP(D31,Arkusz!A:I,11,FALSE))),(VLOOKUP(D31,Arkusz!A:I,5,FALSE))),"Na zapytanie") -> 8.43 | I31: 8.43 | J31: =IFERROR(IF(VLOOKUP(D31,Arkusz!A:H,5,FALSE)=0,IF(H31="Na zapytanie","","EUR"),"PLN"),"") -> PLN
D32: C24-1100-1,0 | E32: =IFERROR(VLOOKUP(D32,Arkusz!A:H,3,FALSE),"Brak towaru") -> CobiCabling Patchcord kat. 6A S/FTP LSOH 1m szary | F32: =IFERROR(VLOOKUP(D32,Arkusz!A:H,6,FALSE),"-") -> Cobi Cu kable krosowe | G32: 0 | H32: =IFERROR(IF(VLOOKUP(D32,Arkusz!A:I,5,FALSE)=0,(IF(VLOOKUP(D32,Arkusz!A:I,11,FALSE)=0,"Na zapytanie",VLOOKUP(D32,Arkusz!A:I,11,FALSE))),(VLOOKUP(D32,Arkusz!A:I,5,FALSE))),"Na zapytanie") -> 10.25 | I32: 10.25 | J32: =IFERROR(IF(VLOOKUP(D32,Arkusz!A:H,5,FALSE)=0,IF(H32="Na zapytanie","","EUR"),"PLN"),"") -> PLN
D33: C24-1100-1,5 | E33: =IFERROR(VLOOKUP(D33,Arkusz!A:H,3,FALSE),"Brak towaru") -> CobiCabling Patchcord kat. 6A S/FTP LSOH 1,5m szary | F33: =IFERROR(VLOOKUP(D33,Arkusz!A:H,6,FALSE),"-") -> Cobi Cu kable krosowe | G33: 0 | H33: =IFERROR(IF(VLOOKUP(D33,Arkusz!A:I,5,FALSE)=0,(IF(VLOOKUP(D33,Arkusz!A:I,11,FALSE)=0,"Na zapytanie",VLOOKUP(D33,Arkusz!A:I,11,FALSE))),(VLOOKUP(D33,Arkusz!A:I,5,FALSE))),"Na zapytanie") -> 12.29 | I33: 12.29 | J33: =IFERROR(IF(VLOOKUP(D33,Arkusz!A:H,5,FALSE)=0,IF(H33="Na zapytanie","","EUR"),"PLN"),"") -> PLN
D34: C24-1100-2,0 | E34: =IFERROR(VLOOKUP(D34,Arkusz!A:H,3,FALSE),"Brak towaru") -> CobiCabling Patchcord kat. 6A S/FTP LSOH 2m szary | F34: =IFERROR(VLOOKUP(D34,Arkusz!A:H,6,FALSE),"-") -> Cobi Cu kable krosowe | G34: 0 | H34: =IFERROR(IF(VLOOKUP(D34,Arkusz!A:I,5,FALSE)=0,(IF(VLOOKUP(D34,Arkusz!A:I,11,FALSE)=0,"Na zapytanie",VLOOKUP(D34,Arkusz!A:I,11,FALSE))),(VLOOKUP(D34,Arkusz!A:I,5,FALSE))),"Na zapytanie") -> 13.52 | I34: 13.52 | J34: =IFERROR(IF(VLOOKUP(D34,Arkusz!A:H,5,FALSE)=0,IF(H34="Na zapytanie","","EUR"),"PLN"),"") -> PLN
D35: C24-1100-3,0 | E35: =IFERROR(VLOOKUP(D35,Arkusz!A:H,3,FALSE),"Brak towaru") -> CobiCabling Patchcord kat. 6A S/FTP LSOH 3m szary | F35: =IFERROR(VLOOKUP(D35,Arkusz!A:H,6,FALSE),"-") -> Cobi Cu kable krosowe | G35: 0 | H35: =IFERROR(IF(VLOOKUP(D35,Arkusz!A:I,5,FALSE)=0,(IF(VLOOKUP(D35,Arkusz!A:I,11,FALSE)=0,"Na zapytanie",VLOOKUP(D35,Arkusz!A:I,11,FALSE))),(VLOOKUP(D35,Arkusz!A:I,5,FALSE))),"Na zapytanie") -> 17.64 | I35: 17.64 | J35: =IFERROR(IF(VLOOKUP(D35,Arkusz!A:H,5,FALSE)=0,IF(H35="Na zapytanie","","EUR"),"PLN"),"") -> PLN
D36: C24-1100-5,0 | E36: =IFERROR(VLOOKUP(D36,Arkusz!A:H,3,FALSE),"Brak towaru") -> CobiCabling Patchcord kat. 6A S/FTP LSOH 5m szary | F36: =IFERROR(VLOOKUP(D36,Arkusz!A:H,6,FALSE),"-") -> Cobi Cu kable krosowe | G36: 0 | H36: =IFERROR(IF(VLOOKUP(D36,Arkusz!A:I,5,FALSE)=0,(IF(VLOOKUP(D36,Arkusz!A:I,11,FALSE)=0,"Na zapytanie",VLOOKUP(D36,Arkusz!A:I,11,FALSE))),(VLOOKUP(D36,Arkusz!A:I,5,FALSE))),"Na zapytanie") -> 25.7 | I36: 25.7 | J36: =IFERROR(IF(VLOOKUP(D36,Arkusz!A:H,5,FALSE)=0,IF(H36="Na zapytanie","","EUR"),"PLN"),"") -> PLN
D37: C24-1100-7,5 | E37: =IFERROR(VLOOKUP(D37,Arkusz!A:H,3,FALSE),"Brak towaru") -> CobiCabling Patchcord kat. 6A S/FTP LSOH 7,5m szary | F37: =IFERROR(VLOOKUP(D37,Arkusz!A:H,6,FALSE),"-") -> Cobi Cu kable krosowe | G37: 0 | H37: =IFERROR(IF(VLOOKUP(D37,Arkusz!A:I,5,FALSE)=0,(IF(VLOOKUP(D37,Arkusz!A:I,11,FALSE)=0,"Na zapytanie",VLOOKUP(D37,Arkusz!A:I,11,FALSE))),(VLOOKUP(D37,Arkusz!A:I,5,FALSE))),"Na zapytanie") -> 33.1 | I37: 33.1 | J37: =IFERROR(IF(VLOOKUP(D37,Arkusz!A:H,5,FALSE)=0,IF(H37="Na zapytanie","","EUR"),"PLN"),"") -> PLN
D38: C24-1100-10,0 | E38: =IFERROR(VLOOKUP(D38,Arkusz!A:H,3,FALSE),"Brak towaru") -> CobiCabling Patchcord kat. 6A S/FTP LSOH 10,0m szary | F38: =IFERROR(VLOOKUP(D38,Arkusz!A:H,6,FALSE),"-") -> Cobi Cu kable krosowe | G38: 0 | H38: =IFERROR(IF(VLOOKUP(D38,Arkusz!A:I,5,FALSE)=0,(IF(VLOOKUP(D38,Arkusz!A:I,11,FALSE)=0,"Na zapytanie",VLOOKUP(D38,Arkusz!A:I,11,FALSE))),(VLOOKUP(D38,Arkusz!A:I,5,FALSE))),"Na zapytanie") -> 43.68 | I38: 43.68 | J38: =IFERROR(IF(VLOOKUP(D38,Arkusz!A:H,5,FALSE)=0,IF(H38="Na zapytanie","","EUR"),"PLN"),"") -> PLN
D39: C24-1100-15,0 | E39: =IFERROR(VLOOKUP(D39,Arkusz!A:H,3,FALSE),"Brak towaru") -> CobiCabling Patchcord kat. 6A S/FTP LSOH 15,0m szary | F39: =IFERROR(VLOOKUP(D39,Arkusz!A:H,6,FALSE),"-") -> Cobi Cu kable krosowe | G39: 0 | H39: =IFERROR(IF(VLOOKUP(D39,Arkusz!A:I,5,FALSE)=0,(IF(VLOOKUP(D39,Arkusz!A:I,11,FALSE)=0,"Na zapytanie",VLOOKUP(D39,Arkusz!A:I,11,FALSE))),(VLOOKUP(D39,Arkusz!A:I,5,FALSE))),"Na zapytanie") -> 63.92 | I39: 63.92 | J39: =IFERROR(IF(VLOOKUP(D39,Arkusz!A:H,5,FALSE)=0,IF(H39="Na zapytanie","","EUR"),"PLN"),"") -> PLN
D40: Kolor żółty RAL1021
D41: C24-1110-0,25 | E41: =IFERROR(VLOOKUP(D41,Arkusz!A:H,3,FALSE),"Brak towaru") -> CobiCabling Patchcord kat. 6A S/FTP LSOH 0,25m żółty | F41: =IFERROR(VLOOKUP(D41,Arkusz!A:H,6,FALSE),"-") -> Cobi Cu kable krosowe | G41: 0 | H41: =IFERROR(IF(VLOOKUP(D41,Arkusz!A:I,5,FALSE)=0,(IF(VLOOKUP(D41,Arkusz!A:I,11,FALSE)=0,"Na zapytanie",VLOOKUP(D41,Arkusz!A:I,11,FALSE))),(VLOOKUP(D41,Arkusz!A:I,5,FALSE))),"Na zapytanie") -> 7.25 | I41: 7.25 | J41: =IFERROR(IF(VLOOKUP(D41,Arkusz!A:H,5,FALSE)=0,IF(H41="Na zapytanie","","EUR"),"PLN"),"") -> PLN
D42: C24-1110-0,5 | E42: =IFERROR(VLOOKUP(D42,Arkusz!A:H,3,FALSE),"Brak towaru") -> CobiCabling Patchcord kat. 6A S/FTP LSOH 0,5m żółty | F42: =IFERROR(VLOOKUP(D42,Arkusz!A:H,6,FALSE),"-") -> Cobi Cu kable krosowe | G42: 0 | H42: =IFERROR(IF(VLOOKUP(D42,Arkusz!A:I,5,FALSE)=0,(IF(VLOOKUP(D42,Arkusz!A:I,11,FALSE)=0,"Na zapytanie",VLOOKUP(D42,Arkusz!A:I,11,FALSE))),(VLOOKUP(D42,Arkusz!A:I,5,FALSE))),"Na zapytanie") -> 8.26 | I42: 8.26 | J42: =IFERROR(IF(VLOOKUP(D42,Arkusz!A:H,5,FALSE)=0,IF(H42="Na zapytanie","","EUR"),"PLN"),"") -> PLN
D43: C24-1110-1,0 | E43: =IFERROR(VLOOKUP(D43,Arkusz!A:H,3,FALSE),"Brak towaru") -> CobiCabling Patchcord kat. 6A S/FTP LSOH 1m żółty | F43: =IFERROR(VLOOKUP(D43,Arkusz!A:H,6,FALSE),"-") -> Cobi Cu kable krosowe | G43: 0 | H43: =IFERROR(IF(VLOOKUP(D43,Arkusz!A:I,5,FALSE)=0,(IF(VLOOKUP(D43,Arkusz!A:I,11,FALSE)=0,"Na zapytanie",VLOOKUP(D43,Arkusz!A:I,11,FALSE))),(VLOOKUP(D43,Arkusz!A:I,5,FALSE))),"Na zapytanie") -> 10.02 | I43: 10.02 | J43: =IFERROR(IF(VLOOKUP(D43,Arkusz!A:H,5,FALSE)=0,IF(H43="Na zapytanie","","EUR"),"PLN"),"") -> PLN
D44: C24-1110-1,5 | E44: =IFERROR(VLOOKUP(D44,Arkusz!A:H,3,FALSE),"Brak towaru") -> CobiCabling Patchcord kat. 6A S/FTP LSOH 1,5m żółty | F44: =IFERROR(VLOOKUP(D44,Arkusz!A:H,6,FALSE),"-") -> Cobi Cu kable krosowe | G44: 0 | H44: =IFERROR(IF(VLOOKUP(D44,Arkusz!A:I,5,FALSE)=0,(IF(VLOOKUP(D44,Arkusz!A:I,11,FALSE)=0,"Na zapytanie",VLOOKUP(D44,Arkusz!A:I,11,FALSE))),(VLOOKUP(D44,Arkusz!A:I,5,FALSE))),"Na zapytanie") -> 11.98 | I44: 11.98 | J44: =IFERROR(IF(VLOOKUP(D44,Arkusz!A:H,5,FALSE)=0,IF(H44="Na zapytanie","","EUR"),"PLN"),"") -> PLN
D45: C24-1110-2,0 | E45: =IFERROR(VLOOKUP(D45,Arkusz!A:H,3,FALSE),"Brak towaru") -> CobiCabling Patchcord kat. 6A S/FTP LSOH 2m żółty | F45: =IFERROR(VLOOKUP(D45,Arkusz!A:H,6,FALSE),"-") -> Cobi Cu kable krosowe | G45: 0 | H45: =IFERROR(IF(VLOOKUP(D45,Arkusz!A:I,5,FALSE)=0,(IF(VLOOKUP(D45,Arkusz!A:I,11,FALSE)=0,"Na zapytanie",VLOOKUP(D45,Arkusz!A:I,11,FALSE))),(VLOOKUP(D45,Arkusz!A:I,5,FALSE))),"Na zapytanie") -> 13.75 | I45: 13.75 | J45: =IFERROR(IF(VLOOKUP(D45,Arkusz!A:H,5,FALSE)=0,IF(H45="Na zapytanie","","EUR"),"PLN"),"") -> PLN
D46: C24-1110-3,0 | E46: =IFERROR(VLOOKUP(D46,Arkusz!A:H,3,FALSE),"Brak towaru") -> CobiCabling Patchcord kat. 6A S/FTP LSOH 3m żółty | F46: =IFERROR(VLOOKUP(D46,Arkusz!A:H,6,FALSE),"-") -> Cobi Cu kable krosowe | G46: 0 | H46: =IFERROR(IF(VLOOKUP(D46,Arkusz!A:I,5,FALSE)=0,(IF(VLOOKUP(D46,Arkusz!A:I,11,FALSE)=0,"Na zapytanie",VLOOKUP(D46,Arkusz!A:I,11,FALSE))),(VLOOKUP(D46,Arkusz!A:I,5,FALSE))),"Na zapytanie") -> 17.39 | I46: 17.39 | J46: =IFERROR(IF(VLOOKUP(D46,Arkusz!A:H,5,FALSE)=0,IF(H46="Na zapytanie","","EUR"),"PLN"),"") -> PLN
D47: C24-1110-5,0 | E47: =IFERROR(VLOOKUP(D47,Arkusz!A:H,3,FALSE),"Brak towaru") -> CobiCabling Patchcord kat. 6A S/FTP LSOH 5m żółty | F47: =IFERROR(VLOOKUP(D47,Arkusz!A:H,6,FALSE),"-") -> Cobi Cu kable krosowe | G47: 0 | H47: =IFERROR(IF(VLOOKUP(D47,Arkusz!A:I,5,FALSE)=0,(IF(VLOOKUP(D47,Arkusz!A:I,11,FALSE)=0,"Na zapytanie",VLOOKUP(D47,Arkusz!A:I,11,FALSE))),(VLOOKUP(D47,Arkusz!A:I,5,FALSE))),"Na zapytanie") -> 24.64 | I47: 24.64 | J47: =IFERROR(IF(VLOOKUP(D47,Arkusz!A:H,5,FALSE)=0,IF(H47="Na zapytanie","","EUR"),"PLN"),"") -> PLN
D48: C24-1110-7,5 | E48: =IFERROR(VLOOKUP(D48,Arkusz!A:H,3,FALSE),"Brak towaru") -> CobiCabling Patchcord kat. 6A S/FTP LSOH 7,5m żółty | F48: =IFERROR(VLOOKUP(D48,Arkusz!A:H,6,FALSE),"-") -> Cobi Cu kable krosowe | G48: 0 | H48: =IFERROR(IF(VLOOKUP(D48,Arkusz!A:I,5,FALSE)=0,(IF(VLOOKUP(D48,Arkusz!A:I,11,FALSE)=0,"Na zapytanie",VLOOKUP(D48,Arkusz!A:I,11,FALSE))),(VLOOKUP(D48,Arkusz!A:I,5,FALSE))),"Na zapytanie") -> Na zapytanie | J48: =IFERROR(IF(VLOOKUP(D48,Arkusz!A:H,5,FALSE)=0,IF(H48="Na zapytanie","","EUR"),"PLN"),"") -> 
D49: C24-1110-10,0 | E49: =IFERROR(VLOOKUP(D49,Arkusz!A:H,3,FALSE),"Brak towaru") -> CobiCabling Patchcord kat. 6A S/FTP LSOH 10m żółty | F49: =IFERROR(VLOOKUP(D49,Arkusz!A:H,6,FALSE),"-") -> Cobi Cu kable krosowe | G49: 0 | H49: =IFERROR(IF(VLOOKUP(D49,Arkusz!A:I,5,FALSE)=0,(IF(VLOOKUP(D49,Arkusz!A:I,11,FALSE)=0,"Na zapytanie",VLOOKUP(D49,Arkusz!A:I,11,FALSE))),(VLOOKUP(D49,Arkusz!A:I,5,FALSE))),"Na zapytanie") -> Na zapytanie | J49: =IFERROR(IF(VLOOKUP(D49,Arkusz!A:H,5,FALSE)=0,IF(H49="Na zapytanie","","EUR"),"PLN"),"") -> 
D50: C24-1110-15,0 | E50: =IFERROR(VLOOKUP(D50,Arkusz!A:H,3,FALSE),"Brak towaru") -> CobiCabling Patchcord kat. 6A S/FTP LSOH 15m żółty | F50: =IFERROR(VLOOKUP(D50,Arkusz!A:H,6,FALSE),"-") -> Cobi Cu kable krosowe | G50: 0 | H50: =IFERROR(IF(VLOOKUP(D50,Arkusz!A:I,5,FALSE)=0,(IF(VLOOKUP(D50,Arkusz!A:I,11,FALSE)=0,"Na zapytanie",VLOOKUP(D50,Arkusz!A:I,11,FALSE))),(VLOOKUP(D50,Arkusz!A:I,5,FALSE))),"Na zapytanie") -> Na zapytanie | J50: =IFERROR(IF(VLOOKUP(D50,Arkusz!A:H,5,FALSE)=0,IF(H50="Na zapytanie","","EUR"),"PLN"),"") -> 
D51: Kolor zielony RAL6016
D52: C24-1120-0,25 | E52: =IFERROR(VLOOKUP(D52,Arkusz!A:H,3,FALSE),"Brak towaru") -> CobiCabling Patchcord kat. 6A S/FTP LSOH 0,25m zielony | F52: =IFERROR(VLOOKUP(D52,Arkusz!A:H,6,FALSE),"-") -> Cobi Cu kable krosowe | G52: 0 | H52: =IFERROR(IF(VLOOKUP(D52,Arkusz!A:I,5,FALSE)=0,(IF(VLOOKUP(D52,Arkusz!A:I,11,FALSE)=0,"Na zapytanie",VLOOKUP(D52,Arkusz!A:I,11,FALSE))),(VLOOKUP(D52,Arkusz!A:I,5,FALSE))),"Na zapytanie") -> 7.25 | I52: 7.25 | J52: =IFERROR(IF(VLOOKUP(D52,Arkusz!A:H,5,FALSE)=0,IF(H52="Na zapytanie","","EUR"),"PLN"),"") -> PLN
D53: C24-1120-0,5 | E53: =IFERROR(VLOOKUP(D53,Arkusz!A:H,3,FALSE),"Brak towaru") -> CobiCabling Patchcord kat. 6A S/FTP LSOH 0,5m zielony | F53: =IFERROR(VLOOKUP(D53,Arkusz!A:H,6,FALSE),"-") -> Cobi Cu kable krosowe | G53: 0 | H53: =IFERROR(IF(VLOOKUP(D53,Arkusz!A:I,5,FALSE)=0,(IF(VLOOKUP(D53,Arkusz!A:I,11,FALSE)=0,"Na zapytanie",VLOOKUP(D53,Arkusz!A:I,11,FALSE))),(VLOOKUP(D53,Arkusz!A:I,5,FALSE))),"Na zapytanie") -> 8.26 | I53: 8.26 | J53: =IFERROR(IF(VLOOKUP(D53,Arkusz!A:H,5,FALSE)=0,IF(H53="Na zapytanie","","EUR"),"PLN"),"") -> PLN
D54: C24-1120-1,0 | E54: =IFERROR(VLOOKUP(D54,Arkusz!A:H,3,FALSE),"Brak towaru") -> CobiCabling Patchcord kat. 6A S/FTP LSOH 1m zielony | F54: =IFERROR(VLOOKUP(D54,Arkusz!A:H,6,FALSE),"-") -> Cobi Cu kable krosowe | G54: 0 | H54: =IFERROR(IF(VLOOKUP(D54,Arkusz!A:I,5,FALSE)=0,(IF(VLOOKUP(D54,Arkusz!A:I,11,FALSE)=0,"Na zapytanie",VLOOKUP(D54,Arkusz!A:I,11,FALSE))),(VLOOKUP(D54,Arkusz!A:I,5,FALSE))),"Na zapytanie") -> 10.02 | I54: 10.02 | J54: =IFERROR(IF(VLOOKUP(D54,Arkusz!A:H,5,FALSE)=0,IF(H54="Na zapytanie","","EUR"),"PLN"),"") -> PLN
D55: C24-1120-1,5 | E55: =IFERROR(VLOOKUP(D55,Arkusz!A:H,3,FALSE),"Brak towaru") -> CobiCabling Patchcord kat. 6A S/FTP LSOH 1,5m zielony | F55: =IFERROR(VLOOKUP(D55,Arkusz!A:H,6,FALSE),"-") -> Cobi Cu kable krosowe | G55: 0 | H55: =IFERROR(IF(VLOOKUP(D55,Arkusz!A:I,5,FALSE)=0,(IF(VLOOKUP(D55,Arkusz!A:I,11,FALSE)=0,"Na zapytanie",VLOOKUP(D55,Arkusz!A:I,11,FALSE))),(VLOOKUP(D55,Arkusz!A:I,5,FALSE))),"Na zapytanie") -> 11.98 | I55: 11.98 | J55: =IFERROR(IF(VLOOKUP(D55,Arkusz!A:H,5,FALSE)=0,IF(H55="Na zapytanie","","EUR"),"PLN"),"") -> PLN
D56: C24-1120-2,0 | E56: =IFERROR(VLOOKUP(D56,Arkusz!A:H,3,FALSE),"Brak towaru") -> CobiCabling Patchcord kat. 6A S/FTP LSOH 2m zielony | F56: =IFERROR(VLOOKUP(D56,Arkusz!A:H,6,FALSE),"-") -> Cobi Cu kable krosowe | G56: 0 | H56: =IFERROR(IF(VLOOKUP(D56,Arkusz!A:I,5,FALSE)=0,(IF(VLOOKUP(D56,Arkusz!A:I,11,FALSE)=0,"Na zapytanie",VLOOKUP(D56,Arkusz!A:I,11,FALSE))),(VLOOKUP(D56,Arkusz!A:I,5,FALSE))),"Na zapytanie") -> 13.75 | I56: 13.75 | J56: =IFERROR(IF(VLOOKUP(D56,Arkusz!A:H,5,FALSE)=0,IF(H56="Na zapytanie","","EUR"),"PLN"),"") -> PLN
D57: C24-1120-3,0 | E57: =IFERROR(VLOOKUP(D57,Arkusz!A:H,3,FALSE),"Brak towaru") -> CobiCabling Patchcord kat. 6A S/FTP LSOH 3m zielony | F57: =IFERROR(VLOOKUP(D57,Arkusz!A:H,6,FALSE),"-") -> Cobi Cu kable krosowe | G57: 0 | H57: =IFERROR(IF(VLOOKUP(D57,Arkusz!A:I,5,FALSE)=0,(IF(VLOOKUP(D57,Arkusz!A:I,11,FALSE)=0,"Na zapytanie",VLOOKUP(D57,Arkusz!A:I,11,FALSE))),(VLOOKUP(D57,Arkusz!A:I,5,FALSE))),"Na zapytanie") -> 17.39 | I57: 17.39 | J57: =IFERROR(IF(VLOOKUP(D57,Arkusz!A:H,5,FALSE)=0,IF(H57="Na zapytanie","","EUR"),"PLN"),"") -> PLN
D58: C24-1120-5,0 | E58: =IFERROR(VLOOKUP(D58,Arkusz!A:H,3,FALSE),"Brak towaru") -> CobiCabling Patchcord kat. 6A S/FTP LSOH 5m zielony | F58: =IFERROR(VLOOKUP(D58,Arkusz!A:H,6,FALSE),"-") -> Cobi Cu kable krosowe | G58: 0 | H58: =IFERROR(IF(VLOOKUP(D58,Arkusz!A:I,5,FALSE)=0,(IF(VLOOKUP(D58,Arkusz!A:I,11,FALSE)=0,"Na zapytanie",VLOOKUP(D58,Arkusz!A:I,11,FALSE))),(VLOOKUP(D58,Arkusz!A:I,5,FALSE))),"Na zapytanie") -> 25.12 | I58: 25.12 | J58: =IFERROR(IF(VLOOKUP(D58,Arkusz!A:H,5,FALSE)=0,IF(H58="Na zapytanie","","EUR"),"PLN"),"") -> PLN
D59: C24-1120-7,5 | E59: =IFERROR(VLOOKUP(D59,Arkusz!A:H,3,FALSE),"Brak towaru") -> CobiCabling Patchcord kat. 6A S/FTP LSOH 7,5m zielony | F59: =IFERROR(VLOOKUP(D59,Arkusz!A:H,6,FALSE),"-") -> Cobi Cu kable krosowe | G59: 0 | H59: =IFERROR(IF(VLOOKUP(D59,Arkusz!A:I,5,FALSE)=0,(IF(VLOOKUP(D59,Arkusz!A:I,11,FALSE)=0,"Na zapytanie",VLOOKUP(D59,Arkusz!A:I,11,FALSE))),(VLOOKUP(D59,Arkusz!A:I,5,FALSE))),"Na zapytanie") -> Na zapytanie | J59: =IFERROR(IF(VLOOKUP(D59,Arkusz!A:H,5,FALSE)=0,IF(H59="Na zapytanie","","EUR"),"PLN"),"") -> 
D60: C24-1120-10,0 | E60: =IFERROR(VLOOKUP(D60,Arkusz!A:H,3,FALSE),"Brak towaru") -> CobiCabling Patchcord kat. 6A S/FTP LSOH 10m zielony | F60: =IFERROR(VLOOKUP(D60,Arkusz!A:H,6,FALSE),"-") -> Cobi Cu kable krosowe | G60: 0 | H60: =IFERROR(IF(VLOOKUP(D60,Arkusz!A:I,5,FALSE)=0,(IF(VLOOKUP(D60,Arkusz!A:I,11,FALSE)=0,"Na zapytanie",VLOOKUP(D60,Arkusz!A:I,11,FALSE))),(VLOOKUP(D60,Arkusz!A:I,5,FALSE))),"Na zapytanie") -> Na zapytanie | J60: =IFERROR(IF(VLOOKUP(D60,Arkusz!A:H,5,FALSE)=0,IF(H60="Na zapytanie","","EUR"),"PLN"),"") -> 
D61: C24-1120-15,0 | E61: =IFERROR(VLOOKUP(D61,Arkusz!A:H,3,FALSE),"Brak towaru") -> CobiCabling Patchcord kat. 6A S/FTP LSOH 15m zielony | F61: =IFERROR(VLOOKUP(D61,Arkusz!A:H,6,FALSE),"-") -> Cobi Cu kable krosowe | G61: 0 | H61: =IFERROR(IF(VLOOKUP(D61,Arkusz!A:I,5,FALSE)=0,(IF(VLOOKUP(D61,Arkusz!A:I,11,FALSE)=0,"Na zapytanie",VLOOKUP(D61,Arkusz!A:I,11,FALSE))),(VLOOKUP(D61,Arkusz!A:I,5,FALSE))),"Na zapytanie") -> Na zapytanie | J61: =IFERROR(IF(VLOOKUP(D61,Arkusz!A:H,5,FALSE)=0,IF(H61="Na zapytanie","","EUR"),"PLN"),"") -> 
D62: Kolor niebieski RAL5010
D63: C24-1130-0,25 | E63: =IFERROR(VLOOKUP(D63,Arkusz!A:H,3,FALSE),"Brak towaru") -> CobiCabling Patchcord kat. 6A S/FTP LSOH 0,25m niebieski | F63: =IFERROR(VLOOKUP(D63,Arkusz!A:H,6,FALSE),"-") -> Cobi Cu kable krosowe | G63: 0 | H63: =IFERROR(IF(VLOOKUP(D63,Arkusz!A:I,5,FALSE)=0,(IF(VLOOKUP(D63,Arkusz!A:I,11,FALSE)=0,"Na zapytanie",VLOOKUP(D63,Arkusz!A:I,11,FALSE))),(VLOOKUP(D63,Arkusz!A:I,5,FALSE))),"Na zapytanie") -> 7.25 | I63: 7.25 | J63: =IFERROR(IF(VLOOKUP(D63,Arkusz!A:H,5,FALSE)=0,IF(H63="Na zapytanie","","EUR"),"PLN"),"") -> PLN
D64: C24-1130-0,5 | E64: =IFERROR(VLOOKUP(D64,Arkusz!A:H,3,FALSE),"Brak towaru") -> CobiCabling Patchcord kat. 6A S/FTP LSOH 0,5m niebieski | F64: =IFERROR(VLOOKUP(D64,Arkusz!A:H,6,FALSE),"-") -> Cobi Cu kable krosowe | G64: 0 | H64: =IFERROR(IF(VLOOKUP(D64,Arkusz!A:I,5,FALSE)=0,(IF(VLOOKUP(D64,Arkusz!A:I,11,FALSE)=0,"Na zapytanie",VLOOKUP(D64,Arkusz!A:I,11,FALSE))),(VLOOKUP(D64,Arkusz!A:I,5,FALSE))),"Na zapytanie") -> 8.26 | I64: 8.26 | J64: =IFERROR(IF(VLOOKUP(D64,Arkusz!A:H,5,FALSE)=0,IF(H64="Na zapytanie","","EUR"),"PLN"),"") -> PLN
D65: C24-1130-1,0 | E65: =IFERROR(VLOOKUP(D65,Arkusz!A:H,3,FALSE),"Brak towaru") -> CobiCabling Patchcord kat. 6A S/FTP LSOH 1m niebieski | F65: =IFERROR(VLOOKUP(D65,Arkusz!A:H,6,FALSE),"-") -> Cobi Cu kable krosowe | G65: 0 | H65: =IFERROR(IF(VLOOKUP(D65,Arkusz!A:I,5,FALSE)=0,(IF(VLOOKUP(D65,Arkusz!A:I,11,FALSE)=0,"Na zapytanie",VLOOKUP(D65,Arkusz!A:I,11,FALSE))),(VLOOKUP(D65,Arkusz!A:I,5,FALSE))),"Na zapytanie") -> 10.02 | I65: 10.02 | J65: =IFERROR(IF(VLOOKUP(D65,Arkusz!A:H,5,FALSE)=0,IF(H65="Na zapytanie","","EUR"),"PLN"),"") -> PLN
D66: C24-1130-1,5 | E66: =IFERROR(VLOOKUP(D66,Arkusz!A:H,3,FALSE),"Brak towaru") -> CobiCabling Patchcord kat. 6A S/FTP LSOH 1,5m niebieski | F66: =IFERROR(VLOOKUP(D66,Arkusz!A:H,6,FALSE),"-") -> Cobi Cu kable krosowe | G66: 0 | H66: =IFERROR(IF(VLOOKUP(D66,Arkusz!A:I,5,FALSE)=0,(IF(VLOOKUP(D66,Arkusz!A:I,11,FALSE)=0,"Na zapytanie",VLOOKUP(D66,Arkusz!A:I,11,FALSE))),(VLOOKUP(D66,Arkusz!A:I,5,FALSE))),"Na zapytanie") -> 11.98 | I66: 11.98 | J66: =IFERROR(IF(VLOOKUP(D66,Arkusz!A:H,5,FALSE)=0,IF(H66="Na zapytanie","","EUR"),"PLN"),"") -> PLN
D67: C24-1130-2,0 | E67: =IFERROR(VLOOKUP(D67,Arkusz!A:H,3,FALSE),"Brak towaru") -> CobiCabling Patchcord kat. 6A S/FTP LSOH 2m niebieski | F67: =IFERROR(VLOOKUP(D67,Arkusz!A:H,6,FALSE),"-") -> Cobi Cu kable krosowe | G67: 0 | H67: =IFERROR(IF(VLOOKUP(D67,Arkusz!A:I,5,FALSE)=0,(IF(VLOOKUP(D67,Arkusz!A:I,11,FALSE)=0,"Na zapytanie",VLOOKUP(D67,Arkusz!A:I,11,FALSE))),(VLOOKUP(D67,Arkusz!A:I,5,FALSE))),"Na zapytanie") -> 13.75 | I67: 13.75 | J67: =IFERROR(IF(VLOOKUP(D67,Arkusz!A:H,5,FALSE)=0,IF(H67="Na zapytanie","","EUR"),"PLN"),"") -> PLN
D68: C24-1130-3,0 | E68: =IFERROR(VLOOKUP(D68,Arkusz!A:H,3,FALSE),"Brak towaru") -> CobiCabling Patchcord kat. 6A S/FTP LSOH 3m niebieski | F68: =IFERROR(VLOOKUP(D68,Arkusz!A:H,6,FALSE),"-") -> Cobi Cu kable krosowe | G68: 0 | H68: =IFERROR(IF(VLOOKUP(D68,Arkusz!A:I,5,FALSE)=0,(IF(VLOOKUP(D68,Arkusz!A:I,11,FALSE)=0,"Na zapytanie",VLOOKUP(D68,Arkusz!A:I,11,FALSE))),(VLOOKUP(D68,Arkusz!A:I,5,FALSE))),"Na zapytanie") -> 17.39 | I68: 17.39 | J68: =IFERROR(IF(VLOOKUP(D68,Arkusz!A:H,5,FALSE)=0,IF(H68="Na zapytanie","","EUR"),"PLN"),"") -> PLN
D69: C24-1130-5,0 | E69: =IFERROR(VLOOKUP(D69,Arkusz!A:H,3,FALSE),"Brak towaru") -> CobiCabling Patchcord kat. 6A S/FTP LSOH 5m niebieski | F69: =IFERROR(VLOOKUP(D69,Arkusz!A:H,6,FALSE),"-") -> Cobi Cu kable krosowe | G69: 0 | H69: =IFERROR(IF(VLOOKUP(D69,Arkusz!A:I,5,FALSE)=0,(IF(VLOOKUP(D69,Arkusz!A:I,11,FALSE)=0,"Na zapytanie",VLOOKUP(D69,Arkusz!A:I,11,FALSE))),(VLOOKUP(D69,Arkusz!A:I,5,FALSE))),"Na zapytanie") -> 24.53 | I69: 24.53 | J69: =IFERROR(IF(VLOOKUP(D69,Arkusz!A:H,5,FALSE)=0,IF(H69="Na zapytanie","","EUR"),"PLN"),"") -> PLN
D70: C24-1130-7,5 | E70: =IFERROR(VLOOKUP(D70,Arkusz!A:H,3,FALSE),"Brak towaru") -> CobiCabling Patchcord kat. 6A S/FTP LSOH 7,5m niebieski | F70: =IFERROR(VLOOKUP(D70,Arkusz!A:H,6,FALSE),"-") -> Cobi Cu kable krosowe | G70: 0 | H70: =IFERROR(IF(VLOOKUP(D70,Arkusz!A:I,5,FALSE)=0,(IF(VLOOKUP(D70,Arkusz!A:I,11,FALSE)=0,"Na zapytanie",VLOOKUP(D70,Arkusz!A:I,11,FALSE))),(VLOOKUP(D70,Arkusz!A:I,5,FALSE))),"Na zapytanie") -> Na zapytanie | I70: =IFERROR(IF(H70="Na zapytanie","",H70*(1-G70)),"") ->  | J70: =IFERROR(IF(VLOOKUP(D70,Arkusz!A:H,5,FALSE)=0,IF(H70="Na zapytanie","","EUR"),"PLN"),"") -> 
D71: C24-1130-10,0 | E71: =IFERROR(VLOOKUP(D71,Arkusz!A:H,3,FALSE),"Brak towaru") -> CobiCabling Patchcord kat. 6A S/FTP LSOH 10m niebieski | F71: =IFERROR(VLOOKUP(D71,Arkusz!A:H,6,FALSE),"-") -> Cobi Cu kable krosowe | G71: 0 | H71: =IFERROR(IF(VLOOKUP(D71,Arkusz!A:I,5,FALSE)=0,(IF(VLOOKUP(D71,Arkusz!A:I,11,FALSE)=0,"Na zapytanie",VLOOKUP(D71,Arkusz!A:I,11,FALSE))),(VLOOKUP(D71,Arkusz!A:I,5,FALSE))),"Na zapytanie") -> 51.8 | I71: 51.8 | J71: =IFERROR(IF(VLOOKUP(D71,Arkusz!A:H,5,FALSE)=0,IF(H71="Na zapytanie","","EUR"),"PLN"),"") -> PLN
D72: C24-1130-15,0 | E72: =IFERROR(VLOOKUP(D72,Arkusz!A:H,3,FALSE),"Brak towaru") -> CobiCabling Patchcord kat. 6A S/FTP LSOH 15m niebieski | F72: =IFERROR(VLOOKUP(D72,Arkusz!A:H,6,FALSE),"-") -> Cobi Cu kable krosowe | G72: 0 | H72: =IFERROR(IF(VLOOKUP(D72,Arkusz!A:I,5,FALSE)=0,(IF(VLOOKUP(D72,Arkusz!A:I,11,FALSE)=0,"Na zapytanie",VLOOKUP(D72,Arkusz!A:I,11,FALSE))),(VLOOKUP(D72,Arkusz!A:I,5,FALSE))),"Na zapytanie") -> 74.2 | I72: 74.2 | J72: =IFERROR(IF(VLOOKUP(D72,Arkusz!A:H,5,FALSE)=0,IF(H72="Na zapytanie","","EUR"),"PLN"),"") -> PLN
D73: Kolor czerwony RAL3000
D74: C24-1140-0,25 | E74: =IFERROR(VLOOKUP(D74,Arkusz!A:H,3,FALSE),"Brak towaru") -> CobiCabling Patchcord kat. 6A S/FTP LSOH 0,25m czerwony | F74: =IFERROR(VLOOKUP(D74,Arkusz!A:H,6,FALSE),"-") -> Cobi Cu kable krosowe | G74: 0 | H74: =IFERROR(IF(VLOOKUP(D74,Arkusz!A:I,5,FALSE)=0,(IF(VLOOKUP(D74,Arkusz!A:I,11,FALSE)=0,"Na zapytanie",VLOOKUP(D74,Arkusz!A:I,11,FALSE))),(VLOOKUP(D74,Arkusz!A:I,5,FALSE))),"Na zapytanie") -> 7.25 | I74: 7.25 | J74: =IFERROR(IF(VLOOKUP(D74,Arkusz!A:H,5,FALSE)=0,IF(H74="Na zapytanie","","EUR"),"PLN"),"") -> PLN
D75: C24-1140-0,5 | E75: =IFERROR(VLOOKUP(D75,Arkusz!A:H,3,FALSE),"Brak towaru") -> CobiCabling Patchcord kat. 6A S/FTP LSOH 0,5m czerwony | F75: =IFERROR(VLOOKUP(D75,Arkusz!A:H,6,FALSE),"-") -> Cobi Cu kable krosowe | G75: 0 | H75: =IFERROR(IF(VLOOKUP(D75,Arkusz!A:I,5,FALSE)=0,(IF(VLOOKUP(D75,Arkusz!A:I,11,FALSE)=0,"Na zapytanie",VLOOKUP(D75,Arkusz!A:I,11,FALSE))),(VLOOKUP(D75,Arkusz!A:I,5,FALSE))),"Na zapytanie") -> 8.26 | I75: 8.26 | J75: =IFERROR(IF(VLOOKUP(D75,Arkusz!A:H,5,FALSE)=0,IF(H75="Na zapytanie","","EUR"),"PLN"),"") -> PLN
D76: C24-1140-1,0 | E76: =IFERROR(VLOOKUP(D76,Arkusz!A:H,3,FALSE),"Brak towaru") -> CobiCabling Patchcord kat. 6A S/FTP LSOH 1m czerwony | F76: =IFERROR(VLOOKUP(D76,Arkusz!A:H,6,FALSE),"-") -> Cobi Cu kable krosowe | G76: 0 | H76: =IFERROR(IF(VLOOKUP(D76,Arkusz!A:I,5,FALSE)=0,(IF(VLOOKUP(D76,Arkusz!A:I,11,FALSE)=0,"Na zapytanie",VLOOKUP(D76,Arkusz!A:I,11,FALSE))),(VLOOKUP(D76,Arkusz!A:I,5,FALSE))),"Na zapytanie") -> 10.02 | I76: 10.02 | J76: =IFERROR(IF(VLOOKUP(D76,Arkusz!A:H,5,FALSE)=0,IF(H76="Na zapytanie","","EUR"),"PLN"),"") -> PLN
D77: C24-1140-1,5 | E77: =IFERROR(VLOOKUP(D77,Arkusz!A:H,3,FALSE),"Brak towaru") -> CobiCabling Patchcord kat. 6A S/FTP LSOH 1,5m czerwony | F77: =IFERROR(VLOOKUP(D77,Arkusz!A:H,6,FALSE),"-") -> Cobi Cu kable krosowe | G77: 0 | H77: =IFERROR(IF(VLOOKUP(D77,Arkusz!A:I,5,FALSE)=0,(IF(VLOOKUP(D77,Arkusz!A:I,11,FALSE)=0,"Na zapytanie",VLOOKUP(D77,Arkusz!A:I,11,FALSE))),(VLOOKUP(D77,Arkusz!A:I,5,FALSE))),"Na zapytanie") -> 12.07 | I77: 12.07 | J77: =IFERROR(IF(VLOOKUP(D77,Arkusz!A:H,5,FALSE)=0,IF(H77="Na zapytanie","","EUR"),"PLN"),"") -> PLN
D78: C24-1140-2,0 | E78: =IFERROR(VLOOKUP(D78,Arkusz!A:H,3,FALSE),"Brak towaru") -> CobiCabling Patchcord kat. 6A S/FTP LSOH 2m czerwony | F78: =IFERROR(VLOOKUP(D78,Arkusz!A:H,6,FALSE),"-") -> Cobi Cu kable krosowe | G78: 0 | H78: =IFERROR(IF(VLOOKUP(D78,Arkusz!A:I,5,FALSE)=0,(IF(VLOOKUP(D78,Arkusz!A:I,11,FALSE)=0,"Na zapytanie",VLOOKUP(D78,Arkusz!A:I,11,FALSE))),(VLOOKUP(D78,Arkusz!A:I,5,FALSE))),"Na zapytanie") -> 13.75 | I78: 13.75 | J78: =IFERROR(IF(VLOOKUP(D78,Arkusz!A:H,5,FALSE)=0,IF(H78="Na zapytanie","","EUR"),"PLN"),"") -> PLN
D79: C24-1140-3,0 | E79: =IFERROR(VLOOKUP(D79,Arkusz!A:H,3,FALSE),"Brak towaru") -> CobiCabling Patchcord kat. 6A S/FTP LSOH 3m czerwony | F79: =IFERROR(VLOOKUP(D79,Arkusz!A:H,6,FALSE),"-") -> Cobi Cu kable krosowe | G79: 0 | H79: =IFERROR(IF(VLOOKUP(D79,Arkusz!A:I,5,FALSE)=0,(IF(VLOOKUP(D79,Arkusz!A:I,11,FALSE)=0,"Na zapytanie",VLOOKUP(D79,Arkusz!A:I,11,FALSE))),(VLOOKUP(D79,Arkusz!A:I,5,FALSE))),"Na zapytanie") -> 17.39 | I79: 17.39 | J79: =IFERROR(IF(VLOOKUP(D79,Arkusz!A:H,5,FALSE)=0,IF(H79="Na zapytanie","","EUR"),"PLN"),"") -> PLN
D80: C24-1140-5,0 | E80: =IFERROR(VLOOKUP(D80,Arkusz!A:H,3,FALSE),"Brak towaru") -> CobiCabling Patchcord kat. 6A S/FTP LSOH 5m czerwony | F80: =IFERROR(VLOOKUP(D80,Arkusz!A:H,6,FALSE),"-") -> Cobi Cu kable krosowe | G80: 0 | H80: =IFERROR(IF(VLOOKUP(D80,Arkusz!A:I,5,FALSE)=0,(IF(VLOOKUP(D80,Arkusz!A:I,11,FALSE)=0,"Na zapytanie",VLOOKUP(D80,Arkusz!A:I,11,FALSE))),(VLOOKUP(D80,Arkusz!A:I,5,FALSE))),"Na zapytanie") -> 25.37 | I80: 25.37 | J80: =IFERROR(IF(VLOOKUP(D80,Arkusz!A:H,5,FALSE)=0,IF(H80="Na zapytanie","","EUR"),"PLN"),"") -> PLN
D81: C24-1140-7,5 | E81: =IFERROR(VLOOKUP(D81,Arkusz!A:H,3,FALSE),"Brak towaru") -> CobiCabling Patchcord kat. 6A S/FTP LSOH 7,5m czerwony | F81: =IFERROR(VLOOKUP(D81,Arkusz!A:H,6,FALSE),"-") -> Cobi Cu kable krosowe | G81: 0 | H81: =IFERROR(IF(VLOOKUP(D81,Arkusz!A:I,5,FALSE)=0,(IF(VLOOKUP(D81,Arkusz!A:I,11,FALSE)=0,"Na zapytanie",VLOOKUP(D81,Arkusz!A:I,11,FALSE))),(VLOOKUP(D81,Arkusz!A:I,5,FALSE))),"Na zapytanie") -> Na zapytanie | J81: =IFERROR(IF(VLOOKUP(D81,Arkusz!A:H,5,FALSE)=0,IF(H81="Na zapytanie","","EUR"),"PLN"),"") -> 
D82: C24-1140-10,0 | E82: =IFERROR(VLOOKUP(D82,Arkusz!A:H,3,FALSE),"Brak towaru") -> CobiCabling Patchcord kat. 6A S/FTP LSOH 10m czerwony | F82: =IFERROR(VLOOKUP(D82,Arkusz!A:H,6,FALSE),"-") -> Cobi Cu kable krosowe | G82: 0 | H82: =IFERROR(IF(VLOOKUP(D82,Arkusz!A:I,5,FALSE)=0,(IF(VLOOKUP(D82,Arkusz!A:I,11,FALSE)=0,"Na zapytanie",VLOOKUP(D82,Arkusz!A:I,11,FALSE))),(VLOOKUP(D82,Arkusz!A:I,5,FALSE))),"Na zapytanie") -> Na zapytanie | J82: =IFERROR(IF(VLOOKUP(D82,Arkusz!A:H,5,FALSE)=0,IF(H82="Na zapytanie","","EUR"),"PLN"),"") -> 
D83: C24-1140-15,0 | E83: =IFERROR(VLOOKUP(D83,Arkusz!A:H,3,FALSE),"Brak towaru") -> CobiCabling Patchcord kat. 6A S/FTP LSOH 15m czerwony | F83: =IFERROR(VLOOKUP(D83,Arkusz!A:H,6,FALSE),"-") -> Cobi Cu kable krosowe | G83: 0 | H83: =IFERROR(IF(VLOOKUP(D83,Arkusz!A:I,5,FALSE)=0,(IF(VLOOKUP(D83,Arkusz!A:I,11,FALSE)=0,"Na zapytanie",VLOOKUP(D83,Arkusz!A:I,11,FALSE))),(VLOOKUP(D83,Arkusz!A:I,5,FALSE))),"Na zapytanie") -> Na zapytanie | J83: =IFERROR(IF(VLOOKUP(D83,Arkusz!A:H,5,FALSE)=0,IF(H83="Na zapytanie","","EUR"),"PLN"),"") -> 
D84: Kolor czarny RAL9005
D85: C24-1150-0,25 | E85: =IFERROR(VLOOKUP(D85,Arkusz!A:H,3,FALSE),"Brak towaru") -> CobiCabling Patchcord kat. 6A S/FTP LSOH 0,25m czarny | F85: =IFERROR(VLOOKUP(D85,Arkusz!A:H,6,FALSE),"-") -> Cobi Cu kable krosowe | G85: 0 | H85: =IFERROR(IF(VLOOKUP(D85,Arkusz!A:I,5,FALSE)=0,(IF(VLOOKUP(D85,Arkusz!A:I,11,FALSE)=0,"Na zapytanie",VLOOKUP(D85,Arkusz!A:I,11,FALSE))),(VLOOKUP(D85,Arkusz!A:I,5,FALSE))),"Na zapytanie") -> 7.25 | I85: 7.25 | J85: =IFERROR(IF(VLOOKUP(D85,Arkusz!A:H,5,FALSE)=0,IF(H85="Na zapytanie","","EUR"),"PLN"),"") -> PLN
D86: C24-1150-0,5 | E86: =IFERROR(VLOOKUP(D86,Arkusz!A:H,3,FALSE),"Brak towaru") -> CobiCabling Patchcord kat. 6A S/FTP LSOH 0,5m czarny | F86: =IFERROR(VLOOKUP(D86,Arkusz!A:H,6,FALSE),"-") -> Cobi Cu kable krosowe | G86: 0 | H86: =IFERROR(IF(VLOOKUP(D86,Arkusz!A:I,5,FALSE)=0,(IF(VLOOKUP(D86,Arkusz!A:I,11,FALSE)=0,"Na zapytanie",VLOOKUP(D86,Arkusz!A:I,11,FALSE))),(VLOOKUP(D86,Arkusz!A:I,5,FALSE))),"Na zapytanie") -> 8.26 | I86: 8.26 | J86: =IFERROR(IF(VLOOKUP(D86,Arkusz!A:H,5,FALSE)=0,IF(H86="Na zapytanie","","EUR"),"PLN"),"") -> PLN
D87: C24-1150-1,0 | E87: =IFERROR(VLOOKUP(D87,Arkusz!A:H,3,FALSE),"Brak towaru") -> CobiCabling Patchcord kat. 6A S/FTP LSOH 1m czarny | F87: =IFERROR(VLOOKUP(D87,Arkusz!A:H,6,FALSE),"-") -> Cobi Cu kable krosowe | G87: 0 | H87: =IFERROR(IF(VLOOKUP(D87,Arkusz!A:I,5,FALSE)=0,(IF(VLOOKUP(D87,Arkusz!A:I,11,FALSE)=0,"Na zapytanie",VLOOKUP(D87,Arkusz!A:I,11,FALSE))),(VLOOKUP(D87,Arkusz!A:I,5,FALSE))),"Na zapytanie") -> 10.02 | I87: 10.02 | J87: =IFERROR(IF(VLOOKUP(D87,Arkusz!A:H,5,FALSE)=0,IF(H87="Na zapytanie","","EUR"),"PLN"),"") -> PLN
D88: C24-1150-1,5 | E88: =IFERROR(VLOOKUP(D88,Arkusz!A:H,3,FALSE),"Brak towaru") -> CobiCabling Patchcord kat. 6A S/FTP LSOH 1,5m czarny | F88: =IFERROR(VLOOKUP(D88,Arkusz!A:H,6,FALSE),"-") -> Cobi Cu kable krosowe | G88: 0 | H88: =IFERROR(IF(VLOOKUP(D88,Arkusz!A:I,5,FALSE)=0,(IF(VLOOKUP(D88,Arkusz!A:I,11,FALSE)=0,"Na zapytanie",VLOOKUP(D88,Arkusz!A:I,11,FALSE))),(VLOOKUP(D88,Arkusz!A:I,5,FALSE))),"Na zapytanie") -> 11.98 | I88: 11.98 | J88: =IFERROR(IF(VLOOKUP(D88,Arkusz!A:H,5,FALSE)=0,IF(H88="Na zapytanie","","EUR"),"PLN"),"") -> PLN
D89: C24-1150-2,0 | E89: =IFERROR(VLOOKUP(D89,Arkusz!A:H,3,FALSE),"Brak towaru") -> CobiCabling Patchcord kat. 6A S/FTP LSOH 2m czarny | F89: =IFERROR(VLOOKUP(D89,Arkusz!A:H,6,FALSE),"-") -> Cobi Cu kable krosowe | G89: 0 | H89: =IFERROR(IF(VLOOKUP(D89,Arkusz!A:I,5,FALSE)=0,(IF(VLOOKUP(D89,Arkusz!A:I,11,FALSE)=0,"Na zapytanie",VLOOKUP(D89,Arkusz!A:I,11,FALSE))),(VLOOKUP(D89,Arkusz!A:I,5,FALSE))),"Na zapytanie") -> 13.75 | I89: 13.75 | J89: =IFERROR(IF(VLOOKUP(D89,Arkusz!A:H,5,FALSE)=0,IF(H89="Na zapytanie","","EUR"),"PLN"),"") -> PLN
D90: C24-1150-3,0 | E90: =IFERROR(VLOOKUP(D90,Arkusz!A:H,3,FALSE),"Brak towaru") -> CobiCabling Patchcord kat. 6A S/FTP LSOH 3m czarny | F90: =IFERROR(VLOOKUP(D90,Arkusz!A:H,6,FALSE),"-") -> Cobi Cu kable krosowe | G90: 0 | H90: =IFERROR(IF(VLOOKUP(D90,Arkusz!A:I,5,FALSE)=0,(IF(VLOOKUP(D90,Arkusz!A:I,11,FALSE)=0,"Na zapytanie",VLOOKUP(D90,Arkusz!A:I,11,FALSE))),(VLOOKUP(D90,Arkusz!A:I,5,FALSE))),"Na zapytanie") -> 17.39 | I90: 17.39 | J90: =IFERROR(IF(VLOOKUP(D90,Arkusz!A:H,5,FALSE)=0,IF(H90="Na zapytanie","","EUR"),"PLN"),"") -> PLN
D91: C24-1150-5,0 | E91: =IFERROR(VLOOKUP(D91,Arkusz!A:H,3,FALSE),"Brak towaru") -> CobiCabling Patchcord kat. 6A S/FTP LSOH 5m czarny | F91: =IFERROR(VLOOKUP(D91,Arkusz!A:H,6,FALSE),"-") -> Cobi Cu kable krosowe | G91: 0 | H91: =IFERROR(IF(VLOOKUP(D91,Arkusz!A:I,5,FALSE)=0,(IF(VLOOKUP(D91,Arkusz!A:I,11,FALSE)=0,"Na zapytanie",VLOOKUP(D91,Arkusz!A:I,11,FALSE))),(VLOOKUP(D91,Arkusz!A:I,5,FALSE))),"Na zapytanie") -> 27.02 | I91: 27.02 | J91: =IFERROR(IF(VLOOKUP(D91,Arkusz!A:H,5,FALSE)=0,IF(H91="Na zapytanie","","EUR"),"PLN"),"") -> PLN
D92: C24-1150-7,5 | E92: =IFERROR(VLOOKUP(D92,Arkusz!A:H,3,FALSE),"Brak towaru") -> CobiCabling Patchcord kat. 6A S/FTP LSOH 7,5m czarny | F92: =IFERROR(VLOOKUP(D92,Arkusz!A:H,6,FALSE),"-") -> Cobi Cu kable krosowe | G92: 0 | H92: =IFERROR(IF(VLOOKUP(D92,Arkusz!A:I,5,FALSE)=0,(IF(VLOOKUP(D92,Arkusz!A:I,11,FALSE)=0,"Na zapytanie",VLOOKUP(D92,Arkusz!A:I,11,FALSE))),(VLOOKUP(D92,Arkusz!A:I,5,FALSE))),"Na zapytanie") -> Na zapytanie | J92: =IFERROR(IF(VLOOKUP(D92,Arkusz!A:H,5,FALSE)=0,IF(H92="Na zapytanie","","EUR"),"PLN"),"") -> 
D93: C24-1150-10,0 | E93: =IFERROR(VLOOKUP(D93,Arkusz!A:H,3,FALSE),"Brak towaru") -> CobiCabling Patchcord kat. 6A S/FTP LSOH 10m czarny | F93: =IFERROR(VLOOKUP(D93,Arkusz!A:H,6,FALSE),"-") -> Cobi Cu kable krosowe | G93: 0 | H93: =IFERROR(IF(VLOOKUP(D93,Arkusz!A:I,5,FALSE)=0,(IF(VLOOKUP(D93,Arkusz!A:I,11,FALSE)=0,"Na zapytanie",VLOOKUP(D93,Arkusz!A:I,11,FALSE))),(VLOOKUP(D93,Arkusz!A:I,5,FALSE))),"Na zapytanie") -> Na zapytanie | J93: =IFERROR(IF(VLOOKUP(D93,Arkusz!A:H,5,FALSE)=0,IF(H93="Na zapytanie","","EUR"),"PLN"),"") -> 
D94: C24-1150-15,0 | E94: =IFERROR(VLOOKUP(D94,Arkusz!A:H,3,FALSE),"Brak towaru") -> CobiCabling Patchcord kat. 6A S/FTP LSOH 15m czarny | F94: =IFERROR(VLOOKUP(D94,Arkusz!A:H,6,FALSE),"-") -> Cobi Cu kable krosowe | G94: 0 | H94: =IFERROR(IF(VLOOKUP(D94,Arkusz!A:I,5,FALSE)=0,(IF(VLOOKUP(D94,Arkusz!A:I,11,FALSE)=0,"Na zapytanie",VLOOKUP(D94,Arkusz!A:I,11,FALSE))),(VLOOKUP(D94,Arkusz!A:I,5,FALSE))),"Na zapytanie") -> Na zapytanie | I94: =IFERROR(IF(H94="Na zapytanie","",H94*(1-G94)),"") ->  | J94: =IFERROR(IF(VLOOKUP(D94,Arkusz!A:H,5,FALSE)=0,IF(H94="Na zapytanie","","EUR"),"PLN"),"") -> 
C95: Kable krosowe nieekranowane
D96: Kolor szary RAL7004
D97: C14-1100-0,25 | E97: =IFERROR(VLOOKUP(D97,Arkusz!A:H,3,FALSE),"Brak towaru") -> CobiCabling Patchcord kat. 6A U/UTP LSOH 0,25m szary | F97: =IFERROR(VLOOKUP(D97,Arkusz!A:H,6,FALSE),"-") -> Cobi Cu kable krosowe | G97: 0 | H97: =IFERROR(IF(VLOOKUP(D97,Arkusz!A:I,5,FALSE)=0,(IF(VLOOKUP(D97,Arkusz!A:I,11,FALSE)=0,"Na zapytanie",VLOOKUP(D97,Arkusz!A:I,11,FALSE))),(VLOOKUP(D97,Arkusz!A:I,5,FALSE))),"Na zapytanie") -> 5.26 | I97: 5.26 | J97: =IFERROR(IF(VLOOKUP(D97,Arkusz!A:H,5,FALSE)=0,IF(H97="Na zapytanie","","EUR"),"PLN"),"") -> PLN
D98: C14-1100-0,5 | E98: =IFERROR(VLOOKUP(D98,Arkusz!A:H,3,FALSE),"Brak towaru") -> CobiCabling Patchcord kat. 6A U/UTP LSOH 0,5m szary | F98: =IFERROR(VLOOKUP(D98,Arkusz!A:H,6,FALSE),"-") -> Cobi Cu kable krosowe | G98: 0 | H98: =IFERROR(IF(VLOOKUP(D98,Arkusz!A:I,5,FALSE)=0,(IF(VLOOKUP(D98,Arkusz!A:I,11,FALSE)=0,"Na zapytanie",VLOOKUP(D98,Arkusz!A:I,11,FALSE))),(VLOOKUP(D98,Arkusz!A:I,5,FALSE))),"Na zapytanie") -> 5.94 | I98: 5.94 | J98: =IFERROR(IF(VLOOKUP(D98,Arkusz!A:H,5,FALSE)=0,IF(H98="Na zapytanie","","EUR"),"PLN"),"") -> PLN
D99: C14-1100-1,0 | E99: =IFERROR(VLOOKUP(D99,Arkusz!A:H,3,FALSE),"Brak towaru") -> CobiCabling Patchcord kat. 6A U/UTP LSOH 1m szary | F99: =IFERROR(VLOOKUP(D99,Arkusz!A:H,6,FALSE),"-") -> Cobi Cu kable krosowe | G99: 0 | H99: =IFERROR(IF(VLOOKUP(D99,Arkusz!A:I,5,FALSE)=0,(IF(VLOOKUP(D99,Arkusz!A:I,11,FALSE)=0,"Na zapytanie",VLOOKUP(D99,Arkusz!A:I,11,FALSE))),(VLOOKUP(D99,Arkusz!A:I,5,FALSE))),"Na zapytanie") -> 7.17 | I99: 7.17 | J99: =IFERROR(IF(VLOOKUP(D99,Arkusz!A:H,5,FALSE)=0,IF(H99="Na zapytanie","","EUR"),"PLN"),"") -> PLN
D100: C14-1100-1,5 | E100: =IFERROR(VLOOKUP(D100,Arkusz!A:H,3,FALSE),"Brak towaru") -> CobiCabling Patchcord kat. 6A U/UTP LSOH 1,5m szary | F100: =IFERROR(VLOOKUP(D100,Arkusz!A:H,6,FALSE),"-") -> Cobi Cu kable krosowe | G100: 0 | H100: =IFERROR(IF(VLOOKUP(D100,Arkusz!A:I,5,FALSE)=0,(IF(VLOOKUP(D100,Arkusz!A:I,11,FALSE)=0,"Na zapytanie",VLOOKUP(D100,Arkusz!A:I,11,FALSE))),(VLOOKUP(D100,Arkusz!A:I,5,FALSE))),"Na zapytanie") -> 8.6 | I100: 8.6 | J100: =IFERROR(IF(VLOOKUP(D100,Arkusz!A:H,5,FALSE)=0,IF(H100="Na zapytanie","","EUR"),"PLN"),"") -> PLN
D101: C14-1100-2,0 | E101: =IFERROR(VLOOKUP(D101,Arkusz!A:H,3,FALSE),"Brak towaru") -> CobiCabling Patchcord kat. 6A U/UTP LSOH 2m szary | F101: =IFERROR(VLOOKUP(D101,Arkusz!A:H,6,FALSE),"-") -> Cobi Cu kable krosowe | G101: 0 | H101: =IFERROR(IF(VLOOKUP(D101,Arkusz!A:I,5,FALSE)=0,(IF(VLOOKUP(D101,Arkusz!A:I,11,FALSE)=0,"Na zapytanie",VLOOKUP(D101,Arkusz!A:I,11,FALSE))),(VLOOKUP(D101,Arkusz!A:I,5,FALSE))),"Na zapytanie") -> 10.36 | I101: 10.36 | J101: =IFERROR(IF(VLOOKUP(D101,Arkusz!A:H,5,FALSE)=0,IF(H101="Na zapytanie","","EUR"),"PLN"),"") -> PLN
D102: C14-1100-3,0 | E102: =IFERROR(VLOOKUP(D102,Arkusz!A:H,3,FALSE),"Brak towaru") -> CobiCabling Patchcord kat. 6A U/UTP LSOH 3m szary | F102: =IFERROR(VLOOKUP(D102,Arkusz!A:H,6,FALSE),"-") -> Cobi Cu kable krosowe | G102: 0 | H102: =IFERROR(IF(VLOOKUP(D102,Arkusz!A:I,5,FALSE)=0,(IF(VLOOKUP(D102,Arkusz!A:I,11,FALSE)=0,"Na zapytanie",VLOOKUP(D102,Arkusz!A:I,11,FALSE))),(VLOOKUP(D102,Arkusz!A:I,5,FALSE))),"Na zapytanie") -> 13.19 | I102: 13.19 | J102: =IFERROR(IF(VLOOKUP(D102,Arkusz!A:H,5,FALSE)=0,IF(H102="Na zapytanie","","EUR"),"PLN"),"") -> PLN
D103: C14-1100-5,0 | E103: =IFERROR(VLOOKUP(D103,Arkusz!A:H,3,FALSE),"Brak towaru") -> CobiCabling Patchcord kat. 6A U/UTP LSOH 5m szary | F103: =IFERROR(VLOOKUP(D103,Arkusz!A:H,6,FALSE),"-") -> Cobi Cu kable krosowe | G103: 0 | H103: =IFERROR(IF(VLOOKUP(D103,Arkusz!A:I,5,FALSE)=0,(IF(VLOOKUP(D103,Arkusz!A:I,11,FALSE)=0,"Na zapytanie",VLOOKUP(D103,Arkusz!A:I,11,FALSE))),(VLOOKUP(D103,Arkusz!A:I,5,FALSE))),"Na zapytanie") -> 19.6 | I103: 19.6 | J103: =IFERROR(IF(VLOOKUP(D103,Arkusz!A:H,5,FALSE)=0,IF(H103="Na zapytanie","","EUR"),"PLN"),"") -> PLN
D104: C14-1100-7,5 | E104: =IFERROR(VLOOKUP(D104,Arkusz!A:H,3,FALSE),"Brak towaru") -> CobiCabling Patchcord kat. 6A U/UTP LSOH 7,5m szary | F104: =IFERROR(VLOOKUP(D104,Arkusz!A:H,6,FALSE),"-") -> Cobi Cu kable krosowe | G104: 0 | H104: =IFERROR(IF(VLOOKUP(D104,Arkusz!A:I,5,FALSE)=0,(IF(VLOOKUP(D104,Arkusz!A:I,11,FALSE)=0,"Na zapytanie",VLOOKUP(D104,Arkusz!A:I,11,FALSE))),(VLOOKUP(D104,Arkusz!A:I,5,FALSE))),"Na zapytanie") -> 26.6 | I104: 26.6 | J104: =IFERROR(IF(VLOOKUP(D104,Arkusz!A:H,5,FALSE)=0,IF(H104="Na zapytanie","","EUR"),"PLN"),"") -> PLN
D105: C14-1100-10,0 | E105: =IFERROR(VLOOKUP(D105,Arkusz!A:H,3,FALSE),"Brak towaru") -> CobiCabling Patchcord kat. 6A U/UTP LSOH 10,0m szary | F105: =IFERROR(VLOOKUP(D105,Arkusz!A:H,6,FALSE),"-") -> Cobi Cu kable krosowe | G105: 0 | H105: =IFERROR(IF(VLOOKUP(D105,Arkusz!A:I,5,FALSE)=0,(IF(VLOOKUP(D105,Arkusz!A:I,11,FALSE)=0,"Na zapytanie",VLOOKUP(D105,Arkusz!A:I,11,FALSE))),(VLOOKUP(D105,Arkusz!A:I,5,FALSE))),"Na zapytanie") -> 36.4 | I105: 36.4 | J105: =IFERROR(IF(VLOOKUP(D105,Arkusz!A:H,5,FALSE)=0,IF(H105="Na zapytanie","","EUR"),"PLN"),"") -> PLN
D106: C14-1100-15,0 | E106: =IFERROR(VLOOKUP(D106,Arkusz!A:H,3,FALSE),"Brak towaru") -> CobiCabling Patchcord kat. 6A U/UTP LSOH 15,0m szary | F106: =IFERROR(VLOOKUP(D106,Arkusz!A:H,6,FALSE),"-") -> Cobi Cu kable krosowe | G106: 0 | H106: =IFERROR(IF(VLOOKUP(D106,Arkusz!A:I,5,FALSE)=0,(IF(VLOOKUP(D106,Arkusz!A:I,11,FALSE)=0,"Na zapytanie",VLOOKUP(D106,Arkusz!A:I,11,FALSE))),(VLOOKUP(D106,Arkusz!A:I,5,FALSE))),"Na zapytanie") -> 55.13 | I106: =IFERROR(IF(H106="Na zapytanie","",H106*(1-G106)),"") -> 55.13 | J106: =IFERROR(IF(VLOOKUP(D106,Arkusz!A:H,5,FALSE)=0,IF(H106="Na zapytanie","","EUR"),"PLN"),"") -> PLN
D107: Kolor żółty RAL1021
D108: C14-1110-0,25 | E108: =IFERROR(VLOOKUP(D108,Arkusz!A:H,3,FALSE),"Brak towaru") -> CobiCabling Patchcord kat. 6A U/UTP LSOH 0,25m żółty | F108: =IFERROR(VLOOKUP(D108,Arkusz!A:H,6,FALSE),"-") -> Cobi Cu kable krosowe | G108: 0 | H108: =IFERROR(IF(VLOOKUP(D108,Arkusz!A:I,5,FALSE)=0,(IF(VLOOKUP(D108,Arkusz!A:I,11,FALSE)=0,"Na zapytanie",VLOOKUP(D108,Arkusz!A:I,11,FALSE))),(VLOOKUP(D108,Arkusz!A:I,5,FALSE))),"Na zapytanie") -> 6.1 | I108: =IFERROR(IF(H108="Na zapytanie","",H108*(1-G108)),"") -> 6.1 | J108: =IFERROR(IF(VLOOKUP(D108,Arkusz!A:H,5,FALSE)=0,IF(H108="Na zapytanie","","EUR"),"PLN"),"") -> PLN
D109: C14-1110-0,5 | E109: =IFERROR(VLOOKUP(D109,Arkusz!A:H,3,FALSE),"Brak towaru") -> CobiCabling Patchcord kat. 6A U/UTP LSOH 0,5m żółty | F109: =IFERROR(VLOOKUP(D109,Arkusz!A:H,6,FALSE),"-") -> Cobi Cu kable krosowe | G109: 0 | H109: =IFERROR(IF(VLOOKUP(D109,Arkusz!A:I,5,FALSE)=0,(IF(VLOOKUP(D109,Arkusz!A:I,11,FALSE)=0,"Na zapytanie",VLOOKUP(D109,Arkusz!A:I,11,FALSE))),(VLOOKUP(D109,Arkusz!A:I,5,FALSE))),"Na zapytanie") -> 6.8 | I109: 6.8 | J109: =IFERROR(IF(VLOOKUP(D109,Arkusz!A:H,5,FALSE)=0,IF(H109="Na zapytanie","","EUR"),"PLN"),"") -> PLN
D110: C14-1110-1,0 | E110: =IFERROR(VLOOKUP(D110,Arkusz!A:H,3,FALSE),"Brak towaru") -> CobiCabling Patchcord kat. 6A U/UTP LSOH 1m żółty | F110: =IFERROR(VLOOKUP(D110,Arkusz!A:H,6,FALSE),"-") -> Cobi Cu kable krosowe | G110: 0 | H110: =IFERROR(IF(VLOOKUP(D110,Arkusz!A:I,5,FALSE)=0,(IF(VLOOKUP(D110,Arkusz!A:I,11,FALSE)=0,"Na zapytanie",VLOOKUP(D110,Arkusz!A:I,11,FALSE))),(VLOOKUP(D110,Arkusz!A:I,5,FALSE))),"Na zapytanie") -> 8.37 | I110: 8.37 | J110: =IFERROR(IF(VLOOKUP(D110,Arkusz!A:H,5,FALSE)=0,IF(H110="Na zapytanie","","EUR"),"PLN"),"") -> PLN
D111: C14-1110-1,5 | E111: =IFERROR(VLOOKUP(D111,Arkusz!A:H,3,FALSE),"Brak towaru") -> CobiCabling Patchcord kat. 6A U/UTP LSOH 1,5m żółty | F111: =IFERROR(VLOOKUP(D111,Arkusz!A:H,6,FALSE),"-") -> Cobi Cu kable krosowe | G111: 0 | H111: =IFERROR(IF(VLOOKUP(D111,Arkusz!A:I,5,FALSE)=0,(IF(VLOOKUP(D111,Arkusz!A:I,11,FALSE)=0,"Na zapytanie",VLOOKUP(D111,Arkusz!A:I,11,FALSE))),(VLOOKUP(D111,Arkusz!A:I,5,FALSE))),"Na zapytanie") -> 10.16 | I111: 10.16 | J111: =IFERROR(IF(VLOOKUP(D111,Arkusz!A:H,5,FALSE)=0,IF(H111="Na zapytanie","","EUR"),"PLN"),"") -> PLN
D112: C14-1110-2,0 | E112: =IFERROR(VLOOKUP(D112,Arkusz!A:H,3,FALSE),"Brak towaru") -> CobiCabling Patchcord kat. 6A U/UTP LSOH 2m żółty | F112: =IFERROR(VLOOKUP(D112,Arkusz!A:H,6,FALSE),"-") -> Cobi Cu kable krosowe | G112: 0 | H112: =IFERROR(IF(VLOOKUP(D112,Arkusz!A:I,5,FALSE)=0,(IF(VLOOKUP(D112,Arkusz!A:I,11,FALSE)=0,"Na zapytanie",VLOOKUP(D112,Arkusz!A:I,11,FALSE))),(VLOOKUP(D112,Arkusz!A:I,5,FALSE))),"Na zapytanie") -> 11.7 | I112: 11.7 | J112: =IFERROR(IF(VLOOKUP(D112,Arkusz!A:H,5,FALSE)=0,IF(H112="Na zapytanie","","EUR"),"PLN"),"") -> PLN
D113: C14-1110-3,0 | E113: =IFERROR(VLOOKUP(D113,Arkusz!A:H,3,FALSE),"Brak towaru") -> CobiCabling Patchcord kat. 6A U/UTP LSOH 3m żółty | F113: =IFERROR(VLOOKUP(D113,Arkusz!A:H,6,FALSE),"-") -> Cobi Cu kable krosowe | G113: 0 | H113: =IFERROR(IF(VLOOKUP(D113,Arkusz!A:I,5,FALSE)=0,(IF(VLOOKUP(D113,Arkusz!A:I,11,FALSE)=0,"Na zapytanie",VLOOKUP(D113,Arkusz!A:I,11,FALSE))),(VLOOKUP(D113,Arkusz!A:I,5,FALSE))),"Na zapytanie") -> 15.06 | I113: 15.06 | J113: =IFERROR(IF(VLOOKUP(D113,Arkusz!A:H,5,FALSE)=0,IF(H113="Na zapytanie","","EUR"),"PLN"),"") -> PLN
D114: C14-1110-5,0 | E114: =IFERROR(VLOOKUP(D114,Arkusz!A:H,3,FALSE),"Brak towaru") -> CobiCabling Patchcord kat. 6A U/UTP LSOH 5m żółty | F114: =IFERROR(VLOOKUP(D114,Arkusz!A:H,6,FALSE),"-") -> Cobi Cu kable krosowe | G114: 0 | H114: =IFERROR(IF(VLOOKUP(D114,Arkusz!A:I,5,FALSE)=0,(IF(VLOOKUP(D114,Arkusz!A:I,11,FALSE)=0,"Na zapytanie",VLOOKUP(D114,Arkusz!A:I,11,FALSE))),(VLOOKUP(D114,Arkusz!A:I,5,FALSE))),"Na zapytanie") -> 21.28 | I114: 21.28 | J114: =IFERROR(IF(VLOOKUP(D114,Arkusz!A:H,5,FALSE)=0,IF(H114="Na zapytanie","","EUR"),"PLN"),"") -> PLN
D115: C14-1110-7,5 | E115: =IFERROR(VLOOKUP(D115,Arkusz!A:H,3,FALSE),"Brak towaru") -> CobiCabling Patchcord kat. 6A U/UTP LSOH 7,5m żółty | F115: =IFERROR(VLOOKUP(D115,Arkusz!A:H,6,FALSE),"-") -> Cobi Cu kable krosowe | G115: 0 | H115: =IFERROR(IF(VLOOKUP(D115,Arkusz!A:I,5,FALSE)=0,(IF(VLOOKUP(D115,Arkusz!A:I,11,FALSE)=0,"Na zapytanie",VLOOKUP(D115,Arkusz!A:I,11,FALSE))),(VLOOKUP(D115,Arkusz!A:I,5,FALSE))),"Na zapytanie") -> Na zapytanie | J115: =IFERROR(IF(VLOOKUP(D115,Arkusz!A:H,5,FALSE)=0,IF(H115="Na zapytanie","","EUR"),"PLN"),"") -> 
D116: C14-1110-10,0 | E116: =IFERROR(VLOOKUP(D116,Arkusz!A:H,3,FALSE),"Brak towaru") -> CobiCabling Patchcord kat. 6A U/UTP LSOH 10m żółty | F116: =IFERROR(VLOOKUP(D116,Arkusz!A:H,6,FALSE),"-") -> Cobi Cu kable krosowe | G116: 0 | H116: =IFERROR(IF(VLOOKUP(D116,Arkusz!A:I,5,FALSE)=0,(IF(VLOOKUP(D116,Arkusz!A:I,11,FALSE)=0,"Na zapytanie",VLOOKUP(D116,Arkusz!A:I,11,FALSE))),(VLOOKUP(D116,Arkusz!A:I,5,FALSE))),"Na zapytanie") -> Na zapytanie | J116: =IFERROR(IF(VLOOKUP(D116,Arkusz!A:H,5,FALSE)=0,IF(H116="Na zapytanie","","EUR"),"PLN"),"") -> 
D117: C14-1110-15,0 | E117: =IFERROR(VLOOKUP(D117,Arkusz!A:H,3,FALSE),"Brak towaru") -> CobiCabling Patchcord kat. 6A U/UTP LSOH 15m żółty | F117: =IFERROR(VLOOKUP(D117,Arkusz!A:H,6,FALSE),"-") -> Cobi Cu kable krosowe | G117: 0 | H117: =IFERROR(IF(VLOOKUP(D117,Arkusz!A:I,5,FALSE)=0,(IF(VLOOKUP(D117,Arkusz!A:I,11,FALSE)=0,"Na zapytanie",VLOOKUP(D117,Arkusz!A:I,11,FALSE))),(VLOOKUP(D117,Arkusz!A:I,5,FALSE))),"Na zapytanie") -> Na zapytanie | J117: =IFERROR(IF(VLOOKUP(D117,Arkusz!A:H,5,FALSE)=0,IF(H117="Na zapytanie","","EUR"),"PLN"),"") -> 
D118: Kolor zielony RAL6016
D119: C14-1120-0,25 | E119: =IFERROR(VLOOKUP(D119,Arkusz!A:H,3,FALSE),"Brak towaru") -> CobiCabling Patchcord kat. 6A U/UTP LSOH 0,25m zielony | F119: =IFERROR(VLOOKUP(D119,Arkusz!A:H,6,FALSE),"-") -> Cobi Cu kable krosowe | G119: 0 | H119: =IFERROR(IF(VLOOKUP(D119,Arkusz!A:I,5,FALSE)=0,(IF(VLOOKUP(D119,Arkusz!A:I,11,FALSE)=0,"Na zapytanie",VLOOKUP(D119,Arkusz!A:I,11,FALSE))),(VLOOKUP(D119,Arkusz!A:I,5,FALSE))),"Na zapytanie") -> 6.1 | I119: =IFERROR(IF(H119="Na zapytanie","",H119*(1-G119)),"") -> 6.1 | J119: =IFERROR(IF(VLOOKUP(D119,Arkusz!A:H,5,FALSE)=0,IF(H119="Na zapytanie","","EUR"),"PLN"),"") -> PLN
D120: C14-1120-0,5 | E120: =IFERROR(VLOOKUP(D120,Arkusz!A:H,3,FALSE),"Brak towaru") -> CobiCabling Patchcord kat. 6A U/UTP LSOH 0,5m zielony | F120: =IFERROR(VLOOKUP(D120,Arkusz!A:H,6,FALSE),"-") -> Cobi Cu kable krosowe | G120: 0 | H120: =IFERROR(IF(VLOOKUP(D120,Arkusz!A:I,5,FALSE)=0,(IF(VLOOKUP(D120,Arkusz!A:I,11,FALSE)=0,"Na zapytanie",VLOOKUP(D120,Arkusz!A:I,11,FALSE))),(VLOOKUP(D120,Arkusz!A:I,5,FALSE))),"Na zapytanie") -> 6.8 | I120: 6.8 | J120: =IFERROR(IF(VLOOKUP(D120,Arkusz!A:H,5,FALSE)=0,IF(H120="Na zapytanie","","EUR"),"PLN"),"") -> PLN
D121: C14-1120-1,0 | E121: =IFERROR(VLOOKUP(D121,Arkusz!A:H,3,FALSE),"Brak towaru") -> CobiCabling Patchcord kat. 6A U/UTP LSOH 1m zielony | F121: =IFERROR(VLOOKUP(D121,Arkusz!A:H,6,FALSE),"-") -> Cobi Cu kable krosowe | G121: 0 | H121: =IFERROR(IF(VLOOKUP(D121,Arkusz!A:I,5,FALSE)=0,(IF(VLOOKUP(D121,Arkusz!A:I,11,FALSE)=0,"Na zapytanie",VLOOKUP(D121,Arkusz!A:I,11,FALSE))),(VLOOKUP(D121,Arkusz!A:I,5,FALSE))),"Na zapytanie") -> 8.37 | I121: 8.37 | J121: =IFERROR(IF(VLOOKUP(D121,Arkusz!A:H,5,FALSE)=0,IF(H121="Na zapytanie","","EUR"),"PLN"),"") -> PLN
D122: C14-1120-1,5 | E122: =IFERROR(VLOOKUP(D122,Arkusz!A:H,3,FALSE),"Brak towaru") -> CobiCabling Patchcord kat. 6A U/UTP LSOH 1,5m zielony | F122: =IFERROR(VLOOKUP(D122,Arkusz!A:H,6,FALSE),"-") -> Cobi Cu kable krosowe | G122: 0 | H122: =IFERROR(IF(VLOOKUP(D122,Arkusz!A:I,5,FALSE)=0,(IF(VLOOKUP(D122,Arkusz!A:I,11,FALSE)=0,"Na zapytanie",VLOOKUP(D122,Arkusz!A:I,11,FALSE))),(VLOOKUP(D122,Arkusz!A:I,5,FALSE))),"Na zapytanie") -> 10.16 | I122: 10.16 | J122: =IFERROR(IF(VLOOKUP(D122,Arkusz!A:H,5,FALSE)=0,IF(H122="Na zapytanie","","EUR"),"PLN"),"") -> PLN
D123: C14-1120-2,0 | E123: =IFERROR(VLOOKUP(D123,Arkusz!A:H,3,FALSE),"Brak towaru") -> CobiCabling Patchcord kat. 6A U/UTP LSOH 2m zielony | F123: =IFERROR(VLOOKUP(D123,Arkusz!A:H,6,FALSE),"-") -> Cobi Cu kable krosowe | G123: 0 | H123: =IFERROR(IF(VLOOKUP(D123,Arkusz!A:I,5,FALSE)=0,(IF(VLOOKUP(D123,Arkusz!A:I,11,FALSE)=0,"Na zapytanie",VLOOKUP(D123,Arkusz!A:I,11,FALSE))),(VLOOKUP(D123,Arkusz!A:I,5,FALSE))),"Na zapytanie") -> 11.7 | I123: 11.7 | J123: =IFERROR(IF(VLOOKUP(D123,Arkusz!A:H,5,FALSE)=0,IF(H123="Na zapytanie","","EUR"),"PLN"),"") -> PLN
D124: C14-1120-3,0 | E124: =IFERROR(VLOOKUP(D124,Arkusz!A:H,3,FALSE),"Brak towaru") -> CobiCabling Patchcord kat. 6A U/UTP LSOH 3m zielony | F124: =IFERROR(VLOOKUP(D124,Arkusz!A:H,6,FALSE),"-") -> Cobi Cu kable krosowe | G124: 0 | H124: =IFERROR(IF(VLOOKUP(D124,Arkusz!A:I,5,FALSE)=0,(IF(VLOOKUP(D124,Arkusz!A:I,11,FALSE)=0,"Na zapytanie",VLOOKUP(D124,Arkusz!A:I,11,FALSE))),(VLOOKUP(D124,Arkusz!A:I,5,FALSE))),"Na zapytanie") -> 15.06 | I124: 15.06 | J124: =IFERROR(IF(VLOOKUP(D124,Arkusz!A:H,5,FALSE)=0,IF(H124="Na zapytanie","","EUR"),"PLN"),"") -> PLN
D125: C14-1120-5,0 | E125: =IFERROR(VLOOKUP(D125,Arkusz!A:H,3,FALSE),"Brak towaru") -> CobiCabling Patchcord kat. 6A U/UTP LSOH 5m zielony | F125: =IFERROR(VLOOKUP(D125,Arkusz!A:H,6,FALSE),"-") -> Cobi Cu kable krosowe | G125: 0 | H125: =IFERROR(IF(VLOOKUP(D125,Arkusz!A:I,5,FALSE)=0,(IF(VLOOKUP(D125,Arkusz!A:I,11,FALSE)=0,"Na zapytanie",VLOOKUP(D125,Arkusz!A:I,11,FALSE))),(VLOOKUP(D125,Arkusz!A:I,5,FALSE))),"Na zapytanie") -> 21.28 | I125: 21.28 | J125: =IFERROR(IF(VLOOKUP(D125,Arkusz!A:H,5,FALSE)=0,IF(H125="Na zapytanie","","EUR"),"PLN"),"") -> PLN
D126: C14-1120-7,5 | E126: =IFERROR(VLOOKUP(D126,Arkusz!A:H,3,FALSE),"Brak towaru") -> CobiCabling Patchcord kat. 6A U/UTP LSOH 7,5m zielony | F126: =IFERROR(VLOOKUP(D126,Arkusz!A:H,6,FALSE),"-") -> Cobi Cu kable krosowe | G126: 0 | H126: =IFERROR(IF(VLOOKUP(D126,Arkusz!A:I,5,FALSE)=0,(IF(VLOOKUP(D126,Arkusz!A:I,11,FALSE)=0,"Na zapytanie",VLOOKUP(D126,Arkusz!A:I,11,FALSE))),(VLOOKUP(D126,Arkusz!A:I,5,FALSE))),"Na zapytanie") -> Na zapytanie | J126: =IFERROR(IF(VLOOKUP(D126,Arkusz!A:H,5,FALSE)=0,IF(H126="Na zapytanie","","EUR"),"PLN"),"") -> 
D127: C14-1120-10,0 | E127: =IFERROR(VLOOKUP(D127,Arkusz!A:H,3,FALSE),"Brak towaru") -> CobiCabling Patchcord kat. 6A U/UTP LSOH 10m zielony | F127: =IFERROR(VLOOKUP(D127,Arkusz!A:H,6,FALSE),"-") -> Cobi Cu kable krosowe | G127: 0 | H127: =IFERROR(IF(VLOOKUP(D127,Arkusz!A:I,5,FALSE)=0,(IF(VLOOKUP(D127,Arkusz!A:I,11,FALSE)=0,"Na zapytanie",VLOOKUP(D127,Arkusz!A:I,11,FALSE))),(VLOOKUP(D127,Arkusz!A:I,5,FALSE))),"Na zapytanie") -> Na zapytanie | J127: =IFERROR(IF(VLOOKUP(D127,Arkusz!A:H,5,FALSE)=0,IF(H127="Na zapytanie","","EUR"),"PLN"),"") -> 
D128: C14-1120-15,0 | E128: =IFERROR(VLOOKUP(D128,Arkusz!A:H,3,FALSE),"Brak towaru") -> CobiCabling Patchcord kat. 6A U/UTP LSOH 15m zielony | F128: =IFERROR(VLOOKUP(D128,Arkusz!A:H,6,FALSE),"-") -> Cobi Cu kable krosowe | G128: 0 | H128: =IFERROR(IF(VLOOKUP(D128,Arkusz!A:I,5,FALSE)=0,(IF(VLOOKUP(D128,Arkusz!A:I,11,FALSE)=0,"Na zapytanie",VLOOKUP(D128,Arkusz!A:I,11,FALSE))),(VLOOKUP(D128,Arkusz!A:I,5,FALSE))),"Na zapytanie") -> Na zapytanie | J128: =IFERROR(IF(VLOOKUP(D128,Arkusz!A:H,5,FALSE)=0,IF(H128="Na zapytanie","","EUR"),"PLN"),"") -> 
D129: Kolor niebieski RAL5010
D130: C14-1130-0,25 | E130: =IFERROR(VLOOKUP(D130,Arkusz!A:H,3,FALSE),"Brak towaru") -> CobiCabling Patchcord kat. 6A U/UTP LSOH 0,25m niebieski | F130: =IFERROR(VLOOKUP(D130,Arkusz!A:H,6,FALSE),"-") -> Cobi Cu kable krosowe | G130: 0 | H130: =IFERROR(IF(VLOOKUP(D130,Arkusz!A:I,5,FALSE)=0,(IF(VLOOKUP(D130,Arkusz!A:I,11,FALSE)=0,"Na zapytanie",VLOOKUP(D130,Arkusz!A:I,11,FALSE))),(VLOOKUP(D130,Arkusz!A:I,5,FALSE))),"Na zapytanie") -> 6.1 | I130: =IFERROR(IF(H130="Na zapytanie","",H130*(1-G130)),"") -> 6.1 | J130: =IFERROR(IF(VLOOKUP(D130,Arkusz!A:H,5,FALSE)=0,IF(H130="Na zapytanie","","EUR"),"PLN"),"") -> PLN
D131: C14-1130-0,5 | E131: =IFERROR(VLOOKUP(D131,Arkusz!A:H,3,FALSE),"Brak towaru") -> CobiCabling Patchcord kat. 6A U/UTP LSOH 0,5m niebieski | F131: =IFERROR(VLOOKUP(D131,Arkusz!A:H,6,FALSE),"-") -> Cobi Cu kable krosowe | G131: 0 | H131: =IFERROR(IF(VLOOKUP(D131,Arkusz!A:I,5,FALSE)=0,(IF(VLOOKUP(D131,Arkusz!A:I,11,FALSE)=0,"Na zapytanie",VLOOKUP(D131,Arkusz!A:I,11,FALSE))),(VLOOKUP(D131,Arkusz!A:I,5,FALSE))),"Na zapytanie") -> 6.8 | I131: 6.8 | J131: =IFERROR(IF(VLOOKUP(D131,Arkusz!A:H,5,FALSE)=0,IF(H131="Na zapytanie","","EUR"),"PLN"),"") -> PLN
D132: C14-1130-1,0 | E132: =IFERROR(VLOOKUP(D132,Arkusz!A:H,3,FALSE),"Brak towaru") -> CobiCabling Patchcord kat. 6A U/UTP LSOH 1m niebieski | F132: =IFERROR(VLOOKUP(D132,Arkusz!A:H,6,FALSE),"-") -> Cobi Cu kable krosowe | G132: 0 | H132: =IFERROR(IF(VLOOKUP(D132,Arkusz!A:I,5,FALSE)=0,(IF(VLOOKUP(D132,Arkusz!A:I,11,FALSE)=0,"Na zapytanie",VLOOKUP(D132,Arkusz!A:I,11,FALSE))),(VLOOKUP(D132,Arkusz!A:I,5,FALSE))),"Na zapytanie") -> 8.37 | I132: 8.37 | J132: =IFERROR(IF(VLOOKUP(D132,Arkusz!A:H,5,FALSE)=0,IF(H132="Na zapytanie","","EUR"),"PLN"),"") -> PLN
D133: C14-1130-1,5 | E133: =IFERROR(VLOOKUP(D133,Arkusz!A:H,3,FALSE),"Brak towaru") -> CobiCabling Patchcord kat. 6A U/UTP LSOH 1,5m niebieski | F133: =IFERROR(VLOOKUP(D133,Arkusz!A:H,6,FALSE),"-") -> Cobi Cu kable krosowe | G133: 0 | H133: =IFERROR(IF(VLOOKUP(D133,Arkusz!A:I,5,FALSE)=0,(IF(VLOOKUP(D133,Arkusz!A:I,11,FALSE)=0,"Na zapytanie",VLOOKUP(D133,Arkusz!A:I,11,FALSE))),(VLOOKUP(D133,Arkusz!A:I,5,FALSE))),"Na zapytanie") -> 10.16 | I133: 10.16 | J133: =IFERROR(IF(VLOOKUP(D133,Arkusz!A:H,5,FALSE)=0,IF(H133="Na zapytanie","","EUR"),"PLN"),"") -> PLN
D134: C14-1130-2,0 | E134: =IFERROR(VLOOKUP(D134,Arkusz!A:H,3,FALSE),"Brak towaru") -> CobiCabling Patchcord kat. 6A U/UTP LSOH 2m niebieski | F134: =IFERROR(VLOOKUP(D134,Arkusz!A:H,6,FALSE),"-") -> Cobi Cu kable krosowe | G134: 0 | H134: =IFERROR(IF(VLOOKUP(D134,Arkusz!A:I,5,FALSE)=0,(IF(VLOOKUP(D134,Arkusz!A:I,11,FALSE)=0,"Na zapytanie",VLOOKUP(D134,Arkusz!A:I,11,FALSE))),(VLOOKUP(D134,Arkusz!A:I,5,FALSE))),"Na zapytanie") -> 11.7 | I134: 11.7 | J134: =IFERROR(IF(VLOOKUP(D134,Arkusz!A:H,5,FALSE)=0,IF(H134="Na zapytanie","","EUR"),"PLN"),"") -> PLN
D135: C14-1130-3,0 | E135: =IFERROR(VLOOKUP(D135,Arkusz!A:H,3,FALSE),"Brak towaru") -> CobiCabling Patchcord kat. 6A U/UTP LSOH 3m niebieski | F135: =IFERROR(VLOOKUP(D135,Arkusz!A:H,6,FALSE),"-") -> Cobi Cu kable krosowe | G135: 0 | H135: =IFERROR(IF(VLOOKUP(D135,Arkusz!A:I,5,FALSE)=0,(IF(VLOOKUP(D135,Arkusz!A:I,11,FALSE)=0,"Na zapytanie",VLOOKUP(D135,Arkusz!A:I,11,FALSE))),(VLOOKUP(D135,Arkusz!A:I,5,FALSE))),"Na zapytanie") -> 15.06 | I135: 15.06 | J135: =IFERROR(IF(VLOOKUP(D135,Arkusz!A:H,5,FALSE)=0,IF(H135="Na zapytanie","","EUR"),"PLN"),"") -> PLN
D136: C14-1130-5,0 | E136: =IFERROR(VLOOKUP(D136,Arkusz!A:H,3,FALSE),"Brak towaru") -> CobiCabling Patchcord kat. 6A U/UTP LSOH 5m niebieski | F136: =IFERROR(VLOOKUP(D136,Arkusz!A:H,6,FALSE),"-") -> Cobi Cu kable krosowe | G136: 0 | H136: =IFERROR(IF(VLOOKUP(D136,Arkusz!A:I,5,FALSE)=0,(IF(VLOOKUP(D136,Arkusz!A:I,11,FALSE)=0,"Na zapytanie",VLOOKUP(D136,Arkusz!A:I,11,FALSE))),(VLOOKUP(D136,Arkusz!A:I,5,FALSE))),"Na zapytanie") -> 21.28 | I136: 21.28 | J136: =IFERROR(IF(VLOOKUP(D136,Arkusz!A:H,5,FALSE)=0,IF(H136="Na zapytanie","","EUR"),"PLN"),"") -> PLN
D137: C14-1130-7,5 | E137: =IFERROR(VLOOKUP(D137,Arkusz!A:H,3,FALSE),"Brak towaru") -> CobiCabling Patchcord kat. 6A U/UTP LSOH 7,m niebieski | F137: =IFERROR(VLOOKUP(D137,Arkusz!A:H,6,FALSE),"-") -> Cobi Cu kable krosowe | G137: 0 | H137: =IFERROR(IF(VLOOKUP(D137,Arkusz!A:I,5,FALSE)=0,(IF(VLOOKUP(D137,Arkusz!A:I,11,FALSE)=0,"Na zapytanie",VLOOKUP(D137,Arkusz!A:I,11,FALSE))),(VLOOKUP(D137,Arkusz!A:I,5,FALSE))),"Na zapytanie") -> Na zapytanie | J137: =IFERROR(IF(VLOOKUP(D137,Arkusz!A:H,5,FALSE)=0,IF(H137="Na zapytanie","","EUR"),"PLN"),"") -> 
D138: C14-1130-10,0 | E138: =IFERROR(VLOOKUP(D138,Arkusz!A:H,3,FALSE),"Brak towaru") -> CobiCabling Patchcord kat. 6A U/UTP LSOH 10m niebieski | F138: =IFERROR(VLOOKUP(D138,Arkusz!A:H,6,FALSE),"-") -> Cobi Cu kable krosowe | G138: 0 | H138: =IFERROR(IF(VLOOKUP(D138,Arkusz!A:I,5,FALSE)=0,(IF(VLOOKUP(D138,Arkusz!A:I,11,FALSE)=0,"Na zapytanie",VLOOKUP(D138,Arkusz!A:I,11,FALSE))),(VLOOKUP(D138,Arkusz!A:I,5,FALSE))),"Na zapytanie") -> Na zapytanie | J138: =IFERROR(IF(VLOOKUP(D138,Arkusz!A:H,5,FALSE)=0,IF(H138="Na zapytanie","","EUR"),"PLN"),"") -> 
D139: C14-1130-15,0 | E139: =IFERROR(VLOOKUP(D139,Arkusz!A:H,3,FALSE),"Brak towaru") -> CobiCabling Patchcord kat. 6A U/UTP LSOH 15m niebieski | F139: =IFERROR(VLOOKUP(D139,Arkusz!A:H,6,FALSE),"-") -> Cobi Cu kable krosowe | G139: 0 | H139: =IFERROR(IF(VLOOKUP(D139,Arkusz!A:I,5,FALSE)=0,(IF(VLOOKUP(D139,Arkusz!A:I,11,FALSE)=0,"Na zapytanie",VLOOKUP(D139,Arkusz!A:I,11,FALSE))),(VLOOKUP(D139,Arkusz!A:I,5,FALSE))),"Na zapytanie") -> Na zapytanie | J139: =IFERROR(IF(VLOOKUP(D139,Arkusz!A:H,5,FALSE)=0,IF(H139="Na zapytanie","","EUR"),"PLN"),"") -> 
D140: Kolor czerwony RAL3000
D141: C14-1140-0,25 | E141: =IFERROR(VLOOKUP(D141,Arkusz!A:H,3,FALSE),"Brak towaru") -> CobiCabling Patchcord kat. 6A U/UTP LSOH 0,25m czerwony | F141: =IFERROR(VLOOKUP(D141,Arkusz!A:H,6,FALSE),"-") -> Cobi Cu kable krosowe | G141: 0 | H141: =IFERROR(IF(VLOOKUP(D141,Arkusz!A:I,5,FALSE)=0,(IF(VLOOKUP(D141,Arkusz!A:I,11,FALSE)=0,"Na zapytanie",VLOOKUP(D141,Arkusz!A:I,11,FALSE))),(VLOOKUP(D141,Arkusz!A:I,5,FALSE))),"Na zapytanie") -> 6.1 | I141: =IFERROR(IF(H141="Na zapytanie","",H141*(1-G141)),"") -> 6.1 | J141: =IFERROR(IF(VLOOKUP(D141,Arkusz!A:H,5,FALSE)=0,IF(H141="Na zapytanie","","EUR"),"PLN"),"") -> PLN
D142: C14-1140-0,5 | E142: =IFERROR(VLOOKUP(D142,Arkusz!A:H,3,FALSE),"Brak towaru") -> CobiCabling Patchcord kat. 6A U/UTP LSOH 0,5m czerwony | F142: =IFERROR(VLOOKUP(D142,Arkusz!A:H,6,FALSE),"-") -> Cobi Cu kable krosowe | G142: 0 | H142: =IFERROR(IF(VLOOKUP(D142,Arkusz!A:I,5,FALSE)=0,(IF(VLOOKUP(D142,Arkusz!A:I,11,FALSE)=0,"Na zapytanie",VLOOKUP(D142,Arkusz!A:I,11,FALSE))),(VLOOKUP(D142,Arkusz!A:I,5,FALSE))),"Na zapytanie") -> 6.8 | I142: 6.8 | J142: =IFERROR(IF(VLOOKUP(D142,Arkusz!A:H,5,FALSE)=0,IF(H142="Na zapytanie","","EUR"),"PLN"),"") -> PLN
D143: C14-1140-1,0 | E143: =IFERROR(VLOOKUP(D143,Arkusz!A:H,3,FALSE),"Brak towaru") -> CobiCabling Patchcord kat. 6A U/UTP LSOH 1m czerwony | F143: =IFERROR(VLOOKUP(D143,Arkusz!A:H,6,FALSE),"-") -> Cobi Cu kable krosowe | G143: 0 | H143: =IFERROR(IF(VLOOKUP(D143,Arkusz!A:I,5,FALSE)=0,(IF(VLOOKUP(D143,Arkusz!A:I,11,FALSE)=0,"Na zapytanie",VLOOKUP(D143,Arkusz!A:I,11,FALSE))),(VLOOKUP(D143,Arkusz!A:I,5,FALSE))),"Na zapytanie") -> 8.37 | I143: 8.37 | J143: =IFERROR(IF(VLOOKUP(D143,Arkusz!A:H,5,FALSE)=0,IF(H143="Na zapytanie","","EUR"),"PLN"),"") -> PLN
D144: C14-1140-1,5 | E144: =IFERROR(VLOOKUP(D144,Arkusz!A:H,3,FALSE),"Brak towaru") -> CobiCabling Patchcord kat. 6A U/UTP LSOH 1,5m czerwony | F144: =IFERROR(VLOOKUP(D144,Arkusz!A:H,6,FALSE),"-") -> Cobi Cu kable krosowe | G144: 0 | H144: =IFERROR(IF(VLOOKUP(D144,Arkusz!A:I,5,FALSE)=0,(IF(VLOOKUP(D144,Arkusz!A:I,11,FALSE)=0,"Na zapytanie",VLOOKUP(D144,Arkusz!A:I,11,FALSE))),(VLOOKUP(D144,Arkusz!A:I,5,FALSE))),"Na zapytanie") -> 10.16 | I144: 10.16 | J144: =IFERROR(IF(VLOOKUP(D144,Arkusz!A:H,5,FALSE)=0,IF(H144="Na zapytanie","","EUR"),"PLN"),"") -> PLN
D145: C14-1140-2,0 | E145: =IFERROR(VLOOKUP(D145,Arkusz!A:H,3,FALSE),"Brak towaru") -> CobiCabling Patchcord kat. 6A U/UTP LSOH 2m czerwony | F145: =IFERROR(VLOOKUP(D145,Arkusz!A:H,6,FALSE),"-") -> Cobi Cu kable krosowe | G145: 0 | H145: =IFERROR(IF(VLOOKUP(D145,Arkusz!A:I,5,FALSE)=0,(IF(VLOOKUP(D145,Arkusz!A:I,11,FALSE)=0,"Na zapytanie",VLOOKUP(D145,Arkusz!A:I,11,FALSE))),(VLOOKUP(D145,Arkusz!A:I,5,FALSE))),"Na zapytanie") -> 11.7 | I145: 11.7 | J145: =IFERROR(IF(VLOOKUP(D145,Arkusz!A:H,5,FALSE)=0,IF(H145="Na zapytanie","","EUR"),"PLN"),"") -> PLN
D146: C14-1140-3,0 | E146: =IFERROR(VLOOKUP(D146,Arkusz!A:H,3,FALSE),"Brak towaru") -> CobiCabling Patchcord kat. 6A U/UTP LSOH 3m czerwony | F146: =IFERROR(VLOOKUP(D146,Arkusz!A:H,6,FALSE),"-") -> Cobi Cu kable krosowe | G146: 0 | H146: =IFERROR(IF(VLOOKUP(D146,Arkusz!A:I,5,FALSE)=0,(IF(VLOOKUP(D146,Arkusz!A:I,11,FALSE)=0,"Na zapytanie",VLOOKUP(D146,Arkusz!A:I,11,FALSE))),(VLOOKUP(D146,Arkusz!A:I,5,FALSE))),"Na zapytanie") -> 15.06 | I146: 15.06 | J146: =IFERROR(IF(VLOOKUP(D146,Arkusz!A:H,5,FALSE)=0,IF(H146="Na zapytanie","","EUR"),"PLN"),"") -> PLN
D147: C14-1140-5,0 | E147: =IFERROR(VLOOKUP(D147,Arkusz!A:H,3,FALSE),"Brak towaru") -> CobiCabling Patchcord kat. 6A U/UTP LSOH 5m czerwony | F147: =IFERROR(VLOOKUP(D147,Arkusz!A:H,6,FALSE),"-") -> Cobi Cu kable krosowe | G147: 0 | H147: =IFERROR(IF(VLOOKUP(D147,Arkusz!A:I,5,FALSE)=0,(IF(VLOOKUP(D147,Arkusz!A:I,11,FALSE)=0,"Na zapytanie",VLOOKUP(D147,Arkusz!A:I,11,FALSE))),(VLOOKUP(D147,Arkusz!A:I,5,FALSE))),"Na zapytanie") -> 21.28 | I147: 21.28 | J147: =IFERROR(IF(VLOOKUP(D147,Arkusz!A:H,5,FALSE)=0,IF(H147="Na zapytanie","","EUR"),"PLN"),"") -> PLN
D148: C14-1140-7,5 | E148: =IFERROR(VLOOKUP(D148,Arkusz!A:H,3,FALSE),"Brak towaru") -> CobiCabling Patchcord kat. 6A U/UTP LSOH 7,5m czerwony | F148: =IFERROR(VLOOKUP(D148,Arkusz!A:H,6,FALSE),"-") -> Cobi Cu kable krosowe | G148: 0 | H148: =IFERROR(IF(VLOOKUP(D148,Arkusz!A:I,5,FALSE)=0,(IF(VLOOKUP(D148,Arkusz!A:I,11,FALSE)=0,"Na zapytanie",VLOOKUP(D148,Arkusz!A:I,11,FALSE))),(VLOOKUP(D148,Arkusz!A:I,5,FALSE))),"Na zapytanie") -> Na zapytanie | J148: =IFERROR(IF(VLOOKUP(D148,Arkusz!A:H,5,FALSE)=0,IF(H148="Na zapytanie","","EUR"),"PLN"),"") -> 
D149: C14-1140-10,0 | E149: =IFERROR(VLOOKUP(D149,Arkusz!A:H,3,FALSE),"Brak towaru") -> CobiCabling Patchcord kat. 6A U/UTP LSOH 10m czerwony | F149: =IFERROR(VLOOKUP(D149,Arkusz!A:H,6,FALSE),"-") -> Cobi Cu kable krosowe | G149: 0 | H149: =IFERROR(IF(VLOOKUP(D149,Arkusz!A:I,5,FALSE)=0,(IF(VLOOKUP(D149,Arkusz!A:I,11,FALSE)=0,"Na zapytanie",VLOOKUP(D149,Arkusz!A:I,11,FALSE))),(VLOOKUP(D149,Arkusz!A:I,5,FALSE))),"Na zapytanie") -> Na zapytanie | J149: =IFERROR(IF(VLOOKUP(D149,Arkusz!A:H,5,FALSE)=0,IF(H149="Na zapytanie","","EUR"),"PLN"),"") -> 
D150: C14-1140-15,0 | E150: =IFERROR(VLOOKUP(D150,Arkusz!A:H,3,FALSE),"Brak towaru") -> CobiCabling Patchcord kat. 6A U/UTP LSOH 15m czerwony | F150: =IFERROR(VLOOKUP(D150,Arkusz!A:H,6,FALSE),"-") -> Cobi Cu kable krosowe | G150: 0 | H150: =IFERROR(IF(VLOOKUP(D150,Arkusz!A:I,5,FALSE)=0,(IF(VLOOKUP(D150,Arkusz!A:I,11,FALSE)=0,"Na zapytanie",VLOOKUP(D150,Arkusz!A:I,11,FALSE))),(VLOOKUP(D150,Arkusz!A:I,5,FALSE))),"Na zapytanie") -> Na zapytanie | J150: =IFERROR(IF(VLOOKUP(D150,Arkusz!A:H,5,FALSE)=0,IF(H150="Na zapytanie","","EUR"),"PLN"),"") -> 
D151: Kolor czarny RAL9005
D152: C14-1150-0,25 | E152: =IFERROR(VLOOKUP(D152,Arkusz!A:H,3,FALSE),"Brak towaru") -> CobiCabling Patchcord kat. 6A U/UTP LSOH 0,25m czarny | F152: =IFERROR(VLOOKUP(D152,Arkusz!A:H,6,FALSE),"-") -> Cobi Cu kable krosowe | G152: 0 | H152: =IFERROR(IF(VLOOKUP(D152,Arkusz!A:I,5,FALSE)=0,(IF(VLOOKUP(D152,Arkusz!A:I,11,FALSE)=0,"Na zapytanie",VLOOKUP(D152,Arkusz!A:I,11,FALSE))),(VLOOKUP(D152,Arkusz!A:I,5,FALSE))),"Na zapytanie") -> 6.1 | I152: =IFERROR(IF(H152="Na zapytanie","",H152*(1-G152)),"") -> 6.1 | J152: =IFERROR(IF(VLOOKUP(D152,Arkusz!A:H,5,FALSE)=0,IF(H152="Na zapytanie","","EUR"),"PLN"),"") -> PLN
D153: C14-1150-0,5 | E153: =IFERROR(VLOOKUP(D153,Arkusz!A:H,3,FALSE),"Brak towaru") -> CobiCabling Patchcord kat. 6A U/UTP LSOH 0,5m czarny | F153: =IFERROR(VLOOKUP(D153,Arkusz!A:H,6,FALSE),"-") -> Cobi Cu kable krosowe | G153: 0 | H153: =IFERROR(IF(VLOOKUP(D153,Arkusz!A:I,5,FALSE)=0,(IF(VLOOKUP(D153,Arkusz!A:I,11,FALSE)=0,"Na zapytanie",VLOOKUP(D153,Arkusz!A:I,11,FALSE))),(VLOOKUP(D153,Arkusz!A:I,5,FALSE))),"Na zapytanie") -> 6.8 | I153: 6.8 | J153: =IFERROR(IF(VLOOKUP(D153,Arkusz!A:H,5,FALSE)=0,IF(H153="Na zapytanie","","EUR"),"PLN"),"") -> PLN
D154: C14-1150-1,0 | E154: =IFERROR(VLOOKUP(D154,Arkusz!A:H,3,FALSE),"Brak towaru") -> CobiCabling Patchcord kat. 6A U/UTP LSOH 1m czarny | F154: =IFERROR(VLOOKUP(D154,Arkusz!A:H,6,FALSE),"-") -> Cobi Cu kable krosowe | G154: 0 | H154: =IFERROR(IF(VLOOKUP(D154,Arkusz!A:I,5,FALSE)=0,(IF(VLOOKUP(D154,Arkusz!A:I,11,FALSE)=0,"Na zapytanie",VLOOKUP(D154,Arkusz!A:I,11,FALSE))),(VLOOKUP(D154,Arkusz!A:I,5,FALSE))),"Na zapytanie") -> 8.37 | I154: 8.37 | J154: =IFERROR(IF(VLOOKUP(D154,Arkusz!A:H,5,FALSE)=0,IF(H154="Na zapytanie","","EUR"),"PLN"),"") -> PLN
D155: C14-1150-1,5 | E155: =IFERROR(VLOOKUP(D155,Arkusz!A:H,3,FALSE),"Brak towaru") -> CobiCabling Patchcord kat. 6A U/UTP LSOH 1,5m czarny | F155: =IFERROR(VLOOKUP(D155,Arkusz!A:H,6,FALSE),"-") -> Cobi Cu kable krosowe | G155: 0 | H155: =IFERROR(IF(VLOOKUP(D155,Arkusz!A:I,5,FALSE)=0,(IF(VLOOKUP(D155,Arkusz!A:I,11,FALSE)=0,"Na zapytanie",VLOOKUP(D155,Arkusz!A:I,11,FALSE))),(VLOOKUP(D155,Arkusz!A:I,5,FALSE))),"Na zapytanie") -> 10.16 | I155: 10.16 | J155: =IFERROR(IF(VLOOKUP(D155,Arkusz!A:H,5,FALSE)=0,IF(H155="Na zapytanie","","EUR"),"PLN"),"") -> PLN
D156: C14-1150-2,0 | E156: =IFERROR(VLOOKUP(D156,Arkusz!A:H,3,FALSE),"Brak towaru") -> CobiCabling Patchcord kat. 6A U/UTP LSOH 2m czarny | F156: =IFERROR(VLOOKUP(D156,Arkusz!A:H,6,FALSE),"-") -> Cobi Cu kable krosowe | G156: 0 | H156: =IFERROR(IF(VLOOKUP(D156,Arkusz!A:I,5,FALSE)=0,(IF(VLOOKUP(D156,Arkusz!A:I,11,FALSE)=0,"Na zapytanie",VLOOKUP(D156,Arkusz!A:I,11,FALSE))),(VLOOKUP(D156,Arkusz!A:I,5,FALSE))),"Na zapytanie") -> 11.7 | I156: 11.7 | J156: =IFERROR(IF(VLOOKUP(D156,Arkusz!A:H,5,FALSE)=0,IF(H156="Na zapytanie","","EUR"),"PLN"),"") -> PLN
D157: C14-1150-3,0 | E157: =IFERROR(VLOOKUP(D157,Arkusz!A:H,3,FALSE),"Brak towaru") -> CobiCabling Patchcord kat. 6A U/UTP LSOH 3m czarny | F157: =IFERROR(VLOOKUP(D157,Arkusz!A:H,6,FALSE),"-") -> Cobi Cu kable krosowe | G157: 0 | H157: =IFERROR(IF(VLOOKUP(D157,Arkusz!A:I,5,FALSE)=0,(IF(VLOOKUP(D157,Arkusz!A:I,11,FALSE)=0,"Na zapytanie",VLOOKUP(D157,Arkusz!A:I,11,FALSE))),(VLOOKUP(D157,Arkusz!A:I,5,FALSE))),"Na zapytanie") -> 15.06 | I157: 15.06 | J157: =IFERROR(IF(VLOOKUP(D157,Arkusz!A:H,5,FALSE)=0,IF(H157="Na zapytanie","","EUR"),"PLN"),"") -> PLN
D158: C14-1150-5,0 | E158: =IFERROR(VLOOKUP(D158,Arkusz!A:H,3,FALSE),"Brak towaru") -> CobiCabling Patchcord kat. 6A U/UTP LSOH 5m czarny | F158: =IFERROR(VLOOKUP(D158,Arkusz!A:H,6,FALSE),"-") -> Cobi Cu kable krosowe | G158: 0 | H158: =IFERROR(IF(VLOOKUP(D158,Arkusz!A:I,5,FALSE)=0,(IF(VLOOKUP(D158,Arkusz!A:I,11,FALSE)=0,"Na zapytanie",VLOOKUP(D158,Arkusz!A:I,11,FALSE))),(VLOOKUP(D158,Arkusz!A:I,5,FALSE))),"Na zapytanie") -> 21.28 | I158: 21.28 | J158: =IFERROR(IF(VLOOKUP(D158,Arkusz!A:H,5,FALSE)=0,IF(H158="Na zapytanie","","EUR"),"PLN"),"") -> PLN
D159: C14-1150-7,5 | E159: =IFERROR(VLOOKUP(D159,Arkusz!A:H,3,FALSE),"Brak towaru") -> CobiCabling Patchcord kat. 6A U/UTP LSOH 7,5m czarny | F159: =IFERROR(VLOOKUP(D159,Arkusz!A:H,6,FALSE),"-") -> Cobi Cu kable krosowe | G159: 0 | H159: =IFERROR(IF(VLOOKUP(D159,Arkusz!A:I,5,FALSE)=0,(IF(VLOOKUP(D159,Arkusz!A:I,11,FALSE)=0,"Na zapytanie",VLOOKUP(D159,Arkusz!A:I,11,FALSE))),(VLOOKUP(D159,Arkusz!A:I,5,FALSE))),"Na zapytanie") -> Na zapytanie | J159: =IFERROR(IF(VLOOKUP(D159,Arkusz!A:H,5,FALSE)=0,IF(H159="Na zapytanie","","EUR"),"PLN"),"") -> 
D160: C14-1150-10,0 | E160: =IFERROR(VLOOKUP(D160,Arkusz!A:H,3,FALSE),"Brak towaru") -> CobiCabling Patchcord kat. 6A U/UTP LSOH 10m czarny | F160: =IFERROR(VLOOKUP(D160,Arkusz!A:H,6,FALSE),"-") -> Cobi Cu kable krosowe | G160: 0 | H160: =IFERROR(IF(VLOOKUP(D160,Arkusz!A:I,5,FALSE)=0,(IF(VLOOKUP(D160,Arkusz!A:I,11,FALSE)=0,"Na zapytanie",VLOOKUP(D160,Arkusz!A:I,11,FALSE))),(VLOOKUP(D160,Arkusz!A:I,5,FALSE))),"Na zapytanie") -> Na zapytanie | J160: =IFERROR(IF(VLOOKUP(D160,Arkusz!A:H,5,FALSE)=0,IF(H160="Na zapytanie","","EUR"),"PLN"),"") -> 
D161: C14-1150-15,0 | E161: =IFERROR(VLOOKUP(D161,Arkusz!A:H,3,FALSE),"Brak towaru") -> CobiCabling Patchcord kat. 6A U/UTP LSOH 15m czarny | F161: =IFERROR(VLOOKUP(D161,Arkusz!A:H,6,FALSE),"-") -> Cobi Cu kable krosowe | G161: 0 | H161: =IFERROR(IF(VLOOKUP(D161,Arkusz!A:I,5,FALSE)=0,(IF(VLOOKUP(D161,Arkusz!A:I,11,FALSE)=0,"Na zapytanie",VLOOKUP(D161,Arkusz!A:I,11,FALSE))),(VLOOKUP(D161,Arkusz!A:I,5,FALSE))),"Na zapytanie") -> Na zapytanie | J161: =IFERROR(IF(VLOOKUP(D161,Arkusz!A:H,5,FALSE)=0,IF(H161="Na zapytanie","","EUR"),"PLN"),"") -> 
C162: Kable krosowe nieekranowane SLIM
D163: C14-1160-0,25 | E163: =IFERROR(VLOOKUP(D163,[1]Arkusz!A:H,3,FALSE),"Brak towaru") -> Patchcord CobiCabling Slim RJ45-RJ45 kat. 6A U/UTP LSOH 0,25m szary | F163: =IFERROR(VLOOKUP(D163,[1]Arkusz!A:H,6,FALSE),"-") -> Cobi Cu kable krosowe | G163: 0 | H163: =IFERROR(IF(VLOOKUP(D163,[1]Arkusz!A:I,5,FALSE)=0,(IF(VLOOKUP(D163,[1]Arkusz!A:I,11,FALSE)=0,"Na zapytanie",VLOOKUP(D163,[1]Arkusz!A:I,11,FALSE))),(VLOOKUP(D163,[1]Arkusz!A:I,5,FALSE))),"Na zapytanie") -> 8.9 | I163: =IFERROR(IF(H163="Na zapytanie","",H163*(1-G163)),"") -> 8.9 | J163: =IFERROR(IF(VLOOKUP(D163,[1]Arkusz!A:H,5,FALSE)=0,IF(H163="Na zapytanie","","EUR"),"PLN"),"") -> PLN
D164: C14-1160-0,5 | E164: =IFERROR(VLOOKUP(D164,[1]Arkusz!A:H,3,FALSE),"Brak towaru") -> Patchcord CobiCabling Slim RJ45-RJ45 kat. 6A U/UTP LSOH 0,5m szary | F164: =IFERROR(VLOOKUP(D164,[1]Arkusz!A:H,6,FALSE),"-") -> Cobi Cu kable krosowe | G164: 0 | H164: =IFERROR(IF(VLOOKUP(D164,[1]Arkusz!A:I,5,FALSE)=0,(IF(VLOOKUP(D164,[1]Arkusz!A:I,11,FALSE)=0,"Na zapytanie",VLOOKUP(D164,[1]Arkusz!A:I,11,FALSE))),(VLOOKUP(D164,[1]Arkusz!A:I,5,FALSE))),"Na zapytanie") -> 9.32 | I164: 9.32 | J164: =IFERROR(IF(VLOOKUP(D164,[1]Arkusz!A:H,5,FALSE)=0,IF(H164="Na zapytanie","","EUR"),"PLN"),"") -> PLN
D165: C14-1160-1,0 | E165: =IFERROR(VLOOKUP(D165,[1]Arkusz!A:H,3,FALSE),"Brak towaru") -> Patchcord CobiCabling Slim RJ45-RJ45 kat. 6A U/UTP LSOH 1m szary | F165: =IFERROR(VLOOKUP(D165,[1]Arkusz!A:H,6,FALSE),"-") -> Cobi Cu kable krosowe | G165: 0 | H165: =IFERROR(IF(VLOOKUP(D165,[1]Arkusz!A:I,5,FALSE)=0,(IF(VLOOKUP(D165,[1]Arkusz!A:I,11,FALSE)=0,"Na zapytanie",VLOOKUP(D165,[1]Arkusz!A:I,11,FALSE))),(VLOOKUP(D165,[1]Arkusz!A:I,5,FALSE))),"Na zapytanie") -> 10.33 | I165: 10.33 | J165: =IFERROR(IF(VLOOKUP(D165,[1]Arkusz!A:H,5,FALSE)=0,IF(H165="Na zapytanie","","EUR"),"PLN"),"") -> PLN
D166: C14-1160-2,0 | E166: =IFERROR(VLOOKUP(D166,[1]Arkusz!A:H,3,FALSE),"Brak towaru") -> Patchcord CobiCabling Slim RJ45-RJ45 kat. 6A U/UTP LSOH 2m szary | F166: =IFERROR(VLOOKUP(D166,[1]Arkusz!A:H,6,FALSE),"-") -> Cobi Cu kable krosowe | G166: 0 | H166: =IFERROR(IF(VLOOKUP(D166,[1]Arkusz!A:I,5,FALSE)=0,(IF(VLOOKUP(D166,[1]Arkusz!A:I,11,FALSE)=0,"Na zapytanie",VLOOKUP(D166,[1]Arkusz!A:I,11,FALSE))),(VLOOKUP(D166,[1]Arkusz!A:I,5,FALSE))),"Na zapytanie") -> 12.24 | I166: 12.24 | J166: =IFERROR(IF(VLOOKUP(D166,[1]Arkusz!A:H,5,FALSE)=0,IF(H166="Na zapytanie","","EUR"),"PLN"),"") -> PLN
D167: C14-1160-3,0 | E167: =IFERROR(VLOOKUP(D167,[1]Arkusz!A:H,3,FALSE),"Brak towaru") -> Patchcord CobiCabling Slim RJ45-RJ45 kat. 6A U/UTP LSOH 3m szary | F167: =IFERROR(VLOOKUP(D167,[1]Arkusz!A:H,6,FALSE),"-") -> Cobi Cu kable krosowe | G167: 0 | H167: =IFERROR(IF(VLOOKUP(D167,[1]Arkusz!A:I,5,FALSE)=0,(IF(VLOOKUP(D167,[1]Arkusz!A:I,11,FALSE)=0,"Na zapytanie",VLOOKUP(D167,[1]Arkusz!A:I,11,FALSE))),(VLOOKUP(D167,[1]Arkusz!A:I,5,FALSE))),"Na zapytanie") -> 14.11 | I167: 14.11 | J167: =IFERROR(IF(VLOOKUP(D167,[1]Arkusz!A:H,5,FALSE)=0,IF(H167="Na zapytanie","","EUR"),"PLN"),"") -> PLN
D168: C14-1160-5,0 | E168: =IFERROR(VLOOKUP(D168,[1]Arkusz!A:H,3,FALSE),"Brak towaru") -> Patchcord CobiCabling Slim RJ45-RJ45 kat. 6A U/UTP LSOH 5m szary | F168: =IFERROR(VLOOKUP(D168,[1]Arkusz!A:H,6,FALSE),"-") -> Cobi Cu kable krosowe | G168: 0 | H168: =IFERROR(IF(VLOOKUP(D168,[1]Arkusz!A:I,5,FALSE)=0,(IF(VLOOKUP(D168,[1]Arkusz!A:I,11,FALSE)=0,"Na zapytanie",VLOOKUP(D168,[1]Arkusz!A:I,11,FALSE))),(VLOOKUP(D168,[1]Arkusz!A:I,5,FALSE))),"Na zapytanie") -> 20.55 | I168: 20.55 | J168: =IFERROR(IF(VLOOKUP(D168,[1]Arkusz!A:H,5,FALSE)=0,IF(H168="Na zapytanie","","EUR"),"PLN"),"") -> PLN
D169: C14-1160-7,5 | E169: =IFERROR(VLOOKUP(D169,[1]Arkusz!A:H,3,FALSE),"Brak towaru") -> Patchcord CobiCabling Slim RJ45-RJ45 kat. 6A U/UTP LSOH 7,5m szary | F169: =IFERROR(VLOOKUP(D169,[1]Arkusz!A:H,6,FALSE),"-") -> Cobi Cu kable krosowe | G169: 0 | H169: =IFERROR(IF(VLOOKUP(D169,[1]Arkusz!A:I,5,FALSE)=0,(IF(VLOOKUP(D169,[1]Arkusz!A:I,11,FALSE)=0,"Na zapytanie",VLOOKUP(D169,[1]Arkusz!A:I,11,FALSE))),(VLOOKUP(D169,[1]Arkusz!A:I,5,FALSE))),"Na zapytanie") -> 28.9 | I169: 28.9 | J169: =IFERROR(IF(VLOOKUP(D169,[1]Arkusz!A:H,5,FALSE)=0,IF(H169="Na zapytanie","","EUR"),"PLN"),"") -> PLN
D170: C14-1160-10,0 | E170: =IFERROR(VLOOKUP(D170,[1]Arkusz!A:H,3,FALSE),"Brak towaru") -> Patchcord CobiCabling Slim RJ45-RJ45 kat. 6A U/UTP LSOH 10,0m szary | F170: =IFERROR(VLOOKUP(D170,[1]Arkusz!A:H,6,FALSE),"-") -> Cobi Cu kable krosowe | G170: 0 | H170: =IFERROR(IF(VLOOKUP(D170,[1]Arkusz!A:I,5,FALSE)=0,(IF(VLOOKUP(D170,[1]Arkusz!A:I,11,FALSE)=0,"Na zapytanie",VLOOKUP(D170,[1]Arkusz!A:I,11,FALSE))),(VLOOKUP(D170,[1]Arkusz!A:I,5,FALSE))),"Na zapytanie") -> 37.66 | I170: 37.66 | J170: =IFERROR(IF(VLOOKUP(D170,[1]Arkusz!A:H,5,FALSE)=0,IF(H170="Na zapytanie","","EUR"),"PLN"),"") -> PLN
C171: Kable krosowe ekranowane SLIM
D172: C24-1160-0,25 | E172: =IFERROR(VLOOKUP(D172,Arkusz!A:H,3,FALSE),"Brak towaru") -> CobiCabling Patchcord Slim kat. 6A S/FTP LSOH 0,25m szary | F172: =IFERROR(VLOOKUP(D172,Arkusz!A:H,6,FALSE),"-") -> Cobi Cu kable krosowe | G172: 0 | H172: =IFERROR(IF(VLOOKUP(D172,Arkusz!A:I,5,FALSE)=0,(IF(VLOOKUP(D172,Arkusz!A:I,11,FALSE)=0,"Na zapytanie",VLOOKUP(D172,Arkusz!A:I,11,FALSE))),(VLOOKUP(D172,Arkusz!A:I,5,FALSE))),"Na zapytanie") -> 10.89 | I172: =IFERROR(IF(H172="Na zapytanie","",H172*(1-G172)),"") -> 10.89 | J172: =IFERROR(IF(VLOOKUP(D172,Arkusz!A:H,5,FALSE)=0,IF(H172="Na zapytanie","","EUR"),"PLN"),"") -> PLN
D173: C24-1160-0,5 | E173: =IFERROR(VLOOKUP(D173,Arkusz!A:H,3,FALSE),"Brak towaru") -> CobiCabling Patchcord Slim kat. 6A S/FTP LSOH 0,5m szary | F173: =IFERROR(VLOOKUP(D173,Arkusz!A:H,6,FALSE),"-") -> Cobi Cu kable krosowe | G173: 0 | H173: =IFERROR(IF(VLOOKUP(D173,Arkusz!A:I,5,FALSE)=0,(IF(VLOOKUP(D173,Arkusz!A:I,11,FALSE)=0,"Na zapytanie",VLOOKUP(D173,Arkusz!A:I,11,FALSE))),(VLOOKUP(D173,Arkusz!A:I,5,FALSE))),"Na zapytanie") -> 11.45 | I173: 11.45 | J173: =IFERROR(IF(VLOOKUP(D173,Arkusz!A:H,5,FALSE)=0,IF(H173="Na zapytanie","","EUR"),"PLN"),"") -> PLN
D174: C24-1160-1,0 | E174: =IFERROR(VLOOKUP(D174,Arkusz!A:H,3,FALSE),"Brak towaru") -> CobiCabling Patchcord Slim kat. 6A S/FTP LSOH 1m szary | F174: =IFERROR(VLOOKUP(D174,Arkusz!A:H,6,FALSE),"-") -> Cobi Cu kable krosowe | G174: 0 | H174: =IFERROR(IF(VLOOKUP(D174,Arkusz!A:I,5,FALSE)=0,(IF(VLOOKUP(D174,Arkusz!A:I,11,FALSE)=0,"Na zapytanie",VLOOKUP(D174,Arkusz!A:I,11,FALSE))),(VLOOKUP(D174,Arkusz!A:I,5,FALSE))),"Na zapytanie") -> 14.11 | I174: 14.11 | J174: =IFERROR(IF(VLOOKUP(D174,Arkusz!A:H,5,FALSE)=0,IF(H174="Na zapytanie","","EUR"),"PLN"),"") -> PLN
D175: C24-1160-2,0 | E175: =IFERROR(VLOOKUP(D175,Arkusz!A:H,3,FALSE),"Brak towaru") -> CobiCabling Patchcord Slim kat. 6A S/FTP LSOH 2m szary | F175: =IFERROR(VLOOKUP(D175,Arkusz!A:H,6,FALSE),"-") -> Cobi Cu kable krosowe | G175: 0 | H175: =IFERROR(IF(VLOOKUP(D175,Arkusz!A:I,5,FALSE)=0,(IF(VLOOKUP(D175,Arkusz!A:I,11,FALSE)=0,"Na zapytanie",VLOOKUP(D175,Arkusz!A:I,11,FALSE))),(VLOOKUP(D175,Arkusz!A:I,5,FALSE))),"Na zapytanie") -> 19.35 | I175: 19.35 | J175: =IFERROR(IF(VLOOKUP(D175,Arkusz!A:H,5,FALSE)=0,IF(H175="Na zapytanie","","EUR"),"PLN"),"") -> PLN
D176: C24-1160-3,0 | E176: =IFERROR(VLOOKUP(D176,Arkusz!A:H,3,FALSE),"Brak towaru") -> CobiCabling Patchcord Slim kat. 6A S/FTP LSOH 3m szary | F176: =IFERROR(VLOOKUP(D176,Arkusz!A:H,6,FALSE),"-") -> Cobi Cu kable krosowe | G176: 0 | H176: =IFERROR(IF(VLOOKUP(D176,Arkusz!A:I,5,FALSE)=0,(IF(VLOOKUP(D176,Arkusz!A:I,11,FALSE)=0,"Na zapytanie",VLOOKUP(D176,Arkusz!A:I,11,FALSE))),(VLOOKUP(D176,Arkusz!A:I,5,FALSE))),"Na zapytanie") -> 24.56 | I176: 24.56 | J176: =IFERROR(IF(VLOOKUP(D176,Arkusz!A:H,5,FALSE)=0,IF(H176="Na zapytanie","","EUR"),"PLN"),"") -> PLN
D177: C24-1160-5,0 | E177: =IFERROR(VLOOKUP(D177,Arkusz!A:H,3,FALSE),"Brak towaru") -> CobiCabling Patchcord Slim kat. 6A S/FTP LSOH 5m szary | F177: =IFERROR(VLOOKUP(D177,Arkusz!A:H,6,FALSE),"-") -> Cobi Cu kable krosowe | G177: 0 | H177: =IFERROR(IF(VLOOKUP(D177,Arkusz!A:I,5,FALSE)=0,(IF(VLOOKUP(D177,Arkusz!A:I,11,FALSE)=0,"Na zapytanie",VLOOKUP(D177,Arkusz!A:I,11,FALSE))),(VLOOKUP(D177,Arkusz!A:I,5,FALSE))),"Na zapytanie") -> 35.45 | I177: 35.45 | J177: =IFERROR(IF(VLOOKUP(D177,Arkusz!A:H,5,FALSE)=0,IF(H177="Na zapytanie","","EUR"),"PLN"),"") -> PLN
D178: C24-1160-7,5 | E178: =IFERROR(VLOOKUP(D178,Arkusz!A:H,3,FALSE),"Brak towaru") -> CobiCabling Patchcord Slim kat. 6A S/FTP LSOH 7,5m szary | F178: =IFERROR(VLOOKUP(D178,Arkusz!A:H,6,FALSE),"-") -> Cobi Cu kable krosowe | G178: 0 | H178: =IFERROR(IF(VLOOKUP(D178,Arkusz!A:I,5,FALSE)=0,(IF(VLOOKUP(D178,Arkusz!A:I,11,FALSE)=0,"Na zapytanie",VLOOKUP(D178,Arkusz!A:I,11,FALSE))),(VLOOKUP(D178,Arkusz!A:I,5,FALSE))),"Na zapytanie") -> 48.33 | I178: 48.33 | J178: =IFERROR(IF(VLOOKUP(D178,Arkusz!A:H,5,FALSE)=0,IF(H178="Na zapytanie","","EUR"),"PLN"),"") -> PLN
D179: C24-1160-10,0 | E179: =IFERROR(VLOOKUP(D179,Arkusz!A:H,3,FALSE),"Brak towaru") -> CobiCabling Patchcord Slim kat. 6A S/FTP LSOH 10,0m szary | F179: =IFERROR(VLOOKUP(D179,Arkusz!A:H,6,FALSE),"-") -> Cobi Cu kable krosowe | G179: 0 | H179: =IFERROR(IF(VLOOKUP(D179,Arkusz!A:I,5,FALSE)=0,(IF(VLOOKUP(D179,Arkusz!A:I,11,FALSE)=0,"Na zapytanie",VLOOKUP(D179,Arkusz!A:I,11,FALSE))),(VLOOKUP(D179,Arkusz!A:I,5,FALSE))),"Na zapytanie") -> 61.8 | I179: 61.8 | J179: =IFERROR(IF(VLOOKUP(D179,Arkusz!A:H,5,FALSE)=0,IF(H179="Na zapytanie","","EUR"),"PLN"),"") -> PLN
C180: Klipsy do identyfikacji patchcordów SLIM
D181: C30-0200 | E181: =IFERROR(VLOOKUP(D181,Arkusz!A:H,3,FALSE),"Brak towaru") -> CobiCabling Klips do identyfikacji patchcordów Slim, szary | F181: =IFERROR(VLOOKUP(D181,Arkusz!A:H,6,FALSE),"-") -> Cobi Cu okablowanie | G181: 0 | H181: =IFERROR(IF(VLOOKUP(D181,Arkusz!A:I,5,FALSE)=0,(IF(VLOOKUP(D181,Arkusz!A:I,11,FALSE)=0,"Na zapytanie",VLOOKUP(D181,Arkusz!A:I,11,FALSE))),(VLOOKUP(D181,Arkusz!A:I,5,FALSE))),"Na zapytanie") -> 0.64 | I181: =IFERROR(IF(H181="Na zapytanie","",H181*(1-G181)),"") -> 0.64 | J181: =IFERROR(IF(VLOOKUP(D181,Arkusz!A:H,5,FALSE)=0,IF(H181="Na zapytanie","","EUR"),"PLN"),"") -> PLN
D182: C30-0210 | E182: =IFERROR(VLOOKUP(D182,Arkusz!A:H,3,FALSE),"Brak towaru") -> CobiCabling Klips do identyfikacji patchcordów Slim, żółty | F182: =IFERROR(VLOOKUP(D182,Arkusz!A:H,6,FALSE),"-") -> Cobi Cu okablowanie | G182: 0 | H182: =IFERROR(IF(VLOOKUP(D182,Arkusz!A:I,5,FALSE)=0,(IF(VLOOKUP(D182,Arkusz!A:I,11,FALSE)=0,"Na zapytanie",VLOOKUP(D182,Arkusz!A:I,11,FALSE))),(VLOOKUP(D182,Arkusz!A:I,5,FALSE))),"Na zapytanie") -> 0.64 | I182: 0.64 | J182: =IFERROR(IF(VLOOKUP(D182,Arkusz!A:H,5,FALSE)=0,IF(H182="Na zapytanie","","EUR"),"PLN"),"") -> PLN
D183: C30-0220 | E183: =IFERROR(VLOOKUP(D183,Arkusz!A:H,3,FALSE),"Brak towaru") -> CobiCabling Klips do identyfikacji patchcordów Slim, zielony | F183: =IFERROR(VLOOKUP(D183,Arkusz!A:H,6,FALSE),"-") -> Cobi Cu okablowanie | G183: 0 | H183: =IFERROR(IF(VLOOKUP(D183,Arkusz!A:I,5,FALSE)=0,(IF(VLOOKUP(D183,Arkusz!A:I,11,FALSE)=0,"Na zapytanie",VLOOKUP(D183,Arkusz!A:I,11,FALSE))),(VLOOKUP(D183,Arkusz!A:I,5,FALSE))),"Na zapytanie") -> 0.64 | I183: 0.64 | J183: =IFERROR(IF(VLOOKUP(D183,Arkusz!A:H,5,FALSE)=0,IF(H183="Na zapytanie","","EUR"),"PLN"),"") -> PLN
D184: C30-0230 | E184: =IFERROR(VLOOKUP(D184,Arkusz!A:H,3,FALSE),"Brak towaru") -> CobiCabling Klips do identyfikacji patchcordów Slim, niebieski | F184: =IFERROR(VLOOKUP(D184,Arkusz!A:H,6,FALSE),"-") -> Cobi Cu okablowanie | G184: 0 | H184: =IFERROR(IF(VLOOKUP(D184,Arkusz!A:I,5,FALSE)=0,(IF(VLOOKUP(D184,Arkusz!A:I,11,FALSE)=0,"Na zapytanie",VLOOKUP(D184,Arkusz!A:I,11,FALSE))),(VLOOKUP(D184,Arkusz!A:I,5,FALSE))),"Na zapytanie") -> 0.64 | I184: 0.64 | J184: =IFERROR(IF(VLOOKUP(D184,Arkusz!A:H,5,FALSE)=0,IF(H184="Na zapytanie","","EUR"),"PLN"),"") -> PLN
D185: C30-0240 | E185: =IFERROR(VLOOKUP(D185,Arkusz!A:H,3,FALSE),"Brak towaru") -> CobiCabling Klips do identyfikacji patchcordów Slim, czerwony | F185: =IFERROR(VLOOKUP(D185,Arkusz!A:H,6,FALSE),"-") -> Cobi Cu okablowanie | G185: 0 | H185: =IFERROR(IF(VLOOKUP(D185,Arkusz!A:I,5,FALSE)=0,(IF(VLOOKUP(D185,Arkusz!A:I,11,FALSE)=0,"Na zapytanie",VLOOKUP(D185,Arkusz!A:I,11,FALSE))),(VLOOKUP(D185,Arkusz!A:I,5,FALSE))),"Na zapytanie") -> 0.64 | I185: 0.64 | J185: =IFERROR(IF(VLOOKUP(D185,Arkusz!A:H,5,FALSE)=0,IF(H185="Na zapytanie","","EUR"),"PLN"),"") -> PLN
D186: C30-0250 | E186: =IFERROR(VLOOKUP(D186,Arkusz!A:H,3,FALSE),"Brak towaru") -> CobiCabling Klips do identyfikacji patchcordów Slim, czarny | F186: =IFERROR(VLOOKUP(D186,Arkusz!A:H,6,FALSE),"-") -> Cobi Cu okablowanie | G186: 0 | H186: =IFERROR(IF(VLOOKUP(D186,Arkusz!A:I,5,FALSE)=0,(IF(VLOOKUP(D186,Arkusz!A:I,11,FALSE)=0,"Na zapytanie",VLOOKUP(D186,Arkusz!A:I,11,FALSE))),(VLOOKUP(D186,Arkusz!A:I,5,FALSE))),"Na zapytanie") -> 0.64 | I186: 0.64 | J186: =IFERROR(IF(VLOOKUP(D186,Arkusz!A:H,5,FALSE)=0,IF(H186="Na zapytanie","","EUR"),"PLN"),"") -> PLN
D187: C30-0260 | E187: =IFERROR(VLOOKUP(D187,Arkusz!A:H,3,FALSE),"Brak towaru") -> CobiCabling Klips do identyfikacji patchcordów Slim, pomarańczowy | F187: =IFERROR(VLOOKUP(D187,Arkusz!A:H,6,FALSE),"-") -> Cobi Cu okablowanie | G187: 0 | H187: =IFERROR(IF(VLOOKUP(D187,Arkusz!A:I,5,FALSE)=0,(IF(VLOOKUP(D187,Arkusz!A:I,11,FALSE)=0,"Na zapytanie",VLOOKUP(D187,Arkusz!A:I,11,FALSE))),(VLOOKUP(D187,Arkusz!A:I,5,FALSE))),"Na zapytanie") -> 0.64 | I187: 0.64 | J187: =IFERROR(IF(VLOOKUP(D187,Arkusz!A:H,5,FALSE)=0,IF(H187="Na zapytanie","","EUR"),"PLN"),"") -> PLN
D188: C30-0270 | E188: =IFERROR(VLOOKUP(D188,Arkusz!A:H,3,FALSE),"Brak towaru") -> CobiCabling Klips do identyfikacji patchcordów Slim, fioletowy | F188: =IFERROR(VLOOKUP(D188,Arkusz!A:H,6,FALSE),"-") -> Cobi Cu okablowanie | G188: 0 | H188: =IFERROR(IF(VLOOKUP(D188,Arkusz!A:I,5,FALSE)=0,(IF(VLOOKUP(D188,Arkusz!A:I,11,FALSE)=0,"Na zapytanie",VLOOKUP(D188,Arkusz!A:I,11,FALSE))),(VLOOKUP(D188,Arkusz!A:I,5,FALSE))),"Na zapytanie") -> 0.64 | I188: 0.64 | J188: =IFERROR(IF(VLOOKUP(D188,Arkusz!A:H,5,FALSE)=0,IF(H188="Na zapytanie","","EUR"),"PLN"),"") -> PLN
C189: Kable krosowe ekranowane z klipsami
D190: Kolor szary RAL7004
D191: C24-1101-1,0 | E191: =IFERROR(VLOOKUP(D191,Arkusz!A:H,3,FALSE),"Brak towaru") -> CobiCabling Patchcord kat. 6A S/FTP LSOH 1m szary | F191: =IFERROR(VLOOKUP(D191,Arkusz!A:H,6,FALSE),"-") -> Cobi Cu kable krosowe | G191: 0 | H191: =IFERROR(IF(VLOOKUP(D191,Arkusz!A:I,5,FALSE)=0,(IF(VLOOKUP(D191,Arkusz!A:I,11,FALSE)=0,"Na zapytanie",VLOOKUP(D191,Arkusz!A:I,11,FALSE))),(VLOOKUP(D191,Arkusz!A:I,5,FALSE))),"Na zapytanie") -> 8.76 | I191: =IFERROR(IF(H191="Na zapytanie","",H191*(1-G191)),"") -> 8.76 | J191: =IFERROR(IF(VLOOKUP(D191,Arkusz!A:H,5,FALSE)=0,IF(H191="Na zapytanie","","EUR"),"PLN"),"") -> PLN
D192: C24-1101-2,0 | E192: =IFERROR(VLOOKUP(D192,Arkusz!A:H,3,FALSE),"Brak towaru") -> CobiCabling Patchcord kat. 6A S/FTP LSOH 2m szary | F192: =IFERROR(VLOOKUP(D192,Arkusz!A:H,6,FALSE),"-") -> Cobi Cu kable krosowe | G192: 0 | H192: =IFERROR(IF(VLOOKUP(D192,Arkusz!A:I,5,FALSE)=0,(IF(VLOOKUP(D192,Arkusz!A:I,11,FALSE)=0,"Na zapytanie",VLOOKUP(D192,Arkusz!A:I,11,FALSE))),(VLOOKUP(D192,Arkusz!A:I,5,FALSE))),"Na zapytanie") -> 12.32 | I192: 12.32 | J192: =IFERROR(IF(VLOOKUP(D192,Arkusz!A:H,5,FALSE)=0,IF(H192="Na zapytanie","","EUR"),"PLN"),"") -> PLN
D193: C24-1101-3,0 | E193: =IFERROR(VLOOKUP(D193,Arkusz!A:H,3,FALSE),"Brak towaru") -> CobiCabling Patchcord kat. 6A S/FTP LSOH 3m szary | F193: =IFERROR(VLOOKUP(D193,Arkusz!A:H,6,FALSE),"-") -> Cobi Cu kable krosowe | G193: 0 | H193: =IFERROR(IF(VLOOKUP(D193,Arkusz!A:I,5,FALSE)=0,(IF(VLOOKUP(D193,Arkusz!A:I,11,FALSE)=0,"Na zapytanie",VLOOKUP(D193,Arkusz!A:I,11,FALSE))),(VLOOKUP(D193,Arkusz!A:I,5,FALSE))),"Na zapytanie") -> 16.24 | I193: 16.24 | J193: =IFERROR(IF(VLOOKUP(D193,Arkusz!A:H,5,FALSE)=0,IF(H193="Na zapytanie","","EUR"),"PLN"),"") -> PLN
C194: Kable krosowe nieekranowane z klipsami
D195: Kolor szary RAL7004
D196: C14-1101-1,0 | E196: =IFERROR(VLOOKUP(D196,Arkusz!A:H,3,FALSE),"Brak towaru") -> CobiCabling Patchcord kat. 6A U/UTP LSOH 1m szary | F196: =IFERROR(VLOOKUP(D196,Arkusz!A:H,6,FALSE),"-") -> Cobi Cu kable krosowe | G196: 0 | H196: =IFERROR(IF(VLOOKUP(D196,Arkusz!A:I,5,FALSE)=0,(IF(VLOOKUP(D196,Arkusz!A:I,11,FALSE)=0,"Na zapytanie",VLOOKUP(D196,Arkusz!A:I,11,FALSE))),(VLOOKUP(D196,Arkusz!A:I,5,FALSE))),"Na zapytanie") -> 5.66 | I196: =IFERROR(IF(H196="Na zapytanie","",H196*(1-G196)),"") -> 5.66 | J196: =IFERROR(IF(VLOOKUP(D196,Arkusz!A:H,5,FALSE)=0,IF(H196="Na zapytanie","","EUR"),"PLN"),"") -> PLN
D197: C14-1101-15,0 | E197: =IFERROR(VLOOKUP(D197,Arkusz!A:H,3,FALSE),"Brak towaru") -> CobiCabling Patchcord kat. 6A U/UTP LSOH 15m szary | F197: =IFERROR(VLOOKUP(D197,Arkusz!A:H,6,FALSE),"-") -> Cobi Cu kable krosowe | G197: 0 | H197: =IFERROR(IF(VLOOKUP(D197,Arkusz!A:I,5,FALSE)=0,(IF(VLOOKUP(D197,Arkusz!A:I,11,FALSE)=0,"Na zapytanie",VLOOKUP(D197,Arkusz!A:I,11,FALSE))),(VLOOKUP(D197,Arkusz!A:I,5,FALSE))),"Na zapytanie") -> 46.788 | I197: =IFERROR(IF(H197="Na zapytanie","",H197*(1-G197)),"") -> 46.788 | J197: =IFERROR(IF(VLOOKUP(D197,Arkusz!A:H,5,FALSE)=0,IF(H197="Na zapytanie","","EUR"),"PLN"),"") -> PLN
C198: Klipsy do identyfikacji patchcordów
D199: C30-0201 | E199: =IFERROR(VLOOKUP(D199,Arkusz!A:H,3,FALSE),"Brak towaru") -> CobiCabling Klips do identyfikacji patchcordów, szary | F199: =IFERROR(VLOOKUP(D199,Arkusz!A:H,6,FALSE),"-") -> Cobi Cu kable krosowe | G199: 0 | H199: =IFERROR(IF(VLOOKUP(D199,Arkusz!A:I,5,FALSE)=0,(IF(VLOOKUP(D199,Arkusz!A:I,11,FALSE)=0,"Na zapytanie",VLOOKUP(D199,Arkusz!A:I,11,FALSE))),(VLOOKUP(D199,Arkusz!A:I,5,FALSE))),"Na zapytanie") -> 0.45 | I199: =IFERROR(IF(H199="Na zapytanie","",H199*(1-G199)),"") -> 0.45 | J199: =IFERROR(IF(VLOOKUP(D199,Arkusz!A:H,5,FALSE)=0,IF(H199="Na zapytanie","","EUR"),"PLN"),"") -> PLN
D200: C30-0211 | E200: =IFERROR(VLOOKUP(D200,Arkusz!A:H,3,FALSE),"Brak towaru") -> CobiCabling Klips do identyfikacji patchcordów, żółty | F200: =IFERROR(VLOOKUP(D200,Arkusz!A:H,6,FALSE),"-") -> Cobi Cu kable krosowe | G200: 0 | H200: =IFERROR(IF(VLOOKUP(D200,Arkusz!A:I,5,FALSE)=0,(IF(VLOOKUP(D200,Arkusz!A:I,11,FALSE)=0,"Na zapytanie",VLOOKUP(D200,Arkusz!A:I,11,FALSE))),(VLOOKUP(D200,Arkusz!A:I,5,FALSE))),"Na zapytanie") -> 0.45 | I200: 0.45 | J200: =IFERROR(IF(VLOOKUP(D200,Arkusz!A:H,5,FALSE)=0,IF(H200="Na zapytanie","","EUR"),"PLN"),"") -> PLN
... 257 more rows

Sheet Osprzęt Mosaic 45x45
A1: Kategoria produktu | D1: Numer katalogowy | E1: Opis | F1: Grupa produktowa | G1: Rabat | H1: Cena katalogowa | I1: Cena po rabacie | J1: Waluta
A2: Osprzęt Mosaic 45x45
B3: Adaptery RJ45
D4: SAN-SAK2K | E4: =IFERROR(VLOOKUP(D4,Arkusz!A:H,3,FALSE),"Brak towaru") -> Adapter kątowy z uchylnymi przysłonami CobiCabling 45x45mm 2xRJ45 keystone, biały RAL 9010 | F4: =IFERROR(VLOOKUP(D4,Arkusz!A:H,6,FALSE),"-") -> Cobi 45x45 | G4: 0 | H4: =IFERROR(IF(VLOOKUP(D4,Arkusz!A:I,5,FALSE)=0,(IF(VLOOKUP(D4,Arkusz!A:I,11,FALSE)=0,"Na zapytanie",VLOOKUP(D4,Arkusz!A:I,11,FALSE))),(VLOOKUP(D4,Arkusz!A:I,5,FALSE))),"Na zapytanie") -> 8.78 | I4: =IFERROR(IF(H4="Na zapytanie","",H4*(1-G4)),"") -> 8.78 | J4: =IFERROR(IF(VLOOKUP(D4,Arkusz!A:H,5,FALSE)=0,IF(H4="Na zapytanie","","EUR"),"PLN"),"") -> PLN
D5: SAN-SAK | E5: =IFERROR(VLOOKUP(D5,Arkusz!A:H,3,FALSE),"Brak towaru") -> Adapter prosty CobiCabling 22,5x45mm 1xRJ45 keystone, kolor biały RAL 9010 | F5: =IFERROR(VLOOKUP(D5,Arkusz!A:H,6,FALSE),"-") -> Cobi 45x45 | G5: 0 | H5: =IFERROR(IF(VLOOKUP(D5,Arkusz!A:I,5,FALSE)=0,(IF(VLOOKUP(D5,Arkusz!A:I,11,FALSE)=0,"Na zapytanie",VLOOKUP(D5,Arkusz!A:I,11,FALSE))),(VLOOKUP(D5,Arkusz!A:I,5,FALSE))),"Na zapytanie") -> 2.76 | I5: =IFERROR(IF(H5="Na zapytanie","",H5*(1-G5)),"") -> 2.76 | J5: =IFERROR(IF(VLOOKUP(D5,Arkusz!A:H,5,FALSE)=0,IF(H5="Na zapytanie","","EUR"),"PLN"),"") -> PLN
D6: SAN-SAK-SB | E6: =IFERROR(VLOOKUP(D6,Arkusz!A:H,3,FALSE),"Brak towaru") -> Adapter prosty CobiCabling 22,5x45mm 1xRJ45 keystone z polem opisowym, kolor biały RAL 9010 | F6: =IFERROR(VLOOKUP(D6,Arkusz!A:H,6,FALSE),"-") -> Cobi 45x45 | G6: 0 | H6: =IFERROR(IF(VLOOKUP(D6,Arkusz!A:I,5,FALSE)=0,(IF(VLOOKUP(D6,Arkusz!A:I,11,FALSE)=0,"Na zapytanie",VLOOKUP(D6,Arkusz!A:I,11,FALSE))),(VLOOKUP(D6,Arkusz!A:I,5,FALSE))),"Na zapytanie") -> 1.96 | I6: =IFERROR(IF(H6="Na zapytanie","",H6*(1-G6)),"") -> 1.96 | J6: =IFERROR(IF(VLOOKUP(D6,Arkusz!A:H,5,FALSE)=0,IF(H6="Na zapytanie","","EUR"),"PLN"),"") -> PLN
D7: SAN-282 | E7: =IFERROR(VLOOKUP(D7,Arkusz!A:H,3,FALSE),"Brak towaru") -> Adapter kątowy półokrągły CobiCabling 45x45mm 2xRJ45 keystone, kolor biały RAL 9010 | F7: =IFERROR(VLOOKUP(D7,Arkusz!A:H,6,FALSE),"-") -> Cobi 45x45 | G7: 0 | H7: =IFERROR(IF(VLOOKUP(D7,Arkusz!A:I,5,FALSE)=0,(IF(VLOOKUP(D7,Arkusz!A:I,11,FALSE)=0,"Na zapytanie",VLOOKUP(D7,Arkusz!A:I,11,FALSE))),(VLOOKUP(D7,Arkusz!A:I,5,FALSE))),"Na zapytanie") -> 8.3 | I7: 8.3 | J7: =IFERROR(IF(VLOOKUP(D7,Arkusz!A:H,5,FALSE)=0,IF(H7="Na zapytanie","","EUR"),"PLN"),"") -> PLN
D8: SAN-281 | E8: =IFERROR(VLOOKUP(D8,Arkusz!A:H,3,FALSE),"Brak towaru") -> Adapter kątowy półokrągły CobiCabling 45x45mm 1xRJ45 keystone, kolor biały RAL 9010 | F8: =IFERROR(VLOOKUP(D8,Arkusz!A:H,6,FALSE),"-") -> Cobi 45x45 | G8: 0 | H8: =IFERROR(IF(VLOOKUP(D8,Arkusz!A:I,5,FALSE)=0,(IF(VLOOKUP(D8,Arkusz!A:I,11,FALSE)=0,"Na zapytanie",VLOOKUP(D8,Arkusz!A:I,11,FALSE))),(VLOOKUP(D8,Arkusz!A:I,5,FALSE))),"Na zapytanie") -> 8.65 | I8: =IFERROR(IF(H8="Na zapytanie","",H8*(1-G8)),"") -> 8.65 | J8: =IFERROR(IF(VLOOKUP(D8,Arkusz!A:H,5,FALSE)=0,IF(H8="Na zapytanie","","EUR"),"PLN"),"") -> PLN
D9: SAN-SZK | E9: =IFERROR(VLOOKUP(D9,Arkusz!A:H,3,FALSE),"Brak towaru") -> Zaślepka CobiCabling otworu keystone 22,5x45mm, biała RAL 9010 | F9: =IFERROR(VLOOKUP(D9,Arkusz!A:H,6,FALSE),"-") -> Cobi 45x45 | G9: 0 | H9: =IFERROR(IF(VLOOKUP(D9,Arkusz!A:I,5,FALSE)=0,(IF(VLOOKUP(D9,Arkusz!A:I,11,FALSE)=0,"Na zapytanie",VLOOKUP(D9,Arkusz!A:I,11,FALSE))),(VLOOKUP(D9,Arkusz!A:I,5,FALSE))),"Na zapytanie") -> 1.84 | I9: 1.84 | J9: =IFERROR(IF(VLOOKUP(D9,Arkusz!A:H,5,FALSE)=0,IF(H9="Na zapytanie","","EUR"),"PLN"),"") -> PLN
D10: SAN-SZK45 | E10: =IFERROR(VLOOKUP(D10,Arkusz!A:H,3,FALSE),"Brak towaru") -> Zaślepka CobiCabling otworu keystone 45x45mm, biała RAL 9010 | F10: =IFERROR(VLOOKUP(D10,Arkusz!A:H,6,FALSE),"-") -> Cobi 45x45 | G10: 0 | H10: =IFERROR(IF(VLOOKUP(D10,Arkusz!A:I,5,FALSE)=0,(IF(VLOOKUP(D10,Arkusz!A:I,11,FALSE)=0,"Na zapytanie",VLOOKUP(D10,Arkusz!A:I,11,FALSE))),(VLOOKUP(D10,Arkusz!A:I,5,FALSE))),"Na zapytanie") -> 3.22 | I10: 3.22 | J10: =IFERROR(IF(VLOOKUP(D10,Arkusz!A:H,5,FALSE)=0,IF(H10="Na zapytanie","","EUR"),"PLN"),"") -> PLN
B11: Puszki natynkowe/podtynkowe
D12: SAN-PN2M | E12: =IFERROR(VLOOKUP(D12,Arkusz!A:H,3,FALSE),"Brak towaru") -> Puszka natynkowa, Mosaic 45x45, 2-modułowa, biała, gł. 40mm | F12: =IFERROR(VLOOKUP(D12,Arkusz!A:H,6,FALSE),"-") -> Cobi 45x45 | G12: 0 | H12: =IFERROR(IF(VLOOKUP(D12,Arkusz!A:I,5,FALSE)=0,(IF(VLOOKUP(D12,Arkusz!A:I,11,FALSE)=0,"Na zapytanie",VLOOKUP(D12,Arkusz!A:I,11,FALSE))),(VLOOKUP(D12,Arkusz!A:I,5,FALSE))),"Na zapytanie") -> 4.46 | I12: 4.46 | J12: =IFERROR(IF(VLOOKUP(D12,Arkusz!A:H,5,FALSE)=0,IF(H12="Na zapytanie","","EUR"),"PLN"),"") -> PLN
D13: SAN-PN4M | E13: =IFERROR(VLOOKUP(D13,Arkusz!A:H,3,FALSE),"Brak towaru") -> Puszka natynkowa, Mosaic 45x90, 4-modułowa, biała, gł. 40mm | F13: =IFERROR(VLOOKUP(D13,Arkusz!A:H,6,FALSE),"-") -> Cobi 45x45 | G13: 0 | H13: =IFERROR(IF(VLOOKUP(D13,Arkusz!A:I,5,FALSE)=0,(IF(VLOOKUP(D13,Arkusz!A:I,11,FALSE)=0,"Na zapytanie",VLOOKUP(D13,Arkusz!A:I,11,FALSE))),(VLOOKUP(D13,Arkusz!A:I,5,FALSE))),"Na zapytanie") -> 6.22 | I13: 6.22 | J13: =IFERROR(IF(VLOOKUP(D13,Arkusz!A:H,5,FALSE)=0,IF(H13="Na zapytanie","","EUR"),"PLN"),"") -> PLN
D14: SAN-PN6M | E14: =IFERROR(VLOOKUP(D14,Arkusz!A:H,3,FALSE),"Brak towaru") -> Puszka natynkowa, Mosaic 45x135, 6-modułowa, biała, gł. 40mm | F14: =IFERROR(VLOOKUP(D14,Arkusz!A:H,6,FALSE),"-") -> Cobi 45x45 | G14: 0 | H14: =IFERROR(IF(VLOOKUP(D14,Arkusz!A:I,5,FALSE)=0,(IF(VLOOKUP(D14,Arkusz!A:I,11,FALSE)=0,"Na zapytanie",VLOOKUP(D14,Arkusz!A:I,11,FALSE))),(VLOOKUP(D14,Arkusz!A:I,5,FALSE))),"Na zapytanie") -> 10.26 | I14: 10.26 | J14: =IFERROR(IF(VLOOKUP(D14,Arkusz!A:H,5,FALSE)=0,IF(H14="Na zapytanie","","EUR"),"PLN"),"") -> PLN
D15: SAN-PPG2M | E15: =IFERROR(VLOOKUP(D15,Arkusz!A:H,3,FALSE),"Brak towaru") -> Puszka podtynkowa, Mosaic 45x45, 2-modułowa, biała, gł. 40mm | F15: =IFERROR(VLOOKUP(D15,Arkusz!A:H,6,FALSE),"-") -> Cobi 45x45 | G15: 0 | H15: =IFERROR(IF(VLOOKUP(D15,Arkusz!A:I,5,FALSE)=0,(IF(VLOOKUP(D15,Arkusz!A:I,11,FALSE)=0,"Na zapytanie",VLOOKUP(D15,Arkusz!A:I,11,FALSE))),(VLOOKUP(D15,Arkusz!A:I,5,FALSE))),"Na zapytanie") -> 4.12 | I15: 4.12 | J15: =IFERROR(IF(VLOOKUP(D15,Arkusz!A:H,5,FALSE)=0,IF(H15="Na zapytanie","","EUR"),"PLN"),"") -> PLN
D16: SAN-PPG4M | E16: =IFERROR(VLOOKUP(D16,Arkusz!A:H,3,FALSE),"Brak towaru") -> Puszka podtynkowa, Mosaic 45x90, 4-modułowa, biała, gł. 40mm | F16: =IFERROR(VLOOKUP(D16,Arkusz!A:H,6,FALSE),"-") -> Cobi 45x45 | G16: 0 | H16: =IFERROR(IF(VLOOKUP(D16,Arkusz!A:I,5,FALSE)=0,(IF(VLOOKUP(D16,Arkusz!A:I,11,FALSE)=0,"Na zapytanie",VLOOKUP(D16,Arkusz!A:I,11,FALSE))),(VLOOKUP(D16,Arkusz!A:I,5,FALSE))),"Na zapytanie") -> 7.84 | I16: 7.84 | J16: =IFERROR(IF(VLOOKUP(D16,Arkusz!A:H,5,FALSE)=0,IF(H16="Na zapytanie","","EUR"),"PLN"),"") -> PLN
D17: SAN-PPG6M | E17: =IFERROR(VLOOKUP(D17,Arkusz!A:H,3,FALSE),"Brak towaru") -> Puszka podtynkowa, Mosaic 45x135, 6-modułowa, biała, gł. 40mm | F17: =IFERROR(VLOOKUP(D17,Arkusz!A:H,6,FALSE),"-") -> Cobi 45x45 | G17: 0 | H17: =IFERROR(IF(VLOOKUP(D17,Arkusz!A:I,5,FALSE)=0,(IF(VLOOKUP(D17,Arkusz!A:I,11,FALSE)=0,"Na zapytanie",VLOOKUP(D17,Arkusz!A:I,11,FALSE))),(VLOOKUP(D17,Arkusz!A:I,5,FALSE))),"Na zapytanie") -> 9.9 | I17: 9.9 | J17: =IFERROR(IF(VLOOKUP(D17,Arkusz!A:H,5,FALSE)=0,IF(H17="Na zapytanie","","EUR"),"PLN"),"") -> PLN
B18: Ramki
D19: SAN-RS2M | E19: =IFERROR(VLOOKUP(D19,Arkusz!A:H,3,FALSE),"Brak towaru") -> Ramka 2-modułowa, biała + support - 45x45 mm | F19: =IFERROR(VLOOKUP(D19,Arkusz!A:H,6,FALSE),"-") -> Cobi 45x45 | G19: 0 | H19: =IFERROR(IF(VLOOKUP(D19,Arkusz!A:I,5,FALSE)=0,(IF(VLOOKUP(D19,Arkusz!A:I,11,FALSE)=0,"Na zapytanie",VLOOKUP(D19,Arkusz!A:I,11,FALSE))),(VLOOKUP(D19,Arkusz!A:I,5,FALSE))),"Na zapytanie") -> 4.66 | I19: 4.66 | J19: =IFERROR(IF(VLOOKUP(D19,Arkusz!A:H,5,FALSE)=0,IF(H19="Na zapytanie","","EUR"),"PLN"),"") -> PLN
D20: SAN-RS4M | E20: =IFERROR(VLOOKUP(D20,Arkusz!A:H,3,FALSE),"Brak towaru") -> Ramka 4-modułowa, biała + support - 45x90 mm | F20: =IFERROR(VLOOKUP(D20,Arkusz!A:H,6,FALSE),"-") -> Cobi 45x45 | G20: 0 | H20: =IFERROR(IF(VLOOKUP(D20,Arkusz!A:I,5,FALSE)=0,(IF(VLOOKUP(D20,Arkusz!A:I,11,FALSE)=0,"Na zapytanie",VLOOKUP(D20,Arkusz!A:I,11,FALSE))),(VLOOKUP(D20,Arkusz!A:I,5,FALSE))),"Na zapytanie") -> 6.64 | I20: 6.64 | J20: =IFERROR(IF(VLOOKUP(D20,Arkusz!A:H,5,FALSE)=0,IF(H20="Na zapytanie","","EUR"),"PLN"),"") -> PLN
D21: SAN-RS6M | E21: =IFERROR(VLOOKUP(D21,Arkusz!A:H,3,FALSE),"Brak towaru") -> Ramka 6-modułowa, biała + support - 45x135 mm | F21: =IFERROR(VLOOKUP(D21,Arkusz!A:H,6,FALSE),"-") -> Cobi 45x45 | G21: 0 | H21: =IFERROR(IF(VLOOKUP(D21,Arkusz!A:I,5,FALSE)=0,(IF(VLOOKUP(D21,Arkusz!A:I,11,FALSE)=0,"Na zapytanie",VLOOKUP(D21,Arkusz!A:I,11,FALSE))),(VLOOKUP(D21,Arkusz!A:I,5,FALSE))),"Na zapytanie") -> 8.06 | I21: 8.06 | J21: =IFERROR(IF(VLOOKUP(D21,Arkusz!A:H,5,FALSE)=0,IF(H21="Na zapytanie","","EUR"),"PLN"),"") -> PLN
B22: Gniazda elektryczne
D23: SAN-SEZB | E23: =IFERROR(VLOOKUP(D23,Arkusz!A:H,3,FALSE),"Brak towaru") -> Gniazdo elektryczne DATA 45x45 mm, 2P+Z z blokadą, czerwone | F23: =IFERROR(VLOOKUP(D23,Arkusz!A:H,6,FALSE),"-") -> Cobi 45x45 | G23: 0 | H23: =IFERROR(IF(VLOOKUP(D23,Arkusz!A:I,5,FALSE)=0,(IF(VLOOKUP(D23,Arkusz!A:I,11,FALSE)=0,"Na zapytanie",VLOOKUP(D23,Arkusz!A:I,11,FALSE))),(VLOOKUP(D23,Arkusz!A:I,5,FALSE))),"Na zapytanie") -> 16 | I23: 16 | J23: =IFERROR(IF(VLOOKUP(D23,Arkusz!A:H,5,FALSE)=0,IF(H23="Na zapytanie","","EUR"),"PLN"),"") -> PLN
D24: SAN-SE2ZB | E24: =IFERROR(VLOOKUP(D24,Arkusz!A:H,3,FALSE),"Brak towaru") -> Gniazdo elektryczne DATA 45x90 mm, 2x2P+Z z blokadą, czerwone | F24: =IFERROR(VLOOKUP(D24,Arkusz!A:H,6,FALSE),"-") -> Cobi 45x45 | G24: 0 | H24: =IFERROR(IF(VLOOKUP(D24,Arkusz!A:I,5,FALSE)=0,(IF(VLOOKUP(D24,Arkusz!A:I,11,FALSE)=0,"Na zapytanie",VLOOKUP(D24,Arkusz!A:I,11,FALSE))),(VLOOKUP(D24,Arkusz!A:I,5,FALSE))),"Na zapytanie") -> 35.6 | I24: 35.6 | J24: =IFERROR(IF(VLOOKUP(D24,Arkusz!A:H,5,FALSE)=0,IF(H24="Na zapytanie","","EUR"),"PLN"),"") -> PLN
D25: SAN-SE3ZB | E25: =IFERROR(VLOOKUP(D25,Arkusz!A:H,3,FALSE),"Brak towaru") -> Gniazdo elektryczne DATA 45x135 mm, 3x2P+Z z blokadą, czerwone | F25: =IFERROR(VLOOKUP(D25,Arkusz!A:H,6,FALSE),"-") -> Cobi 45x45 | G25: 0 | H25: =IFERROR(IF(VLOOKUP(D25,Arkusz!A:I,5,FALSE)=0,(IF(VLOOKUP(D25,Arkusz!A:I,11,FALSE)=0,"Na zapytanie",VLOOKUP(D25,Arkusz!A:I,11,FALSE))),(VLOOKUP(D25,Arkusz!A:I,5,FALSE))),"Na zapytanie") -> 44.6 | I25: 44.6 | J25: =IFERROR(IF(VLOOKUP(D25,Arkusz!A:H,5,FALSE)=0,IF(H25="Na zapytanie","","EUR"),"PLN"),"") -> PLN
D26: SAN-SEK | E26: =IFERROR(VLOOKUP(D26,Arkusz!A:H,3,FALSE),"Brak towaru") -> Klucz zwalniający do kodowanych gniazd elektrycznych DATA, czerwony | F26: =IFERROR(VLOOKUP(D26,Arkusz!A:H,6,FALSE),"-") -> Cobi 45x45 | G26: 0 | H26: =IFERROR(IF(VLOOKUP(D26,Arkusz!A:I,5,FALSE)=0,(IF(VLOOKUP(D26,Arkusz!A:I,11,FALSE)=0,"Na zapytanie",VLOOKUP(D26,Arkusz!A:I,11,FALSE))),(VLOOKUP(D26,Arkusz!A:I,5,FALSE))),"Na zapytanie") -> 1.16 | I26: 1.16 | J26: =IFERROR(IF(VLOOKUP(D26,Arkusz!A:H,5,FALSE)=0,IF(H26="Na zapytanie","","EUR"),"PLN"),"") -> PLN
D27: SAN-SE | E27: =IFERROR(VLOOKUP(D27,Arkusz!A:H,3,FALSE),"Brak towaru") -> Gniazdo elektryczne 230V 16A Mosaic 45x45 mm, 2P+Z, białe | F27: =IFERROR(VLOOKUP(D27,Arkusz!A:H,6,FALSE),"-") -> Cobi 45x45 | G27: 0 | H27: =IFERROR(IF(VLOOKUP(D27,Arkusz!A:I,5,FALSE)=0,(IF(VLOOKUP(D27,Arkusz!A:I,11,FALSE)=0,"Na zapytanie",VLOOKUP(D27,Arkusz!A:I,11,FALSE))),(VLOOKUP(D27,Arkusz!A:I,5,FALSE))),"Na zapytanie") -> 14.6 | I27: 14.6 | J27: =IFERROR(IF(VLOOKUP(D27,Arkusz!A:H,5,FALSE)=0,IF(H27="Na zapytanie","","EUR"),"PLN"),"") -> PLN
D28: SAN-SE2 | E28: =IFERROR(VLOOKUP(D28,Arkusz!A:H,3,FALSE),"Brak towaru") -> CobiCabling Gniazdo elektryczne 45x90 mm, 2x2P+Z, białe | F28: =IFERROR(VLOOKUP(D28,Arkusz!A:H,6,FALSE),"-") -> Cobi 45x45 | G28: 0 | H28: =IFERROR(IF(VLOOKUP(D28,Arkusz!A:I,5,FALSE)=0,(IF(VLOOKUP(D28,Arkusz!A:I,11,FALSE)=0,"Na zapytanie",VLOOKUP(D28,Arkusz!A:I,11,FALSE))),(VLOOKUP(D28,Arkusz!A:I,5,FALSE))),"Na zapytanie") -> 31.6 | I28: 31.6 | J28: =IFERROR(IF(VLOOKUP(D28,Arkusz!A:H,5,FALSE)=0,IF(H28="Na zapytanie","","EUR"),"PLN"),"") -> PLN
D29: SAN-SE3 | E29: =IFERROR(VLOOKUP(D29,Arkusz!A:H,3,FALSE),"Brak towaru") -> Gniazdo elektryczne 230V 16A Mosaic 45x135 mm, 3P+Z, białe | F29: =IFERROR(VLOOKUP(D29,Arkusz!A:H,6,FALSE),"-") -> Cobi 45x45 | G29: 0 | H29: =IFERROR(IF(VLOOKUP(D29,Arkusz!A:I,5,FALSE)=0,(IF(VLOOKUP(D29,Arkusz!A:I,11,FALSE)=0,"Na zapytanie",VLOOKUP(D29,Arkusz!A:I,11,FALSE))),(VLOOKUP(D29,Arkusz!A:I,5,FALSE))),"Na zapytanie") -> 38.52 | I29: 38.52 | J29: =IFERROR(IF(VLOOKUP(D29,Arkusz!A:H,5,FALSE)=0,IF(H29="Na zapytanie","","EUR"),"PLN"),"") -> PLN
B30: Obudowy IP66
D31: C30-0126 | E31: =IFERROR(VLOOKUP(D31,Arkusz!A:H,3,FALSE),"Brak towaru") -> Puszka natynkowa jednoelementowa IP66 | F31: =IFERROR(VLOOKUP(D31,Arkusz!A:H,6,FALSE),"-") -> Cobi Cu okablowanie | G31: 0 | H31: =IFERROR(IF(VLOOKUP(D31,Arkusz!A:I,5,FALSE)=0,(IF(VLOOKUP(D31,Arkusz!A:I,11,FALSE)=0,"Na zapytanie",VLOOKUP(D31,Arkusz!A:I,11,FALSE))),(VLOOKUP(D31,Arkusz!A:I,5,FALSE))),"Na zapytanie") -> 19.94 | I31: 19.94 | J31: =IFERROR(IF(VLOOKUP(D31,Arkusz!A:H,5,FALSE)=0,IF(H31="Na zapytanie","","EUR"),"PLN"),"") -> PLN
D32: C30-0127 | E32: =IFERROR(VLOOKUP(D32,Arkusz!A:H,3,FALSE),"Brak towaru") -> Klapa PROTECTA dwumodułowa do puszki natynkowej IP66 | F32: =IFERROR(VLOOKUP(D32,Arkusz!A:H,6,FALSE),"-") -> Cobi Cu okablowanie | G32: 0 | H32: =IFERROR(IF(VLOOKUP(D32,Arkusz!A:I,5,FALSE)=0,(IF(VLOOKUP(D32,Arkusz!A:I,11,FALSE)=0,"Na zapytanie",VLOOKUP(D32,Arkusz!A:I,11,FALSE))),(VLOOKUP(D32,Arkusz!A:I,5,FALSE))),"Na zapytanie") -> 91.64 | I32: 91.64 | J32: =IFERROR(IF(VLOOKUP(D32,Arkusz!A:H,5,FALSE)=0,IF(H32="Na zapytanie","","EUR"),"PLN"),"") -> PLN
D33: C30-0128 | E33: =IFERROR(VLOOKUP(D33,Arkusz!A:H,3,FALSE),"Brak towaru") -> Adapter do gniazda RJ45 w puszce natynkowej IP66 | F33: =IFERROR(VLOOKUP(D33,Arkusz!A:H,6,FALSE),"-") -> Cobi Cu okablowanie | G33: 0 | H33: =IFERROR(IF(VLOOKUP(D33,Arkusz!A:I,5,FALSE)=0,(IF(VLOOKUP(D33,Arkusz!A:I,11,FALSE)=0,"Na zapytanie",VLOOKUP(D33,Arkusz!A:I,11,FALSE))),(VLOOKUP(D33,Arkusz!A:I,5,FALSE))),"Na zapytanie") -> 13.9 | I33: 13.9 | J33: =IFERROR(IF(VLOOKUP(D33,Arkusz!A:H,5,FALSE)=0,IF(H33="Na zapytanie","","EUR"),"PLN"),"") -> PLN
D34: C30-0129 | E34: =IFERROR(VLOOKUP(D34,Arkusz!A:H,3,FALSE),"Brak towaru") -> Ramka do adaptera do gniazda RJ45 w puszce natynkowej IP66 | F34: =IFERROR(VLOOKUP(D34,Arkusz!A:H,6,FALSE),"-") -> Cobi Cu okablowanie | G34: 0 | H34: =IFERROR(IF(VLOOKUP(D34,Arkusz!A:I,5,FALSE)=0,(IF(VLOOKUP(D34,Arkusz!A:I,11,FALSE)=0,"Na zapytanie",VLOOKUP(D34,Arkusz!A:I,11,FALSE))),(VLOOKUP(D34,Arkusz!A:I,5,FALSE))),"Na zapytanie") -> 8.88 | I34: 8.88 | J34: =IFERROR(IF(VLOOKUP(D34,Arkusz!A:H,5,FALSE)=0,IF(H34="Na zapytanie","","EUR"),"PLN"),"") -> PLN
B35: Obudowy natynkowe
D36: C30-0110 | E36: =IFERROR(VLOOKUP(D36,Arkusz!A:H,3,FALSE),"Brak towaru") -> CobiCabling obudowa natynkowa 1&2 RJ45 keystone, biała | F36: =IFERROR(VLOOKUP(D36,Arkusz!A:H,6,FALSE),"-") -> Cobi Cu okablowanie | G36: 0 | H36: =IFERROR(IF(VLOOKUP(D36,Arkusz!A:I,5,FALSE)=0,(IF(VLOOKUP(D36,Arkusz!A:I,11,FALSE)=0,"Na zapytanie",VLOOKUP(D36,Arkusz!A:I,11,FALSE))),(VLOOKUP(D36,Arkusz!A:I,5,FALSE))),"Na zapytanie") -> 6.56 | I36: =IFERROR(IF(H36="Na zapytanie","",H36*(1-G36)),"") -> 6.56 | J36: =IFERROR(IF(VLOOKUP(D36,Arkusz!A:H,5,FALSE)=0,IF(H36="Na zapytanie","","EUR"),"PLN"),"") -> PLN

Sheet Komponenty światłowodowe
A1: Kategoria produktu | D1: Numer katalogowy | E1: Opis | F1: Grupa produktowa | G1: Rabat | H1: Cena katalogowa | I1: Cena po rabacie | J1: Waluta
A2: Komponenty światłowodowe
B3: Kable światłowodowe uniwersalne (Dca)
C4: Jednomodowe OS2 9/125
D5: F51-2200 | E5: =IFERROR(VLOOKUP(D5,Arkusz!A:H,3,FALSE),"Brak towaru") -> CobiCabling Kabel FO SM G657A1 4J LSOH uniwersalny Dca | F5: =IFERROR(VLOOKUP(D5,Arkusz!A:H,6,FALSE),"-") -> Cobi FO kable | G5: 0 | H5: =IFERROR(IF(VLOOKUP(D5,Arkusz!A:I,5,FALSE)=0,(IF(VLOOKUP(D5,Arkusz!A:I,11,FALSE)=0,"Na zapytanie",VLOOKUP(D5,Arkusz!A:I,11,FALSE))),(VLOOKUP(D5,Arkusz!A:I,5,FALSE))),"Na zapytanie") -> 2.8 | I5: =IFERROR(IF(H5="Na zapytanie","",H5*(1-G5)),"") -> 2.8 | J5: =IFERROR(IF(VLOOKUP(D5,Arkusz!A:H,5,FALSE)=0,IF(H5="Na zapytanie","","EUR"),"PLN"),"") -> PLN
D6: F51-2400 | E6: =IFERROR(VLOOKUP(D6,Arkusz!A:H,3,FALSE),"Brak towaru") -> CobiCabling Kabel FO SM G657A1 8J LSOH uniwersalny Dca | F6: =IFERROR(VLOOKUP(D6,Arkusz!A:H,6,FALSE),"-") -> Cobi FO kable | G6: 0 | H6: =IFERROR(IF(VLOOKUP(D6,Arkusz!A:I,5,FALSE)=0,(IF(VLOOKUP(D6,Arkusz!A:I,11,FALSE)=0,"Na zapytanie",VLOOKUP(D6,Arkusz!A:I,11,FALSE))),(VLOOKUP(D6,Arkusz!A:I,5,FALSE))),"Na zapytanie") -> 3.02 | I6: =IFERROR(IF(H6="Na zapytanie","",H6*(1-G6)),"") -> 3.02 | J6: =IFERROR(IF(VLOOKUP(D6,Arkusz!A:H,5,FALSE)=0,IF(H6="Na zapytanie","","EUR"),"PLN"),"") -> PLN
D7: F51-2500 | E7: =IFERROR(VLOOKUP(D7,Arkusz!A:H,3,FALSE),"Brak towaru") -> CobiCabling Kabel FO SM G657A1 12J LSOH uniwersalny Dca | F7: =IFERROR(VLOOKUP(D7,Arkusz!A:H,6,FALSE),"-") -> Cobi FO kable | G7: 0 | H7: =IFERROR(IF(VLOOKUP(D7,Arkusz!A:I,5,FALSE)=0,(IF(VLOOKUP(D7,Arkusz!A:I,11,FALSE)=0,"Na zapytanie",VLOOKUP(D7,Arkusz!A:I,11,FALSE))),(VLOOKUP(D7,Arkusz!A:I,5,FALSE))),"Na zapytanie") -> 4.23 | I7: 4.23 | J7: =IFERROR(IF(VLOOKUP(D7,Arkusz!A:H,5,FALSE)=0,IF(H7="Na zapytanie","","EUR"),"PLN"),"") -> PLN
D8: F51-2600 | E8: =IFERROR(VLOOKUP(D8,Arkusz!A:H,3,FALSE),"Brak towaru") -> CobiCabling Kabel FO SM G657A1 24J LSOH uniwersalny Dca | F8: =IFERROR(VLOOKUP(D8,Arkusz!A:H,6,FALSE),"-") -> Cobi FO kable | G8: 0 | H8: =IFERROR(IF(VLOOKUP(D8,Arkusz!A:I,5,FALSE)=0,(IF(VLOOKUP(D8,Arkusz!A:I,11,FALSE)=0,"Na zapytanie",VLOOKUP(D8,Arkusz!A:I,11,FALSE))),(VLOOKUP(D8,Arkusz!A:I,5,FALSE))),"Na zapytanie") -> 5.96 | I8: 5.96 | J8: =IFERROR(IF(VLOOKUP(D8,Arkusz!A:H,5,FALSE)=0,IF(H8="Na zapytanie","","EUR"),"PLN"),"") -> PLN
D9: F51-2700 | E9: =IFERROR(VLOOKUP(D9,Arkusz!A:H,3,FALSE),"Brak towaru") -> CobiCabling Kabel FO SM G657A1 48J LSOH uniwersalny Dca | F9: =IFERROR(VLOOKUP(D9,Arkusz!A:H,6,FALSE),"-") -> Cobi FO kable | G9: 0 | H9: =IFERROR(IF(VLOOKUP(D9,Arkusz!A:I,5,FALSE)=0,(IF(VLOOKUP(D9,Arkusz!A:I,11,FALSE)=0,"Na zapytanie",VLOOKUP(D9,Arkusz!A:I,11,FALSE))),(VLOOKUP(D9,Arkusz!A:I,5,FALSE))),"Na zapytanie") -> Na zapytanie | J9: =IFERROR(IF(VLOOKUP(D9,Arkusz!A:H,5,FALSE)=0,IF(H9="Na zapytanie","","EUR"),"PLN"),"") -> 
C10: Wielomodowe OM2 50/125
D11: F52-2200 | E11: =IFERROR(VLOOKUP(D11,Arkusz!A:H,3,FALSE),"Brak towaru") -> CobiCabling Kabel FO MM OM2 4G LSOH uniwersalny Dca | F11: =IFERROR(VLOOKUP(D11,Arkusz!A:H,6,FALSE),"-") -> Cobi FO kable | G11: 0 | H11: =IFERROR(IF(VLOOKUP(D11,Arkusz!A:I,5,FALSE)=0,(IF(VLOOKUP(D11,Arkusz!A:I,11,FALSE)=0,"Na zapytanie",VLOOKUP(D11,Arkusz!A:I,11,FALSE))),(VLOOKUP(D11,Arkusz!A:I,5,FALSE))),"Na zapytanie") -> 2.24 | I11: 2.24 | J11: =IFERROR(IF(VLOOKUP(D11,Arkusz!A:H,5,FALSE)=0,IF(H11="Na zapytanie","","EUR"),"PLN"),"") -> PLN
D12: F52-2400 | E12: =IFERROR(VLOOKUP(D12,Arkusz!A:H,3,FALSE),"Brak towaru") -> CobiCabling Kabel FO SM OM2 8G LSOH uniwersalny Dca | F12: =IFERROR(VLOOKUP(D12,Arkusz!A:H,6,FALSE),"-") -> Cobi FO kable | G12: 0 | H12: =IFERROR(IF(VLOOKUP(D12,Arkusz!A:I,5,FALSE)=0,(IF(VLOOKUP(D12,Arkusz!A:I,11,FALSE)=0,"Na zapytanie",VLOOKUP(D12,Arkusz!A:I,11,FALSE))),(VLOOKUP(D12,Arkusz!A:I,5,FALSE))),"Na zapytanie") -> 3.36 | I12: 3.36 | J12: =IFERROR(IF(VLOOKUP(D12,Arkusz!A:H,5,FALSE)=0,IF(H12="Na zapytanie","","EUR"),"PLN"),"") -> PLN
D13: F52-2500 | E13: =IFERROR(VLOOKUP(D13,Arkusz!A:H,3,FALSE),"Brak towaru") -> CobiCabling Kabel FO MM OM2 12G LSOH uniwersalny Dca | F13: =IFERROR(VLOOKUP(D13,Arkusz!A:H,6,FALSE),"-") -> Cobi FO kable | G13: 0 | H13: =IFERROR(IF(VLOOKUP(D13,Arkusz!A:I,5,FALSE)=0,(IF(VLOOKUP(D13,Arkusz!A:I,11,FALSE)=0,"Na zapytanie",VLOOKUP(D13,Arkusz!A:I,11,FALSE))),(VLOOKUP(D13,Arkusz!A:I,5,FALSE))),"Na zapytanie") -> 4.48 | I13: 4.48 | J13: =IFERROR(IF(VLOOKUP(D13,Arkusz!A:H,5,FALSE)=0,IF(H13="Na zapytanie","","EUR"),"PLN"),"") -> PLN
D14: F52-2600 | E14: =IFERROR(VLOOKUP(D14,Arkusz!A:H,3,FALSE),"Brak towaru") -> CobiCabling Kabel FO MM OM2 24G LSOH uniwersalny Dca | F14: =IFERROR(VLOOKUP(D14,Arkusz!A:H,6,FALSE),"-") -> Cobi FO kable | G14: 0 | H14: =IFERROR(IF(VLOOKUP(D14,Arkusz!A:I,5,FALSE)=0,(IF(VLOOKUP(D14,Arkusz!A:I,11,FALSE)=0,"Na zapytanie",VLOOKUP(D14,Arkusz!A:I,11,FALSE))),(VLOOKUP(D14,Arkusz!A:I,5,FALSE))),"Na zapytanie") -> 7.56 | I14: 7.56 | J14: =IFERROR(IF(VLOOKUP(D14,Arkusz!A:H,5,FALSE)=0,IF(H14="Na zapytanie","","EUR"),"PLN"),"") -> PLN
D15: F52-2700 | E15: =IFERROR(VLOOKUP(D15,Arkusz!A:H,3,FALSE),"Brak towaru") -> CobiCabling Kabel FO MM OM2 48G LSOH uniwersalny Dca | F15: =IFERROR(VLOOKUP(D15,Arkusz!A:H,6,FALSE),"-") -> Cobi FO kable | G15: 0 | H15: =IFERROR(IF(VLOOKUP(D15,Arkusz!A:I,5,FALSE)=0,(IF(VLOOKUP(D15,Arkusz!A:I,11,FALSE)=0,"Na zapytanie",VLOOKUP(D15,Arkusz!A:I,11,FALSE))),(VLOOKUP(D15,Arkusz!A:I,5,FALSE))),"Na zapytanie") -> 30.24 | I15: 30.24 | J15: =IFERROR(IF(VLOOKUP(D15,Arkusz!A:H,5,FALSE)=0,IF(H15="Na zapytanie","","EUR"),"PLN"),"") -> PLN
C16: Wielomodowe OM3 50/125
D17: F53-2200 | E17: =IFERROR(VLOOKUP(D17,Arkusz!A:H,3,FALSE),"Brak towaru") -> CobiCabling Kabel FO MM OM3 4G LSOH uniwersalny Dca | F17: =IFERROR(VLOOKUP(D17,Arkusz!A:H,6,FALSE),"-") -> Cobi FO kable | G17: 0 | H17: =IFERROR(IF(VLOOKUP(D17,Arkusz!A:I,5,FALSE)=0,(IF(VLOOKUP(D17,Arkusz!A:I,11,FALSE)=0,"Na zapytanie",VLOOKUP(D17,Arkusz!A:I,11,FALSE))),(VLOOKUP(D17,Arkusz!A:I,5,FALSE))),"Na zapytanie") -> 3.53 | I17: 3.53 | J17: =IFERROR(IF(VLOOKUP(D17,Arkusz!A:H,5,FALSE)=0,IF(H17="Na zapytanie","","EUR"),"PLN"),"") -> PLN
D18: F53-2400 | E18: =IFERROR(VLOOKUP(D18,Arkusz!A:H,3,FALSE),"Brak towaru") -> CobiCabling Kabel FO MM OM3 8G LSOH uniwersalny Dca | F18: =IFERROR(VLOOKUP(D18,Arkusz!A:H,6,FALSE),"-") -> Cobi FO kable | G18: 0 | H18: =IFERROR(IF(VLOOKUP(D18,Arkusz!A:I,5,FALSE)=0,(IF(VLOOKUP(D18,Arkusz!A:I,11,FALSE)=0,"Na zapytanie",VLOOKUP(D18,Arkusz!A:I,11,FALSE))),(VLOOKUP(D18,Arkusz!A:I,5,FALSE))),"Na zapytanie") -> 5.63 | I18: 5.63 | J18: =IFERROR(IF(VLOOKUP(D18,Arkusz!A:H,5,FALSE)=0,IF(H18="Na zapytanie","","EUR"),"PLN"),"") -> PLN
D19: F53-2500 | E19: =IFERROR(VLOOKUP(D19,Arkusz!A:H,3,FALSE),"Brak towaru") -> CobiCabling Kabel FO MM OM3 12G LSOH uniwersalny Dca | F19: =IFERROR(VLOOKUP(D19,Arkusz!A:H,6,FALSE),"-") -> Cobi FO kable | G19: 0 | H19: =IFERROR(IF(VLOOKUP(D19,Arkusz!A:I,5,FALSE)=0,(IF(VLOOKUP(D19,Arkusz!A:I,11,FALSE)=0,"Na zapytanie",VLOOKUP(D19,Arkusz!A:I,11,FALSE))),(VLOOKUP(D19,Arkusz!A:I,5,FALSE))),"Na zapytanie") -> 7.53 | I19: 7.53 | J19: =IFERROR(IF(VLOOKUP(D19,Arkusz!A:H,5,FALSE)=0,IF(H19="Na zapytanie","","EUR"),"PLN"),"") -> PLN
D20: F53-2600 | E20: =IFERROR(VLOOKUP(D20,Arkusz!A:H,3,FALSE),"Brak towaru") -> CobiCabling Kabel FO MM OM3 24G LSOH uniwersalny Dca | F20: =IFERROR(VLOOKUP(D20,Arkusz!A:H,6,FALSE),"-") -> Cobi FO kable | G20: 0 | H20: =IFERROR(IF(VLOOKUP(D20,Arkusz!A:I,5,FALSE)=0,(IF(VLOOKUP(D20,Arkusz!A:I,11,FALSE)=0,"Na zapytanie",VLOOKUP(D20,Arkusz!A:I,11,FALSE))),(VLOOKUP(D20,Arkusz!A:I,5,FALSE))),"Na zapytanie") -> 13.52 | I20: 13.52 | J20: =IFERROR(IF(VLOOKUP(D20,Arkusz!A:H,5,FALSE)=0,IF(H20="Na zapytanie","","EUR"),"PLN"),"") -> PLN
D21: F53-2700 | E21: =IFERROR(VLOOKUP(D21,Arkusz!A:H,3,FALSE),"Brak towaru") -> CobiCabling Kabel FO MM OM3 48G LSOH uniwersalny Dca | F21: =IFERROR(VLOOKUP(D21,Arkusz!A:H,6,FALSE),"-") -> Cobi FO kable | G21: 0 | H21: =IFERROR(IF(VLOOKUP(D21,Arkusz!A:I,5,FALSE)=0,(IF(VLOOKUP(D21,Arkusz!A:I,11,FALSE)=0,"Na zapytanie",VLOOKUP(D21,Arkusz!A:I,11,FALSE))),(VLOOKUP(D21,Arkusz!A:I,5,FALSE))),"Na zapytanie") -> 52.36 | I21: 52.36 | J21: =IFERROR(IF(VLOOKUP(D21,Arkusz!A:H,5,FALSE)=0,IF(H21="Na zapytanie","","EUR"),"PLN"),"") -> PLN
C22: Wielomodowe OM4 50/125
D23: F54-2200 | E23: =IFERROR(VLOOKUP(D23,Arkusz!A:H,3,FALSE),"Brak towaru") -> CobiCabling Kabel FO MM OM4 4G LSOH uniwersalny Dca | F23: =IFERROR(VLOOKUP(D23,Arkusz!A:H,6,FALSE),"-") -> Cobi FO kable | G23: 0 | H23: =IFERROR(IF(VLOOKUP(D23,Arkusz!A:I,5,FALSE)=0,(IF(VLOOKUP(D23,Arkusz!A:I,11,FALSE)=0,"Na zapytanie",VLOOKUP(D23,Arkusz!A:I,11,FALSE))),(VLOOKUP(D23,Arkusz!A:I,5,FALSE))),"Na zapytanie") -> 6.92 | I23: 6.92 | J23: =IFERROR(IF(VLOOKUP(D23,Arkusz!A:H,5,FALSE)=0,IF(H23="Na zapytanie","","EUR"),"PLN"),"") -> PLN
D24: F54-2400 | E24: =IFERROR(VLOOKUP(D24,Arkusz!A:H,3,FALSE),"Brak towaru") -> CobiCabling Kabel FO MM OM4 8G LSOH uniwersalny Dca | F24: =IFERROR(VLOOKUP(D24,Arkusz!A:H,6,FALSE),"-") -> Cobi FO kable | G24: 0 | H24: =IFERROR(IF(VLOOKUP(D24,Arkusz!A:I,5,FALSE)=0,(IF(VLOOKUP(D24,Arkusz!A:I,11,FALSE)=0,"Na zapytanie",VLOOKUP(D24,Arkusz!A:I,11,FALSE))),(VLOOKUP(D24,Arkusz!A:I,5,FALSE))),"Na zapytanie") -> 13.47 | I24: 13.47 | J24: =IFERROR(IF(VLOOKUP(D24,Arkusz!A:H,5,FALSE)=0,IF(H24="Na zapytanie","","EUR"),"PLN"),"") -> PLN
D25: F54-2500 | E25: =IFERROR(VLOOKUP(D25,Arkusz!A:H,3,FALSE),"Brak towaru") -> CobiCabling Kabel FO MM OM4 12G LSOH uniwersalny Dca | F25: =IFERROR(VLOOKUP(D25,Arkusz!A:H,6,FALSE),"-") -> Cobi FO kable | G25: 0 | H25: =IFERROR(IF(VLOOKUP(D25,Arkusz!A:I,5,FALSE)=0,(IF(VLOOKUP(D25,Arkusz!A:I,11,FALSE)=0,"Na zapytanie",VLOOKUP(D25,Arkusz!A:I,11,FALSE))),(VLOOKUP(D25,Arkusz!A:I,5,FALSE))),"Na zapytanie") -> 18.09 | I25: 18.09 | J25: =IFERROR(IF(VLOOKUP(D25,Arkusz!A:H,5,FALSE)=0,IF(H25="Na zapytanie","","EUR"),"PLN"),"") -> PLN
D26: F54-2600 | E26: =IFERROR(VLOOKUP(D26,Arkusz!A:H,3,FALSE),"Brak towaru") -> CobiCabling Kabel FO MM OM4 24G LSOH uniwersalny Dca | F26: =IFERROR(VLOOKUP(D26,Arkusz!A:H,6,FALSE),"-") -> Cobi FO kable | G26: 0 | H26: =IFERROR(IF(VLOOKUP(D26,Arkusz!A:I,5,FALSE)=0,(IF(VLOOKUP(D26,Arkusz!A:I,11,FALSE)=0,"Na zapytanie",VLOOKUP(D26,Arkusz!A:I,11,FALSE))),(VLOOKUP(D26,Arkusz!A:I,5,FALSE))),"Na zapytanie") -> 31.84 | I26: 31.84 | J26: =IFERROR(IF(VLOOKUP(D26,Arkusz!A:H,5,FALSE)=0,IF(H26="Na zapytanie","","EUR"),"PLN"),"") -> PLN
D27: F54-2700 | E27: =IFERROR(VLOOKUP(D27,Arkusz!A:H,3,FALSE),"Brak towaru") -> CobiCabling Kabel FO MM OM4 48G LSOH uniwersalny Dca | F27: =IFERROR(VLOOKUP(D27,Arkusz!A:H,6,FALSE),"-") -> Cobi FO kable | G27: 0 | H27: =IFERROR(IF(VLOOKUP(D27,Arkusz!A:I,5,FALSE)=0,(IF(VLOOKUP(D27,Arkusz!A:I,11,FALSE)=0,"Na zapytanie",VLOOKUP(D27,Arkusz!A:I,11,FALSE))),(VLOOKUP(D27,Arkusz!A:I,5,FALSE))),"Na zapytanie") -> 86.8 | I27: 86.8 | J27: =IFERROR(IF(VLOOKUP(D27,Arkusz!A:H,5,FALSE)=0,IF(H27="Na zapytanie","","EUR"),"PLN"),"") -> PLN
B28: Kable światłowodowe uniwersalne (B2ca)
C29: Jednomodowe OS2 9/125
D30: F51-5200 | E30: =IFERROR(VLOOKUP(D30,Arkusz!A:H,3,FALSE),"Brak towaru") -> CobiCabling Kabel FO SM G657A1 4J LSOH uniwersalny B2ca | F30: =IFERROR(VLOOKUP(D30,Arkusz!A:H,6,FALSE),"-") -> Cobi FO kable | G30: 0 | H30: =IFERROR(IF(VLOOKUP(D30,Arkusz!A:I,5,FALSE)=0,(IF(VLOOKUP(D30,Arkusz!A:I,11,FALSE)=0,"Na zapytanie",VLOOKUP(D30,Arkusz!A:I,11,FALSE))),(VLOOKUP(D30,Arkusz!A:I,5,FALSE))),"Na zapytanie") -> 4.68 | I30: =IFERROR(IF(H30="Na zapytanie","",H30*(1-G30)),"") -> 4.68 | J30: =IFERROR(IF(VLOOKUP(D30,Arkusz!A:H,5,FALSE)=0,IF(H30="Na zapytanie","","EUR"),"PLN"),"") -> PLN
D31: F51-5400 | E31: =IFERROR(VLOOKUP(D31,Arkusz!A:H,3,FALSE),"Brak towaru") -> CobiCabling Kabel FO SM G657A1 8J LSOH uniwersalny B2ca | F31: =IFERROR(VLOOKUP(D31,Arkusz!A:H,6,FALSE),"-") -> Cobi FO kable | G31: 0 | H31: =IFERROR(IF(VLOOKUP(D31,Arkusz!A:I,5,FALSE)=0,(IF(VLOOKUP(D31,Arkusz!A:I,11,FALSE)=0,"Na zapytanie",VLOOKUP(D31,Arkusz!A:I,11,FALSE))),(VLOOKUP(D31,Arkusz!A:I,5,FALSE))),"Na zapytanie") -> 5.58 | I31: 5.58 | J31: =IFERROR(IF(VLOOKUP(D31,Arkusz!A:H,5,FALSE)=0,IF(H31="Na zapytanie","","EUR"),"PLN"),"") -> PLN
D32: F51-5500 | E32: =IFERROR(VLOOKUP(D32,Arkusz!A:H,3,FALSE),"Brak towaru") -> CobiCabling Kabel FO SM G657A1 12J LSOH uniwersalny B2ca | F32: =IFERROR(VLOOKUP(D32,Arkusz!A:H,6,FALSE),"-") -> Cobi FO kable | G32: 0 | H32: =IFERROR(IF(VLOOKUP(D32,Arkusz!A:I,5,FALSE)=0,(IF(VLOOKUP(D32,Arkusz!A:I,11,FALSE)=0,"Na zapytanie",VLOOKUP(D32,Arkusz!A:I,11,FALSE))),(VLOOKUP(D32,Arkusz!A:I,5,FALSE))),"Na zapytanie") -> 6.01 | I32: 6.01 | J32: =IFERROR(IF(VLOOKUP(D32,Arkusz!A:H,5,FALSE)=0,IF(H32="Na zapytanie","","EUR"),"PLN"),"") -> PLN
D33: F51-5600 | E33: =IFERROR(VLOOKUP(D33,Arkusz!A:H,3,FALSE),"Brak towaru") -> CobiCabling Kabel FO SM G657A1 24J LSOH uniwersalny B2ca | F33: =IFERROR(VLOOKUP(D33,Arkusz!A:H,6,FALSE),"-") -> Cobi FO kable | G33: 0 | H33: =IFERROR(IF(VLOOKUP(D33,Arkusz!A:I,5,FALSE)=0,(IF(VLOOKUP(D33,Arkusz!A:I,11,FALSE)=0,"Na zapytanie",VLOOKUP(D33,Arkusz!A:I,11,FALSE))),(VLOOKUP(D33,Arkusz!A:I,5,FALSE))),"Na zapytanie") -> 8.93 | I33: 8.93 | J33: =IFERROR(IF(VLOOKUP(D33,Arkusz!A:H,5,FALSE)=0,IF(H33="Na zapytanie","","EUR"),"PLN"),"") -> PLN
C34: Wielomodowe OM3 50/125
D35: F53-5200 | E35: =IFERROR(VLOOKUP(D35,Arkusz!A:H,3,FALSE),"Brak towaru") -> CobiCabling Kabel FO MM OM3 4G LSOH uniwersalny B2ca | F35: =IFERROR(VLOOKUP(D35,Arkusz!A:H,6,FALSE),"-") -> Cobi FO kable | G35: 0 | H35: =IFERROR(IF(VLOOKUP(D35,Arkusz!A:I,5,FALSE)=0,(IF(VLOOKUP(D35,Arkusz!A:I,11,FALSE)=0,"Na zapytanie",VLOOKUP(D35,Arkusz!A:I,11,FALSE))),(VLOOKUP(D35,Arkusz!A:I,5,FALSE))),"Na zapytanie") -> 5.52 | I35: =IFERROR(IF(H35="Na zapytanie","",H35*(1-G35)),"") -> 5.52 | J35: =IFERROR(IF(VLOOKUP(D35,Arkusz!A:H,5,FALSE)=0,IF(H35="Na zapytanie","","EUR"),"PLN"),"") -> PLN
D36: F53-5400 | E36: =IFERROR(VLOOKUP(D36,Arkusz!A:H,3,FALSE),"Brak towaru") -> CobiCabling Kabel FO MM OM3 8G LSOH uniwersalny B2ca | F36: =IFERROR(VLOOKUP(D36,Arkusz!A:H,6,FALSE),"-") -> Cobi FO kable | G36: 0 | H36: =IFERROR(IF(VLOOKUP(D36,Arkusz!A:I,5,FALSE)=0,(IF(VLOOKUP(D36,Arkusz!A:I,11,FALSE)=0,"Na zapytanie",VLOOKUP(D36,Arkusz!A:I,11,FALSE))),(VLOOKUP(D36,Arkusz!A:I,5,FALSE))),"Na zapytanie") -> 8.06 | I36: 8.06 | J36: =IFERROR(IF(VLOOKUP(D36,Arkusz!A:H,5,FALSE)=0,IF(H36="Na zapytanie","","EUR"),"PLN"),"") -> PLN
D37: F53-5500 | E37: =IFERROR(VLOOKUP(D37,Arkusz!A:H,3,FALSE),"Brak towaru") -> CobiCabling Kabel FO MM OM3 12G LSOH uniwersalny B2ca | F37: =IFERROR(VLOOKUP(D37,Arkusz!A:H,6,FALSE),"-") -> Cobi FO kable | G37: 0 | H37: =IFERROR(IF(VLOOKUP(D37,Arkusz!A:I,5,FALSE)=0,(IF(VLOOKUP(D37,Arkusz!A:I,11,FALSE)=0,"Na zapytanie",VLOOKUP(D37,Arkusz!A:I,11,FALSE))),(VLOOKUP(D37,Arkusz!A:I,5,FALSE))),"Na zapytanie") -> 10.79 | I37: 10.79 | J37: =IFERROR(IF(VLOOKUP(D37,Arkusz!A:H,5,FALSE)=0,IF(H37="Na zapytanie","","EUR"),"PLN"),"") -> PLN
D38: F53-5600 | E38: =IFERROR(VLOOKUP(D38,Arkusz!A:H,3,FALSE),"Brak towaru") -> CobiCabling Kabel FO MM OM3 24G LSOH uniwersalny B2ca | F38: =IFERROR(VLOOKUP(D38,Arkusz!A:H,6,FALSE),"-") -> Cobi FO kable | G38: 0 | H38: =IFERROR(IF(VLOOKUP(D38,Arkusz!A:I,5,FALSE)=0,(IF(VLOOKUP(D38,Arkusz!A:I,11,FALSE)=0,"Na zapytanie",VLOOKUP(D38,Arkusz!A:I,11,FALSE))),(VLOOKUP(D38,Arkusz!A:I,5,FALSE))),"Na zapytanie") -> 19.19 | I38: 19.19 | J38: =IFERROR(IF(VLOOKUP(D38,Arkusz!A:H,5,FALSE)=0,IF(H38="Na zapytanie","","EUR"),"PLN"),"") -> PLN
C39: Wielomodowe OM4 50/125
D40: F54-5200 | E40: =IFERROR(VLOOKUP(D40,Arkusz!A:H,3,FALSE),"Brak towaru") -> CobiCabling Kabel FO MM OM4 4G LSOH uniwersalny B2ca | F40: =IFERROR(VLOOKUP(D40,Arkusz!A:H,6,FALSE),"-") -> Cobi FO kable | G40: 0 | H40: =IFERROR(IF(VLOOKUP(D40,Arkusz!A:I,5,FALSE)=0,(IF(VLOOKUP(D40,Arkusz!A:I,11,FALSE)=0,"Na zapytanie",VLOOKUP(D40,Arkusz!A:I,11,FALSE))),(VLOOKUP(D40,Arkusz!A:I,5,FALSE))),"Na zapytanie") -> 8.18 | I40: =IFERROR(IF(H40="Na zapytanie","",H40*(1-G40)),"") -> 8.18 | J40: =IFERROR(IF(VLOOKUP(D40,Arkusz!A:H,5,FALSE)=0,IF(H40="Na zapytanie","","EUR"),"PLN"),"") -> PLN
D41: F54-5400 | E41: =IFERROR(VLOOKUP(D41,Arkusz!A:H,3,FALSE),"Brak towaru") -> CobiCabling Kabel FO MM OM4 8G LSOH uniwersalny B2ca | F41: =IFERROR(VLOOKUP(D41,Arkusz!A:H,6,FALSE),"-") -> Cobi FO kable | G41: 0 | H41: =IFERROR(IF(VLOOKUP(D41,Arkusz!A:I,5,FALSE)=0,(IF(VLOOKUP(D41,Arkusz!A:I,11,FALSE)=0,"Na zapytanie",VLOOKUP(D41,Arkusz!A:I,11,FALSE))),(VLOOKUP(D41,Arkusz!A:I,5,FALSE))),"Na zapytanie") -> 15.25 | I41: 15.25 | J41: =IFERROR(IF(VLOOKUP(D41,Arkusz!A:H,5,FALSE)=0,IF(H41="Na zapytanie","","EUR"),"PLN"),"") -> PLN
D42: F54-5500 | E42: =IFERROR(VLOOKUP(D42,Arkusz!A:H,3,FALSE),"Brak towaru") -> CobiCabling Kabel FO MM OM4 12G LSOH uniwersalny B2ca | F42: =IFERROR(VLOOKUP(D42,Arkusz!A:H,6,FALSE),"-") -> Cobi FO kable | G42: 0 | H42: =IFERROR(IF(VLOOKUP(D42,Arkusz!A:I,5,FALSE)=0,(IF(VLOOKUP(D42,Arkusz!A:I,11,FALSE)=0,"Na zapytanie",VLOOKUP(D42,Arkusz!A:I,11,FALSE))),(VLOOKUP(D42,Arkusz!A:I,5,FALSE))),"Na zapytanie") -> 26.85 | I42: 26.85 | J42: =IFERROR(IF(VLOOKUP(D42,Arkusz!A:H,5,FALSE)=0,IF(H42="Na zapytanie","","EUR"),"PLN"),"") -> PLN
D43: F54-5600 | E43: =IFERROR(VLOOKUP(D43,Arkusz!A:H,3,FALSE),"Brak towaru") -> CobiCabling Kabel FO MM OM4 24G LSOH uniwersalny B2ca | F43: =IFERROR(VLOOKUP(D43,Arkusz!A:H,6,FALSE),"-") -> Cobi FO kable | G43: 0 | H43: =IFERROR(IF(VLOOKUP(D43,Arkusz!A:I,5,FALSE)=0,(IF(VLOOKUP(D43,Arkusz!A:I,11,FALSE)=0,"Na zapytanie",VLOOKUP(D43,Arkusz!A:I,11,FALSE))),(VLOOKUP(D43,Arkusz!A:I,5,FALSE))),"Na zapytanie") -> 35.43 | I43: 35.43 | J43: =IFERROR(IF(VLOOKUP(D43,Arkusz!A:H,5,FALSE)=0,IF(H43="Na zapytanie","","EUR"),"PLN"),"") -> PLN
B44: Kable światłowodowe zewnętrzne PE
C45: Jednomodowe OS2 9/125
D46: F51-9200 | E46: =IFERROR(VLOOKUP(D46,Arkusz!A:H,3,FALSE),"Brak towaru") -> CobiCabling Kabel FO SM G657A1 4J PE zewnętrzny Fca | F46: =IFERROR(VLOOKUP(D46,Arkusz!A:H,6,FALSE),"-") -> Cobi FO kable | G46: 0 | H46: =IFERROR(IF(VLOOKUP(D46,Arkusz!A:I,5,FALSE)=0,(IF(VLOOKUP(D46,Arkusz!A:I,11,FALSE)=0,"Na zapytanie",VLOOKUP(D46,Arkusz!A:I,11,FALSE))),(VLOOKUP(D46,Arkusz!A:I,5,FALSE))),"Na zapytanie") -> 3.53 | I46: 3.53 | J46: =IFERROR(IF(VLOOKUP(D46,Arkusz!A:H,5,FALSE)=0,IF(H46="Na zapytanie","","EUR"),"PLN"),"") -> PLN
D47: F51-9400 | E47: =IFERROR(VLOOKUP(D47,Arkusz!A:H,3,FALSE),"Brak towaru") -> CobiCabling Kabel FO SM G657A1 8J PE zewnętrzny Fca | F47: =IFERROR(VLOOKUP(D47,Arkusz!A:H,6,FALSE),"-") -> Cobi FO kable | G47: 0 | H47: =IFERROR(IF(VLOOKUP(D47,Arkusz!A:I,5,FALSE)=0,(IF(VLOOKUP(D47,Arkusz!A:I,11,FALSE)=0,"Na zapytanie",VLOOKUP(D47,Arkusz!A:I,11,FALSE))),(VLOOKUP(D47,Arkusz!A:I,5,FALSE))),"Na zapytanie") -> 4.31 | I47: 4.31 | J47: =IFERROR(IF(VLOOKUP(D47,Arkusz!A:H,5,FALSE)=0,IF(H47="Na zapytanie","","EUR"),"PLN"),"") -> PLN
D48: F51-9500 | E48: =IFERROR(VLOOKUP(D48,Arkusz!A:H,3,FALSE),"Brak towaru") -> CobiCabling Kabel FO SM G657A1 12J PE zewnętrzny Fca | F48: =IFERROR(VLOOKUP(D48,Arkusz!A:H,6,FALSE),"-") -> Cobi FO kable | G48: 0 | H48: =IFERROR(IF(VLOOKUP(D48,Arkusz!A:I,5,FALSE)=0,(IF(VLOOKUP(D48,Arkusz!A:I,11,FALSE)=0,"Na zapytanie",VLOOKUP(D48,Arkusz!A:I,11,FALSE))),(VLOOKUP(D48,Arkusz!A:I,5,FALSE))),"Na zapytanie") -> 4.79 | I48: 4.79 | J48: =IFERROR(IF(VLOOKUP(D48,Arkusz!A:H,5,FALSE)=0,IF(H48="Na zapytanie","","EUR"),"PLN"),"") -> PLN
D49: F51-9600 | E49: =IFERROR(VLOOKUP(D49,Arkusz!A:H,3,FALSE),"Brak towaru") -> CobiCabling Kabel FO SM G657A1 24J PE zewnętrzny Fca | F49: =IFERROR(VLOOKUP(D49,Arkusz!A:H,6,FALSE),"-") -> Cobi FO kable | G49: 0 | H49: =IFERROR(IF(VLOOKUP(D49,Arkusz!A:I,5,FALSE)=0,(IF(VLOOKUP(D49,Arkusz!A:I,11,FALSE)=0,"Na zapytanie",VLOOKUP(D49,Arkusz!A:I,11,FALSE))),(VLOOKUP(D49,Arkusz!A:I,5,FALSE))),"Na zapytanie") -> 7.45 | I49: 7.45 | J49: =IFERROR(IF(VLOOKUP(D49,Arkusz!A:H,5,FALSE)=0,IF(H49="Na zapytanie","","EUR"),"PLN"),"") -> PLN
D50: F51-9210 | E50: =IFERROR(VLOOKUP(D50,Arkusz!A:H,3,FALSE),"Brak towaru") -> CobiCabling Kabel FO SM G657A1 4J PE zewnętrzny Fca | F50: =IFERROR(VLOOKUP(D50,Arkusz!A:H,6,FALSE),"-") -> Cobi FO kable | G50: 0 | H50: =IFERROR(IF(VLOOKUP(D50,Arkusz!A:I,5,FALSE)=0,(IF(VLOOKUP(D50,Arkusz!A:I,11,FALSE)=0,"Na zapytanie",VLOOKUP(D50,Arkusz!A:I,11,FALSE))),(VLOOKUP(D50,Arkusz!A:I,5,FALSE))),"Na zapytanie") -> 2.58 | I50: =IFERROR(IF(H50="Na zapytanie","",H50*(1-G50)),"") -> 2.58 | J50: =IFERROR(IF(VLOOKUP(D50,Arkusz!A:H,5,FALSE)=0,IF(H50="Na zapytanie","","EUR"),"PLN"),"") -> PLN
D51: F51-9510 | E51: =IFERROR(VLOOKUP(D51,Arkusz!A:H,3,FALSE),"Brak towaru") -> CobiCabling Kabel FO SM G657A1 12J PE zewnętrzny Fca | F51: =IFERROR(VLOOKUP(D51,Arkusz!A:H,6,FALSE),"-") -> Cobi FO kable | G51: 0 | H51: =IFERROR(IF(VLOOKUP(D51,Arkusz!A:I,5,FALSE)=0,(IF(VLOOKUP(D51,Arkusz!A:I,11,FALSE)=0,"Na zapytanie",VLOOKUP(D51,Arkusz!A:I,11,FALSE))),(VLOOKUP(D51,Arkusz!A:I,5,FALSE))),"Na zapytanie") -> 3 | I51: 3 | J51: =IFERROR(IF(VLOOKUP(D51,Arkusz!A:H,5,FALSE)=0,IF(H51="Na zapytanie","","EUR"),"PLN"),"") -> PLN
D52: F51-9610 | E52: =IFERROR(VLOOKUP(D52,Arkusz!A:H,3,FALSE),"Brak towaru") -> CobiCabling Kabel FO SM G657A1 24J PE zewnętrzny Fca | F52: =IFERROR(VLOOKUP(D52,Arkusz!A:H,6,FALSE),"-") -> Cobi FO kable | G52: 0 | H52: =IFERROR(IF(VLOOKUP(D52,Arkusz!A:I,5,FALSE)=0,(IF(VLOOKUP(D52,Arkusz!A:I,11,FALSE)=0,"Na zapytanie",VLOOKUP(D52,Arkusz!A:I,11,FALSE))),(VLOOKUP(D52,Arkusz!A:I,5,FALSE))),"Na zapytanie") -> 3.7 | I52: 3.7 | J52: =IFERROR(IF(VLOOKUP(D52,Arkusz!A:H,5,FALSE)=0,IF(H52="Na zapytanie","","EUR"),"PLN"),"") -> PLN
D53: F51-9710 | E53: =IFERROR(VLOOKUP(D53,Arkusz!A:H,3,FALSE),"Brak towaru") -> CobiCabling Kabel FO SM G657A1 48J PE zewnętrzny Fca | F53: =IFERROR(VLOOKUP(D53,Arkusz!A:H,6,FALSE),"-") -> Cobi FO kable | G53: 0 | H53: =IFERROR(IF(VLOOKUP(D53,Arkusz!A:I,5,FALSE)=0,(IF(VLOOKUP(D53,Arkusz!A:I,11,FALSE)=0,"Na zapytanie",VLOOKUP(D53,Arkusz!A:I,11,FALSE))),(VLOOKUP(D53,Arkusz!A:I,5,FALSE))),"Na zapytanie") -> 5.57 | I53: 5.57 | J53: =IFERROR(IF(VLOOKUP(D53,Arkusz!A:H,5,FALSE)=0,IF(H53="Na zapytanie","","EUR"),"PLN"),"") -> PLN
C54: Wielomodowe OM2 50/125
D55: F52-9200 | E55: =IFERROR(VLOOKUP(D55,Arkusz!A:H,3,FALSE),"Brak towaru") -> CobiCabling Kabel FO MM OM2 4G PE zewnętrzny Fca | F55: =IFERROR(VLOOKUP(D55,Arkusz!A:H,6,FALSE),"-") -> Cobi FO kable | G55: 0 | H55: =IFERROR(IF(VLOOKUP(D55,Arkusz!A:I,5,FALSE)=0,(IF(VLOOKUP(D55,Arkusz!A:I,11,FALSE)=0,"Na zapytanie",VLOOKUP(D55,Arkusz!A:I,11,FALSE))),(VLOOKUP(D55,Arkusz!A:I,5,FALSE))),"Na zapytanie") -> 5.32 | I55: 5.32 | J55: =IFERROR(IF(VLOOKUP(D55,Arkusz!A:H,5,FALSE)=0,IF(H55="Na zapytanie","","EUR"),"PLN"),"") -> PLN
D56: F52-9400 | E56: =IFERROR(VLOOKUP(D56,Arkusz!A:H,3,FALSE),"Brak towaru") -> CobiCabling Kabel FO MM OM2 8G PE zewnętrzny Fca | F56: =IFERROR(VLOOKUP(D56,Arkusz!A:H,6,FALSE),"-") -> Cobi FO kable | G56: 0 | H56: =IFERROR(IF(VLOOKUP(D56,Arkusz!A:I,5,FALSE)=0,(IF(VLOOKUP(D56,Arkusz!A:I,11,FALSE)=0,"Na zapytanie",VLOOKUP(D56,Arkusz!A:I,11,FALSE))),(VLOOKUP(D56,Arkusz!A:I,5,FALSE))),"Na zapytanie") -> 9.77 | I56: 9.77 | J56: =IFERROR(IF(VLOOKUP(D56,Arkusz!A:H,5,FALSE)=0,IF(H56="Na zapytanie","","EUR"),"PLN"),"") -> PLN
D57: F52-9500 | E57: =IFERROR(VLOOKUP(D57,Arkusz!A:H,3,FALSE),"Brak towaru") -> CobiCabling Kabel FO MM OM2 12G PE zewnętrzny Fca | F57: =IFERROR(VLOOKUP(D57,Arkusz!A:H,6,FALSE),"-") -> Cobi FO kable | G57: 0 | H57: =IFERROR(IF(VLOOKUP(D57,Arkusz!A:I,5,FALSE)=0,(IF(VLOOKUP(D57,Arkusz!A:I,11,FALSE)=0,"Na zapytanie",VLOOKUP(D57,Arkusz!A:I,11,FALSE))),(VLOOKUP(D57,Arkusz!A:I,5,FALSE))),"Na zapytanie") -> 10.08 | I57: 10.08 | J57: =IFERROR(IF(VLOOKUP(D57,Arkusz!A:H,5,FALSE)=0,IF(H57="Na zapytanie","","EUR"),"PLN"),"") -> PLN
D58: F52-9600 | E58: =IFERROR(VLOOKUP(D58,Arkusz!A:H,3,FALSE),"Brak towaru") -> CobiCabling Kabel FO MM OM2 24G PE zewnętrzny Fca | F58: =IFERROR(VLOOKUP(D58,Arkusz!A:H,6,FALSE),"-") -> Cobi FO kable | G58: 0 | H58: =IFERROR(IF(VLOOKUP(D58,Arkusz!A:I,5,FALSE)=0,(IF(VLOOKUP(D58,Arkusz!A:I,11,FALSE)=0,"Na zapytanie",VLOOKUP(D58,Arkusz!A:I,11,FALSE))),(VLOOKUP(D58,Arkusz!A:I,5,FALSE))),"Na zapytanie") -> 12.6 | I58: 12.6 | J58: =IFERROR(IF(VLOOKUP(D58,Arkusz!A:H,5,FALSE)=0,IF(H58="Na zapytanie","","EUR"),"PLN"),"") -> PLN
C59: Wielomodowe OM3 50/125
D60: F53-9200 | E60: =IFERROR(VLOOKUP(D60,Arkusz!A:H,3,FALSE),"Brak towaru") -> CobiCabling Kabel FO MM OM3 4G PE zewnętrzny Fca | F60: =IFERROR(VLOOKUP(D60,Arkusz!A:H,6,FALSE),"-") -> Cobi FO kable | G60: 0 | H60: =IFERROR(IF(VLOOKUP(D60,Arkusz!A:I,5,FALSE)=0,(IF(VLOOKUP(D60,Arkusz!A:I,11,FALSE)=0,"Na zapytanie",VLOOKUP(D60,Arkusz!A:I,11,FALSE))),(VLOOKUP(D60,Arkusz!A:I,5,FALSE))),"Na zapytanie") -> 8.12 | I60: 8.12 | J60: =IFERROR(IF(VLOOKUP(D60,Arkusz!A:H,5,FALSE)=0,IF(H60="Na zapytanie","","EUR"),"PLN"),"") -> PLN
D61: F53-9400 | E61: =IFERROR(VLOOKUP(D61,Arkusz!A:H,3,FALSE),"Brak towaru") -> CobiCabling Kabel FO MM OM3 8G PE zewnętrzny Fca | F61: =IFERROR(VLOOKUP(D61,Arkusz!A:H,6,FALSE),"-") -> Cobi FO kable | G61: 0 | H61: =IFERROR(IF(VLOOKUP(D61,Arkusz!A:I,5,FALSE)=0,(IF(VLOOKUP(D61,Arkusz!A:I,11,FALSE)=0,"Na zapytanie",VLOOKUP(D61,Arkusz!A:I,11,FALSE))),(VLOOKUP(D61,Arkusz!A:I,5,FALSE))),"Na zapytanie") -> 11.2 | I61: 11.2 | J61: =IFERROR(IF(VLOOKUP(D61,Arkusz!A:H,5,FALSE)=0,IF(H61="Na zapytanie","","EUR"),"PLN"),"") -> PLN
D62: F53-9500 | E62: =IFERROR(VLOOKUP(D62,Arkusz!A:H,3,FALSE),"Brak towaru") -> CobiCabling Kabel FO MM OM3 12G PE zewnętrzny Fca | F62: =IFERROR(VLOOKUP(D62,Arkusz!A:H,6,FALSE),"-") -> Cobi FO kable | G62: 0 | H62: =IFERROR(IF(VLOOKUP(D62,Arkusz!A:I,5,FALSE)=0,(IF(VLOOKUP(D62,Arkusz!A:I,11,FALSE)=0,"Na zapytanie",VLOOKUP(D62,Arkusz!A:I,11,FALSE))),(VLOOKUP(D62,Arkusz!A:I,5,FALSE))),"Na zapytanie") -> 14.56 | I62: 14.56 | J62: =IFERROR(IF(VLOOKUP(D62,Arkusz!A:H,5,FALSE)=0,IF(H62="Na zapytanie","","EUR"),"PLN"),"") -> PLN
D63: F53-9600 | E63: =IFERROR(VLOOKUP(D63,Arkusz!A:H,3,FALSE),"Brak towaru") -> CobiCabling Kabel FO MM OM3 24G PE zewnętrzny Fca | F63: =IFERROR(VLOOKUP(D63,Arkusz!A:H,6,FALSE),"-") -> Cobi FO kable | G63: 0 | H63: =IFERROR(IF(VLOOKUP(D63,Arkusz!A:I,5,FALSE)=0,(IF(VLOOKUP(D63,Arkusz!A:I,11,FALSE)=0,"Na zapytanie",VLOOKUP(D63,Arkusz!A:I,11,FALSE))),(VLOOKUP(D63,Arkusz!A:I,5,FALSE))),"Na zapytanie") -> 22.68 | I63: 22.68 | J63: =IFERROR(IF(VLOOKUP(D63,Arkusz!A:H,5,FALSE)=0,IF(H63="Na zapytanie","","EUR"),"PLN"),"") -> PLN
B64: Kable światłowodowe uniwersalne (Fca)
C65: Jednomodowe OS2 9/125
D66: F51-1200 | E66: =IFERROR(VLOOKUP(D66,Arkusz!A:H,3,FALSE),"Brak towaru") -> CobiCabling Kabel FO SM G652D 4J LSOH uniwersalny Fca | F66: =IFERROR(VLOOKUP(D66,Arkusz!A:H,6,FALSE),"-") -> Cobi FO kable | G66: 0 | H66: =IFERROR(IF(VLOOKUP(D66,Arkusz!A:I,5,FALSE)=0,(IF(VLOOKUP(D66,Arkusz!A:I,11,FALSE)=0,"Na zapytanie",VLOOKUP(D66,Arkusz!A:I,11,FALSE))),(VLOOKUP(D66,Arkusz!A:I,5,FALSE))),"Na zapytanie") -> 2.02 | I66: 2.02 | J66: =IFERROR(IF(VLOOKUP(D66,Arkusz!A:H,5,FALSE)=0,IF(H66="Na zapytanie","","EUR"),"PLN"),"") -> PLN
D67: F51-1400 | E67: =IFERROR(VLOOKUP(D67,Arkusz!A:H,3,FALSE),"Brak towaru") -> CobiCabling Kabel FO SM G652D 8J LSOH uniwersalny Fca | F67: =IFERROR(VLOOKUP(D67,Arkusz!A:H,6,FALSE),"-") -> Cobi FO kable | G67: 0 | H67: =IFERROR(IF(VLOOKUP(D67,Arkusz!A:I,5,FALSE)=0,(IF(VLOOKUP(D67,Arkusz!A:I,11,FALSE)=0,"Na zapytanie",VLOOKUP(D67,Arkusz!A:I,11,FALSE))),(VLOOKUP(D67,Arkusz!A:I,5,FALSE))),"Na zapytanie") -> 2.97 | I67: 2.97 | J67: =IFERROR(IF(VLOOKUP(D67,Arkusz!A:H,5,FALSE)=0,IF(H67="Na zapytanie","","EUR"),"PLN"),"") -> PLN
D68: F51-1500 | E68: =IFERROR(VLOOKUP(D68,Arkusz!A:H,3,FALSE),"Brak towaru") -> CobiCabling Kabel FO SM G652D 12J LSOH uniwersalny Fca | F68: =IFERROR(VLOOKUP(D68,Arkusz!A:H,6,FALSE),"-") -> Cobi FO kable | G68: 0 | H68: =IFERROR(IF(VLOOKUP(D68,Arkusz!A:I,5,FALSE)=0,(IF(VLOOKUP(D68,Arkusz!A:I,11,FALSE)=0,"Na zapytanie",VLOOKUP(D68,Arkusz!A:I,11,FALSE))),(VLOOKUP(D68,Arkusz!A:I,5,FALSE))),"Na zapytanie") -> 3.22 | I68: 3.22 | J68: =IFERROR(IF(VLOOKUP(D68,Arkusz!A:H,5,FALSE)=0,IF(H68="Na zapytanie","","EUR"),"PLN"),"") -> PLN
D69: F51-1600 | E69: =IFERROR(VLOOKUP(D69,Arkusz!A:H,3,FALSE),"Brak towaru") -> CobiCabling Kabel FO SM G652D 24J LSOH uniwersalny Fca | F69: =IFERROR(VLOOKUP(D69,Arkusz!A:H,6,FALSE),"-") -> Cobi FO kable | G69: 0 | H69: =IFERROR(IF(VLOOKUP(D69,Arkusz!A:I,5,FALSE)=0,(IF(VLOOKUP(D69,Arkusz!A:I,11,FALSE)=0,"Na zapytanie",VLOOKUP(D69,Arkusz!A:I,11,FALSE))),(VLOOKUP(D69,Arkusz!A:I,5,FALSE))),"Na zapytanie") -> 4.76 | I69: 4.76 | J69: =IFERROR(IF(VLOOKUP(D69,Arkusz!A:H,5,FALSE)=0,IF(H69="Na zapytanie","","EUR"),"PLN"),"") -> PLN
B70: Kable światłowodowe FTTH
C71: Jednomodowe OS2 9/125 G657A
D72: F51-5100-657A | E72: =IFERROR(VLOOKUP(D72,Arkusz!A:H,3,FALSE),"Brak towaru") -> CobiCabling Kabel FO SM Dostępowy FTTH G657A1 2J LSOH wewnętrzny B2ca | F72: =IFERROR(VLOOKUP(D72,Arkusz!A:H,6,FALSE),"-") -> Cobi FO kable | G72: 0 | H72: =IFERROR(IF(VLOOKUP(D72,Arkusz!A:I,5,FALSE)=0,(IF(VLOOKUP(D72,Arkusz!A:I,11,FALSE)=0,"Na zapytanie",VLOOKUP(D72,Arkusz!A:I,11,FALSE))),(VLOOKUP(D72,Arkusz!A:I,5,FALSE))),"Na zapytanie") -> 1.02 | I72: =IFERROR(IF(H72="Na zapytanie","",H72*(1-G72)),"") -> 1.02 | J72: =IFERROR(IF(VLOOKUP(D72,Arkusz!A:H,5,FALSE)=0,IF(H72="Na zapytanie","","EUR"),"PLN"),"") -> PLN
B73: Panele światłowodowe
D74: F41-1222 | E74: =IFERROR(VLOOKUP(D74,Arkusz!A:H,3,FALSE),"Brak towaru") -> CobiCabling Patch panel 19" 1U 24xSC duplex niewyposażony czarny | F74: =IFERROR(VLOOKUP(D74,Arkusz!A:H,6,FALSE),"-") -> Cobi FO osprzęt | G74: 0 | H74: =IFERROR(IF(VLOOKUP(D74,Arkusz!A:I,5,FALSE)=0,(IF(VLOOKUP(D74,Arkusz!A:I,11,FALSE)=0,"Na zapytanie",VLOOKUP(D74,Arkusz!A:I,11,FALSE))),(VLOOKUP(D74,Arkusz!A:I,5,FALSE))),"Na zapytanie") -> 269.1 | I74: =IFERROR(IF(H74="Na zapytanie","",H74*(1-G74)),"") -> 269.1 | J74: =IFERROR(IF(VLOOKUP(D74,Arkusz!A:H,5,FALSE)=0,IF(H74="Na zapytanie","","EUR"),"PLN"),"") -> PLN
